Workbook

Sheet Basic Details
A1: Government of Rajasthan | J1: Version : 20220316 | Q1: 2019-20 | R1: 1-July-2018 to 30-June-2019 | S1: 1-April-2018 to 31-March-2019 | T1: 2019
A2: Department of College Education, Rajasthan
A3: Assessment Matrix for Annual Auditing Programme 2021-22
A4: (An initiative in compliance of the Budget Announcement February 2019, Point No 32)
A6: Format-B
A7: Assessment of private Colleges
A8: -:College Details :- | Q8: 2020-21 | R8: 1-July-2019 to 30-June-2020 | S8: 1-April-2019 to 31-March-2020 | T8: 2020
A9: 1 | B9: Full Name of College | C9: : | Q9: 2021-22 | R9: 1-July-2020 to 30-June-2021 | S9: 1-April-2020 to 31-March-2021 | T9: 2021
A10: =1+A9 -> 2 | B10: Full Address of College with Tehsil Name | C10: : | Q10: 2022-23 | R10: 1-July-2021 to 30-June-2022 | S10: 1-April-2021 to 31-March-2022 | T10: 2022
A11: 3 | B11: Name of Nodal College with Full Address | C11: : | Q11: 2023-24 | R11: 1-July-2022 to 30-June-2023 | S11: 1-April-2022 to 31-March-2023 | T11: 2023
A12: 4 | B12: Year of Establishment | C12: :
A13: 5 | B13: Type of Affiliation | C13: :
A14: 6 | B14: If PNOC then from the year | C14: :
A15: 7 | B15: Year of seeking 2f from UGC | C15: :
A16: 8 | B16: Year of seeking 12B from UGC | C16: :
A17: 9 | B17: AISHE Code of the college | C17: :
A18: 10 | B18: Whether Management body is elected | C18: :
A19: 11 | B19: Wheather Accredited for NAAC | C19: :
A20: 12 | B20: If Yes, mention Date & Score | D20: Cylce-I : | F20: Cycle-2 : | H20: Cycle-3 :
A22: 13 | B22: Name of Principal | C22: :
A23: 14 | B23: Mobile Number of Principal | C23: :
A24: 15 | B24: Name of IQAC Coordinator | C24: :
A25: 16 | B25: Mobile Number of IQAC Coordinator | C25: :
A26: 17 | B26: e-mail ID of College | C26: :
A27: =1+A26 -> 18 | B27: Session for which AAP form is being filled | C27: : | D27: 2022-23
B28: Assessment Period will be | C28: : | D28: =IF(D27="","",VLOOKUP(D27,Q1:T11,2)) -> 1-July-2021 to 30-June-2022
B29: Financial Period will be | C29: : | D29: =IF(D27="","",VLOOKUP(D27,Q1:T11,3)) -> 1-April-2021 to 31-March-2022
B30: Examination Year will be | C30: : | D30: =IF(D27="","",VLOOKUP(D27,Q1:T11,4)) -> 2022
A31: 19 | B31: Report Type | C31: : | D31: Draft
A32: This AAP xls File must be saved as :-
A35: -: Inspection & Team Details :- (Applicable during Physical Verification only)
A37: 1 | B37: Phase of Inspection | C37: :
A38: =1+A37 -> 2 | B38: First Date of Inspection | C38: :
A39: 3 | B39: Second Date of Inspection | C39: :
A40: 4 | B40: Name of Coordinator | C40: :
A41: 5 | B41: Mobile Number : | C41: :
A42: 6 | B42: College Name | C42: :
A43: 7 | B43: College City | C43: :
A44: 8 | B44: Name of Co-Coordinator | C44: :
A45: 9 | B45: Mobile Number : | C45: :
A46: 10 | B46: College Name | C46: :
A47: 11 | B47: College City | C47: :
A48: 12 | B48: Name of Member | C48: :
A49: 13 | B49: Mobile Number : | C49: :
A50: 14 | B50: College Name | C50: :
A51: 15 | B51: College City | C51: :

Sheet Basic Details old (hidden)
Q1: 2019-20 | R1: 1-July-2018 to 30-June-2019 | S1: 1-April-2018 to 31-March-2019 | T1: 2019 | X1: =IF(+D21="","-----",D21) -> 2020-21
A2: -: College Details :- | Q2: 2020-21 | R2: 1-July-2019 to 30-June-2020 | S2: 1-April-2019 to 31-March-2020 | T2: 2020
A3: 1 | B3: Full Name of College | C3: : | Q3: 2021-22 | R3: 1-July-2020 to 30-June-2021 | S3: 1-April-2020 to 31-March-2021 | T3: 2021
A4: =1+A3 -> 2 | B4: Address of the College | C4: : | Q4: 2022-23 | R4: 1-July-2021 to 30-June-2022 | S4: 1-April-2021 to 31-March-2022 | T4: 2022
A5: 3 | B5: e-mail ID of College | C5: : | Q5: 2023-24 | R5: 1-July-2022 to 30-June-2023 | S5: 1-April-2022 to 31-March-2023 | T5: 2023
A6: 4 | B6: Phone No | C6: :
A7: 5 | B7: Year of Establishment | C7: :
A8: 6 | B8: AISHE Code | C8: :
A9: 7 | B9: Name of Principal | C9: :
A10: 8 | B10: Mobile Number | C10: :
A11: 9 | B11: e-mail ID | C11: :
A12: 10 | B12: Name of IQAC coordinator | C12: :
A13: 11 | B13: Mobile Number | C13: :
A14: 12 | B14: e-mail ID | C14: :
A15: 13 | B15: Year of Establishment | C15: :
A16: 14 | B16: Wheather Accredited for NAAC | C16: :
A17: 15 | B17: If Yes, mention Date & Score | C17: : | D17: Cylce-I : | F17: Cycle-2 : | H17: Cycle-3 :
C18: :
A19: =1+A17 -> 16 | B19: Wheather Accredited for AAP | C19: :
A20: 17 | B20: If Yes, mention Score | C20: :
A21: 18 | B21: Session for which AAP form is being filled | C21: : | D21: 2020-21
B22: Assessment Period will be | C22: : | D22: =IF(D21="","",VLOOKUP(D21,Q1:T5,2)) -> 1-July-2019 to 30-June-2020
B23: Financial Period will be | C23: : | D23: =IF(D21="","",VLOOKUP(D21,Q1:T5,3)) -> 1-April-2019 to 31-March-2020
B24: Examination Year will be | C24: : | D24: =IF(D21="","",VLOOKUP(D21,Q1:T5,4)) -> 2020
A25: 19 | B25: Report Type | C25: : | D25: Draft
A26: 20 | C26: :
A30: -: Inspection & Team Details :-
A32: 1 | B32: Phase of Inspection | C32: :
A33: =1+A32 -> 2 | B33: First Day of Inspection (Date) | C33: : | D33: 2 | E33: APR
A34: 3 | B34: Second Day of Inspection (Date) | C34: : | D34: 3
A35: 4 | B35: Name of Team Leader | C35: :
A36: 5 | B36: Mobile Number : | C36: :
A37: 6 | B37: College Name | C37: :
A38: 7 | B38: College City | C38: :
A39: 8 | B39: Name of Co-in-Charge | C39: :
A40: 9 | B40: Mobile Number : | C40: :
A41: 10 | B41: College Name | C41: :
A42: 11 | B42: College City | C42: :
A43: 12 | B43: Name of Member | C43: :
A44: 13 | B44: Mobile Number : | C44: :
A45: 14 | B45: College Name | C45: :
A46: 15 | B46: College City | C46: :

Sheet Result AAP
B1: =CONCATENATE(UPPER('Basic Details'!D9)," ",'Basic Details'!D10) ->  | V1: 0 | W1: D | AB1: Range of institutional CGPA | AC1: Letter Grade | AD1: Performance Descriptor
B2: =CONCATENATE("Assessment Matrix for Annual Auditing Programe : ",'Basic Details'!D30," Report") -> Assessment Matrix for Annual Auditing Programe : 2022 Report | V2: 1.5 | W2: D | AB2: 3.51 – 4.00 | AC2: A++ | AD2: Accredited
B3: =CONCATENATE("Inspection Phase : ",'Basic Details'!D37,"(",'Basic Details'!D31,") for Session : ",'Basic Details'!X1," and Inspection Dates : ",'Basic Details'!D38,"-",'Basic Details'!H38,"-",'Basic Details'!I38," and ",'Basic Details'!D39,"-",'Basic Details'!H39,"-",'Basic Details'!I39) -> Inspection Phase : (Draft) for Session : and Inspection Dates : -- and -- | V3: 1.5001 | W3: C | AB3: 3.26 – 3.50 | AC3: A+ | AD3: Accredited
B4: Performance Criteria | C4: Weights | D4: Criteria-wise Grade Points | E4: Maximum Weighted Credits | F4: Criteria-wise Grade Points Averages | G4: Crietria-wise Grade | H4: Supporting Document Seq. Number | N4: Delete Input Values | V4: 2 | W4: C | AB4: 3.01 – 3.25 | AC4: A | AD4: Accredited
B5: =+Input!A7 -> A. Teaching and Learning | C5: =SUM('Result KeyFactorwise AAP'!C5:C9) -> 31.25 | D5: =SUM('Result KeyFactorwise AAP'!D5:D9) -> 0 | E5: =SUM('Result KeyFactorwise AAP'!E5:E9) -> 125 | F5: =IF(C5="","",ROUND(D5/C5,3)) -> 0 | G5: =IF(F5=0,"D",VLOOKUP(F5,$V$1:$W$21,2)) -> D | H5: =+'Result KeyFactorwise AAP'!I5 -> 0 | I5: - | J5: =+'Result KeyFactorwise AAP'!K9 -> 0 | N5: A | V5: 2.001 | W5: B | AB5: 2.76 – 3.00 | AC5: B++ | AD5: Accredited
B6: =+Input!A49 -> B. Research and Professional Practices | C6: =SUM('Result KeyFactorwise AAP'!C10:C11) -> 18.5 | D6: =SUM('Result KeyFactorwise AAP'!D10:D11) -> 0 | E6: =SUM('Result KeyFactorwise AAP'!E10:E11) -> 74 | F6: =IF(C6="","",ROUND(D6/C6,3)) -> 0 | G6: D | H6: =+'Result KeyFactorwise AAP'!I10 -> 0 | I6: - | J6: =+'Result KeyFactorwise AAP'!K11 -> 0 | N6: B | V6: 2.5 | W6: B | AB6: 2.51 – 2.75 | AC6: B+ | AD6: Accredited
B7: =+Input!A65 -> C. Infrastructure and Learning Resources | C7: =SUM('Result KeyFactorwise AAP'!C12:C13) -> 17 | D7: =SUM('Result KeyFactorwise AAP'!D12:D13) -> 0 | E7: =SUM('Result KeyFactorwise AAP'!E12:E13) -> 68 | F7: 0 | G7: D | H7: =+'Result KeyFactorwise AAP'!I12 -> 0 | I7: - | J7: =+'Result KeyFactorwise AAP'!K13 -> 0 | N7: C | V7: 2.5001 | W7: B+ | AB7: 2.01 – 2.50 | AC7: B | AD7: Accredited
B8: =+Input!A94 -> D. Student Support and participation | C8: =SUM('Result KeyFactorwise AAP'!C14:C15) -> 13.5 | D8: =SUM('Result KeyFactorwise AAP'!D14:D15) -> 0 | E8: =SUM('Result KeyFactorwise AAP'!E14:E15) -> 54 | F8: 0 | G8: D | H8: =+'Result KeyFactorwise AAP'!I14 -> 0 | I8: - | J8: =+'Result KeyFactorwise AAP'!K15 -> 0 | N8: D | V8: 2.75 | W8: B+ | AB8: 1.51 – 2.00 | AC8: C | AD8: Accredited
B9: =+Input!A133 -> E. Financial Resources and Utilisation | C9: =SUM('Result KeyFactorwise AAP'!C16:C17) -> 5.25 | D9: =SUM('Result KeyFactorwise AAP'!D16:D17) -> 0 | E9: =SUM('Result KeyFactorwise AAP'!E16:E17) -> 21 | F9: 0 | G9: D | H9: =+'Result KeyFactorwise AAP'!I16 -> 0 | I9: - | J9: =+'Result KeyFactorwise AAP'!K17 -> 0 | N9: E | V9: 2.7501 | W9: B++ | AB9: ≤ 1.50 | AC9: D | AD9: Not Accredited
B10: =+Input!A142 -> F. Commitment, Leadership and Management | C10: =SUM('Result KeyFactorwise AAP'!C18:C22) -> 14.5 | D10: =SUM('Result KeyFactorwise AAP'!D18:D22) -> 0 | E10: =SUM('Result KeyFactorwise AAP'!E18:E22) -> 58 | F10: 0 | G10: D | H10: =+'Result KeyFactorwise AAP'!I18 -> 0 | I10: - | J10: =+'Result KeyFactorwise AAP'!K22 -> 0 | N10: F | V10: 3 | W10: B++
B11: TOTAL | C11: =IF(SUM(C5:C10)=0,"",SUM(C5:C10)) -> 100 | D11: =IF(SUM(D5:D10)=0,"",SUM(D5:D10)) ->  | E11: =IF(SUM(E5:E10)=0,"",SUM(E5:E10)) -> 400 | F11: =IF(SUM(F5:F10)=0,"",SUM(F5:F10)) ->  | V11: 3.001 | W11: A
V12: 3.25 | W12: A
B13: =IF(D13="","","Institutional CGPA & GRADE") ->  | D13: =IF(F11="","",ROUND(D11/C11,4)) ->  | F13: =IF(D13="","",VLOOKUP(D13,V1:W21,2)) ->  | V13: 3.2501 | W13: A+
B15: =CONCATENATE("1. ",UPPER('Basic Details'!D40),", Principal, ",'Basic Details'!D42,", ",'Basic Details'!D43,", Mobile No. : ",'Basic Details'!D41) -> 1. , Principal, , , Mobile No. : | F15: Coordinator
B16: =CONCATENATE("2. ",UPPER('Basic Details'!D44),", Associate Professor, ",'Basic Details'!D46,", ",'Basic Details'!D47,", Mobile No. : ",'Basic Details'!D45) -> 2. , Associate Professor, , , Mobile No. : | F16: Co-coordinator
B17: =CONCATENATE("3. ",UPPER('Basic Details'!D48),", Assistant Professor, ",'Basic Details'!D50,", ",'Basic Details'!D51,", Mobile No. : ",'Basic Details'!D49) -> 3. , Assistant Professor, , , Mobile No. : | F17: Member
B18: Despatch No. and Date :
B19: =CONCATENATE(UPPER('Basic Details'!D22),", Principal, ",UPPER('Basic Details'!D9),", ",'Basic Details'!D10," Mobile No. : ",'Basic Details'!D23) -> , Principal, , Mobile No. :
V20: 3.501 | W20: A++
V21: 4 | W21: A++

Sheet Result KeyFactorwise AAP
A1: =+Result!B1 ->  | U1: 0 | V1: D
A2: =+'Result AAP'!B2 -> Assessment Matrix for Annual Auditing Programe : 2022 Report | U2: 1.5 | V2: D
A3: =+'Result AAP'!B3 -> Inspection Phase : (Draft) for Session : and Inspection Dates : -- and -- | U3: 1.5001 | V3: C
A4: Crteria | B4: Key Factors Criteria | C4: Weights | D4: Criteria-wise Grade Points | E4: Maximum Weighted Credits | F4: Criteria-wise Grade Points Averages | G4: Crietria-wise Grade | H4: Delete Input Values Key Factor | I4: Supporting Document Seq. Number | U4: 2 | V4: C
A5: A. Teaching and Learning | B5: A-1 Student Strength | C5: =SUMIF(Input!$BM$7:$BM$187,O5,Input!$J$7:$J$187) -> 3.5 | D5: =SUMIF(Input!$BM$7:$BM$187,O5,Input!$K$7:$K$187) -> 0 | E5: =SUMIF(Input!$BM$7:$BM$187,O5,Input!$BQ$7:$BQ$187) -> 14 | F5: =IF(C5="","",ROUND(D5/C5,3)) -> 0 | G5: =IF(F5=0,"D",VLOOKUP(F5,$U$1:$V$16,2)) -> D | I5: =+Input!AB7 -> 0 | J5: - | K5: =+Input!AD8 -> 0 | O5: A-1 | U5: 2.001 | V5: B
B6: A-2 Inclusivity | C6: =SUMIF(Input!$BM$7:$BM$187,O6,Input!$J$7:$J$187) -> 3.25 | D6: =SUMIF(Input!$BM$7:$BM$187,O6,Input!$K$7:$K$187) -> 0 | E6: =SUMIF(Input!$BM$7:$BM$187,O6,Input!$BQ$7:$BQ$187) -> 13 | F6: =IF(C6="","",ROUND(D6/C6,3)) -> 0 | G6: D | I6: =+Input!AB9 -> 0 | J6: - | K6: =+Input!AD19 -> 0 | O6: A-2 | U6: 2.5 | V6: B
B7: A-3 Choices | C7: =SUMIF(Input!$BM$7:$BM$187,O7,Input!$J$7:$J$187) -> 6.5 | D7: =SUMIF(Input!$BM$7:$BM$187,O7,Input!$K$7:$K$187) -> 0 | E7: =SUMIF(Input!$BM$7:$BM$187,O7,Input!$BQ$7:$BQ$187) -> 26 | F7: 0 | G7: D | I7: =+Input!AB20 -> 0 | J7: - | K7: =+Input!AD25 -> 0 | O7: A-3 | U7: 2.5001 | V7: B+
B8: A-4 Faculty-Portrayal | C8: =SUMIF(Input!$BM$7:$BM$187,O8,Input!$J$7:$J$187) -> 11.5 | D8: =SUMIF(Input!$BM$7:$BM$187,O8,Input!$K$7:$K$187) -> 0 | E8: =SUMIF(Input!$BM$7:$BM$187,O8,Input!$BQ$7:$BQ$187) -> 46 | F8: 0 | G8: D | I8: =+Input!AB34 -> 0 | J8: - | K8: =+Input!AD42 -> 0 | O8: A-4 | U8: 2.75 | V8: B+
B9: A-5 Student performance and learning outcomes | C9: =SUMIF(Input!$BM$7:$BM$187,O9,Input!$J$7:$J$187) -> 6.5 | D9: =SUMIF(Input!$BM$7:$BM$187,O9,Input!$K$7:$K$187) -> 0 | E9: =SUMIF(Input!$BM$7:$BM$187,O9,Input!$BQ$7:$BQ$187) -> 26 | F9: 0 | G9: D | I9: =+Input!AB45 -> 0 | J9: - | K9: =+Input!AD48 -> 0 | O9: A-5 | U9: 2.7501 | V9: B++
A10: B. Research and Professional Practices | B10: B-1 Research Output | C10: =SUMIF(Input!$BM$7:$BM$187,O10,Input!$J$7:$J$187) -> 14.5 | D10: =SUMIF(Input!$BM$7:$BM$187,O10,Input!$K$7:$K$187) -> 0 | E10: =SUMIF(Input!$BM$7:$BM$187,O10,Input!$BQ$7:$BQ$187) -> 58 | F10: 0 | G10: D | I10: =+Input!AB49 -> 0 | J10: - | K10: =+Input!AD59 -> 0 | O10: B-1 | U10: 3 | V10: B++
B11: B-2 Academic Enrichment | C11: =SUMIF(Input!$BM$7:$BM$187,O11,Input!$J$7:$J$187) -> 4 | D11: =SUMIF(Input!$BM$7:$BM$187,O11,Input!$K$7:$K$187) -> 0 | E11: =SUMIF(Input!$BM$7:$BM$187,O11,Input!$BQ$7:$BQ$187) -> 16 | F11: 0 | G11: D | I11: =+Input!AB60 -> 0 | J11: - | K11: =+Input!AD62 -> 0 | O11: B-2 | U11: 3.001 | V11: A
A12: C. Infrastructure and Learning Resources | B12: C-1 Physical Assets | C12: =SUMIF(Input!$BM$7:$BM$187,O12,Input!$J$7:$J$187) -> 14.25 | D12: =SUMIF(Input!$BM$7:$BM$187,O12,Input!$K$7:$K$187) -> 0 | E12: =SUMIF(Input!$BM$7:$BM$187,O12,Input!$BQ$7:$BQ$187) -> 57 | F12: 0 | G12: D | H12: C | I12: =+Input!AB65 -> 0 | J12: - | K12: =+Input!AD89 -> 0 | O12: C-1 | U12: 3.25 | V12: A
B13: C-2 Office Setup | C13: =SUMIF(Input!$BM$7:$BM$187,O13,Input!$J$7:$J$187) -> 2.75 | D13: =SUMIF(Input!$BM$7:$BM$187,O13,Input!$K$7:$K$187) -> 0 | E13: =SUMIF(Input!$BM$7:$BM$187,O13,Input!$BQ$7:$BQ$187) -> 11 | F13: 0 | G13: D | I13: =+Input!AB90 -> 0 | J13: - | K13: =+Input!AD93 -> 0 | O13: C-2 | U13: 3.2501 | V13: A+
A14: D. Student Support and participation | B14: D-1 Learning Support | C14: =SUMIF(Input!$BM$7:$BM$187,O14,Input!$J$7:$J$187) -> 3.75 | D14: =SUMIF(Input!$BM$7:$BM$187,O14,Input!$K$7:$K$187) -> 0 | E14: =SUMIF(Input!$BM$7:$BM$187,O14,Input!$BQ$7:$BQ$187) -> 15 | F14: 0 | G14: D | H14: D | I14: =+Input!AB94 -> 0 | J14: - | K14: =+Input!AD104 -> 0 | O14: D-1 | U14: 3.5 | V14: A+
B15: D-2 Counseling and Mentoring | C15: =SUMIF(Input!$BM$7:$BM$187,O15,Input!$J$7:$J$187) -> 9.75 | D15: =SUMIF(Input!$BM$7:$BM$187,O15,Input!$K$7:$K$187) -> 0 | E15: =SUMIF(Input!$BM$7:$BM$187,O15,Input!$BQ$7:$BQ$187) -> 39 | F15: 0 | G15: D | I15: =+Input!AB105 -> 0 | J15: - | K15: =+Input!AD132 -> 0 | O15: D-2 | U15: 3.501 | V15: A++
A16: E. Financial Resources and Utilisation | B16: E-1 Financial Management | C16: =SUMIF(Input!$BM$7:$BM$187,O16,Input!$J$7:$J$187) -> 4 | D16: =SUMIF(Input!$BM$7:$BM$187,O16,Input!$K$7:$K$187) -> 0 | E16: =SUMIF(Input!$BM$7:$BM$187,O16,Input!$BQ$7:$BQ$187) -> 16 | F16: 0 | G16: D | I16: =+Input!AB133 -> 0 | J16: - | K16: =+Input!AD136 -> 0 | O16: E-1 | U16: 4 | V16: A++
B17: E-2 Self Financing Efforts | C17: =SUMIF(Input!$BM$7:$BM$187,O17,Input!$J$7:$J$187) -> 1.25 | D17: =SUMIF(Input!$BM$7:$BM$187,O17,Input!$K$7:$K$187) -> 0 | E17: =SUMIF(Input!$BM$7:$BM$187,O17,Input!$BQ$7:$BQ$187) -> 5 | F17: 0 | G17: D | I17: =+Input!AB141 -> 0 | J17: - | K17: =+Input!AD141 -> 0 | O17: E-2
A18: F. Commitment, Leadership and Management | B18: F-1 Societal Footprint | C18: =SUMIF(Input!$BM$7:$BM$187,O18,Input!$J$7:$J$187) -> 1.25 | D18: =SUMIF(Input!$BM$7:$BM$187,O18,Input!$K$7:$K$187) -> 0 | E18: =SUMIF(Input!$BM$7:$BM$187,O18,Input!$BQ$7:$BQ$187) -> 5 | F18: 0 | G18: D | I18: =+Input!AB142 -> 0 | J18: - | K18: =+Input!AD144 -> 0 | O18: F-1
B19: F-2 Innovations | C19: =SUMIF(Input!$BM$7:$BM$187,O19,Input!$J$7:$J$187) -> 2.5 | D19: =SUMIF(Input!$BM$7:$BM$187,O19,Input!$K$7:$K$187) -> 0 | E19: =SUMIF(Input!$BM$7:$BM$187,O19,Input!$BQ$7:$BQ$187) -> 10 | F19: 0 | G19: D | I19: =+Input!AB146 -> 0 | J19: - | K19: =+Input!AD152 -> 0 | O19: F-2
B20: F-3 Effective Implementatin of Govt. Schemes | C20: =SUMIF(Input!$BM$7:$BM$187,O20,Input!$J$7:$J$187) -> 1.5 | D20: =SUMIF(Input!$BM$7:$BM$187,O20,Input!$K$7:$K$187) -> 0 | E20: =SUMIF(Input!$BM$7:$BM$187,O20,Input!$BQ$7:$BQ$187) -> 6 | F20: 0 | G20: D | I20: =+Input!AB153 -> 0 | J20: - | K20: =+Input!AD157 -> 0 | O20: F-3
B21: F-4 Strengthening the bond | C21: =SUMIF(Input!$BM$7:$BM$187,O21,Input!$J$7:$J$187) -> 1.75 | D21: =SUMIF(Input!$BM$7:$BM$187,O21,Input!$K$7:$K$187) -> 0 | E21: =SUMIF(Input!$BM$7:$BM$187,O21,Input!$BQ$7:$BQ$187) -> 7 | F21: 0 | G21: =IF(F21=0,"D",VLOOKUP(F21,$U$1:$V$16,2)) -> D | I21: =+Input!AB158 -> 0 | J21: - | K21: =+Input!AD164 -> 0 | O21: F-4
B22: F-5 Institutional Values and Best Pratices | C22: =SUMIF(Input!$BM$7:$BM$187,O22,Input!$J$7:$J$187) -> 7.5 | D22: =SUMIF(Input!$BM$7:$BM$187,O22,Input!$K$7:$K$187) -> 0 | E22: =SUMIF(Input!$BM$7:$BM$187,O22,Input!$BQ$7:$BQ$187) -> 30 | F22: 0 | G22: D | I22: =+Input!AB165 -> 0 | J22: - | K22: =+Input!AD187 -> 0 | O22: F-5
B23: TOTAL | C23: =IF(SUM(C5:C22)=0,"",SUM(C5:C22)) -> 100 | D23: =IF(SUM(D5:D22)=0,"",SUM(D5:D22)) -> 
B24: Average | C24: =IF(C23="","",ROUND(C23/4,2)) -> 25 | D24: =IF(D23="","",ROUND(D23/4,4)) -> 
A26: =+'Result AAP'!B15 -> 1. , Principal, , , Mobile No. : | D26: Team Leader
A27: =+'Result AAP'!B16 -> 2. , Associate Professor, , , Mobile No. : | D27: Co Incharge
A28: =+'Result AAP'!B17 -> 3. , Assistant Professor, , , Mobile No. : | D28: Member
A29: Despatch No. and Date :
A30: =+'Result AAP'!B19 -> , Principal, , Mobile No. :

Sheet Input
A1: =+'Result AAP'!B1 ->  | AE1: PRADEEP MODI | AI1: AAP Version B : 20220316 | AJ1: 123456 | AQ1: =IF(LEFT($AJ$1,1)="",0,INT(LEFT($AJ$1,1))) -> 1 | AR1: =IF(MID($AJ$1,5,1)="",0,INT(MID($AJ$1,5,1))) -> 5 | AS1: =IF(SUM(AT1:AZ4)<>600,0,21) -> 21 | AT1: =IF(COUNTIF($AQ$1:$AR$4,"=1")=1,100,0) -> 100 | AZ1: =IF(COUNTIF($AQ$1:$AR$4,"=5")=1,100,0) -> 100 | BD1: Scoring Rules
A2: =+'Result AAP'!B2 -> Assessment Matrix for Annual Auditing Programe : 2022 Report | AE2: 9413307717 | AQ2: =IF(MID($AJ$1,2,1)="",0,INT(MID($AJ$1,2,1))) -> 2 | AR2: =IF(RIGHT($AJ$1,1)="",0,INT(RIGHT($AJ$1,1))) -> 6 | AT2: =IF(COUNTIF($AQ$1:$AR$4,"=2")=1,100,0) -> 100 | AZ2: =IF(COUNTIF($AQ$1:$AR$4,"=6")=1,100,0) -> 100 | BZ2: Assessment Matrix for Annual Auditing Programme (Revised) - For Private Colleges
A3: =+'Result AAP'!B3 -> Inspection Phase : (Draft) for Session : and Inspection Dates : -- and -- | AE3: pradeepjimodi@gmail.com | AQ3: =IF(MID($AJ$1,3,1)="",0,INT(MID($AJ$1,3,1))) -> 3 | AT3: =IF(COUNTIF($AQ$1:$AR$4,"=3")=1,100,0) -> 100
A4: Detailed Report | AQ4: =IF(MID($AJ$1,4,1)="",0,INT(MID($AJ$1,4,1))) -> 4 | AT4: =IF(COUNTIF($AQ$1:$AR$4,"=4")=1,100,0) -> 100 | BZ4: Detailed Rules for Scoring Credits with Weightage
A5: Crtieria | B5: Key Indicators | C5: SN | D5: S. No. old | E5: Parameters | F5: Input Values | H5: Percentage or Ratio points | I5: Credits | J5: Weights | K5: Weighted Credits | L5: 0 | M5: 1 | N5: 2 | O5: 3 | P5: 4 | Q5: Credits | AB5: Supporting Documents Seq. Number | AE5: Proof Available ? | AF5: Team Verification | AH5: Supporting Documents/Proofs | BB5: Error Message | BD5: Credits
Q6: 0 | S6: 1 | U6: 2 | W6: 3 | Y6: 4 | BD6: 0 | BE6: 1 | BF6: 2 | BG6: 3 | BH6: 4 | BO6: =SUM(BO7:BO187) -> 716 | BP6: 100 | BQ6: 400 | BR6: 0 | BS6: 93 | BT6: 0 | BU6: 372 | BV6: 93 | BW6: 0 | BX6: 372
A7: A. Teaching and Learning | B7: A-1 Student Strength | C7: 1 | D7: 1 | E7: Actual Student Strength as percentage of Sanctioned Strength. | H7: =IF(F7="","",ROUND(F7/G7,4)) ->  | I7: =IF(OR(F7="",G7="",G7=0),"",SUM(L7:P7)) ->  | J7: 2 | K7: =IF(I7="","",+I7*J7*AA7) ->  | L7: =IF($H7<$S7%,$L$5,"") ->  | M7: =IF(AND($H7<$U7%,$H7>$R7%),$M$5,"") ->  | N7: =IF(AND($H7<$W7%,$H7>$T7%),$N$5,"") ->  | O7: =IF(AND($H7<$Y7%,$H7>$V7%),$O$5,"") ->  | P7: =IF(AND($H7<Z7%,H7>X7%),$P$5,"") ->  | Q7: 0 | R7: 20 | S7: 20.0001 | T7: 40 | U7: 40.0001 | V7: 60 | W7: 60.0001 | X7: 80 | Y7: 80.0001 | Z7: 10000 | AA7: =IF(OR(AND(AE7="YES",AF7="PHYSICALLY VERIFIED"),AND(AE7="YES",AF7="DOCUMENT VERIFIED"),AND(AE7="YES",'Basic Details'!$D$31="Self Assessment"),AND(AE7="YES",'Basic Details'!$D$31="Draft")),1*IF(BB7="ERROR INPUT",0+1,1),0) -> 0 | AB7: 0 | AC7: =IF(AB7="","","-") -> - | AD7: 0 | AH7: College Statistical booklet / AISHE DCF / Online data verified from nodal login | BB7: =IF(F7>G7,"ERROR INPUT","") ->  | BD7: 0-20 | BE7: 20-40 | BF7: 40-60 | BG7: 60-80 | BH7: 80-100 | BM7: A-1 | BN7: =+C7 -> 1 | BO7: 4 | BP7: =+J7 -> 2 | BQ7: =+BO7*BP7 -> 8 | BR7: =IF(K7="",0,+K7) -> 0
C8: =1+C7 -> 2 | D8: 1 | E8: No. of Applications received as the ratio of Sanctioned seats in UG Part-I and PG (Prev. ). | H8: =IF(F8=0,"",ROUND(F8/G8,4)) ->  | I8: =IF(OR(F8="",G8="",G8=0),"",SUM(L8:P8)) ->  | J8: 1.5 | K8: =IF(I8="","",+I8*J8*AA8) ->  | L8: =IF($H8<$S8,$L$5,"") ->  | M8: =IF(AND($H8<$U8,$H8>$R8),$M$5,"") ->  | N8: =IF(AND($H8<$W8,$H8>$T8),$N$5,"") ->  | O8: =IF(AND($H8<$Y8,$H8>$V8),$O$5,"") ->  | P8: =IF(AND($H8<Z8,H8>X8),$P$5,"") ->  | Q8: 0 | R8: 0.1999 | S8: 0.2 | T8: 0.9999 | U8: 1 | V8: 1.4999 | W8: 1.5 | X8: 1.9999 | Y8: 2 | Z8: 10000 | AA8: =IF(OR(AND(AE8="YES",AF8="PHYSICALLY VERIFIED"),AND(AE8="YES",AF8="DOCUMENT VERIFIED"),AND(AE8="YES",'Basic Details'!$D$31="Self Assessment"),AND(AE8="YES",'Basic Details'!$D$31="Draft")),1*IF(BB8="ERROR INPUT",0+1,1),0) -> 0 | AC8: =IF(AB8="","","-") ->  | AH8: From College Admission Nodal login | BD8: 0.0-0.2 | BE8: 0.2-1.0 | BF8: 1.0-1.5 | BG8: 1.5-2.0 | BH8: 2.0 & Above | BM8: A-1 | BN8: 2 | BO8: 4 | BP8: =+J8 -> 1.5 | BQ8: =+BO8*BP8 -> 6 | BR8: =IF(K8="",0,+K8) -> 0 | BS8: =+BP8+BP7 -> 3.5 | BT8: =+BR8+BR7 -> 0 | BU8: =+BQ8+BQ7 -> 14
B9: A-2 Inclusivity | C9: =1+C8 -> 3 | D9: 1 | E9: Percentage of Girls in case of (a) Co Ed. College. | G9: =IF(F10="yes","",IF(F9="","",+$F$7)) ->  | H9: =IF(F9="","",ROUND(F9/G9,4)) ->  | I9: =IF(OR(F9="",G9="",G9=0),"",IF(F10="yes",0,SUM(L9:P9))) ->  | J9: 1 | K9: =IF(I9="","",+I9*J9*AA9) ->  | L9: =IF($H9<$S9%,$L$5,"") ->  | M9: =IF(AND($H9<$U9%,$H9>$R9%),$M$5,"") ->  | N9: =IF(AND($H9<$W9%,$H9>$T9%),$N$5,"") ->  | O9: =IF(AND($H9<$Y9%,$H9>$V9%),$O$5,"") ->  | P9: =IF(AND($H9<Z9%,H9>X9%),$P$5,"") ->  | Q9: 0 | R9: 9.999 | S9: 10 | T9: 19.999 | U9: 20 | V9: 29.999 | W9: 30 | X9: 49.999 | Y9: 50 | Z9: 10000 | AA9: =IF(OR(AND(AE9="YES",AF9="PHYSICALLY VERIFIED"),AND(AE9="YES",AF9="DOCUMENT VERIFIED"),AND(AE9="YES",'Basic Details'!$D$31="Self Assessment"),AND(AE9="YES",'Basic Details'!$D$31="Draft")),1*IF(BB9="ERROR INPUT",0+1,1),0) -> 0 | AH9: College Statistical booklet/AISHE DCF / Online data verified from nodal login | BB9: =IF(F9>G9,"ERROR INPUT","") ->  | BD9: 0-10 | BE9: 10-20 | BF9: 20-30 | BG9: 30-50 | BH9: 50 & Above | BM9: A-2 | BN9: 3 | BO9: 4 | BP9: 1 | BQ9: 4 | BR9: 0
C10: 4 | E10: Percentage of Girls in case of (b) Girls College. | H10: =+F10 -> 0 | I10: =IF(I7="","",IF(H10="",0,SUM(L10:P10))) ->  | K10: =IF(I10="","",+I10*J9*AA10) ->  | L10: =IF(OR(H10="",H10="NO"),$L$5,"") ->  | M10: =IF(AND($H10<$U10%,$H10>$R10%),$M$5,"") ->  | N10: =IF(AND($H10<$W10%,$H10>$T10%),$N$5,"") ->  | O10: =IF(AND($H10<$Y10%,$H10>$V10%),$O$5,"") ->  | P10: =IF(H10="YES",$P$5,"") ->  | AA10: =IF(OR(AND(AE10="YES",AF10="PHYSICALLY VERIFIED"),AND(AE10="YES",AF10="DOCUMENT VERIFIED"),AND(AE10="YES",'Basic Details'!$D$31="Self Assessment"),AND(AE10="YES",'Basic Details'!$D$31="Draft")),1*IF(BB10="ERROR INPUT",0+1,1),0) -> 0 | AH10: College Statistical booklet/AISHE DCF / Online data verified from nodal login | BD10: NO | BH10: Yes | BM10: A-2 | BN10: 4 | BO10: 4 | BP10: 0 | BQ10: 0 | BR10: 0
C11: =1+C9 -> 4 | D11: 1 | E11: Percentage of SC. | G11: =IF(F11="","",+$F$7) ->  | H11: =IF(F11="","",ROUND(F11/G11,4)) ->  | I11: =IF(OR(F11="",G11="",G11=0),"",SUM(L11:P11)) ->  | J11: 0.25 | K11: =IF(I11="","",+I11*J11*AA11) ->  | L11: =IF($H11<$S11%,$L$5,"") ->  | M11: =IF(AND($H11<$U11%,$H11>$R11%),$M$5,"") ->  | N11: =IF(AND($H11<$W11%,$H11>$T11%),$N$5,"") ->  | O11: =IF(AND($H11<$Y11%,$H11>$V11%),$O$5,"") ->  | P11: =IF(AND($H11<Z11%,H11>X11%),$P$5,"") ->  | Q11: 0 | R11: 0 | S11: 0.0009 | T11: 9.9999 | U11: 10 | V11: 19.999 | W11: 20 | X11: 29.999 | Y11: 30 | Z11: 10000 | AA11: =IF(OR(AND(AE11="YES",AF11="PHYSICALLY VERIFIED"),AND(AE11="YES",AF11="DOCUMENT VERIFIED"),AND(AE11="YES",'Basic Details'!$D$31="Self Assessment"),AND(AE11="YES",'Basic Details'!$D$31="Draft")),1*IF(BB11="ERROR INPUT",0+1,1),0) -> 0 | AH11: College Statistical booklet/AISHE DCF / Online data verified from nodal login | BB11: =IF(F11>G11,"ERROR INPUT","") ->  | BD11: 0 | BE11: More than 0 but less than 10 | BF11: 10-20 | BG11: 20-30 | BH11: 30 & Above | BM11: A-2 | BN11: 4 | BO11: 4 | BP11: 0.25 | BQ11: 1 | BR11: 0
C12: 5 | D12: 1 | E12: Percentage of ST. | J12: 0.25 | Q12: 0 | R12: 0 | S12: 0.0009 | T12: 9.9999 | U12: 10 | V12: 19.999 | W12: 20 | X12: 29.999 | Y12: 30 | Z12: 10000 | AA12: =IF(OR(AND(AE12="YES",AF12="PHYSICALLY VERIFIED"),AND(AE12="YES",AF12="DOCUMENT VERIFIED"),AND(AE12="YES",'Basic Details'!$D$31="Self Assessment"),AND(AE12="YES",'Basic Details'!$D$31="Draft")),1*IF(BB12="ERROR INPUT",0+1,1),0) -> 0 | AH12: College Statistical booklet/AISHE DCF / Online data verified from nodal login | BD12: 0 | BE12: More than 0 but less than 10 | BF12: 10-20 | BG12: 20-30 | BH12: 30 & Above | BM12: A-2 | BN12: 5 | BO12: 4 | BP12: 0.25 | BQ12: 1 | BR12: 0
C13: 6 | D13: 1 | E13: Percentage of OBC. | J13: 0.25 | Q13: 0 | R13: 0 | S13: 0.0009 | T13: 14.999 | U13: 15 | V13: 29.999 | W13: 30 | X13: 44.999 | Y13: 45 | Z13: 10000 | AA13: =IF(OR(AND(AE13="YES",AF13="PHYSICALLY VERIFIED"),AND(AE13="YES",AF13="DOCUMENT VERIFIED"),AND(AE13="YES",'Basic Details'!$D$31="Self Assessment"),AND(AE13="YES",'Basic Details'!$D$31="Draft")),1*IF(BB13="ERROR INPUT",0+1,1),0) -> 0 | AH13: College Statistical booklet/AISHE DCF / Online data verified from nodal login | BD13: 0 | BE13: More than 0 but less than 15 | BF13: 15-20 | BG13: 30-45 | BH13: 45 & Above | BM13: A-2 | BN13: 6 | BO13: 4 | BP13: 0.25 | BQ13: 1 | BR13: 0
C14: 7 | D14: 1 | E14: Percentage of MBC. | J14: 0.25 | Q14: 0 | R14: 0 | S14: 0.0009 | T14: 1.999 | U14: 2 | V14: 3.999 | W14: 4 | X14: 5.999 | Y14: 6 | Z14: 10000 | AA14: =IF(OR(AND(AE14="YES",AF14="PHYSICALLY VERIFIED"),AND(AE14="YES",AF14="DOCUMENT VERIFIED"),AND(AE14="YES",'Basic Details'!$D$31="Self Assessment"),AND(AE14="YES",'Basic Details'!$D$31="Draft")),1*IF(BB14="ERROR INPUT",0+1,1),0) -> 0 | AH14: From nodal (Admission login) | BD14: 0 | BE14: More than 0 but less than 2 | BF14: 2-4 | BG14: 4-6 | BH14: 6 & Above | BM14: A-2 | BN14: 7 | BO14: 4 | BP14: 0.25 | BQ14: 1 | BR14: 0
C15: 8 | D15: 1 | E15: Percentage of EWS. | J15: 0.25 | Q15: 0 | R15: 0 | S15: 0.0009 | T15: 1.999 | U15: 2 | V15: 3.999 | W15: 4 | X15: 5.999 | Y15: 6 | Z15: 10000 | AA15: =IF(OR(AND(AE15="YES",AF15="PHYSICALLY VERIFIED"),AND(AE15="YES",AF15="DOCUMENT VERIFIED"),AND(AE15="YES",'Basic Details'!$D$31="Self Assessment"),AND(AE15="YES",'Basic Details'!$D$31="Draft")),1*IF(BB15="ERROR INPUT",0+1,1),0) -> 0 | AH15: From nodal (Admission login) | BD15: 0 | BE15: More than 0 but less than 2 | BF15: 2-4 | BG15: 4-6 | BH15: 6 & Above | BM15: A-2 | BN15: 8 | BO15: 4 | BP15: 0.25 | BQ15: 1 | BR15: 0
C16: 9 | D16: 1 | E16: Percentage of Minorities. | J16: 0.25 | Q16: 0 | R16: 0 | S16: 0.0009 | T16: 0.999 | U16: 1 | V16: 1.999 | W16: 2 | X16: 2.999 | Y16: 3 | Z16: 10000 | AA16: =IF(OR(AND(AE16="YES",AF16="PHYSICALLY VERIFIED"),AND(AE16="YES",AF16="DOCUMENT VERIFIED"),AND(AE16="YES",'Basic Details'!$D$31="Self Assessment"),AND(AE16="YES",'Basic Details'!$D$31="Draft")),1*IF(BB16="ERROR INPUT",0+1,1),0) -> 0 | AH16: College Statistical booklet/AISHE DCF / Online data verified from nodal login | BD16: 0 | BE16: More than 0 but less than 1 | BF16: 1-2 | BG16: 2-3 | BH16: 3 & Above | BM16: A-2 | BN16: 9 | BO16: 4 | BP16: 0.25 | BQ16: 1 | BR16: 0
C17: 10 | D17: 1 | E17: Percentage of Students from other districts. | J17: 0.25 | Q17: 0 | R17: 0 | S17: 0.0009 | T17: 1.999 | U17: 2 | V17: 3.999 | W17: 4 | X17: 5.999 | Y17: 6 | Z17: 10000 | AA17: =IF(OR(AND(AE17="YES",AF17="PHYSICALLY VERIFIED"),AND(AE17="YES",AF17="DOCUMENT VERIFIED"),AND(AE17="YES",'Basic Details'!$D$31="Self Assessment"),AND(AE17="YES",'Basic Details'!$D$31="Draft")),1*IF(BB17="ERROR INPUT",0+1,1),0) -> 0 | AH17: From nodal (Admission login) | BD17: 0 | BE17: More than 0 but less than 2 | BF17: 2-4 | BG17: 4-6 | BH17: 6 & Above | BM17: A-2 | BN17: 10 | BO17: 4 | BP17: 0.25 | BQ17: 1 | BR17: 0
A18: A. Teaching and Learning | B18: A-2 Inclusivity | C18: 11 | D18: 1 | E18: Percentage of BPL Students. | J18: 0.25 | Q18: 0 | R18: 0 | S18: 0.0009 | T18: 9.9999 | U18: 10 | V18: 19.999 | W18: 20 | X18: 29.999 | Y18: 30 | Z18: 10000 | AA18: =IF(OR(AND(AE18="YES",AF18="PHYSICALLY VERIFIED"),AND(AE18="YES",AF18="DOCUMENT VERIFIED"),AND(AE18="YES",'Basic Details'!$D$31="Self Assessment"),AND(AE18="YES",'Basic Details'!$D$31="Draft")),1*IF(BB18="ERROR INPUT",0+1,1),0) -> 0 | AH18: From nodal (Admission login) | BD18: 0 | BE18: More than 0 but less than 10 | BF18: 10-20 | BG18: 20-30 | BH18: 30 & Above | BM18: A-2 | BN18: 11 | BO18: 4 | BP18: 0.25 | BQ18: 1 | BR18: 0
C19: 12 | D19: 1 | E19: Percentage of Divyang students. | J19: 0.25 | Q19: 0 | R19: 0 | S19: 0.0009 | T19: 0.099 | U19: 0.1 | V19: 0.1999 | W19: 0.2 | X19: 0.2999 | Y19: 0.3 | Z19: 10000 | AA19: =IF(OR(AND(AE19="YES",AF19="PHYSICALLY VERIFIED"),AND(AE19="YES",AF19="DOCUMENT VERIFIED"),AND(AE19="YES",'Basic Details'!$D$31="Self Assessment"),AND(AE19="YES",'Basic Details'!$D$31="Draft")),1*IF(BB19="ERROR INPUT",0+1,1),0) -> 0 | AH19: From AISHE DSF / From nodal (Admission login) | BD19: 0 | BE19: More than 0 but less than 0.1 | BF19: 0.1-0.2 | BG19: 0.2-0.3 | BH19: 0.3 & Above | BM19: A-2 | BN19: 12 | BO19: 4 | BP19: 0.25 | BQ19: 1 | BR19: 0 | BS19: =SUM(BP9:BP19) -> 3.25 | BT19: =SUM(BR9:BR19) -> 0 | BU19: =SUM(BQ9:BQ19) -> 13
B20: A-3 Choices | C20: 13 | D20: 1 | E20: No. of Faculties (Arts, Science, Commerce, Agriculture, Law etc.). | H20: =+F20 -> 0 | I20: =IF(F20="","",SUM(L20:P20)) ->  | J20: 0.5 | L20: =IF($H20<$S20,$L$5,"") -> 0 | M20: =IF(AND($H20<$U20,$H20>$R20),$M$5,"") ->  | N20: =IF(AND($H20<$W20,$H20>$T20),$N$5,"") ->  | O20: =IF(AND($H20<$Y20,$H20>$V20),$O$5,"") ->  | P20: =IF(AND($H20<Z20,H20>X20),$P$5,"") ->  | Q20: 0 | R20: 0.999 | S20: 1 | T20: 1.999 | U20: 2 | V20: 2.999 | W20: 3 | X20: 3.999 | Y20: 4 | Z20: 10000 | AA20: =IF(OR(AND(AE20="YES",AF20="PHYSICALLY VERIFIED"),AND(AE20="YES",AF20="DOCUMENT VERIFIED"),AND(AE20="YES",'Basic Details'!$D$31="Self Assessment"),AND(AE20="YES",'Basic Details'!$D$31="Draft")),1*IF(BB20="ERROR INPUT",0+1,1),0) -> 0 | AH20: College Statistical booklet/AISHE DCF / Online data verified from nodal login | BD20: 0 | BE20: 1 | BF20: 2 | BG20: 3 | BH20: 4 & Above | BM20: A-3 | BN20: 13 | BO20: 4 | BP20: 0.5 | BQ20: 2 | BR20: 0
C21: 14 | D21: 1 | E21: No. of Subjects offered at UG Courses. | H21: =+F21 -> 0 | I21: =IF(F21="","",SUM(L21:P21)) ->  | J21: 1 | L21: =IF($H21<$S21,$L$5,"") -> 0 | M21: =IF(AND($H21<$U21,$H21>$R21),$M$5,"") ->  | N21: =IF(AND($H21<$W21,$H21>$T21),$N$5,"") ->  | O21: =IF(AND($H21<$Y21,$H21>$V21),$O$5,"") ->  | P21: =IF(AND($H21<Z21,H21>X21),$P$5,"") ->  | Q21: 0 | R21: 2 | S21: 3 | T21: 5 | U21: 6 | V21: 8 | W21: 9 | X21: 12 | Y21: 13 | Z21: 10000 | AA21: =IF(OR(AND(AE21="YES",AF21="PHYSICALLY VERIFIED"),AND(AE21="YES",AF21="DOCUMENT VERIFIED"),AND(AE21="YES",'Basic Details'!$D$31="Self Assessment"),AND(AE21="YES",'Basic Details'!$D$31="Draft")),1*IF(BB21="ERROR INPUT",0+1,1),0) -> 0 | AH21: College Statistical booklet/AISHE DCF / Online data verified from nodal login | BD21: 0 | BE21: 3-5 | BF21: 6-8 | BG21: 9-12 | BH21: 13 & Above | BM21: A-3 | BN21: 14 | BO21: 4 | BP21: 1 | BQ21: 4 | BR21: 0
C22: 15 | D22: 1 | E22: No. of PG Courses offered. | H22: 0 | J22: 0.5 | L22: =IF($H22<$S22,$L$5,"") -> 0 | M22: =IF(AND($H22<$U22,$H22>$R22),$M$5,"") ->  | N22: =IF(AND($H22<$W22,$H22>$T22),$N$5,"") ->  | O22: =IF(AND($H22<$Y22,$H22>$V22),$O$5,"") ->  | P22: =IF(AND($H22<Z22,H22>X22),$P$5,"") ->  | Q22: 0 | R22: 0 | S22: 1 | T22: 3 | U22: 4 | V22: 6 | W22: 7 | X22: 9 | Y22: 10 | Z22: 10000 | AA22: =IF(OR(AND(AE22="YES",AF22="PHYSICALLY VERIFIED"),AND(AE22="YES",AF22="DOCUMENT VERIFIED"),AND(AE22="YES",'Basic Details'!$D$31="Self Assessment"),AND(AE22="YES",'Basic Details'!$D$31="Draft")),1*IF(BB22="ERROR INPUT",0+1,1),0) -> 0 | AH22: College Statistical booklet/AISHE DCF / Online data verified from nodal login | BD22: 0 | BE22: 1-3 | BF22: 4-6 | BG22: 7-9 | BH22: 10 & Above | BM22: A-3 | BN22: 15 | BO22: 4 | BP22: 0.5 | BQ22: 2 | BR22: 0
C23: 16 | D23: 1 | E23: No. of Vocational / Skill development Courses offered (RSLDC and Other agencies, including college level). | H23: 0 | J23: 0.5 | L23: =IF($H23<$S23,$L$5,"") -> 0 | M23: =IF(AND($H23<$U23,$H23>$R23),$M$5,"") ->  | N23: =IF(AND($H23<$W23,$H23>$T23),$N$5,"") ->  | O23: =IF(AND($H23<$Y23,$H23>$V23),$O$5,"") ->  | P23: =IF(AND($H23<Z23,H23>X23),$P$5,"") ->  | Q23: 0 | R23: 0 | S23: 1 | T23: 5 | U23: 6 | V23: 10 | W23: 11 | X23: 15 | Y23: 16 | Z23: 10000 | AA23: =IF(OR(AND(AE23="YES",AF23="PHYSICALLY VERIFIED"),AND(AE23="YES",AF23="DOCUMENT VERIFIED"),AND(AE23="YES",'Basic Details'!$D$31="Self Assessment"),AND(AE23="YES",'Basic Details'!$D$31="Draft")),1*IF(BB23="ERROR INPUT",0+1,1),0) -> 0 | AH23: Check from IGNOU / VMOU / Spoken Tutotrial Centre, whichever is applicable | BD23: 0 | BE23: 1-5 | BF23: 6-10 | BG23: 10-15 | BH23: 16 & Above | BM23: A-3 | BN23: 16 | BO23: 4 | BP23: 0.5 | BQ23: 2 | BR23: 0
C24: 17 | D24: 1 | E24: Percentage of students enrolled in Vocational / Skill development Courses. | G24: =IF(F24="","",+$F$7) ->  | H24: =IF(F24="","",ROUND(F24/G24,4)) ->  | I24: =IF(OR(F24="",G24="",G24=0),"",SUM(L24:P24)) ->  | J24: 0.5 | L24: =IF($H24<$S24%,$L$5,"") ->  | M24: =IF(AND($H24<$U24%,$H24>$R24%),$M$5,"") ->  | N24: =IF(AND($H24<$W24%,$H24>$T24%),$N$5,"") ->  | O24: =IF(AND($H24<$Y24%,$H24>$V24%),$O$5,"") ->  | P24: =IF(AND($H24<Z24%,H24>X24%),$P$5,"") ->  | Q24: 0 | R24: 0.999 | S24: 1 | T24: 2.999 | U24: 3 | V24: 5.999 | W24: 6 | X24: 9.999 | Y24: 10 | Z24: 10000 | AA24: =IF(OR(AND(AE24="YES",AF24="PHYSICALLY VERIFIED"),AND(AE24="YES",AF24="DOCUMENT VERIFIED"),AND(AE24="YES",'Basic Details'!$D$31="Self Assessment"),AND(AE24="YES",'Basic Details'!$D$31="Draft")),1*IF(BB24="ERROR INPUT",0+1,1),0) -> 0 | AH24: Registration records of students enrolled in IGNOU/VMOU skill courses | BB24: =IF(F24>G24,"ERROR INPUT","") ->  | BD24: 0-1 | BE24: 1-3 | BF24: 3-6 | BG24: 6-10 | BH24: 10 & Above | BM24: A-3 | BN24: 17 | BO24: 4 | BP24: 0.5 | BQ24: 2 | BR24: 0
C25: 18 | D25: 1 | E25: Percentage of Students passed in Vocational / Skill development Courses. | G25: =IF(F25="","",+F24) ->  | H25: =IF(F25="","",ROUND(F25/G25,4)) ->  | I25: =IF(OR(F25="",G25="",G25=0),"",SUM(L25:P25)) ->  | J25: 1 | Q25: 0 | R25: 0.999 | S25: 1 | T25: 2.999 | U25: 3 | V25: 5.999 | W25: 6 | X25: 9.999 | Y25: 10 | Z25: 10000 | AA25: =IF(OR(AND(AE25="YES",AF25="PHYSICALLY VERIFIED"),AND(AE25="YES",AF25="DOCUMENT VERIFIED"),AND(AE25="YES",'Basic Details'!$D$31="Self Assessment"),AND(AE25="YES",'Basic Details'!$D$31="Draft")),1*IF(BB25="ERROR INPUT",0+1,1),0) -> 0 | AH25: List of enrolled Students / Attendance Register | BB25: =IF(F25>G25,"ERROR INPUT","") ->  | BD25: 0-1 | BE25: 1-3 | BF25: 3-6 | BG25: 6-10 | BH25: 10 & Above | BM25: A-3 | BN25: 18 | BO25: 4 | BP25: 1 | BQ25: 4 | BR25: 0 | BS25: =SUM(BP20:BP25) -> 4 | BT25: =SUM(BR20:BR25) -> 0 | BU25: =SUM(BQ20:BQ25) -> 16
C26: 19 | E26: Number of subjects approved by the CCE | H26: =+F26 -> 0 | I26: =IF(F26="","",SUM(L26:P26)) ->  | J26: 0.5 | L26: =IF($H26<$S26,$L$5,"") -> 0 | M26: =IF(AND($H26<$U26,$H26>$R26),$M$5,"") ->  | N26: =IF(AND($H26<$W26,$H26>$T26),$N$5,"") ->  | O26: =IF(AND($H26<$Y26,$H26>$V26),$O$5,"") ->  | P26: =IF(AND($H26<Z26,H26>X26),$P$5,"") ->  | Q26: 0 | R26: 5 | S26: 6 | T26: 10 | U26: 11 | V26: 15 | W26: 16 | X26: 20 | Y26: 21 | Z26: 10000 | AA26: =IF(OR(AND(AE26="YES",AF26="PHYSICALLY VERIFIED"),AND(AE26="YES",AF26="DOCUMENT VERIFIED"),AND(AE26="YES",'Basic Details'!$D$31="Self Assessment"),AND(AE26="YES",'Basic Details'!$D$31="Draft")),1*IF(BB26="ERROR INPUT",0+1,1),0) -> 0 | BD26: 0-5 | BE26: 6-10 | BF26: 11-15 | BG26: 16-20 | BH26: 21 & Above | BM26: A-3 | BN26: =+C26 -> 19 | BO26: 4 | BP26: =+J26 -> 0.5 | BQ26: =+BO26*BP26 -> 2 | BR26: =IF(K26="",0,+K26) -> 0
A27: A. Teaching and Learning | B27: A-3 Choices | C27: 20 | E27: Number of subjects approved by the University | H27: 0 | J27: 0.5 | L27: 0 | Q27: 0 | R27: 5 | S27: 6 | T27: 10 | U27: 11 | V27: 15 | W27: 16 | X27: 20 | Y27: 21 | Z27: 10000 | AA27: =IF(OR(AND(AE27="YES",AF27="PHYSICALLY VERIFIED"),AND(AE27="YES",AF27="DOCUMENT VERIFIED"),AND(AE27="YES",'Basic Details'!$D$31="Self Assessment"),AND(AE27="YES",'Basic Details'!$D$31="Draft")),1*IF(BB27="ERROR INPUT",0+1,1),0) -> 0 | BD27: 0-5 | BE27: 6-10 | BF27: 11-15 | BG27: 16-20 | BH27: 21 & Above | BM27: A-3 | BN27: 20 | BO27: 4 | BP27: 0.5 | BQ27: 2 | BR27: 0
C28: 21 | E28: Average number of students per class (ARTS-UG-Part 1) | H28: =IF(F28=0,"",ROUND(F28/G28,4)) ->  | J28: 0.25 | Q28: 0 | R28: 0.99999 | S28: 1 | T28: 79.9999 | U28: 80 | V28: 100000 | W28: 100000000 | X28: 100000000 | Y28: 100000000 | Z28: 100000000 | AA28: =IF(OR(AND(AE28="YES",AF28="PHYSICALLY VERIFIED"),AND(AE28="YES",AF28="DOCUMENT VERIFIED"),AND(AE28="YES",'Basic Details'!$D$31="Self Assessment"),AND(AE28="YES",'Basic Details'!$D$31="Draft")),1*IF(BB28="ERROR INPUT",0+1,1),0) -> 0 | BD28: 0 | BE28: More than 0 but less than 80 | BF28: 80 & More | BM28: A-3 | BN28: 21 | BO28: 4 | BP28: 0.25 | BQ28: 1 | BR28: 0
C29: 22 | E29: Average number of students per class (COMMERCE, BBA-UG-Part 1) | H29: =IF(F29=0,"",ROUND(F29/G29,4)) ->  | J29: 0.25 | Q29: 0 | R29: 0.99999 | S29: 1 | T29: 79.9999 | U29: 80 | V29: 100000 | W29: 100000000 | X29: 100000000 | Y29: 100000000 | Z29: 100000000 | AA29: =IF(OR(AND(AE29="YES",AF29="PHYSICALLY VERIFIED"),AND(AE29="YES",AF29="DOCUMENT VERIFIED"),AND(AE29="YES",'Basic Details'!$D$31="Self Assessment"),AND(AE29="YES",'Basic Details'!$D$31="Draft")),1*IF(BB29="ERROR INPUT",0+1,1),0) -> 0 | BD29: 0 | BE29: More than 0 but less than 80 | BF29: 80 & More | BM29: A-3 | BN29: 22 | BO29: 4 | BP29: 0.25 | BQ29: 1 | BR29: 0
C30: 23 | E30: Average number of students per class (ALL SCIENCES-UG-Part 1) | H30: =IF(F30=0,"",ROUND(F30/G30,4)) ->  | J30: 0.25 | Q30: 0 | R30: 0.99999 | S30: 1 | T30: 69.9999 | U30: 70 | V30: 100000 | W30: 100000000 | X30: 100000000 | Y30: 100000000 | Z30: 100000000 | AA30: =IF(OR(AND(AE30="YES",AF30="PHYSICALLY VERIFIED"),AND(AE30="YES",AF30="DOCUMENT VERIFIED"),AND(AE30="YES",'Basic Details'!$D$31="Self Assessment"),AND(AE30="YES",'Basic Details'!$D$31="Draft")),1*IF(BB30="ERROR INPUT",0+1,1),0) -> 0 | BD30: 0 | BE30: More than 0 but less than 70 | BF30: 70 & More | BM30: A-3 | BN30: 23 | BO30: 4 | BP30: 0.25 | BQ30: 1 | BR30: 0
C31: 24 | E31: Number of Working Subject Combinations in (ARTS-UG) | H31: =+F31 -> 0 | J31: 0.25 | L31: 0 | Q31: 0 | R31: 0 | S31: 1 | T31: 5 | U31: 6 | V31: 10 | W31: 11 | X31: 15 | Y31: 16 | Z31: 100 | AA31: =IF(OR(AND(AE31="YES",AF31="PHYSICALLY VERIFIED"),AND(AE31="YES",AF31="DOCUMENT VERIFIED"),AND(AE31="YES",'Basic Details'!$D$31="Self Assessment"),AND(AE31="YES",'Basic Details'!$D$31="Draft")),1*IF(BB31="ERROR INPUT",0+1,1),0) -> 0 | BD31: 0 | BE31: 1-5 | BF31: 6-10 | BG31: 11-15 | BH31: 16 & More | BM31: A-3 | BN31: 24 | BO31: 4 | BP31: 0.25 | BQ31: 1 | BR31: 0
C32: 25 | E32: Number of Working Subject Combinations in (COMMERCE,BBA-UG) | H32: =+F32 -> 0 | J32: 0.25 | L32: 0 | Q32: 0 | R32: 0 | S32: 1 | T32: 1 | U32: 2 | V32: 2 | W32: 3 | X32: 3 | Y32: 4 | Z32: 100 | AA32: =IF(OR(AND(AE32="YES",AF32="PHYSICALLY VERIFIED"),AND(AE32="YES",AF32="DOCUMENT VERIFIED"),AND(AE32="YES",'Basic Details'!$D$31="Self Assessment"),AND(AE32="YES",'Basic Details'!$D$31="Draft")),1*IF(BB32="ERROR INPUT",0+1,1),0) -> 0 | BD32: 0 | BE32: 1 | BF32: 2 | BG32: 3 | BH32: 4 & More | BM32: A-3 | BN32: 25 | BO32: 4 | BP32: 0.25 | BQ32: 1 | BR32: 0
C33: 26 | E33: Number of Working Subject Combinations in (ALL SCIENCES-UG) | H33: 0 | J33: 0.25 | L33: 0 | Q33: 0 | R33: 0 | S33: 1 | T33: 2 | U33: 3 | V33: 3 | W33: 4 | X33: 4 | Y33: 5 | Z33: 100 | AA33: =IF(OR(AND(AE33="YES",AF33="PHYSICALLY VERIFIED"),AND(AE33="YES",AF33="DOCUMENT VERIFIED"),AND(AE33="YES",'Basic Details'!$D$31="Self Assessment"),AND(AE33="YES",'Basic Details'!$D$31="Draft")),1*IF(BB33="ERROR INPUT",0+1,1),0) -> 0 | BD33: 0 | BE33: 1-2 | BF33: 3 | BG33: 4 | BH33: 5 & More | BM33: A-3 | BN33: 26 | BO33: 4 | BP33: 0.25 | BQ33: 1 | BR33: 0
B34: A-4 Faculty-Portrayal | C34: =1+C33 -> 27 | D34: 1 | E34: Working faculty as percentage of posts- required-as-per-rules | H34: =IF(F34="","",ROUND(F34/G34,4)) ->  | J34: 1 | L34: =IF($H34<$S34%,$L$5,"") ->  | M34: =IF(AND($H34<$U34%,$H34>$R34%),$M$5,"") ->  | N34: =IF(AND($H34<$W34%,$H34>$T34%),$N$5,"") ->  | O34: =IF(AND($H34<$Y34%,$H34>$V34%),$O$5,"") ->  | P34: =IF(AND($H34<Z34%,H34>X34%),$P$5,"") ->  | Q34: 0 | R34: 19.999 | S34: 20 | T34: 39.999 | U34: 40 | V34: 59.999 | W34: 60 | X34: 79.999 | Y34: 80 | Z34: 10000 | AA34: =IF(OR(AND(AE34="YES",AF34="PHYSICALLY VERIFIED"),AND(AE34="YES",AF34="DOCUMENT VERIFIED"),AND(AE34="YES",'Basic Details'!$D$31="Self Assessment"),AND(AE34="YES",'Basic Details'!$D$31="Draft")),1*IF(BB34="ERROR INPUT",0+1,1),0) -> 0 | AH34: Attendance Register / AISHE DCF | BD34: 0-20 | BE34: 20-40 | BF34: 40-60 | BG34: 60-80 | BH34: 80 & Above | BM34: A-4 | BN34: =+C34 -> 27 | BO34: 4 | BP34: 1 | BQ34: 4 | BR34: 0
C35: 28 | D35: 1 | E35: Percentage of filled posts (regular appointments) against no. of posts-required-as-per-rules | G35: =IF(F35="","",+G34) ->  | H35: =IF(F35="","",ROUND(F35/G35,4)) ->  | J35: 1 | Q35: 0 | R35: 19.999 | S35: 20 | T35: 39.999 | U35: 40 | V35: 59.999 | W35: 60 | X35: 79.999 | Y35: 80 | Z35: 10000 | AA35: =IF(OR(AND(AE35="YES",AF35="PHYSICALLY VERIFIED"),AND(AE35="YES",AF35="DOCUMENT VERIFIED"),AND(AE35="YES",'Basic Details'!$D$31="Self Assessment"),AND(AE35="YES",'Basic Details'!$D$31="Draft")),1*IF(BB35="ERROR INPUT",0+1,1),0) -> 0 | AH35: Attendance Register / AISHE DCF | BD35: 0-20 | BE35: 20-40 | BF35: 40-60 | BG35: 60-80 | BH35: 80 & Above | BM35: A-4 | BN35: 28 | BO35: 4 | BP35: 1 | BQ35: 4 | BR35: 0
A36: A. Teaching and Learning | B36: A-4 Faculty-Portrayal | C36: 29 | D36: 1 | E36: Percentage of working faculty members having Ph.D Degree. | G36: =IF(F36="","",+$F$34) ->  | H36: =IF(F36="","",ROUND(F36/G36,4)) ->  | J36: 1.5 | Q36: 0 | R36: 20 | S36: 20.0001 | T36: 40 | U36: 40.0001 | V36: 60 | W36: 60.0001 | X36: 80 | Y36: 80.0001 | Z36: 10000 | AA36: =IF(OR(AND(AE36="YES",AF36="PHYSICALLY VERIFIED"),AND(AE36="YES",AF36="DOCUMENT VERIFIED"),AND(AE36="YES",'Basic Details'!$D$31="Self Assessment"),AND(AE36="YES",'Basic Details'!$D$31="Draft")),1*IF(BB36="ERROR INPUT",0+1,1),0) -> 0 | AH36: AISHE DCF AND Ph. D. Certificate | BD36: 0-20 | BE36: 20-40 | BF36: 40-60 | BG36: 60-80 | BH36: 80 & Above | BM36: A-4 | BN36: 29 | BO36: 4 | BP36: 1.5 | BQ36: 6 | BR36: 0
C37: 30 | D37: 1 | E37: Percentage of working faculty members having M.Phil. Degree (other than Ph.D). | G37: =IF(F37="","",+$F$34) ->  | J37: 0.5 | Q37: 0 | R37: 1.999 | S37: 2 | T37: 3.999 | U37: 4 | V37: 5.999 | W37: 6 | X37: 7.999 | Y37: 8 | Z37: 10000 | AA37: =IF(OR(AND(AE37="YES",AF37="PHYSICALLY VERIFIED"),AND(AE37="YES",AF37="DOCUMENT VERIFIED"),AND(AE37="YES",'Basic Details'!$D$31="Self Assessment"),AND(AE37="YES",'Basic Details'!$D$31="Draft")),1*IF(BB37="ERROR INPUT",0+1,1),0) -> 0 | AH37: AISHE DCF AND M.Phil. Certificate | BD37: 0-2 | BE37: 2-4 | BF37: 4-6 | BG37: 6-8 | BH37: 8 & Above | BM37: A-4 | BN37: 30 | BO37: 4 | BP37: 0.5 | BQ37: 2 | BR37: 0
C38: 31 | D38: 1 | E38: Percentage of working faculty members awarded PDF/D.Litt. | G38: =IF(F38="","",+$F$34) ->  | J38: 0.5 | Q38: 0 | R38: 1.999 | S38: 2 | T38: 3.999 | U38: 4 | V38: 5.999 | W38: 6 | X38: 7.999 | Y38: 8 | Z38: 10000 | AA38: =IF(OR(AND(AE38="YES",AF38="PHYSICALLY VERIFIED"),AND(AE38="YES",AF38="DOCUMENT VERIFIED"),AND(AE38="YES",'Basic Details'!$D$31="Self Assessment"),AND(AE38="YES",'Basic Details'!$D$31="Draft")),1*IF(BB38="ERROR INPUT",0+1,1),0) -> 0 | AH38: Certificate from Personal File / Copy Provided | BD38: 0-2 | BE38: 2-4 | BF38: 4-6 | BG38: 6-8 | BH38: 8 & Above | BM38: A-4 | BN38: 31 | BO38: 4 | BP38: 0.5 | BQ38: 2 | BR38: 0
C39: 32 | D39: 1 | E39: Student-Teacher ratio as per posts-required-as-per-rules | F39: =IF(OR(G35="",G35=0),"",+$F$7) ->  | G39: =+G35 ->  | H39: =IF(F39=0,"",ROUND(F39/G39,4)) ->  | J39: 2 | L39: =IF($H39>$S39,$L$5,"") ->  | M39: =IF(AND($H39>$U39,$H39<$R39),$M$5,"") ->  | N39: =IF(AND($H39>$W39,$H39<$T39),$N$5,"") ->  | O39: =IF(AND($H39>$Y39,$H39<$V39),$O$5,"") ->  | P39: =IF(AND($H39>Z39,H39<X39),$P$5,"") ->  | Q39: 1000 | R39: 100.0001 | S39: 100 | T39: 80.0001 | U39: 80 | V39: 60.0001 | W39: 60 | X39: 40.0001 | Y39: 40 | Z39: 0.0001 | AA39: =IF(OR(AND(AE39="YES",AF39="PHYSICALLY VERIFIED"),AND(AE39="YES",AF39="DOCUMENT VERIFIED"),AND(AE39="YES",'Basic Details'!$D$31="Self Assessment"),AND(AE39="YES",'Basic Details'!$D$31="Draft")),1*IF(BB39="ERROR INPUT",0+1,1),0) -> 0 | AH39: College Statistical booklet/AISHE DCF | BD39: Above 1000 | BE39: 100-80 | BF39: 80-60 | BG39: 60-40 | BH39: 40 & Below | BM39: A-4 | BN39: 32 | BO39: 4 | BP39: 2 | BQ39: 8 | BR39: 0
C40: 33 | D40: 1 | E40: Student-Teacher ratio as per working no. of teachers | F40: =IF(G40="","",+$F$7) ->  | G40: =IF(OR(F34="",F34=0),"",+$F$34) ->  | H40: =IF(F40=0,"",ROUND(F40/G40,4)) ->  | J40: 2 | L40: =IF($H40>$S40,$L$5,"") ->  | M40: =IF(AND($H40>$U40,$H40<$R40),$M$5,"") ->  | N40: =IF(AND($H40>$W40,$H40<$T40),$N$5,"") ->  | O40: =IF(AND($H40>$Y40,$H40<$V40),$O$5,"") ->  | P40: =IF(AND($H40>Z40,H40<X40),$P$5,"") ->  | Q40: 1000 | R40: 100.0001 | S40: 100 | T40: 80.0001 | U40: 80 | V40: 60.0001 | W40: 60 | X40: 40.0001 | Y40: 40 | Z40: 0.0001 | AA40: =IF(OR(AND(AE40="YES",AF40="PHYSICALLY VERIFIED"),AND(AE40="YES",AF40="DOCUMENT VERIFIED"),AND(AE40="YES",'Basic Details'!$D$31="Self Assessment"),AND(AE40="YES",'Basic Details'!$D$31="Draft")),1*IF(BB40="ERROR INPUT",0+1,1),0) -> 0 | AH40: College Statistical booklet/AISHE DCF | BD40: Above 1000 | BE40: 100-80 | BF40: 80-60 | BG40: 60-40 | BH40: 40 & Below | BM40: A-4 | BN40: 33 | BO40: 4 | BP40: 2 | BQ40: 8 | BR40: 0
C41: 34 | D41: 1 | E41: Target of content-wise teaching achieved in percentage. | H41: =IF(F41="","",ROUND(F41/G41,4)) ->  | J41: 1 | L41: =IF($H41<$S41%,$L$5,"") ->  | M41: =IF(AND($H41<$U41%,$H41>$R41%),$M$5,"") ->  | N41: =IF(AND($H41<$W41%,$H41>$T41%),$N$5,"") ->  | O41: =IF(AND($H41<$Y41%,$H41>$V41%),$O$5,"") ->  | P41: =IF(AND($H41<Z41%,H41>X41%),$P$5,"") ->  | Q41: 0 | R41: 19.999 | S41: 20 | T41: 39.999 | U41: 40 | V41: 59.999 | W41: 60 | X41: 79.999 | Y41: 80 | Z41: 10000 | AA41: =IF(OR(AND(AE41="YES",AF41="PHYSICALLY VERIFIED"),AND(AE41="YES",AF41="DOCUMENT VERIFIED"),AND(AE41="YES",'Basic Details'!$D$31="Self Assessment"),AND(AE41="YES",'Basic Details'!$D$31="Draft")),1*IF(BB41="ERROR INPUT",0+1,1),0) -> 0 | AH41: Self Declaration by concerned faculty and if feasible then to be verified from students. | BD41: 0-20 | BE41: 20-40 | BF41: 40-60 | BG41: 60-80 | BH41: 80 & Above | BM41: A-4 | BN41: 34 | BO41: 4 | BP41: 1 | BQ41: 4 | BR41: 0
C42: 35 | D42: 1 | E42: Percentage of faculty members contributed to devlopment of E-content (which is being utilised in more than one institution). | G42: =IF(F42="","",+$F$34) ->  | H42: =IF(F42="","",ROUND(F42/G42,4)) ->  | J42: 1 | Q42: 0 | R42: 0 | S42: 0.0001 | T42: 9.9999 | U42: 10 | V42: 19.9999 | W42: 20 | X42: 29.9999 | Y42: 30 | Z42: 10000 | AA42: =IF(OR(AND(AE42="YES",AF42="PHYSICALLY VERIFIED"),AND(AE42="YES",AF42="DOCUMENT VERIFIED"),AND(AE42="YES",'Basic Details'!$D$31="Self Assessment"),AND(AE42="YES",'Basic Details'!$D$31="Draft")),1*IF(BB42="ERROR INPUT",0+1,1),0) -> 0 | AH42: CCE Orders AND Recordings / YouTube channel | BB42: =IF(F42>G42,"ERROR INPUT","") ->  | BD42: 0 | BE42: More than 0 but less than 10 | BF42: 10-20 | BG42: 20-30 | BH42: 30 & Above | BM42: A-4 | BN42: 35 | BO42: 4 | BP42: 1 | BQ42: 4 | BR42: 0 | BS42: =SUM(BP34:BP42) -> 10.5 | BT42: =SUM(BR34:BR42) -> 0 | BU42: =SUM(BQ34:BQ42) -> 42
C43: =+C42+1 -> 36 | E43: Percentage of the working staff approved by the University | H43: =IF(F43="","",ROUND(F43/G43,4)) ->  | I43: =IF(F43="","",SUM(L43:P43)) ->  | J43: 0.5 | Q43: 0 | R43: 25 | S43: 25.001 | T43: 50 | U43: 50.001 | V43: 70 | W43: 70.001 | X43: 90 | Y43: 90.001 | Z43: 1000 | AA43: =IF(OR(AND(AE43="YES",AF43="PHYSICALLY VERIFIED"),AND(AE43="YES",AF43="DOCUMENT VERIFIED"),AND(AE43="YES",'Basic Details'!$D$31="Self Assessment"),AND(AE43="YES",'Basic Details'!$D$31="Draft")),1*IF(BB43="ERROR INPUT",0+1,1),0) -> 0 | BD43: 0-25 | BE43: 25-50 | BF43: 50-70 | BG43: 70-90 | BH43: More than 90 | BM43: A-4 | BN43: =+C43 -> 36 | BO43: 4 | BP43: =+J43 -> 0.5 | BQ43: =+BO43*BP43 -> 2 | BR43: =IF(K43="",0,+K43) -> 0
C44: =+C43+1 -> 37 | E44: Percentage of the faculty members (including Principal) working in the college continuously for 5 years. | I44: =IF(F44="","",SUM(L44:P44)) ->  | J44: 0.5 | K44: =IF(I44="","",+I44*J44*AA44) ->  | Q44: 0 | R44: 25 | S44: 25.001 | T44: 50 | U44: 50.001 | V44: 70 | W44: 70.001 | X44: 90 | Y44: 90.001 | Z44: 1000 | AA44: =IF(OR(AND(AE44="YES",AF44="PHYSICALLY VERIFIED"),AND(AE44="YES",AF44="DOCUMENT VERIFIED"),AND(AE44="YES",'Basic Details'!$D$31="Self Assessment"),AND(AE44="YES",'Basic Details'!$D$31="Draft")),1*IF(BB44="ERROR INPUT",0+1,1),0) -> 0 | BD44: 0-25 | BE44: 25-50 | BF44: 50-70 | BG44: 70-90 | BH44: More than 90 | BM44: A-4 | BN44: 37 | BO44: 4 | BP44: 0.5 | BQ44: 2 | BR44: 0
A45: A. Teaching and Learning | B45: A-5 Student performance and learning outcomes | C45: =1+C44 -> 38 | D45: 2 | E45: Pass percentage in last University result. | J45: 3 | Q45: 0 | R45: 20 | S45: 20.0001 | T45: 40 | U45: 40.0001 | V45: 60 | W45: 60.0001 | X45: 80 | Y45: 80.0001 | Z45: 10000 | AA45: =IF(OR(AND(AE45="YES",AF45="PHYSICALLY VERIFIED"),AND(AE45="YES",AF45="DOCUMENT VERIFIED"),AND(AE45="YES",'Basic Details'!$D$31="Self Assessment"),AND(AE45="YES",'Basic Details'!$D$31="Draft")),1*IF(BB45="ERROR INPUT",0+1,1),0) -> 0 | AH45: TR of all courses AND AISHE DCF AND to be randomly verified by team (Only Final UG and Final PG) | BB45: =IF(F45>G45,"ERROR INPUT","") ->  | BD45: 0-20 | BE45: 20-40 | BF45: 40-60 | BG45: 60-80 | BH45: 80-100 | BM45: A-5 | BN45: =+C45 -> 38 | BO45: 4 | BP45: 3 | BQ45: 12 | BR45: 0
C46: 39 | D46: 2 | E46: Percentage of Students scored 60% and above in University result. | G46: =IF(F46="","",+$G$45) ->  | J46: 2 | Q46: 0 | R46: 9.999 | S46: 10 | T46: 19.999 | U46: 20 | V46: 29.999 | W46: 30 | X46: 39.999 | Y46: 40 | Z46: 10000 | AA46: =IF(OR(AND(AE46="YES",AF46="PHYSICALLY VERIFIED"),AND(AE46="YES",AF46="DOCUMENT VERIFIED"),AND(AE46="YES",'Basic Details'!$D$31="Self Assessment"),AND(AE46="YES",'Basic Details'!$D$31="Draft")),1*IF(BB46="ERROR INPUT",0+1,1),0) -> 0 | AH46: To be calculated from TR AND to be randomly verified by team | BB46: =IF(F46>G46,"ERROR INPUT","") ->  | BD46: 0-10 | BE46: 10-20 | BF46: 20-30 | BG46: 30-40 | BH46: 40 & Above | BM46: A-5 | BN46: 39 | BO46: 4 | BP46: 2 | BQ46: 8 | BR46: 0
C47: 40 | D47: 2 | E47: Percentage of Students scored 75% and above in University result. | G47: =IF(F47="","",+$G$45) ->  | J47: 1 | L47: =IF($H47<$S47%,$L$5,"") ->  | M47: =IF(AND($H47<$U47%,$H47>$R47%),$M$5,"") ->  | N47: =IF(AND($H47<$W47%,$H47>$T47%),$N$5,"") ->  | O47: =IF(AND($H47<$Y47%,$H47>$V47%),$O$5,"") ->  | P47: =IF(AND($H47<Z47%,H47>X47%),$P$5,"") ->  | Q47: 0 | R47: 5e-05 | S47: 0.0001 | T47: 4.999 | U47: 5 | V47: 9.999 | W47: 10 | X47: 14.9999 | Y47: 15 | Z47: 10000 | AA47: =IF(OR(AND(AE47="YES",AF47="PHYSICALLY VERIFIED"),AND(AE47="YES",AF47="DOCUMENT VERIFIED"),AND(AE47="YES",'Basic Details'!$D$31="Self Assessment"),AND(AE47="YES",'Basic Details'!$D$31="Draft")),1*IF(BB47="ERROR INPUT",0+1,1),0) -> 0 | AH47: To be calculated from TR AND to be randomly verified by team | BB47: =IF(F47>G47,"ERROR INPUT","") ->  | BD47: 0 | BE47: More than 0 but less than 5 | BF47: 5-10 | BG47: 10-15 | BH47: 15 & Above | BM47: A-5 | BN47: 40 | BO47: 4 | BP47: 1 | BQ47: 4 | BR47: 0
C48: 41 | D48: 2 | E48: Number of students who won Gold Medal in University exam. | H48: =+F48 -> 0 | I48: =IF(F48="","",SUM(L48:P48)) ->  | J48: 0.5 | L48: =IF($H48<$S48,$L$5,"") -> 0 | M48: =IF(AND($H48<$U48,$H48>$R48),$M$5,"") ->  | N48: =IF(AND($H48<$W48,$H48>$T48),$N$5,"") ->  | O48: =IF(AND($H48<$Y48,$H48>$V48),$O$5,"") ->  | P48: =IF(AND($H48<Z48,H48>X48),$P$5,"") ->  | Q48: 0 | R48: 0 | S48: 1 | T48: 1 | U48: 2 | V48: 2 | W48: 3 | X48: 3 | Y48: 4 | Z48: 100 | AA48: =IF(OR(AND(AE48="YES",AF48="PHYSICALLY VERIFIED"),AND(AE48="YES",AF48="DOCUMENT VERIFIED"),AND(AE48="YES",'Basic Details'!$D$31="Self Assessment"),AND(AE48="YES",'Basic Details'!$D$31="Draft")),1*IF(BB48="ERROR INPUT",0+1,1),0) -> 0 | BD48: 0 | BE48: 1 | BF48: 2 | BG48: 3 | BH48: 4 & Above | BM48: A-5 | BN48: 41 | BO48: 4 | BP48: 0.5 | BQ48: 2 | BR48: 0 | BS48: =SUM(BP45:BP48) -> 6.5 | BT48: =SUM(BR45:BR48) -> 0 | BU48: =SUM(BQ45:BQ48) -> 26 | BV48: =SUM(BS7:BS48) -> 27.75 | BW48: =SUM(BT7:BT48) -> 0 | BX48: =SUM(BU7:BU48) -> 111
A49: B. Research and Professional Practices | B49: B-1 Research Output | C49: 42 | D49: 1 | E49: Percentage of faculty members having research papers published in UGC care list journals or in peer reviewd journals with ISSN during last 3 years. | G49: =IF(F49="","",+$F$34) ->  | H49: =IF(F49="","",ROUND(F49/G49,4)) ->  | J49: 1.5 | L49: =IF($H49<$S49%,$L$5,"") ->  | M49: =IF(AND($H49<$U49%,$H49>$R49%),$M$5,"") ->  | N49: =IF(AND($H49<$W49%,$H49>$T49%),$N$5,"") ->  | O49: =IF(AND($H49<$Y49%,$H49>$V49%),$O$5,"") ->  | P49: =IF(AND($H49<Z49%,H49>X49%),$P$5,"") ->  | Q49: 0 | R49: 0 | S49: 1e-05 | T49: 1.9999 | U49: 2 | V49: 2.9999 | W49: 3 | X49: 3.9999 | Y49: 4 | Z49: 10000 | AA49: =IF(OR(AND(AE49="YES",AF49="PHYSICALLY VERIFIED"),AND(AE49="YES",AF49="DOCUMENT VERIFIED"),AND(AE49="YES",'Basic Details'!$D$31="Self Assessment"),AND(AE49="YES",'Basic Details'!$D$31="Draft")),1*IF(BB49="ERROR INPUT",0+1,1),0) -> 0 | AH49: URL of Journal/Peer Reviewed/UGC Notified Copies of all publications. (Make a separate file with list) | BB49: =IF(F49>G49,"ERROR INPUT","") ->  | BD49: 0 | BE49: More than 0 but less than 2 | BF49: 2-3 | BG49: 3-4 | BH49: 4 & Above | BM49: B-1 | BN49: 42 | BO49: 4 | BP49: 1.5 | BQ49: 6 | BR49: 0
C50: 43 | D50: 1 | E50: Percentage of faculty members authored/co-authored at least one book with ISBN / Chapter in a Book (with ISBN).during last 3 years. | J50: 1.5 | Q50: 0 | R50: 0 | S50: 1e-05 | T50: 1.9999 | U50: 2 | V50: 2.9999 | W50: 3 | X50: 3.9999 | Y50: 4 | Z50: 10000 | AA50: =IF(OR(AND(AE50="YES",AF50="PHYSICALLY VERIFIED"),AND(AE50="YES",AF50="DOCUMENT VERIFIED"),AND(AE50="YES",'Basic Details'!$D$31="Self Assessment"),AND(AE50="YES",'Basic Details'!$D$31="Draft")),1*IF(BB50="ERROR INPUT",0+1,1),0) -> 0 | AH50: Copies of all books/Chapter published (Make a separate file with list) | BD50: 0 | BE50: More than 0 but less than 2 | BF50: 2-3 | BG50: 3-4 | BH50: 4 & Above | BM50: B-1 | BN50: 43 | BO50: 4 | BP50: 1.5 | BQ50: 6 | BR50: 0
C51: 44 | D51: 1 | E51: Percentage of faculty members recognized as research supervisor. | J51: 1.5 | Q51: 0 | R51: 0 | S51: 1e-05 | T51: 1.9999 | U51: 2 | V51: 2.9999 | W51: 3 | X51: 3.9999 | Y51: 4 | Z51: 10000 | AA51: =IF(OR(AND(AE51="YES",AF51="PHYSICALLY VERIFIED"),AND(AE51="YES",AF51="DOCUMENT VERIFIED"),AND(AE51="YES",'Basic Details'!$D$31="Self Assessment"),AND(AE51="YES",'Basic Details'!$D$31="Draft")),1*IF(BB51="ERROR INPUT",0+1,1),0) -> 0 | AH51: Copies of research guide registration letter (Make a list) | BD51: 0 | BE51: More than 0 but less than 2 | BF51: 2-3 | BG51: 3-4 | BH51: 4 & Above | BM51: B-1 | BN51: 44 | BO51: 4 | BP51: 1.5 | BQ51: 6 | BR51: 0
C52: 45 | D52: 1 | E52: Percentage of faculty members under whom at least one scholar is awarded Ph.D.. | J52: 1 | Q52: 0 | R52: 0 | S52: 1e-05 | T52: 1.9999 | U52: 2 | V52: 2.9999 | W52: 3 | X52: 3.9999 | Y52: 4 | Z52: 10000 | AA52: =IF(OR(AND(AE52="YES",AF52="PHYSICALLY VERIFIED"),AND(AE52="YES",AF52="DOCUMENT VERIFIED"),AND(AE52="YES",'Basic Details'!$D$31="Self Assessment"),AND(AE52="YES",'Basic Details'!$D$31="Draft")),1*IF(BB52="ERROR INPUT",0+1,1),0) -> 0 | AH52: Copies of registeration letter of scholer (Make a list of such scholars) | BD52: 0 | BE52: More than 0 but less than 2 | BF52: 2-3 | BG52: 3-4 | BH52: 4 & Above | BM52: B-1 | BN52: 45 | BO52: 4 | BP52: 1 | BQ52: 4 | BR52: 0
A53: B. Research and Professional Practices | B53: B-1 Research Output | C53: 46 | D53: 1 | E53: Percentage of faculty members presented at least 2 papers in international seminars / conferences / E Conferences during last 3 years. | J53: 1 | Q53: 0 | R53: 0 | S53: 1e-05 | T53: 9.9999 | U53: 10 | V53: 19.9999 | W53: 20 | X53: 29.9999 | Y53: 30 | Z53: 10000 | AA53: =IF(OR(AND(AE53="YES",AF53="PHYSICALLY VERIFIED"),AND(AE53="YES",AF53="DOCUMENT VERIFIED"),AND(AE53="YES",'Basic Details'!$D$31="Self Assessment"),AND(AE53="YES",'Basic Details'!$D$31="Draft")),1*IF(BB53="ERROR INPUT",0+1,1),0) -> 0 | AH53: Copies of certificate of presentation (Make a list of such staff members) | BD53: 0 | BE53: More than 0 but less than 10 | BF53: 10-20 | BG53: 20-30 | BH53: 30 & Above | BM53: B-1 | BN53: 46 | BO53: 4 | BP53: 1 | BQ53: 4 | BR53: 0
C54: 47 | D54: 1 | E54: Percentage faculty members presented at least 3 papers in national seminars / conferences / E Conference during last 3 years. | J54: 1.5 | Q54: 0 | R54: 0 | S54: 1e-05 | T54: 19.9999 | U54: 20 | V54: 29.9999 | W54: 30 | X54: 39.9999 | Y54: 40 | Z54: 10000 | AA54: =IF(OR(AND(AE54="YES",AF54="PHYSICALLY VERIFIED"),AND(AE54="YES",AF54="DOCUMENT VERIFIED"),AND(AE54="YES",'Basic Details'!$D$31="Self Assessment"),AND(AE54="YES",'Basic Details'!$D$31="Draft")),1*IF(BB54="ERROR INPUT",0+1,1),0) -> 0 | AH54: Copies of certificate of presentation (Make a list of such staff members) | BD54: 0 | BE54: More than 0 but less than 20 | BF54: 20-30 | BG54: 30-40 | BH54: 40 & Above | BM54: B-1 | BN54: 47 | BO54: 4 | BP54: 1.5 | BQ54: 6 | BR54: 0
C55: 48 | D55: 1 | E55: No. of International/National seminars / conferences/workshops / E Conference organized during last 5 years. | H55: =+F55 -> 0 | I55: =IF(F55="","",SUM(L55:P55)) ->  | J55: 1.5 | L55: =IF($H55<$S55,$L$5,"") -> 0 | M55: =IF(AND($H55<$U55,$H55>$R55),$M$5,"") ->  | N55: =IF(AND($H55<$W55,$H55>$T55),$N$5,"") ->  | O55: =IF(AND($H55<$Y55,$H55>$V55),$O$5,"") ->  | P55: =IF(AND($H55<Z55,H55>X55),$P$5,"") ->  | Q55: 0 | R55: 0 | S55: 1 | T55: 1 | U55: 2 | V55: 2 | W55: 3 | X55: 3 | Y55: 4 | Z55: 10000 | AA55: =IF(OR(AND(AE55="YES",AF55="PHYSICALLY VERIFIED"),AND(AE55="YES",AF55="DOCUMENT VERIFIED"),AND(AE55="YES",'Basic Details'!$D$31="Self Assessment"),AND(AE55="YES",'Basic Details'!$D$31="Draft")),1*IF(BB55="ERROR INPUT",0+1,1),0) -> 0 | AH55: Copies of brochurs, photographs and proceedings of conference (Make a list of such events) | BD55: 0 | BE55: 1 | BF55: 2 | BG55: 3 | BH55: 4 & Above | BM55: B-1 | BN55: 48 | BO55: 4 | BP55: 1.5 | BQ55: 6 | BR55: 0
C56: 49 | D56: 1 | E56: No. of faculty members who have acted as convener / Organizing secretary in national seminar / conferences / E Conference during last 5 years. | H56: 0 | J56: 1.5 | L56: =IF($H56<$S56,$L$5,"") -> 0 | M56: =IF(AND($H56<$U56,$H56>$R56),$M$5,"") ->  | N56: =IF(AND($H56<$W56,$H56>$T56),$N$5,"") ->  | O56: =IF(AND($H56<$Y56,$H56>$V56),$O$5,"") ->  | P56: =IF(AND($H56<Z56,H56>X56),$P$5,"") ->  | Q56: 0 | R56: 0 | S56: 1 | T56: 1 | U56: 2 | V56: 2 | W56: 3 | X56: 3 | Y56: 4 | Z56: 10000 | AA56: =IF(OR(AND(AE56="YES",AF56="PHYSICALLY VERIFIED"),AND(AE56="YES",AF56="DOCUMENT VERIFIED"),AND(AE56="YES",'Basic Details'!$D$31="Self Assessment"),AND(AE56="YES",'Basic Details'!$D$31="Draft")),1*IF(BB56="ERROR INPUT",0+1,1),0) -> 0 | AH56: Copies of brochurs, photographs and certificates (Make a list of such staff members) | BD56: 0 | BE56: 1 | BF56: 2 | BG56: 3 | BH56: 4 & Above | BM56: B-1 | BN56: 49 | BO56: 4 | BP56: 1.5 | BQ56: 6 | BR56: 0
C57: 50 | D57: 1 | E57: No. of Faculty members delivered Keynote / Plenary / Invited Lecture in Regional / National/ International Seminars / E-Conference (during last 3 years). | H57: =+F57 -> 0 | I57: =IF(F57="","",SUM(L57:P57)) ->  | J57: 1.5 | K57: =IF(I57="","",+I57*J57*AA57) ->  | L57: =IF($H57<$S57,$L$5,"") -> 0 | M57: =IF(AND($H57<$U57,$H57>$R57),$M$5,"") ->  | N57: =IF(AND($H57<$W57,$H57>$T57),$N$5,"") ->  | O57: =IF(AND($H57<$Y57,$H57>$V57),$O$5,"") ->  | P57: =IF(AND($H57<Z57,H57>X57),$P$5,"") ->  | Q57: 0 | R57: 0 | S57: 1 | T57: 1 | U57: 2 | V57: 2 | W57: 3 | X57: 3 | Y57: 4 | Z57: 10000 | AA57: =IF(OR(AND(AE57="YES",AF57="PHYSICALLY VERIFIED"),AND(AE57="YES",AF57="DOCUMENT VERIFIED"),AND(AE57="YES",'Basic Details'!$D$31="Self Assessment"),AND(AE57="YES",'Basic Details'!$D$31="Draft")),1*IF(BB57="ERROR INPUT",0+1,1),0) -> 0 | BD57: 0 | BE57: 1 | BF57: 2 | BG57: 3 | BH57: 4 & Above | BM57: B-1 | BN57: 50 | BO57: 4 | BP57: 1.5 | BQ57: 6 | BR57: 0
A58: B. Research and Professional Practices | B58: B-1 Research Output | C58: 51 | D58: 1 | E58: Percentage of faculty members who have been Awarded Research Projects from UGC, CSIR, DST, DBT, ICSSR and other research funding agency. | G58: =IF(F58="","",+$F$34) ->  | H58: =IF(F58="","",ROUND(F58/G58,4)) ->  | I58: =IF(OR(F58="",G58="",G58=0),"",SUM(L58:P58)) ->  | J58: 1 | L58: =IF($H58<$S58%,$L$5,"") ->  | M58: =IF(AND($H58<$U58%,$H58>$R58%),$M$5,"") ->  | N58: =IF(AND($H58<$W58%,$H58>$T58%),$N$5,"") ->  | O58: =IF(AND($H58<$Y58%,$H58>$V58%),$O$5,"") ->  | P58: =IF(AND($H58<Z58%,H58>X58%),$P$5,"") ->  | Q58: 0 | R58: 0 | S58: 1e-05 | T58: 1.9999 | U58: 2 | V58: 4.9999 | W58: 5 | X58: 8.9999 | Y58: 9 | Z58: 10000 | AA58: =IF(OR(AND(AE58="YES",AF58="PHYSICALLY VERIFIED"),AND(AE58="YES",AF58="DOCUMENT VERIFIED"),AND(AE58="YES",'Basic Details'!$D$31="Self Assessment"),AND(AE58="YES",'Basic Details'!$D$31="Draft")),1*IF(BB58="ERROR INPUT",0+1,1),0) -> 0 | AH58: Copies of Award letter/ (Make a list of such staff members) | BD58: 0 | BE58: More than 0 but less than 2 | BF58: 2-5 | BG58: 5-9 | BH58: 9 & Above | BM58: B-1 | BN58: 51 | BO58: 4 | BP58: 1 | BQ58: 4 | BR58: 0
C59: 52 | D59: 1 | E59: No. of faculty members, who are associated with any foreign agency for research / referee assignments. | H59: =+F59 -> 0 | I59: =IF(F59="","",SUM(L59:P59)) ->  | J59: 1 | L59: =IF($H59<$S59,$L$5,"") -> 0 | M59: =IF(AND($H59<$U59,$H59>$R59),$M$5,"") ->  | N59: =IF(AND($H59<$W59,$H59>$T59),$N$5,"") ->  | O59: =IF(AND($H59<$Y59,$H59>$V59),$O$5,"") ->  | P59: =IF(AND($H59<Z59,H59>X59),$P$5,"") ->  | Q59: 0 | R59: 0 | S59: 1 | T59: 1 | U59: 2 | V59: 2 | W59: 3 | X59: 3 | Y59: 4 | Z59: 10000 | AA59: =IF(OR(AND(AE59="YES",AF59="PHYSICALLY VERIFIED"),AND(AE59="YES",AF59="DOCUMENT VERIFIED"),AND(AE59="YES",'Basic Details'!$D$31="Self Assessment"),AND(AE59="YES",'Basic Details'!$D$31="Draft")),1*IF(BB59="ERROR INPUT",0+1,1),0) -> 0 | AH59: Copies of documents issued by agency (Make a list of such staff members) | BD59: 0 | BE59: 1 | BF59: 2 | BG59: 3 | BH59: 4 & Above | BM59: B-1 | BN59: 52 | BO59: 4 | BP59: 1 | BQ59: 4 | BR59: 0 | BS59: =SUM(BP49:BP59) -> 14.5 | BT59: =SUM(BR49:BR59) -> 0 | BU59: =SUM(BQ49:BQ59) -> 58
B60: B-2 Academic Enrichment | C60: 53 | D60: 1 | E60: Percentage of faculty members associated with academic associations/BOS member/University Academic Council/Associated with Board/Public Service Commission of any state. | G60: =IF(F60="","",+$F$34) ->  | H60: =IF(F60="","",ROUND(F60/G60,4)) ->  | I60: =IF(OR(F60="",G60="",G60=0),"",SUM(L60:P60)) ->  | J60: 1 | L60: =IF($H60<$S60%,$L$5,"") ->  | M60: =IF(AND($H60<$U60%,$H60>$R60%),$M$5,"") ->  | N60: =IF(AND($H60<$W60%,$H60>$T60%),$N$5,"") ->  | O60: =IF(AND($H60<$Y60%,$H60>$V60%),$O$5,"") ->  | P60: =IF(AND($H60<Z60%,H60>X60%),$P$5,"") ->  | Q60: 0 | R60: 0 | S60: 1e-05 | T60: 19.9999 | U60: 20 | V60: 29.9999 | W60: 30 | X60: 39.9999 | Y60: 40 | Z60: 10000 | AA60: =IF(OR(AND(AE60="YES",AF60="PHYSICALLY VERIFIED"),AND(AE60="YES",AF60="DOCUMENT VERIFIED"),AND(AE60="YES",'Basic Details'!$D$31="Self Assessment"),AND(AE60="YES",'Basic Details'!$D$31="Draft")),1*IF(BB60="ERROR INPUT",0+1,1),0) -> 0 | AH60: Copies of certificates issued by Academic Association etc. (Make a list of such staff members) | BD60: 0 | BE60: More than 0 but less than 20 | BF60: 20-30 | BG60: 30-40 | BH60: 40 & Above | BM60: B-2 | BN60: 53 | BO60: 4 | BP60: 1 | BQ60: 4 | BR60: 0
C61: 54 | D61: 1 | E61: Percentage of faculty members who have attended international level academic events / programmes outside India during last 5 years. | G61: =IF(F61="","",+$F$34) ->  | J61: 1 | Q61: 0 | R61: 0 | S61: 1e-05 | T61: 0.999 | U61: 1 | V61: 1.999 | W61: 2 | X61: 2.999 | Y61: 3 | Z61: 10000 | AA61: =IF(OR(AND(AE61="YES",AF61="PHYSICALLY VERIFIED"),AND(AE61="YES",AF61="DOCUMENT VERIFIED"),AND(AE61="YES",'Basic Details'!$D$31="Self Assessment"),AND(AE61="YES",'Basic Details'!$D$31="Draft")),1*IF(BB61="ERROR INPUT",0+1,1),0) -> 0 | AH61: Copies of participation certificates (Make a list of such staff members) | BD61: 0 | BE61: More than 0 but less than 1 | BF61: 1-2 | BG61: 2-3 | BH61: 3 & Above | BM61: B-2 | BN61: 54 | BO61: 4 | BP61: 1 | BQ61: 4 | BR61: 0
C62: 55 | D62: 1 | E62: Number of IPRs (Patents, Copyrights, Trade marks etc.) if any, in the name of faculty member of the college. | H62: =+F62 -> 0 | I62: =IF(F62="","",SUM(L62:P62)) ->  | J62: 1 | L62: =IF($H62<$S62,$L$5,"") -> 0 | M62: =IF(AND($H62<$U62,$H62>$R62),$M$5,"") ->  | N62: =IF(AND($H62<$W62,$H62>$T62),$N$5,"") ->  | O62: =IF(AND($H62<$Y62,$H62>$V62),$O$5,"") ->  | P62: =IF(AND($H62<Z62,H62>X62),$P$5,"") ->  | Q62: 0 | R62: 0 | S62: 1 | T62: 1 | U62: 2 | V62: 2 | W62: 3 | X62: 3 | Y62: 4 | Z62: 10000 | AA62: =IF(OR(AND(AE62="YES",AF62="PHYSICALLY VERIFIED"),AND(AE62="YES",AF62="DOCUMENT VERIFIED"),AND(AE62="YES",'Basic Details'!$D$31="Self Assessment"),AND(AE62="YES",'Basic Details'!$D$31="Draft")),1*IF(BB62="ERROR INPUT",0+1,1),0) -> 0 | AH62: Copies of documentary proof of IPR (Make a list of such staff members) | BD62: 0 | BE62: 1 | BF62: 2 | BG62: 3 | BH62: 4 & Above | BM62: B-2 | BN62: 55 | BO62: 4 | BP62: 1 | BQ62: 4 | BR62: 0 | BS62: =SUM(BP60:BP62) -> 3 | BT62: =SUM(BR60:BR62) -> 0 | BU62: =SUM(BQ60:BQ62) -> 12 | BV62: =SUM(BS49:BS62) -> 17.5 | BW62: =SUM(BT49:BT62) -> 0 | BX62: =SUM(BU49:BU62) -> 70
C63: 56 | E63: Have you ever been declared a defaulter by the CCE | H63: 0 | I63: =IF(F63="","",SUM(L63:P63)) ->  | J63: 0.5 | L63: =IF(OR(H63="",H63="yes"),$L$5,"") ->  | M63: =IF(AND($H63<$U63%,$H63>$R63%),$M$5,"") ->  | N63: =IF(AND($H63<$W63%,$H63>$T63%),$N$5,"") ->  | O63: =IF(AND($H63<$Y63%,$H63>$V63%),$O$5,"") ->  | P63: =IF(H63="no",$N$5,"") ->  | AA63: =IF(OR(AND(AE63="YES",AF63="PHYSICALLY VERIFIED"),AND(AE63="YES",AF63="DOCUMENT VERIFIED"),AND(AE63="YES",'Basic Details'!$D$31="Self Assessment"),AND(AE63="YES",'Basic Details'!$D$31="Draft")),1*IF(BB63="ERROR INPUT",0+1,1),0) -> 0 | BD63: Yes | BF63: No | BM63: B-2 | BN63: =+C63 -> 56 | BO63: 4 | BP63: =+J63 -> 0.5 | BQ63: =+BO63*BP63 -> 2 | BR63: =IF(K63="",0,+K63) -> 0
C64: 57 | E64: Have you ever been declared a defaulter by the University? | H64: 0 | I64: =IF(F64="","",SUM(L64:P64)) ->  | J64: 0.5 | L64: =IF(OR(H64="",H64="yes"),$L$5,"") ->  | P64: =IF(H64="no",$N$5,"") ->  | AA64: =IF(OR(AND(AE64="YES",AF64="PHYSICALLY VERIFIED"),AND(AE64="YES",AF64="DOCUMENT VERIFIED"),AND(AE64="YES",'Basic Details'!$D$31="Self Assessment"),AND(AE64="YES",'Basic Details'!$D$31="Draft")),1*IF(BB64="ERROR INPUT",0+1,1),0) -> 0 | BD64: Yes | BF64: No | BM64: B-2 | BN64: 57 | BO64: 4 | BP64: 0.5 | BQ64: 2 | BR64: 0
A65: C. Infrastructure and Learning Resources | B65: C-1 Physical Assets | C65: =1+C64 -> 58 | D65: 1 | E65: Whether the college has its own building. | H65: 0 | I65: =IF(F65="","",SUM(L65:P65)) ->  | J65: 0.5 | L65: =IF(OR(H65="",H65="NO"),$L$5,"") ->  | M65: =IF(AND($H65<$U65%,$H65>$R65%),$M$5,"") ->  | N65: =IF(AND($H65<$W65%,$H65>$T65%),$N$5,"") ->  | O65: =IF(AND($H65<$Y65%,$H65>$V65%),$O$5,"") ->  | P65: =IF(H65="YES",$P$5,"") ->  | AA65: =IF(OR(AND(AE65="YES",AF65="PHYSICALLY VERIFIED"),AND(AE65="YES",AF65="DOCUMENT VERIFIED"),AND(AE65="YES",'Basic Details'!$D$31="Self Assessment"),AND(AE65="YES",'Basic Details'!$D$31="Draft")),1*IF(BB65="ERROR INPUT",0+1,1),0) -> 0 | AH65: To be verified physically by Peer Team | BD65: NO | BH65: Yes | BM65: C-1 | BN65: =+C65 -> 58 | BO65: 4 | BP65: 0.5 | BQ65: 2 | BR65: 0
C66: 59 | D66: 1 | E66: Ratio of total students to No. of classrooms in the college. | F66: =IF(G66="","",+$F$7) ->  | H66: =IF(F66=0,"",ROUND(F66/G66,4)) ->  | I66: =IF(OR(F66="",G66="",G66=0),"",SUM(L66:P66)) ->  | J66: 1 | L66: =IF($H66>$S66,$L$5,"") ->  | M66: =IF(AND($H66>$U66,$H66<$R66),$M$5,"") ->  | N66: =IF(AND($H66>$W66,$H66<$T66),$N$5,"") ->  | O66: =IF(AND($H66>$Y66,$H66<$V66),$O$5,"") ->  | P66: =IF(AND($H66>Z66,H66<X66),$P$5,"") ->  | Q66: 1000 | R66: 150.0001 | S66: 150 | T66: 125.0001 | U66: 125 | V66: 100.0001 | W66: 100 | X66: 80.0001 | Y66: 80 | Z66: 0.0001 | AA66: =IF(OR(AND(AE66="YES",AF66="PHYSICALLY VERIFIED"),AND(AE66="YES",AF66="DOCUMENT VERIFIED"),AND(AE66="YES",'Basic Details'!$D$31="Self Assessment"),AND(AE66="YES",'Basic Details'!$D$31="Draft")),1*IF(BB66="ERROR INPUT",0+1,1),0) -> 0 | AH66: To be verified physically by Peer Team | BD66: Above 150 | BE66: 125-150 | BF66: 100-125 | BG66: 80-100 | BH66: 80 & Below | BM66: C-1 | BN66: 59 | BO66: 4 | BP66: 1 | BQ66: 4 | BR66: 0
C67: 60 | D67: 1 | E67: Ratio of students in practical subjects to the number of labs. | H67: =IF(F67=0,"",ROUND(F67/G67,4)) ->  | J67: 1 | L67: =IF($H67>$S67,$L$5,"") -> 0 | M67: =IF(AND($H67>$U67,$H67<$R67),$M$5,"") ->  | N67: =IF(AND($H67>$W67,$H67<$T67),$N$5,"") ->  | O67: =IF(AND($H67>$Y67,$H67<$V67),$O$5,"") ->  | P67: =IF(AND($H67>Z67,H67<X67),$P$5,"") ->  | Q67: 1000 | R67: 150.0001 | S67: 150 | T67: 120.0001 | U67: 120 | V67: 90.0001 | W67: 90 | X67: 60.0001 | Y67: 60 | Z67: 0.0001 | AA67: =IF(OR(AND(AE67="YES",AF67="PHYSICALLY VERIFIED"),AND(AE67="YES",AF67="DOCUMENT VERIFIED"),AND(AE67="YES",'Basic Details'!$D$31="Self Assessment"),AND(AE67="YES",'Basic Details'!$D$31="Draft")),1*IF(BB67="ERROR INPUT",0+1,1),0) -> 0 | AH67: Classwise list of Students with practical subjects AND Labs to be verified physically by Peer Team | BD67: Above 150 | BE67: 120-150 | BF67: 120-90 | BG67: 60-90 | BH67: 60 & Below | BM67: C-1 | BN67: 60 | BO67: 4 | BP67: 1 | BQ67: 4 | BR67: 0
C68: 61 | D68: 1 | E68: Ratio of student furniture to the total number of class rooms. | G68: =IF(F68="","",+$G$66) ->  | H68: =IF(F68=0,"",ROUND(F68/G68,4)) ->  | J68: 1 | L68: =IF($H68<$S68,$L$5,"") ->  | M68: =IF(AND($H68<$U68,$H68>$R68),$M$5,"") ->  | N68: =IF(AND($H68<$W68,$H68>$T68),$N$5,"") ->  | O68: =IF(AND($H68<$Y68,$H68>$V68),$O$5,"") ->  | P68: =IF(AND($H68<Z68,H68>X68),$P$5,"") ->  | Q68: 0 | R68: 19.9999 | S68: 20 | T68: 49.9999 | U68: 50 | V68: 69.9999 | W68: 70 | X68: 89.9999 | Y68: 90 | Z68: 10000 | AA68: =IF(OR(AND(AE68="YES",AF68="PHYSICALLY VERIFIED"),AND(AE68="YES",AF68="DOCUMENT VERIFIED"),AND(AE68="YES",'Basic Details'!$D$31="Self Assessment"),AND(AE68="YES",'Basic Details'!$D$31="Draft")),1*IF(BB68="ERROR INPUT",0+1,1),0) -> 0 | AH68: To be verified from stock register AND to be verified physically randomly by Peer Team | BD68: 0-20 | BE68: 20-50 | BF68: 50-70 | BG68: 70-90 | BH68: 90 & Above | BM68: C-1 | BN68: 61 | BO68: 4 | BP68: 1 | BQ68: 4 | BR68: 0
C69: 62 | D69: 1 | E69: Percentage of class rooms / labs equipped with working fans and LED tube lights / bulbs. | G69: =IF(F69="","",+$G$66+$G$67) ->  | H69: =IF(F69="","",ROUND(F69/G69,4)) ->  | J69: 0.5 | L69: =IF($H69<$S69%,$L$5,"") ->  | M69: =IF(AND($H69<$U69%,$H69>$R69%),$M$5,"") ->  | N69: =IF(AND($H69<$W69%,$H69>$T69%),$N$5,"") ->  | O69: =IF(AND($H69<$Y69%,$H69>$V69%),$O$5,"") ->  | P69: =IF(AND($H69<Z69%,H69>X69%),$P$5,"") ->  | Q69: 0 | R69: 20 | S69: 20.0001 | T69: 40 | U69: 40.0001 | V69: 60 | W69: 60.0001 | X69: 80 | Y69: 80.0001 | Z69: 10000 | AA69: =IF(OR(AND(AE69="YES",AF69="PHYSICALLY VERIFIED"),AND(AE69="YES",AF69="DOCUMENT VERIFIED"),AND(AE69="YES",'Basic Details'!$D$31="Self Assessment"),AND(AE69="YES",'Basic Details'!$D$31="Draft")),1*IF(BB69="ERROR INPUT",0+1,1),0) -> 0 | AH69: To be verified physically by Peer Team | BD69: 0-20 | BE69: 20-40 | BF69: 40-60 | BG69: 60-80 | BH69: 80-100 | BM69: C-1 | BN69: 62 | BO69: 4 | BP69: 0.5 | BQ69: 2 | BR69: 0
C70: 63 | D70: 1 | E70: Ratio of number of boys students to the No. of toilets. | F70: =IF(G70="","",IF(F10="yes","",+F7-F9)) ->  | H70: =IF(F70=0,"",ROUND(F70/G70,4)) ->  | J70: 0.5 | L70: =IF($H70>$S70,$L$5,"") ->  | M70: =IF(AND($H70>$U70,$H70<$R70),$M$5,"") ->  | N70: =IF(AND($H70>$W70,$H70<$T70),$N$5,"") ->  | O70: =IF(AND($H70>$Y70,$H70<$V70),$O$5,"") ->  | P70: =IF(AND($H70>Z70,H70<X70),$P$5,"") ->  | Q70: 1000 | R70: 400.0001 | S70: 400 | T70: 300.001 | U70: 300 | V70: 200.001 | W70: 200 | X70: 100.001 | Y70: 100 | Z70: 0.0001 | AA70: =IF(OR(AND(AE70="YES",AF70="PHYSICALLY VERIFIED"),AND(AE70="YES",AF70="DOCUMENT VERIFIED"),AND(AE70="YES",'Basic Details'!$D$31="Self Assessment"),AND(AE70="YES",'Basic Details'!$D$31="Draft")),1*IF(BB70="ERROR INPUT",0+1,1),0) -> 0 | AH70: Number and functional status to be verified physically by Peer Team | BD70: Above 400 | BE70: 300-400 | BF70: 200-300 | BG70: 100-200 | BH70: 100 & Below | BM70: C-1 | BN70: 63 | BO70: 4 | BP70: 0.5 | BQ70: 2 | BR70: 0
C71: 64 | D71: 1 | E71: Ratio of number of girls students to the No. of toilets. | F71: =IF(G71="","",IF(F70="",$F$7,+$F$7-F70)) ->  | H71: =IF(F71=0,"",ROUND(F71/G71,4)) ->  | J71: 0.5 | L71: =IF($H71>$S71,$L$5,"") ->  | M71: =IF(AND($H71>$U71,$H71<$R71),$M$5,"") ->  | N71: =IF(AND($H71>$W71,$H71<$T71),$N$5,"") ->  | O71: =IF(AND($H71>$Y71,$H71<$V71),$O$5,"") ->  | P71: =IF(AND($H71>Z71,H71<X71),$P$5,"") ->  | Q71: 1000 | R71: 200.001 | S71: 200 | T71: 150.001 | U71: 150 | V71: 100.001 | W71: 100 | X71: 50.001 | Y71: 50 | Z71: 0.0001 | AA71: =IF(OR(AND(AE71="YES",AF71="PHYSICALLY VERIFIED"),AND(AE71="YES",AF71="DOCUMENT VERIFIED"),AND(AE71="YES",'Basic Details'!$D$31="Self Assessment"),AND(AE71="YES",'Basic Details'!$D$31="Draft")),1*IF(BB71="ERROR INPUT",0+1,1),0) -> 0 | AH71: Number and functional status to be verified physically by Peer Team | BD71: Above 200 | BE71: 150-200 | BF71: 100-150 | BG71: 50-100 | BH71: 50 & Below | BM71: C-1 | BN71: 64 | BO71: 4 | BP71: 0.5 | BQ71: 2 | BR71: 0
C72: 65 | D72: 1 | E72: Ratio of number of staff (teaching and non-teaching) members to the No. of toilets. | F72: =IF(G72="","",+$F$34+$F$90+$F$91+$F$97+IF(F$92="yes",1,0)+IF($F$95="yes",1,0)+IF($F$107="Yes",1,0)) ->  | H72: =IF(F72=0,"",ROUND(F72/G72,4)) ->  | J72: 0.5 | K72: =IF(I72="","",+I72*J72*AA72) ->  | L72: =IF($H72>$S72,$L$5,"") ->  | M72: =IF(AND($H72>$U72,$H72<$R72),$M$5,"") ->  | N72: =IF(AND($H72>$W72,$H72<$T72),$N$5,"") ->  | O72: =IF(AND($H72>$Y72,$H72<$V72),$O$5,"") ->  | P72: =IF(AND($H72>Z72,H72<X72),$P$5,"") ->  | Q72: 1000 | R72: 80.0001 | S72: 80 | T72: 60.0001 | U72: 60 | V72: 40.0001 | W72: 40 | X72: 20.0001 | Y72: 20 | Z72: 0.0001 | AA72: =IF(OR(AND(AE72="YES",AF72="PHYSICALLY VERIFIED"),AND(AE72="YES",AF72="DOCUMENT VERIFIED"),AND(AE72="YES",'Basic Details'!$D$31="Self Assessment"),AND(AE72="YES",'Basic Details'!$D$31="Draft")),1*IF(BB72="ERROR INPUT",0+1,1),0) -> 0 | AC72: =IF(AB72="","","-") ->  | AH72: To be verified physically by Peer Team | BD72: Above 80 | BE72: 60-80 | BF72: 40-60 | BG72: 20-40 | BH72: 20 & Below | BM72: C-1 | BN72: 65 | BO72: 4 | BP72: 0.5 | BQ72: 2 | BR72: 0
C73: 66 | D73: 1 | E73: Toilets facility for Divyang students and staff members. | H73: =+F73 -> 0 | I73: =IF(F73="","",SUM(L73:P73)) ->  | J73: 0.5 | K73: =IF(I73="","",+I73*J73*AA73) ->  | L73: =IF(OR(H73="",H73="NO"),$L$5,"") ->  | M73: =IF(AND($H73<$U73%,$H73>$R73%),$M$5,"") ->  | N73: =IF(AND($H73<$W73%,$H73>$T73%),$N$5,"") ->  | O73: =IF(AND($H73<$Y73%,$H73>$V73%),$O$5,"") ->  | P73: =IF(H73="YES",$P$5,"") ->  | AA73: =IF(OR(AND(AE73="YES",AF73="PHYSICALLY VERIFIED"),AND(AE73="YES",AF73="DOCUMENT VERIFIED"),AND(AE73="YES",'Basic Details'!$D$31="Self Assessment"),AND(AE73="YES",'Basic Details'!$D$31="Draft")),1*IF(BB73="ERROR INPUT",0+1,1),0) -> 0 | BD73: NO | BH73: Yes | BM73: C-1 | BN73: 66 | BO73: 4 | BP73: 0.5 | BQ73: 2 | BR73: 0
C74: 67 | D74: 1 | E74: Ramp and other facilities for Divyang students and staff members. | H74: 0 | J74: 0.5 | L74: =IF(OR(H74="",H74="NO"),$L$5,"") ->  | P74: =IF(H74="YES",$P$5,"") ->  | AA74: =IF(OR(AND(AE74="YES",AF74="PHYSICALLY VERIFIED"),AND(AE74="YES",AF74="DOCUMENT VERIFIED"),AND(AE74="YES",'Basic Details'!$D$31="Self Assessment"),AND(AE74="YES",'Basic Details'!$D$31="Draft")),1*IF(BB74="ERROR INPUT",0+1,1),0) -> 0 | AH74: Toilets, drinking water facilities and RAMPS to be verified physically by Peer Team | BD74: NO | BH74: Yes | BM74: C-1 | BN74: 67 | BO74: 4 | BP74: 0.5 | BQ74: 2 | BR74: 0
A75: C. Infrastructure and Learning Resources | B75: C-1 Physical Assets | C75: 68 | D75: 1 | E75: Girls common room facility (Number of Activities undertaken specially in the Girls Common room other than activities of women cell). | H75: =+F75 -> 0 | I75: =IF(F75="","",SUM(L75:P75)) ->  | J75: 0.5 | L75: =IF($H75<$S75,$L$5,"") -> 0 | M75: =IF(AND($H75<$U75,$H75>$R75),$M$5,"") ->  | N75: =IF(AND($H75<$W75,$H75>$T75),$N$5,"") ->  | O75: =IF(AND($H75<$Y75,$H75>$V75),$O$5,"") ->  | P75: =IF(AND($H75<Z75,H75>X75),$P$5,"") ->  | Q75: 0 | R75: 0 | S75: 1 | T75: 2 | U75: 3 | V75: 4 | W75: 5 | X75: 6 | Y75: 7 | Z75: 10000 | AA75: =IF(OR(AND(AE75="YES",AF75="PHYSICALLY VERIFIED"),AND(AE75="YES",AF75="DOCUMENT VERIFIED"),AND(AE75="YES",'Basic Details'!$D$31="Self Assessment"),AND(AE75="YES",'Basic Details'!$D$31="Draft")),1*IF(BB75="ERROR INPUT",0+1,1),0) -> 0 | AH75: Activities to be verified physically by Peer Team | BD75: 0 | BE75: 1-2 | BF75: 3-4 | BG75: 5-6 | BH75: 7 & Above | BM75: C-1 | BN75: 68 | BO75: 4 | BP75: 0.5 | BQ75: 2 | BR75: 0
C76: 69 | D76: 1 | E76: Availability of Staff room. | H76: =+F76 -> 0 | I76: =IF(F76="","",SUM(L76:P76)) ->  | J76: 0.25 | L76: =IF(OR(H76="",H76="NO"),$L$5,"") ->  | M76: =IF(AND($H76<$U76%,$H76>$R76%),$M$5,"") ->  | N76: =IF(AND($H76<$W76%,$H76>$T76%),$N$5,"") ->  | O76: =IF(AND($H76<$Y76%,$H76>$V76%),$O$5,"") ->  | P76: =IF(H76="YES",$P$5,"") ->  | AA76: =IF(OR(AND(AE76="YES",AF76="PHYSICALLY VERIFIED"),AND(AE76="YES",AF76="DOCUMENT VERIFIED"),AND(AE76="YES",'Basic Details'!$D$31="Self Assessment"),AND(AE76="YES",'Basic Details'!$D$31="Draft")),1*IF(BB76="ERROR INPUT",0+1,1),0) -> 0 | AH76: To be verified physically by Peer Team | BD76: NO | BH76: Yes | BM76: C-1 | BN76: 69 | BO76: 4 | BP76: 0.25 | BQ76: 1 | BR76: 0
C77: 70 | D77: 1 | E77: Departmental rooms in percentage to No. of subjects being taught in the college. | H77: =IF(F77=0,"",ROUND(F77/G77,4)) ->  | I77: =IF(OR(F77="",G77="",G77=0),"",SUM(L77:P77)) ->  | J77: 0.5 | L77: =IF($H77<$S77,$L$5,"") ->  | M77: =IF(AND($H77<$U77,$H77>$R77),$M$5,"") ->  | N77: =IF(AND($H77<$W77,$H77>$T77),$N$5,"") ->  | O77: =IF(AND($H77<$Y77,$H77>$V77),$O$5,"") ->  | P77: =IF(AND($H77<Z77,H77>X77),$P$5,"") ->  | Q77: 0 | R77: 0 | S77: 1e-05 | T77: 24.9999 | U77: 25 | V77: 49.9999 | W77: 50 | X77: 74.9999 | Y77: 75 | Z77: 10000 | AA77: =IF(OR(AND(AE77="YES",AF77="PHYSICALLY VERIFIED"),AND(AE77="YES",AF77="DOCUMENT VERIFIED"),AND(AE77="YES",'Basic Details'!$D$31="Self Assessment"),AND(AE77="YES",'Basic Details'!$D$31="Draft")),1*IF(BB77="ERROR INPUT",0+1,1),0) -> 0 | AH77: To be verified physically by Peer Team | BD77: 0 | BE77: More than 0 but less than 25 | BF77: 25-50 | BG77: 50-75 | BH77: 75 & Above | BM77: C-1 | BN77: 70 | BO77: 4 | BP77: 0.5 | BQ77: 2 | BR77: 0
C78: 71 | D78: 1 | E78: No. of computers in campus for Students only (including ICT labs, laboratories etc.). | H78: =+F78 -> 0 | I78: =IF(F78="","",SUM(L78:P78)) ->  | J78: 0.5 | L78: =IF($H78<$S78,$L$5,"") -> 0 | M78: =IF(AND($H78<$U78,$H78>$R78),$M$5,"") ->  | N78: =IF(AND($H78<$W78,$H78>$T78),$N$5,"") ->  | O78: =IF(AND($H78<$Y78,$H78>$V78),$O$5,"") ->  | P78: =IF(AND($H78<Z78,H78>X78),$P$5,"") ->  | Q78: 0 | R78: 0 | S78: 1 | T78: 5 | U78: 6 | V78: 10 | W78: 11 | X78: 20 | Y78: 21 | Z78: 10000 | AA78: =IF(OR(AND(AE78="YES",AF78="PHYSICALLY VERIFIED"),AND(AE78="YES",AF78="DOCUMENT VERIFIED"),AND(AE78="YES",'Basic Details'!$D$31="Self Assessment"),AND(AE78="YES",'Basic Details'!$D$31="Draft")),1*IF(BB78="ERROR INPUT",0+1,1),0) -> 0 | AH78: Number and functional status to be verified physically by Peer Team | BD78: 0 | BE78: 1-5 | BF78: 6-10 | BG78: 11-20 | BH78: 21 & Above | BM78: C-1 | BN78: 71 | BO78: 4 | BP78: 0.5 | BQ78: 2 | BR78: 0
C79: 72 | E79: Ratio of Computers with free access of internet surfing for students. | G79: =IF(F79="","",+$F$7) ->  | H79: =IF(F79=0,"",ROUND(F79/G79,4)) ->  | I79: =IF(OR(F79="",G79="",G79=0),"",SUM(L79:P79)) ->  | J79: 0.5 | L79: =IF($H79<$S79,$L$5,"") ->  | M79: =IF(AND($H79<$U79,$H79>$R79),$M$5,"") ->  | N79: =IF(AND($H79<$W79,$H79>$T79),$N$5,"") ->  | O79: =IF(AND($H79<$Y79,$H79>$V79),$O$5,"") ->  | P79: =IF(AND($H79<Z79,H79>X79),$P$5,"") ->  | Q79: 0 | R79: =0.999/1000 -> 0.000999 | S79: =1/1000 -> 0.001 | T79: =2.9999/1000 -> 0.0029999 | U79: =3/1000 -> 0.003 | V79: =5.999999/1000 -> 0.005999999 | W79: =6/1000 -> 0.006 | X79: =8.99999/1000 -> 0.00899999 | Y79: =9/1000 -> 0.009 | Z79: =1000/1000 -> 1 | AA79: =IF(OR(AND(AE79="YES",AF79="PHYSICALLY VERIFIED"),AND(AE79="YES",AF79="DOCUMENT VERIFIED"),AND(AE79="YES",'Basic Details'!$D$31="Self Assessment"),AND(AE79="YES",'Basic Details'!$D$31="Draft")),1*IF(BB79="ERROR INPUT",0+1,1),0) -> 0 | BD79: Less than .001 | BE79: 0.001 but less than 0.003 | BF79: 0.003 but less than 0.006 | BG79: 0.006 but less than 0.009 | BH79: 0.009 & Above | BM79: C-1 | BN79: 72 | BO79: 4 | BP79: 0.5 | BQ79: 2 | BR79: 0
C80: 73 | E80: Availability of Safe/Clean drinking water with functional water purifier system. | H80: =+F80 -> 0 | J80: 1 | L80: =IF(OR(H80="",H80="NO"),$L$5,"") ->  | M80: =IF(AND($H80<$U80%,$H80>$R80%),$M$5,"") ->  | N80: =IF(AND($H80<$W80%,$H80>$T80%),$N$5,"") ->  | O80: =IF(AND($H80<$Y80%,$H80>$V80%),$O$5,"") ->  | P80: =IF(H80="YES",$P$5,"") ->  | AA80: =IF(OR(AND(AE80="YES",AF80="PHYSICALLY VERIFIED"),AND(AE80="YES",AF80="DOCUMENT VERIFIED"),AND(AE80="YES",'Basic Details'!$D$31="Self Assessment"),AND(AE80="YES",'Basic Details'!$D$31="Draft")),1*IF(BB80="ERROR INPUT",0+1,1),0) -> 0 | AH80: Installed ROs to be verified physically by Peer Team AND if possible get TDS done. | BD80: NO | BH80: Yes | BM80: C-1 | BN80: 73 | BO80: 4 | BP80: 1 | BQ80: 4 | BR80: 0
C81: =1+C80 -> 74 | E81: No of Languages associated with Language Lab. | H81: =+F81 -> 0 | J81: 0.5 | L81: =IF($H81<$S81,$L$5,"") -> 0 | M81: =IF(AND($H81<$U81,$H81>$R81),$M$5,"") ->  | N81: =IF(AND($H81<$W81,$H81>$T81),$N$5,"") ->  | O81: =IF(AND($H81<$Y81,$H81>$V81),$O$5,"") ->  | P81: =IF(AND($H81<Z81,H81>X81),$P$5,"") ->  | Q81: 0 | R81: 0 | S81: 1 | T81: 1 | U81: 2 | V81: 2 | W81: 3 | X81: 3 | Y81: 4 | Z81: 20 | AA81: =IF(OR(AND(AE81="YES",AF81="PHYSICALLY VERIFIED"),AND(AE81="YES",AF81="DOCUMENT VERIFIED"),AND(AE81="YES",'Basic Details'!$D$31="Self Assessment"),AND(AE81="YES",'Basic Details'!$D$31="Draft")),1*IF(BB81="ERROR INPUT",0+1,1),0) -> 0 | AH81: Lab AND consoles AND Mike to be verified physically by Peer Team | BD81: 0 | BE81: 1 | BF81: 2 | BG81: 3 | BH81: 4 & Above | BM81: C-1 | BN81: 74 | BO81: 4 | BP81: 0.5 | BQ81: 2 | BR81: 0
C82: 75 | E82: Speed of Wi-Fi facility in the Campus. | H82: 0 | J82: 0.5 | L82: =IF($H82<$S82,$L$5,"") -> 0 | M82: =IF(AND($H82<$U82,$H82>$R82),$M$5,"") ->  | N82: =IF(AND($H82<$W82,$H82>$T82),$N$5,"") ->  | O82: =IF(AND($H82<$Y82,$H82>$V82),$O$5,"") ->  | P82: =IF(AND($H82<Z82,H82>X82),$P$5,"") ->  | Q82: 0 | R82: 0 | S82: 1 | T82: 20 | U82: 20.001 | V82: 40 | W82: 40.001 | X82: 49.001 | Y82: 50 | Z82: 20000 | AA82: =IF(OR(AND(AE82="YES",AF82="PHYSICALLY VERIFIED"),AND(AE82="YES",AF82="DOCUMENT VERIFIED"),AND(AE82="YES",'Basic Details'!$D$31="Self Assessment"),AND(AE82="YES",'Basic Details'!$D$31="Draft")),1*IF(BB82="ERROR INPUT",0+1,1),0) -> 0 | AH82: To be verified by Peer Team by connecting through college wi-fi network | BD82: 0 | BE82: 1-20 | BF82: 20-40 | BG82: 40-50 | BH82: 50 & Above | BM82: C-1 | BN82: 75 | BO82: 4 | BP82: 0.5 | BQ82: 2 | BR82: 0
C83: 76 | E83: Number of class rooms covered under LAN. | H83: 0 | I83: =IF(F83="","",SUM(L83:P83)) ->  | J83: 0.5 | K83: =IF(I83="","",+I83*J83*AA83) ->  | L83: =IF($H83<$S83,$L$5,"") -> 0 | M83: =IF(AND($H83<$U83,$H83>$R83),$M$5,"") ->  | N83: =IF(AND($H83<$W83,$H83>$T83),$N$5,"") ->  | O83: =IF(AND($H83<$Y83,$H83>$V83),$O$5,"") ->  | P83: =IF(AND($H83<Z83,H83>X83),$P$5,"") ->  | Q83: 0 | R83: 0 | S83: 1 | T83: 4 | U83: 5 | V83: 9 | W83: 10 | X83: 19 | Y83: 20 | Z83: 100 | AA83: =IF(OR(AND(AE83="YES",AF83="PHYSICALLY VERIFIED"),AND(AE83="YES",AF83="DOCUMENT VERIFIED"),AND(AE83="YES",'Basic Details'!$D$31="Self Assessment"),AND(AE83="YES",'Basic Details'!$D$31="Draft")),1*IF(BB83="ERROR INPUT",0+1,1),0) -> 0 | BD83: 0 | BE83: 1-4 | BF83: 5-9 | BG83: 10-19 | BH83: 20 & Above | BM83: C-1 | BN83: 76 | BO83: 4 | BP83: 0.5 | BQ83: 2 | BR83: 0
C84: =1+C83 -> 77 | E84: No. of smart classrooms (Functional interactive Board). | H84: 0 | J84: 0.5 | L84: =IF($H84<$S84,$L$5,"") -> 0 | M84: =IF(AND($H84<$U84,$H84>$R84),$M$5,"") ->  | N84: =IF(AND($H84<$W84,$H84>$T84),$N$5,"") ->  | O84: =IF(AND($H84<$Y84,$H84>$V84),$O$5,"") ->  | P84: =IF(AND($H84<Z84,H84>X84),$P$5,"") ->  | Q84: 0 | R84: 0 | S84: 1 | T84: 1 | U84: 2 | V84: 2 | W84: 3 | X84: 3 | Y84: 4 | Z84: 10000 | AA84: =IF(OR(AND(AE84="YES",AF84="PHYSICALLY VERIFIED"),AND(AE84="YES",AF84="DOCUMENT VERIFIED"),AND(AE84="YES",'Basic Details'!$D$31="Self Assessment"),AND(AE84="YES",'Basic Details'!$D$31="Draft")),1*IF(BB84="ERROR INPUT",0+1,1),0) -> 0 | AH84: Installed set up and its functionality to be verified physically by Peer Team | BD84: 0 | BE84: 1 | BF84: 2 | BG84: 3 | BH84: 4 & Above | BM84: C-1 | BN84: =+C84 -> 77 | BO84: 4 | BP84: =+J84 -> 0.5 | BQ84: =+BO84*BP84 -> 2 | BR84: =IF(K84="",0,+K84) -> 0
A85: C. Infrastructure and Learning Resources | B85: C-1 Physical Assets | C85: 78 | E85: Percentage of capacity of power generation through Generator / inverter/Solar panel to total electricity requirement of the college. | H85: =IF(F85="","",ROUND(F85/G85,4)) ->  | I85: =IF(OR(F85="",G85="",G85=0),"",SUM(L85:P85)) ->  | J85: 0.75 | L85: =IF($H85<$S85%,$L$5,"") ->  | M85: =IF(AND($H85<$U85%,$H85>$R85%),$M$5,"") ->  | N85: =IF(AND($H85<$W85%,$H85>$T85%),$N$5,"") ->  | O85: =IF(AND($H85<$Y85%,$H85>$V85%),$O$5,"") ->  | P85: =IF(AND($H85<Z85%,H85>X85%),$P$5,"") ->  | Q85: 0 | R85: 20 | S85: 20.0001 | T85: 40 | U85: 40.0001 | V85: 60 | W85: 60.0001 | X85: 80 | Y85: 80.0001 | Z85: 10000 | AA85: =IF(OR(AND(AE85="YES",AF85="PHYSICALLY VERIFIED"),AND(AE85="YES",AF85="DOCUMENT VERIFIED"),AND(AE85="YES",'Basic Details'!$D$31="Self Assessment"),AND(AE85="YES",'Basic Details'!$D$31="Draft")),1*IF(BB85="ERROR INPUT",0+1,1),0) -> 0 | AH85: Documentary proof of total electricity load AND its generation in institute AND to be verified physically by Peer Team | BD85: 0-20 | BE85: 20-40 | BF85: 40-60 | BG85: 60-80 | BH85: 80-100 | BM85: C-1 | BN85: 78 | BO85: 4 | BP85: 0.75 | BQ85: 3 | BR85: 0
C86: 79 | E86: Availability of Audio / video system in the college (Mic, TV, Projector, Laptops etc.). | H86: =+F86 -> 0 | I86: =IF(F86="","",SUM(L86:P86)) ->  | J86: 0.5 | L86: =IF(OR(H86="",H86="NO"),$L$5,"") ->  | M86: =IF(AND($H86<$U86%,$H86>$R86%),$M$5,"") ->  | N86: =IF(AND($H86<$W86%,$H86>$T86%),$N$5,"") ->  | O86: =IF(AND($H86<$Y86%,$H86>$V86%),$O$5,"") ->  | P86: =IF(H86="YES",$P$5,"") ->  | AA86: =IF(OR(AND(AE86="YES",AF86="PHYSICALLY VERIFIED"),AND(AE86="YES",AF86="DOCUMENT VERIFIED"),AND(AE86="YES",'Basic Details'!$D$31="Self Assessment"),AND(AE86="YES",'Basic Details'!$D$31="Draft")),1*IF(BB86="ERROR INPUT",0+1,1),0) -> 0 | AH86: To be verified physically by Peer Team | BD86: NO | BH86: Yes | BM86: C-1 | BN86: 79 | BO86: 4 | BP86: 0.5 | BQ86: 2 | BR86: 0
C87: 80 | E87: Availability of Auditorium in the Campus (Above 150 seating capacity). | H87: 0 | I87: =IF(F87="","",SUM(L87:P87)) ->  | J87: 0.5 | K87: =IF(I87="","",+I87*J87*AA87) ->  | L87: =IF(OR(H87="",H87="NO"),$L$5,"") ->  | P87: =IF(H87="YES",$P$5,"") ->  | AA87: =IF(OR(AND(AE87="YES",AF87="PHYSICALLY VERIFIED"),AND(AE87="YES",AF87="DOCUMENT VERIFIED"),AND(AE87="YES",'Basic Details'!$D$31="Self Assessment"),AND(AE87="YES",'Basic Details'!$D$31="Draft")),1*IF(BB87="ERROR INPUT",0+1,1),0) -> 0 | BD87: NO | BH87: Yes | BM87: C-1 | BN87: 80 | BO87: 4 | BP87: 0.5 | BQ87: 2 | BR87: 0
C88: 81 | E88: No. of Seminar Halls/Lecture Theater with fitted/permanent Audio/Video system. | H88: =+F88 -> 0 | I88: =IF(F88="","",SUM(L88:P88)) ->  | J88: 0.5 | L88: =IF($H88<$S88,$L$5,"") -> 0 | M88: =IF(AND($H88<$U88,$H88>$R88),$M$5,"") ->  | N88: =IF(AND($H88<$W88,$H88>$T88),$N$5,"") ->  | O88: =IF(AND($H88<$Y88,$H88>$V88),$O$5,"") ->  | P88: =IF(AND($H88<Z88,H88>X88),$P$5,"") ->  | Q88: 0 | R88: 0 | S88: 1 | T88: 1 | U88: 2 | V88: 2 | W88: 3 | X88: 3 | Y88: 4 | Z88: 10000 | AA88: =IF(OR(AND(AE88="YES",AF88="PHYSICALLY VERIFIED"),AND(AE88="YES",AF88="DOCUMENT VERIFIED"),AND(AE88="YES",'Basic Details'!$D$31="Self Assessment"),AND(AE88="YES",'Basic Details'!$D$31="Draft")),1*IF(BB88="ERROR INPUT",0+1,1),0) -> 0 | BD88: 0 | BE88: 1 | BF88: 2 | BG88: 3 | BH88: 4 & Above | BM88: C-1 | BN88: 81 | BO88: 4 | BP88: 0.5 | BQ88: 2 | BR88: 0
C89: 82 | E89: Functional Fire Extinguishers available. | H89: =+F89 -> 0 | I89: =IF(F89="","",SUM(L89:P89)) ->  | J89: 0.25 | L89: =IF(OR(H89="",H89="NO"),$L$5,"") ->  | M89: =IF(AND($H89<$U89%,$H89>$R89%),$M$5,"") ->  | N89: =IF(AND($H89<$W89%,$H89>$T89%),$N$5,"") ->  | O89: =IF(AND($H89<$Y89%,$H89>$V89%),$O$5,"") ->  | P89: =IF(H89="YES",$P$5,"") ->  | AA89: =IF(OR(AND(AE89="YES",AF89="PHYSICALLY VERIFIED"),AND(AE89="YES",AF89="DOCUMENT VERIFIED"),AND(AE89="YES",'Basic Details'!$D$31="Self Assessment"),AND(AE89="YES",'Basic Details'!$D$31="Draft")),1*IF(BB89="ERROR INPUT",0+1,1),0) -> 0 | AH89: Installation and date of refill to be verified physically by Peer Team | BD89: NO | BH89: Yes | BM89: C-1 | BN89: 82 | BO89: 4 | BP89: 0.25 | BQ89: 1 | BR89: 0 | BS89: =SUM(BP65:BP89) -> 14.25 | BT89: =SUM(BR65:BR89) -> 0 | BU89: =SUM(BQ65:BQ89) -> 57
B90: C-2 Office Setup | C90: =1+C89 -> 83 | E90: Percentage of working Ministerial staff to no. of posts-required-as-per-rules (including Lab asstts.). | H90: =IF(F90="","",ROUND(F90/G90,4)) ->  | I90: =IF(OR(F90="",G90="",G90=0),"",SUM(L90:P90)) ->  | J90: 1 | L90: =IF($H90<$S90%,$L$5,"") ->  | M90: =IF(AND($H90<$U90%,$H90>$R90%),$M$5,"") ->  | N90: =IF(AND($H90<$W90%,$H90>$T90%),$N$5,"") ->  | O90: =IF(AND($H90<$Y90%,$H90>$V90%),$O$5,"") ->  | P90: =IF(AND($H90<Z90%,H90>X90%),$P$5,"") ->  | Q90: 0 | R90: 20 | S90: 20.0001 | T90: 40 | U90: 40.0001 | V90: 60 | W90: 60.0001 | X90: 80 | Y90: 80.0001 | Z90: 10000 | AA90: =IF(OR(AND(AE90="YES",AF90="PHYSICALLY VERIFIED"),AND(AE90="YES",AF90="DOCUMENT VERIFIED"),AND(AE90="YES",'Basic Details'!$D$31="Self Assessment"),AND(AE90="YES",'Basic Details'!$D$31="Draft")),1*IF(BB90="ERROR INPUT",0+1,1),0) -> 0 | AH90: Attendance Register / AISHE DCF | BD90: 0-20 | BE90: 20-40 | BF90: 40-60 | BG90: 60-80 | BH90: 80-100 | BM90: C-2 | BN90: 83 | BO90: 4 | BP90: 1 | BQ90: 4 | BR90: 0
C91: 84 | E91: Percentage of working supporting staff to no. of posts-required-as-per-rules (including Lab bearers, gas man etc.). | J91: 1 | Q91: 0 | R91: 20 | S91: 20.0001 | T91: 40 | U91: 40.0001 | V91: 60 | W91: 60.0001 | X91: 80 | Y91: 80.0001 | Z91: 10000 | AA91: =IF(OR(AND(AE91="YES",AF91="PHYSICALLY VERIFIED"),AND(AE91="YES",AF91="DOCUMENT VERIFIED"),AND(AE91="YES",'Basic Details'!$D$31="Self Assessment"),AND(AE91="YES",'Basic Details'!$D$31="Draft")),1*IF(BB91="ERROR INPUT",0+1,1),0) -> 0 | AH91: Attendance Register / AISHE DCF | BD91: 0-20 | BE91: 20-40 | BF91: 40-60 | BG91: 60-80 | BH91: 80-100 | BM91: C-2 | BN91: 84 | BO91: 4 | BP91: 1 | BQ91: 4 | BR91: 0
C92: 85 | E92: Working accounts personnel. | H92: =+F92 -> 0 | I92: =IF(F92="","",SUM(L92:P92)) ->  | J92: 0.5 | L92: =IF(OR(H92="",H92="NO"),$L$5,"") ->  | P92: =IF(H92="YES",$P$5,"") ->  | AA92: =IF(OR(AND(AE92="YES",AF92="PHYSICALLY VERIFIED"),AND(AE92="YES",AF92="DOCUMENT VERIFIED"),AND(AE92="YES",'Basic Details'!$D$31="Self Assessment"),AND(AE92="YES",'Basic Details'!$D$31="Draft")),1*IF(BB92="ERROR INPUT",0+1,1),0) -> 0 | AH92: Attendance Register | BD92: NO | BH92: Yes | BM92: C-2 | BN92: 85 | BO92: 4 | BP92: 0.5 | BQ92: 2 | BR92: 0
C93: 86 | E93: Automation of offices. | H93: 0 | I93: =IF(F93="","",SUM(L93:P93)) ->  | J93: 0.25 | K93: =IF(I93="","",+I93*J93*AA93) ->  | L93: =IF(OR(H93="",H93="NO"),$L$5,"") ->  | P93: =IF(H93="YES",$P$5,"") ->  | AA93: =IF(OR(AND(AE93="YES",AF93="PHYSICALLY VERIFIED"),AND(AE93="YES",AF93="DOCUMENT VERIFIED"),AND(AE93="YES",'Basic Details'!$D$31="Self Assessment"),AND(AE93="YES",'Basic Details'!$D$31="Draft")),1*IF(BB93="ERROR INPUT",0+1,1),0) -> 0 | BD93: NO | BH93: Yes | BM93: C-2 | BN93: 86 | BO93: 4 | BP93: 0.25 | BQ93: 1 | BR93: 0 | BS93: =SUM(BP90:BP93) -> 2.75 | BT93: =SUM(BR90:BR93) -> 0 | BU93: =SUM(BQ90:BQ93) -> 11 | BV93: =SUM(BS65:BS93) -> 17 | BW93: =SUM(BT65:BT93) -> 0 | BX93: =SUM(BU65:BU93) -> 68
A94: D. Student Support and participation | B94: D-1 Learning Support | C94: 87 | E94: Library with or without e-library/inflibnet/delnet facility (Based on total Hits). | H94: =IF(F94="Yes Library No Facility",1,IF(F94="yes library yes facility",2,0)) -> 0 | J94: 0.5 | K94: =IF(I94="","",+I94*J94*AA94) ->  | L94: =IF($H94<$S94,$L$5,"") ->  | M94: =IF(AND($H94<$U94,$H94>$R94),$M$5,"") ->  | N94: =IF(AND($H94<$W94,$H94>$T94),$N$5,"") ->  | O94: =IF(AND($H94<$Y94,$H94>$V94),$O$5,"") ->  | P94: =IF(AND($H94<Z94,H94>X94),$P$5,"") ->  | Q94: 0 | R94: 0 | S94: 0 | T94: 0 | U94: 1 | V94: 1 | W94: 2 | X94: 1 | Y94: 2 | Z94: 100 | AA94: =IF(OR(AND(AE94="YES",AF94="PHYSICALLY VERIFIED"),AND(AE94="YES",AF94="DOCUMENT VERIFIED"),AND(AE94="YES",'Basic Details'!$D$31="Self Assessment"),AND(AE94="YES",'Basic Details'!$D$31="Draft")),1*IF(BB94="ERROR INPUT",0+1,1),0) -> 0 | AH94: To be verified physically by Peer Team | BD94: No Library | BF94: Yes Library, No Facility | BH94: Yes Library, Yes Facility | BM94: D-1 | BN94: 87 | BO94: 4 | BP94: 0.5 | BQ94: 2 | BR94: 0
C95: 88 | E95: Working Librarian. | H95: =+F95 -> 0 | J95: 0.25 | L95: =IF(OR(H95="",H95="NO"),$L$5,"") ->  | M95: =IF(AND($H95<$U95%,$H95>$R95%),$M$5,"") ->  | N95: =IF(AND($H95<$W95%,$H95>$T95%),$N$5,"") ->  | O95: =IF(AND($H95<$Y95%,$H95>$V95%),$O$5,"") ->  | P95: =IF(H95="YES",$P$5,"") ->  | AA95: =IF(OR(AND(AE95="YES",AF95="PHYSICALLY VERIFIED"),AND(AE95="YES",AF95="DOCUMENT VERIFIED"),AND(AE95="YES",'Basic Details'!$D$31="Self Assessment"),AND(AE95="YES",'Basic Details'!$D$31="Draft")),1*IF(BB95="ERROR INPUT",0+1,1),0) -> 0 | AH95: Attendance Register | BD95: No | BH95: Yes | BM95: D-1 | BN95: 88 | BO95: 4 | BP95: 0.25 | BQ95: 1 | BR95: 0
C96: 89 | E96: Whether library is automated. | H96: 0 | J96: 0.25 | L96: =IF(OR(H96="",H96="NO"),$L$5,"") ->  | P96: =IF(H96="YES",$P$5,"") ->  | AA96: =IF(OR(AND(AE96="YES",AF96="PHYSICALLY VERIFIED"),AND(AE96="YES",AF96="DOCUMENT VERIFIED"),AND(AE96="YES",'Basic Details'!$D$31="Self Assessment"),AND(AE96="YES",'Basic Details'!$D$31="Draft")),1*IF(BB96="ERROR INPUT",0+1,1),0) -> 0 | AH96: Bar-coding, issuing of books using the software to be verified physically by Peer Team | BD96: No | BH96: Yes | BM96: D-1 | BN96: 89 | BO96: 4 | BP96: 0.25 | BQ96: 1 | BR96: 0
C97: 90 | E97: Percentage of working Library staff against no. of posts-required-as-per-rules | H97: =IF(F97="","",ROUND(F97/G97,4)) ->  | I97: =IF(OR(F97="",G97="",G97=0),"",SUM(L97:P97)) ->  | J97: 0.25 | L97: =IF($H97<$S97%,$L$5,"") ->  | M97: =IF(AND($H97<$U97%,$H97>$R97%),$M$5,"") ->  | N97: =IF(AND($H97<$W97%,$H97>$T97%),$N$5,"") ->  | O97: =IF(AND($H97<$Y97%,$H97>$V97%),$O$5,"") ->  | P97: =IF(AND($H97<Z97%,H97>X97%),$P$5,"") ->  | Q97: 0 | R97: 20 | S97: 20.0001 | T97: 40 | U97: 40.0001 | V97: 60 | W97: 60.0001 | X97: 80 | Y97: 80.0001 | Z97: 10000 | AA97: =IF(OR(AND(AE97="YES",AF97="PHYSICALLY VERIFIED"),AND(AE97="YES",AF97="DOCUMENT VERIFIED"),AND(AE97="YES",'Basic Details'!$D$31="Self Assessment"),AND(AE97="YES",'Basic Details'!$D$31="Draft")),1*IF(BB97="ERROR INPUT",0+1,1),0) -> 0 | AH97: Attendance Register | BD97: 0-20 | BE97: 20-40 | BF97: 40-60 | BG97: 60-80 | BH97: 80-100 | BM97: D-1 | BN97: 90 | BO97: 4 | BP97: 0.25 | BQ97: 1 | BR97: 0
C98: 91 | E98: Ratio of total books in library to total No. of students. | G98: =IF(F98="","",+$F$7) ->  | H98: =IF(F98=0,"",ROUND(F98/G98,4)) ->  | J98: 0.5 | L98: =IF($H98<$S98,$L$5,"") ->  | M98: =IF(AND($H98<$U98,$H98>$R98),$M$5,"") ->  | N98: =IF(AND($H98<$W98,$H98>$T98),$N$5,"") ->  | O98: =IF(AND($H98<$Y98,$H98>$V98),$O$5,"") ->  | P98: =IF(AND($H98<Z98,H98>X98),$P$5,"") ->  | Q98: 0 | R98: 0 | S98: 0.0001 | T98: 2.9999 | U98: 3 | V98: 3.9999 | W98: 4 | X98: 4.9999 | Y98: 5 | Z98: 10000 | AA98: =IF(OR(AND(AE98="YES",AF98="PHYSICALLY VERIFIED"),AND(AE98="YES",AF98="DOCUMENT VERIFIED"),AND(AE98="YES",'Basic Details'!$D$31="Self Assessment"),AND(AE98="YES",'Basic Details'!$D$31="Draft")),1*IF(BB98="ERROR INPUT",0+1,1),0) -> 0 | AH98: Library stock register | BD98: 0 | BE98: More than 0 and less than 3 | BF98: 3-4 | BG98: 4-5 | BH98: 5 & Above | BM98: D-1 | BN98: 91 | BO98: 4 | BP98: 0.5 | BQ98: 2 | BR98: 0
C99: 92 | E99: No. of Reading Rooms. | H99: =+F99 -> 0 | I99: =IF(F99="","",SUM(L99:P99)) ->  | J99: 0.5 | L99: =IF($H99<$S99,$L$5,"") -> 0 | M99: =IF(AND($H99<$U99,$H99>$R99),$M$5,"") ->  | N99: =IF(AND($H99<$W99,$H99>$T99),$N$5,"") ->  | O99: =IF(AND($H99<$Y99,$H99>$V99),$O$5,"") ->  | P99: =IF(AND($H99<Z99,H99>X99),$P$5,"") ->  | Q99: 0 | R99: 0.999 | S99: 0.999 | T99: 0.999 | U99: 1 | V99: 1.9999 | W99: 2 | X99: 1.9999 | Y99: 2 | Z99: 10000 | AA99: =IF(OR(AND(AE99="YES",AF99="PHYSICALLY VERIFIED"),AND(AE99="YES",AF99="DOCUMENT VERIFIED"),AND(AE99="YES",'Basic Details'!$D$31="Self Assessment"),AND(AE99="YES",'Basic Details'!$D$31="Draft")),1*IF(BB99="ERROR INPUT",0+1,1),0) -> 0 | AH99: Required furniture and display stands to be verified physically by Peer Team | BD99: 0 | BF99: 1 | BH99: 2 & Above | BM99: D-1 | BN99: 92 | BO99: 4 | BP99: 0.5 | BQ99: 2 | BR99: 0
C100: 93 | E100: No. of copies of News papers subscribed per 100 students. | G100: =IF(F100="","",+$F$7) ->  | H100: =IF(F100=0,"",ROUND(F100/G100,4)) ->  | I100: =IF(OR(F100="",G100="",G100=0),"",SUM(L100:P100)) ->  | J100: 0.25 | L100: =IF($H100<$S100,$L$5,"") ->  | M100: =IF(AND($H100<$U100,$H100>$R100),$M$5,"") ->  | N100: =IF(AND($H100<$W100,$H100>$T100),$N$5,"") ->  | O100: =IF(AND($H100<$Y100,$H100>$V100),$O$5,"") ->  | P100: =IF(AND($H100<Z100,H100>X100),$P$5,"") ->  | Q100: 0 | R100: 0 | S100: 1 | T100: 1 | U100: 2 | V100: 2 | W100: 3 | X100: 3 | Y100: 4 | Z100: 10000 | AA100: =IF(OR(AND(AE100="YES",AF100="PHYSICALLY VERIFIED"),AND(AE100="YES",AF100="DOCUMENT VERIFIED"),AND(AE100="YES",'Basic Details'!$D$31="Self Assessment"),AND(AE100="YES",'Basic Details'!$D$31="Draft")),1*IF(BB100="ERROR INPUT",0+1,1),0) -> 0 | AH100: Number of copies of last 2 months to be verified physically by Peer Team | BD100: 0 | BE100: 1 | BF100: 2 | BG100: 3 | BH100: 4 & Above | BM100: D-1 | BN100: 93 | BO100: 4 | BP100: 0.25 | BQ100: 1 | BR100: 0
C101: 94 | E101: Subscription of employment News paper. | H101: =+F101 -> 0 | I101: =IF(F101="","",SUM(L101:P101)) ->  | J101: 0.25 | L101: =IF(OR(H101="",H101="NO"),$L$5,"") ->  | M101: =IF(AND($H101<$U101%,$H101>$R101%),$M$5,"") ->  | N101: =IF(AND($H101<$W101%,$H101>$T101%),$N$5,"") ->  | O101: =IF(AND($H101<$Y101%,$H101>$V101%),$O$5,"") ->  | P101: =IF(H101="YES",$P$5,"") ->  | AA101: =IF(OR(AND(AE101="YES",AF101="PHYSICALLY VERIFIED"),AND(AE101="YES",AF101="DOCUMENT VERIFIED"),AND(AE101="YES",'Basic Details'!$D$31="Self Assessment"),AND(AE101="YES",'Basic Details'!$D$31="Draft")),1*IF(BB101="ERROR INPUT",0+1,1),0) -> 0 | AH101: Number of copies of last 2 months to be verified physically by Peer Team | BD101: No | BH101: Yes | BM101: D-1 | BN101: 94 | BO101: 4 | BP101: 0.25 | BQ101: 1 | BR101: 0
C102: 95 | E102: No. of magazines subscribed. | H102: =+F102 -> 0 | I102: =IF(F102="","",SUM(L102:P102)) ->  | J102: 0.25 | L102: =IF($H102<$S102,$L$5,"") -> 0 | M102: =IF(AND($H102<$U102,$H102>$R102),$M$5,"") ->  | N102: =IF(AND($H102<$W102,$H102>$T102),$N$5,"") ->  | O102: =IF(AND($H102<$Y102,$H102>$V102),$O$5,"") ->  | P102: =IF(AND($H102<Z102,H102>X102),$P$5,"") ->  | Q102: 0 | R102: 0 | S102: 1 | T102: 3 | U102: 4 | V102: 6 | W102: 7 | X102: 9 | Y102: 10 | Z102: 10000 | AA102: =IF(OR(AND(AE102="YES",AF102="PHYSICALLY VERIFIED"),AND(AE102="YES",AF102="DOCUMENT VERIFIED"),AND(AE102="YES",'Basic Details'!$D$31="Self Assessment"),AND(AE102="YES",'Basic Details'!$D$31="Draft")),1*IF(BB102="ERROR INPUT",0+1,1),0) -> 0 | AH102: Latest and few earlier editions to be verified physically by Peer Team | BD102: 0 | BE102: 1-3 | BF102: 4-6 | BG102: 7-9 | BH102: 10 & Above | BM102: D-1 | BN102: 95 | BO102: 4 | BP102: 0.25 | BQ102: 1 | BR102: 0
C103: 96 | E103: Number of journals subscribed per subject by the college. | G103: =IF(F103="","",+$G$77) ->  | H103: =IF(F103=0,"",ROUND(F103/G103,4)) ->  | I103: =IF(OR(F103="",G103="",G103=0),"",SUM(L103:P103)) ->  | J103: 0.25 | L103: =IF($H103<$S103,$L$5,"") ->  | M103: =IF(AND($H103<$U103,$H103>$R103),$M$5,"") ->  | N103: =IF(AND($H103<$W103,$H103>$T103),$N$5,"") ->  | O103: =IF(AND($H103<$Y103,$H103>$V103),$O$5,"") ->  | P103: =IF(AND($H103<Z103,H103>X103),$P$5,"") ->  | Q103: 0 | R103: 0 | S103: 1 | T103: 1 | U103: 2 | V103: 2 | W103: 3 | X103: 3 | Y103: 4 | Z103: 10000 | AA103: =IF(OR(AND(AE103="YES",AF103="PHYSICALLY VERIFIED"),AND(AE103="YES",AF103="DOCUMENT VERIFIED"),AND(AE103="YES",'Basic Details'!$D$31="Self Assessment"),AND(AE103="YES",'Basic Details'!$D$31="Draft")),1*IF(BB103="ERROR INPUT",0+1,1),0) -> 0 | AH103: Latest and few earlier editions to be verified physically by Peer Team | BD103: 0 | BE103: 1 | BF103: 2 | BG103: 3 | BH103: 4 & Above | BM103: D-1 | BN103: 96 | BO103: 4 | BP103: 0.25 | BQ103: 1 | BR103: 0
C104: 97 | E104: Log book is maintained regularly in the library. | H104: =+F104 -> 0 | I104: =IF(F104="","",SUM(L104:P104)) ->  | J104: 0.5 | K104: =IF(I104="","",+I104*J104*AA104) ->  | L104: =IF(OR(H104="",H104="NO"),$L$5,"") ->  | M104: =IF(AND($H104<$U104%,$H104>$R104%),$M$5,"") ->  | N104: =IF(AND($H104<$W104%,$H104>$T104%),$N$5,"") ->  | O104: =IF(AND($H104<$Y104%,$H104>$V104%),$O$5,"") ->  | P104: =IF(H104="YES",$P$5,"") ->  | AA104: =IF(OR(AND(AE104="YES",AF104="PHYSICALLY VERIFIED"),AND(AE104="YES",AF104="DOCUMENT VERIFIED"),AND(AE104="YES",'Basic Details'!$D$31="Self Assessment"),AND(AE104="YES",'Basic Details'!$D$31="Draft")),1*IF(BB104="ERROR INPUT",0+1,1),0) -> 0 | BD104: No | BF104: Yes | BM104: D-1 | BN104: 97 | BO104: 4 | BP104: 0.5 | BQ104: 2 | BR104: 0 | BS104: =SUM(BP94:BP104) -> 3.75 | BT104: =SUM(BR94:BR104) -> 0 | BU104: =SUM(BQ94:BQ104) -> 15
A105: D. Student Support and participation | B105: D-2 Counseling and Mentoring | C105: 98 | E105: Percentage of Students guided through Counselling cell (includes mental health counselling and career counselling). | G105: =IF(F105="","",+$F$7) ->  | H105: =IF(F105="","",ROUND(F105/G105,4)) ->  | J105: 0.25 | L105: =IF($H105<$S105%,$L$5,"") ->  | M105: =IF(AND($H105<$U105%,$H105>$R105%),$M$5,"") ->  | N105: =IF(AND($H105<$W105%,$H105>$T105%),$N$5,"") ->  | O105: =IF(AND($H105<$Y105%,$H105>$V105%),$O$5,"") ->  | P105: =IF(AND($H105<Z105%,H105>X105%),$P$5,"") ->  | Q105: 0 | R105: 0 | S105: 0.0001 | T105: 1.9999 | U105: 2 | V105: 3.9999 | W105: 4 | X105: 5.9999 | Y105: 6 | Z105: 10000 | AA105: =IF(OR(AND(AE105="YES",AF105="PHYSICALLY VERIFIED"),AND(AE105="YES",AF105="DOCUMENT VERIFIED"),AND(AE105="YES",'Basic Details'!$D$31="Self Assessment"),AND(AE105="YES",'Basic Details'!$D$31="Draft")),1*IF(BB105="ERROR INPUT",0+1,1),0) -> 0 | AH105: Register / Relevant document for number of students guided along with field | BD105: 0 | BE105: More than 0 but less than 2 | BF105: 2-4 | BG105: 4-6 | BH105: 6 & Above | BM105: D-2 | BN105: 98 | BO105: 4 | BP105: 0.25 | BQ105: 1 | BR105: 0
C106: 99 | E106: Sports Ground. | H106: =+F106 -> 0 | I106: =IF(F106="","",SUM(L106:P106)) ->  | J106: 0.25 | L106: =IF(OR(H106="",H106="NO"),$L$5,"") ->  | M106: =IF(AND($H106<$U106%,$H106>$R106%),$M$5,"") ->  | N106: =IF(AND($H106<$W106%,$H106>$T106%),$N$5,"") ->  | O106: =IF(AND($H106<$Y106%,$H106>$V106%),$O$5,"") ->  | P106: =IF(H106="YES",$P$5,"") ->  | AA106: =IF(OR(AND(AE106="YES",AF106="PHYSICALLY VERIFIED"),AND(AE106="YES",AF106="DOCUMENT VERIFIED"),AND(AE106="YES",'Basic Details'!$D$31="Self Assessment"),AND(AE106="YES",'Basic Details'!$D$31="Draft")),1*IF(BB106="ERROR INPUT",0+1,1),0) -> 0 | AH106: To be verified physically by Peer Team | BD106: No | BH106: Yes | BM106: D-2 | BN106: 99 | BO106: 4 | BP106: 0.25 | BQ106: 1 | BR106: 0
C107: 100 | E107: Working Director Physical Education. | H107: 0 | J107: 0.25 | L107: =IF(OR(H107="",H107="NO"),$L$5,"") ->  | P107: =IF(H107="YES",$P$5,"") ->  | AA107: =IF(OR(AND(AE107="YES",AF107="PHYSICALLY VERIFIED"),AND(AE107="YES",AF107="DOCUMENT VERIFIED"),AND(AE107="YES",'Basic Details'!$D$31="Self Assessment"),AND(AE107="YES",'Basic Details'!$D$31="Draft")),1*IF(BB107="ERROR INPUT",0+1,1),0) -> 0 | AH107: Attendance Register | BD107: No | BH107: Yes | BM107: D-2 | BN107: 100 | BO107: 4 | BP107: 0.25 | BQ107: 1 | BR107: 0
C108: 101 | E108: No. of games for which complete set of equipments and gears available. | H108: =+F108 -> 0 | J108: 0.5 | L108: =IF($H108<$S108,$L$5,"") -> 0 | M108: =IF(AND($H108<$U108,$H108>$R108),$M$5,"") ->  | N108: =IF(AND($H108<$W108,$H108>$T108),$N$5,"") ->  | O108: =IF(AND($H108<$Y108,$H108>$V108),$O$5,"") ->  | P108: =IF(AND($H108<Z108,H108>X108),$P$5,"") ->  | Q108: 0 | R108: 2 | S108: 3 | T108: 3 | U108: 4 | V108: 6 | W108: 7 | X108: 9 | Y108: 10 | Z108: 10000 | AA108: =IF(OR(AND(AE108="YES",AF108="PHYSICALLY VERIFIED"),AND(AE108="YES",AF108="DOCUMENT VERIFIED"),AND(AE108="YES",'Basic Details'!$D$31="Self Assessment"),AND(AE108="YES",'Basic Details'!$D$31="Draft")),1*IF(BB108="ERROR INPUT",0+1,1),0) -> 0 | AH108: Gears and equipments randomly to be verified physically by Peer Team | BD108: 0 | BE108: 3 | BF108: 4-6 | BG108: 7-9 | BH108: 10 & Above | BM108: D-2 | BN108: 101 | BO108: 4 | BP108: 0.5 | BQ108: 2 | BR108: 0
C109: 102 | E109: Total No. of students benefited by issuing of sports equipments and gears. | H109: 0 | J109: 0.5 | L109: =IF($H109<$S109,$L$5,"") -> 0 | M109: =IF(AND($H109<$U109,$H109>$R109),$M$5,"") ->  | N109: =IF(AND($H109<$W109,$H109>$T109),$N$5,"") ->  | O109: =IF(AND($H109<$Y109,$H109>$V109),$O$5,"") ->  | P109: =IF(AND($H109<Z109,H109>X109),$P$5,"") ->  | Q109: 0 | R109: 0 | S109: 1 | T109: 49 | U109: 50 | V109: 99 | W109: 100 | X109: 199 | Y109: 200 | Z109: 10000 | AA109: =IF(OR(AND(AE109="YES",AF109="PHYSICALLY VERIFIED"),AND(AE109="YES",AF109="DOCUMENT VERIFIED"),AND(AE109="YES",'Basic Details'!$D$31="Self Assessment"),AND(AE109="YES",'Basic Details'!$D$31="Draft")),1*IF(BB109="ERROR INPUT",0+1,1),0) -> 0 | AH109: Issue register | BD109: 0 | BE109: More than 0 but less than 50 | BF109: 50-100 | BG109: 100-200 | BH109: 200 & Above | BM109: D-2 | BN109: 102 | BO109: 4 | BP109: 0.5 | BQ109: 2 | BR109: 0
C110: 103 | E110: No. of events at Inter-college / University / National and International level in which college participated. | H110: 0 | J110: 0.5 | L110: =IF($H110<$S110,$L$5,"") -> 0 | M110: =IF(AND($H110<$U110,$H110>$R110),$M$5,"") ->  | N110: =IF(AND($H110<$W110,$H110>$T110),$N$5,"") ->  | O110: =IF(AND($H110<$Y110,$H110>$V110),$O$5,"") ->  | P110: =IF(AND($H110<Z110,H110>X110),$P$5,"") ->  | Q110: 0 | R110: 0 | S110: 1 | T110: 5 | U110: 6 | V110: 10 | W110: 11 | X110: 15 | Y110: 16 | Z110: 10000 | AA110: =IF(OR(AND(AE110="YES",AF110="PHYSICALLY VERIFIED"),AND(AE110="YES",AF110="DOCUMENT VERIFIED"),AND(AE110="YES",'Basic Details'!$D$31="Self Assessment"),AND(AE110="YES",'Basic Details'!$D$31="Draft")),1*IF(BB110="ERROR INPUT",0+1,1),0) -> 0 | AH110: Copies of documentary proof (Make a list of such events) | BD110: 0 | BE110: 1-5 | BF110: 6-10 | BG110: 11-15 | BH110: 16 & Above | BM110: D-2 | BN110: 103 | BO110: 4 | BP110: 0.5 | BQ110: 2 | BR110: 0
C111: 104 | E111: No. of prizes won by college at state / University level sports/ games. | H111: 0 | J111: 0.5 | L111: =IF($H111<$S111,$L$5,"") -> 0 | M111: =IF(AND($H111<$U111,$H111>$R111),$M$5,"") ->  | N111: =IF(AND($H111<$W111,$H111>$T111),$N$5,"") ->  | O111: =IF(AND($H111<$Y111,$H111>$V111),$O$5,"") ->  | P111: =IF(AND($H111<Z111,H111>X111),$P$5,"") ->  | Q111: 0 | R111: 0 | S111: 1 | T111: 2 | U111: 3 | V111: 5 | W111: 6 | X111: 8 | Y111: 9 | Z111: 10000 | AA111: =IF(OR(AND(AE111="YES",AF111="PHYSICALLY VERIFIED"),AND(AE111="YES",AF111="DOCUMENT VERIFIED"),AND(AE111="YES",'Basic Details'!$D$31="Self Assessment"),AND(AE111="YES",'Basic Details'!$D$31="Draft")),1*IF(BB111="ERROR INPUT",0+1,1),0) -> 0 | AH111: Copies of documentary proof / Certificates (Make a list of such events) | BD111: 0 | BE111: 1-2 | BF111: 3-5 | BG111: 6-8 | BH111: 9 & Above | BM111: D-2 | BN111: 104 | BO111: 4 | BP111: 0.5 | BQ111: 2 | BR111: 0
C112: 105 | E112: No. of prizes won by college at National and International level sports/ games. | H112: 0 | I112: =IF(F112="","",SUM(L112:P112)) ->  | J112: 0.5 | K112: =IF(I112="","",+I112*J112*AA112) ->  | L112: =IF($H112<$S112,$L$5,"") -> 0 | M112: =IF(AND($H112<$U112,$H112>$R112),$M$5,"") ->  | N112: =IF(AND($H112<$W112,$H112>$T112),$N$5,"") ->  | O112: =IF(AND($H112<$Y112,$H112>$V112),$O$5,"") ->  | P112: =IF(AND($H112<Z112,H112>X112),$P$5,"") ->  | Q112: 0 | R112: 0 | S112: 1 | T112: 2 | U112: 3 | V112: 5 | W112: 6 | X112: 8 | Y112: 9 | Z112: 10000 | AA112: =IF(OR(AND(AE112="YES",AF112="PHYSICALLY VERIFIED"),AND(AE112="YES",AF112="DOCUMENT VERIFIED"),AND(AE112="YES",'Basic Details'!$D$31="Self Assessment"),AND(AE112="YES",'Basic Details'!$D$31="Draft")),1*IF(BB112="ERROR INPUT",0+1,1),0) -> 0 | BD112: 0 | BE112: 1-2 | BF112: 3-5 | BG112: 6-8 | BH112: 9 & Above | BM112: D-2 | BN112: 105 | BO112: 4 | BP112: 0.5 | BQ112: 2 | BR112: 0
C113: 106 | E113: No. of prizes won by college at Regional Cultural, Litrary events and NSS, NCC, Rover, Ranger programes. | H113: 0 | J113: 0.25 | L113: 0 | Q113: 0 | R113: 0 | S113: 1 | T113: 2 | U113: 3 | V113: 5 | W113: 6 | X113: 8 | Y113: 9 | Z113: 10000 | AA113: =IF(OR(AND(AE113="YES",AF113="PHYSICALLY VERIFIED"),AND(AE113="YES",AF113="DOCUMENT VERIFIED"),AND(AE113="YES",'Basic Details'!$D$31="Self Assessment"),AND(AE113="YES",'Basic Details'!$D$31="Draft")),1*IF(BB113="ERROR INPUT",0+1,1),0) -> 0 | BD113: 0 | BE113: 1-2 | BF113: 3-5 | BG113: 6-8 | BH113: 9 & Above | BM113: D-2 | BN113: 106 | BO113: 4 | BP113: 0.25 | BQ113: 1 | BR113: 0
A114: D. Student Support and participation | B114: D-2 Counseling and Mentoring | C114: 107 | E114: No. of prizes won by college at National/International Cultural, Litrary events and NSS , NCC, Rover, Ranger programes. | H114: 0 | J114: 0.5 | L114: 0 | Q114: 0 | R114: 0 | S114: 1 | T114: 2 | U114: 3 | V114: 5 | W114: 6 | X114: 8 | Y114: 9 | Z114: 10000 | AA114: =IF(OR(AND(AE114="YES",AF114="PHYSICALLY VERIFIED"),AND(AE114="YES",AF114="DOCUMENT VERIFIED"),AND(AE114="YES",'Basic Details'!$D$31="Self Assessment"),AND(AE114="YES",'Basic Details'!$D$31="Draft")),1*IF(BB114="ERROR INPUT",0+1,1),0) -> 0 | BD114: 0 | BE114: 1-2 | BF114: 3-5 | BG114: 6-8 | BH114: 9 & Above | BM114: D-2 | BN114: 107 | BO114: 4 | BP114: 0.5 | BQ114: 2 | BR114: 0
BD115: 0 | BE115: 1-2 | BF115: 3-5 | BG115: 6-8 | BH115: 9 & Above | BM115: D-2 | BN115: 0 | BO115: 4 | BP115: 0 | BQ115: 0 | BR115: 0
C116: =1+C114 -> 108 | E116: Prizes won/Awards received by any teaching/non teaching staff (Local / State / National / International). | F116: International Level | H116: =IF(+F116="","",IF(F116="local level",1,IF(F116="State Level",2,IF(F116="National Level",3,IF(F116="International Level",4,0))))) -> 4 | I116: 4 | J116: 0.25 | K116: 0 | L116: =IF($H116<$S116,$L$5,"") ->  | M116: =IF(AND($H116<$U116,$H116>$R116),$M$5,"") ->  | N116: =IF(AND($H116<$W116,$H116>$T116),$N$5,"") ->  | O116: =IF(AND($H116<$Y116,$H116>$V116),$O$5,"") ->  | P116: =IF(AND($H116<Z116,H116>X116),$P$5,"") -> 4 | Q116: 0 | R116: 0 | S116: 1 | T116: 1 | U116: 2 | V116: 2 | W116: 3 | X116: 3 | Y116: 4 | Z116: 10000 | AA116: =IF(OR(AND(AE116="YES",AF116="PHYSICALLY VERIFIED"),AND(AE116="YES",AF116="DOCUMENT VERIFIED"),AND(AE116="YES",'Basic Details'!$D$31="Self Assessment"),AND(AE116="YES",'Basic Details'!$D$31="Draft")),1*IF(BB116="ERROR INPUT",0+1,1),0) -> 0 | BD116: No | BE116: Local Level | BF116: State Level | BG116: Natational Level | BH116: International Level | BM116: D-2 | BN116: 108 | BO116: 4 | BP116: 0.25 | BQ116: 1 | BR116: 0
C117: 109 | E117: Activities organised by Grievence Redressal Cell. | H117: =+F117 -> 0 | J117: 0.25 | L117: =IF(OR(H117="",H117="NO"),$L$5,"") ->  | M117: =IF(AND($H117<$U117%,$H117>$R117%),$M$5,"") ->  | N117: =IF(AND($H117<$W117%,$H117>$T117%),$N$5,"") ->  | O117: =IF(AND($H117<$Y117%,$H117>$V117%),$O$5,"") ->  | P117: =IF(H117="YES",$P$5,"") ->  | AA117: =IF(OR(AND(AE117="YES",AF117="PHYSICALLY VERIFIED"),AND(AE117="YES",AF117="DOCUMENT VERIFIED"),AND(AE117="YES",'Basic Details'!$D$31="Self Assessment"),AND(AE117="YES",'Basic Details'!$D$31="Draft")),1*IF(BB117="ERROR INPUT",0+1,1),0) -> 0 | BD117: No | BH117: Yes | BM117: D-2 | BN117: 109 | BO117: 4 | BP117: 0.25 | BQ117: 1 | BR117: 0
C118: 110 | E118: Activities performed by Anti ragging cell. | H118: 0 | J118: 0.25 | AA118: =IF(OR(AND(AE118="YES",AF118="PHYSICALLY VERIFIED"),AND(AE118="YES",AF118="DOCUMENT VERIFIED"),AND(AE118="YES",'Basic Details'!$D$31="Self Assessment"),AND(AE118="YES",'Basic Details'!$D$31="Draft")),1*IF(BB118="ERROR INPUT",0+1,1),0) -> 0 | AH118: College orders to this effect | BD118: No | BH118: Yes | BM118: D-2 | BN118: 110 | BO118: 4 | BP118: 0.25 | BQ118: 1 | BR118: 0
C119: 111 | E119: Activities organised by Women cell. | H119: 0 | J119: 0.25 | AA119: =IF(OR(AND(AE119="YES",AF119="PHYSICALLY VERIFIED"),AND(AE119="YES",AF119="DOCUMENT VERIFIED"),AND(AE119="YES",'Basic Details'!$D$31="Self Assessment"),AND(AE119="YES",'Basic Details'!$D$31="Draft")),1*IF(BB119="ERROR INPUT",0+1,1),0) -> 0 | AH119: College orders to this effect AND Copies of documents / photographs / reports | BD119: No | BH119: Yes | BM119: D-2 | BN119: 111 | BO119: 4 | BP119: 0.25 | BQ119: 1 | BR119: 0
C120: 112 | E120: Activities organised by Student Advisory cell. | H120: 0 | J120: 0.25 | AA120: =IF(OR(AND(AE120="YES",AF120="PHYSICALLY VERIFIED"),AND(AE120="YES",AF120="DOCUMENT VERIFIED"),AND(AE120="YES",'Basic Details'!$D$31="Self Assessment"),AND(AE120="YES",'Basic Details'!$D$31="Draft")),1*IF(BB120="ERROR INPUT",0+1,1),0) -> 0 | BD120: No | BH120: Yes | BM120: D-2 | BN120: 112 | BO120: 4 | BP120: 0.25 | BQ120: 1 | BR120: 0
C121: 113 | E121: Activities organised by Amensty cell. | H121: 0 | I121: =IF(F121="","",SUM(L121:P121)) ->  | J121: 0.25 | K121: =IF(I121="","",+I121*J121*AA121) ->  | AA121: =IF(OR(AND(AE121="YES",AF121="PHYSICALLY VERIFIED"),AND(AE121="YES",AF121="DOCUMENT VERIFIED"),AND(AE121="YES",'Basic Details'!$D$31="Self Assessment"),AND(AE121="YES",'Basic Details'!$D$31="Draft")),1*IF(BB121="ERROR INPUT",0+1,1),0) -> 0 | BD121: No | BH121: Yes | BM121: D-2 | BN121: 113 | BO121: 4 | BP121: 0.25 | BQ121: 1 | BR121: 0
C122: 114 | E122: Sexual harassment and Internal complaint cell. | H122: 0 | J122: 0.25 | AA122: =IF(OR(AND(AE122="YES",AF122="PHYSICALLY VERIFIED"),AND(AE122="YES",AF122="DOCUMENT VERIFIED"),AND(AE122="YES",'Basic Details'!$D$31="Self Assessment"),AND(AE122="YES",'Basic Details'!$D$31="Draft")),1*IF(BB122="ERROR INPUT",0+1,1),0) -> 0 | AH122: College orders to this effect AND Copies of documents / photographs / reports | BD122: No | BH122: Yes | BM122: D-2 | BN122: 114 | BO122: 4 | BP122: 0.25 | BQ122: 1 | BR122: 0
A123: D. Student Support and participation | B123: D-2 Counseling and Mentoring | C123: 115 | E123: Total No. of Extra-curricular activities organised. | H123: =+F123 -> 0 | J123: 1 | L123: =IF($H123<$S123,$L$5,"") -> 0 | M123: =IF(AND($H123<$U123,$H123>$R123),$M$5,"") ->  | N123: =IF(AND($H123<$W123,$H123>$T123),$N$5,"") ->  | O123: =IF(AND($H123<$Y123,$H123>$V123),$O$5,"") ->  | P123: =IF(AND($H123<Z123,H123>X123),$P$5,"") ->  | Q123: 0 | R123: 0 | S123: 1 | T123: 5 | U123: 6 | V123: 10 | W123: 11 | X123: 15 | Y123: 16 | Z123: 10000 | AA123: =IF(OR(AND(AE123="YES",AF123="PHYSICALLY VERIFIED"),AND(AE123="YES",AF123="DOCUMENT VERIFIED"),AND(AE123="YES",'Basic Details'!$D$31="Self Assessment"),AND(AE123="YES",'Basic Details'!$D$31="Draft")),1*IF(BB123="ERROR INPUT",0+1,1),0) -> 0 | AH123: Copies of news / photographs / reports of events (Make a list of such events with name, purpose and documents) | BD123: 0 | BE123: 1-5 | BF123: 5-10 | BG123: 10-15 | BH123: 15 & Above | BM123: D-2 | BN123: 115 | BO123: 4 | BP123: 1 | BQ123: 4 | BR123: 0
C124: 116 | E124: Activities of Entrepreneurship / Skill Development promotional cell in the college. | H124: =+F124 -> 0 | I124: =IF(F124="","",SUM(L124:P124)) ->  | J124: 0.25 | L124: =IF(OR(H124="",H124="NO"),$L$5,"") ->  | M124: =IF(AND($H124<$U124%,$H124>$R124%),$M$5,"") ->  | N124: =IF(AND($H124<$W124%,$H124>$T124%),$N$5,"") ->  | O124: =IF(AND($H124<$Y124%,$H124>$V124%),$O$5,"") ->  | P124: =IF(H124="YES",$P$5,"") ->  | AA124: =IF(OR(AND(AE124="YES",AF124="PHYSICALLY VERIFIED"),AND(AE124="YES",AF124="DOCUMENT VERIFIED"),AND(AE124="YES",'Basic Details'!$D$31="Self Assessment"),AND(AE124="YES",'Basic Details'!$D$31="Draft")),1*IF(BB124="ERROR INPUT",0+1,1),0) -> 0 | AH124: College orders to this effect AND Copies of documents / photographs / reports of activities | BD124: No | BH124: Yes | BM124: D-2 | BN124: 116 | BO124: 4 | BP124: 0.25 | BQ124: 1 | BR124: 0
C125: 117 | E125: Activities of NSS units in the college. | H125: 0 | J125: 0.5 | L125: =IF(OR(H125="",H125="NO"),$L$5,"") ->  | P125: =IF(H125="YES",$P$5,"") ->  | AA125: =IF(OR(AND(AE125="YES",AF125="PHYSICALLY VERIFIED"),AND(AE125="YES",AF125="DOCUMENT VERIFIED"),AND(AE125="YES",'Basic Details'!$D$31="Self Assessment"),AND(AE125="YES",'Basic Details'!$D$31="Draft")),1*IF(BB125="ERROR INPUT",0+1,1),0) -> 0 | AH125: Visit units and see activity documents | BD125: No | BH125: Yes | BM125: D-2 | BN125: 117 | BO125: 4 | BP125: 0.5 | BQ125: 2 | BR125: 0
C126: 118 | E126: Activities of Rover/ Ranger unit. | H126: 0 | J126: 0.5 | L126: =IF(OR(H126="",H126="NO"),$L$5,"") ->  | P126: =IF(H126="YES",$P$5,"") ->  | AA126: =IF(OR(AND(AE126="YES",AF126="PHYSICALLY VERIFIED"),AND(AE126="YES",AF126="DOCUMENT VERIFIED"),AND(AE126="YES",'Basic Details'!$D$31="Self Assessment"),AND(AE126="YES",'Basic Details'!$D$31="Draft")),1*IF(BB126="ERROR INPUT",0+1,1),0) -> 0 | AH126: Visit units and see activity documents | BD126: No | BH126: Yes | BM126: D-2 | BN126: 118 | BO126: 4 | BP126: 0.5 | BQ126: 2 | BR126: 0
C127: 119 | E127: Activities of NCC unit in the college. | H127: 0 | J127: 0.5 | L127: =IF(OR(H127="",H127="NO"),$L$5,"") ->  | P127: =IF(H127="YES",$P$5,"") ->  | AA127: =IF(OR(AND(AE127="YES",AF127="PHYSICALLY VERIFIED"),AND(AE127="YES",AF127="DOCUMENT VERIFIED"),AND(AE127="YES",'Basic Details'!$D$31="Self Assessment"),AND(AE127="YES",'Basic Details'!$D$31="Draft")),1*IF(BB127="ERROR INPUT",0+1,1),0) -> 0 | AH127: Visit units and see activity documents | BD127: No | BH127: Yes | BM127: D-2 | BN127: 119 | BO127: 4 | BP127: 0.5 | BQ127: 2 | BR127: 0
C128: 120 | E128: Employment/ job vacancy display board for students. | H128: =+F128 -> 0 | J128: 0.25 | L128: =IF(OR(H128="",H128="NO"),$L$5,"") ->  | P128: =IF(H128="YES",$P$5,"") ->  | AA128: =IF(OR(AND(AE128="YES",AF128="PHYSICALLY VERIFIED"),AND(AE128="YES",AF128="DOCUMENT VERIFIED"),AND(AE128="YES",'Basic Details'!$D$31="Self Assessment"),AND(AE128="YES",'Basic Details'!$D$31="Draft")),1*IF(BB128="ERROR INPUT",0+1,1),0) -> 0 | AH128: Display boards and latest job vacancies to be verified physically by Peer Team | BD128: No | BH128: Yes | BM128: D-2 | BN128: 120 | BO128: 4 | BP128: 0.25 | BQ128: 1 | BR128: 0
C129: 121 | E129: First-Aid kit available/Dispensery facilities available. | H129: =IF(F129="NO",0,IF(F129="Only FIRST AID KIT",2,IF(F129="Dispensery Facility",4,0))) -> 0 | J129: 0.25 | L129: =IF($H129<$S129,$L$5,"") -> 0 | M129: =IF(AND($H129<$U129,$H129>$R129),$M$5,"") ->  | N129: =IF(AND($H129<$W129,$H129>$T129),$N$5,"") ->  | O129: =IF(AND($H129<$Y129,$H129>$V129),$O$5,"") ->  | P129: =IF(AND($H129<Z129,H129>X129),$P$5,"") ->  | Q129: 0 | R129: 0 | S129: 1 | T129: 1 | U129: 1.0001 | V129: 2 | W129: 2.00001 | X129: 3 | Y129: 4 | Z129: 100 | AA129: =IF(OR(AND(AE129="YES",AF129="PHYSICALLY VERIFIED"),AND(AE129="YES",AF129="DOCUMENT VERIFIED"),AND(AE129="YES",'Basic Details'!$D$31="Self Assessment"),AND(AE129="YES",'Basic Details'!$D$31="Draft")),1*IF(BB129="ERROR INPUT",0+1,1),0) -> 0 | AH129: Basic first aid material to be verified physically by Peer Team | BD129: No | BF129: Only FIRST AID KIT | BH129: Dispensery Facility | BM129: D-2 | BN129: 121 | BO129: 4 | BP129: 0.25 | BQ129: 1 | BR129: 0
C130: 122 | E130: Day Care Facility. | H130: =+F130 -> 0 | I130: =IF(F130="","",SUM(L130:P130)) ->  | J130: 0.25 | K130: =IF(I130="","",+I130*J130*AA130) ->  | L130: =IF(OR(H130="",H130="NO"),$L$5,"") ->  | M130: =IF(AND($H130<$U130%,$H130>$R130%),$M$5,"") ->  | N130: =IF(AND($H130<$W130%,$H130>$T130%),$N$5,"") ->  | O130: =IF(AND($H130<$Y130%,$H130>$V130%),$O$5,"") ->  | P130: =IF(H130="YES",$P$5,"") ->  | AA130: =IF(OR(AND(AE130="YES",AF130="PHYSICALLY VERIFIED"),AND(AE130="YES",AF130="DOCUMENT VERIFIED"),AND(AE130="YES",'Basic Details'!$D$31="Self Assessment"),AND(AE130="YES",'Basic Details'!$D$31="Draft")),1*IF(BB130="ERROR INPUT",0+1,1),0) -> 0 | BD130: No | BH130: Yes | BM130: D-2 | BN130: 122 | BO130: 4 | BP130: 0.25 | BQ130: 1 | BR130: 0
C131: =1+C130 -> 123 | E131: Canteen facility available with proper space, hygenic environmen, menu and Food availablity. | H131: =IF(F131="No Canteen",0,IF(F131="Yes Canteen",2,IF(F131="Yes Canteen & proper space & Hygenic environment & Menu",3,IF(F131="Yes Canteen & proper space & Hygenic environment & Menu & Yes Food Availability",4,0)))) -> 0 | J131: 0.25 | K131: =IF(I131="","",+I131*J131*AA131) ->  | L131: =IF($H131<$S131,$L$5,"") -> 0 | M131: =IF(AND($H131<$U131,$H131>$R131),$M$5,"") ->  | N131: =IF(AND($H131<$W131,$H131>$T131),$N$5,"") ->  | O131: =IF(AND($H131<$Y131,$H131>$V131),$O$5,"") ->  | P131: =IF(AND($H131<Z131,H131>X131),$P$5,"") ->  | Q131: 0 | R131: 0 | S131: 0.0001 | T131: 1.99999 | U131: 2 | V131: 2.99995 | W131: 3 | X131: 3.99995 | Y131: 4 | Z131: 100 | AA131: =IF(OR(AND(AE131="YES",AF131="PHYSICALLY VERIFIED"),AND(AE131="YES",AF131="DOCUMENT VERIFIED"),AND(AE131="YES",'Basic Details'!$D$31="Self Assessment"),AND(AE131="YES",'Basic Details'!$D$31="Draft")),1*IF(BB131="ERROR INPUT",0+1,1),0) -> 0 | AH131: Functionality to be verified physically by Peer Team | BD131: No Canteen | BF131: Yes Canteen | BG131: Yes Canteen & proper space & Hygenic environment & Menu | BH131: Yes Canteen & proper space & Hygenic environment & Menu & Yes Food Availability | BM131: D-2 | BN131: 123 | BO131: 4 | BP131: 0.25 | BQ131: 1 | BR131: 0
C132: 124 | E132: Functional Hostel facility. | H132: =+F132 -> 0 | J132: 0.25 | L132: =IF(OR(H132="",H132="NO"),$L$5,"") ->  | M132: =IF(AND($H132<$U132%,$H132>$R132%),$M$5,"") ->  | N132: =IF(AND($H132<$W132%,$H132>$T132%),$N$5,"") ->  | O132: =IF(AND($H132<$Y132%,$H132>$V132%),$O$5,"") ->  | P132: =IF(H132="YES",$P$5,"") ->  | AA132: =IF(OR(AND(AE132="YES",AF132="PHYSICALLY VERIFIED"),AND(AE132="YES",AF132="DOCUMENT VERIFIED"),AND(AE132="YES",'Basic Details'!$D$31="Self Assessment"),AND(AE132="YES",'Basic Details'!$D$31="Draft")),1*IF(BB132="ERROR INPUT",0+1,1),0) -> 0 | AH132: To be verified physically by Peer Team | BD132: No | BH132: Yes | BM132: D-2 | BN132: 124 | BO132: 4 | BP132: 0.25 | BQ132: 1 | BR132: 0 | BS132: =SUM(BP105:BP132) -> 9.75 | BT132: =SUM(BR105:BR132) -> 0 | BU132: =SUM(BQ105:BQ132) -> 39 | BV132: =SUM(BS94:BS132) -> 13.5 | BW132: =SUM(BT94:BT132) -> 0 | BX132: =SUM(BU94:BU132) -> 54
A133: E. Financial Resources and Utilisation | B133: E-1 Financial Management | C133: 125 | D133: 4 | E133: Percentage of total grants utilized in last 3 years. | H133: =IF(F133="","",ROUND(F133/G133,4)) ->  | I133: =IF(OR(F133="",G133="",G133=0),"",SUM(L133:P133)) ->  | J133: 0.5 | L133: =IF($H133<$S133%,$L$5,"") ->  | M133: =IF(AND($H133<$U133%,$H133>$R133%),$M$5,"") ->  | N133: =IF(AND($H133<$W133%,$H133>$T133%),$N$5,"") ->  | O133: =IF(AND($H133<$Y133%,$H133>$V133%),$O$5,"") ->  | P133: =IF(AND($H133<Z133%,H133>X133%),$P$5,"") ->  | Q133: 0 | R133: 20 | S133: 20.0001 | T133: 40 | U133: 40.0001 | V133: 60 | W133: 60.0001 | X133: 80 | Y133: 80.0001 | Z133: 10000 | AA133: =IF(OR(AND(AE133="YES",AF133="PHYSICALLY VERIFIED"),AND(AE133="YES",AF133="DOCUMENT VERIFIED"),AND(AE133="YES",'Basic Details'!$D$31="Self Assessment"),AND(AE133="YES",'Basic Details'!$D$31="Draft")),1*IF(BB133="ERROR INPUT",0+1,1),0) -> 0 | AH133: Copies of sanction order and Utilisation / Expenditure certificates / documents | BB133: =IF(F133>G133,"ERROR INPUT","") ->  | BD133: 0-20 | BE133: 20-40 | BF133: 40-60 | BG133: 60-80 | BH133: 80-100 | BM133: E-1 | BN133: 125 | BO133: 4 | BP133: 0.5 | BQ133: 2 | BR133: 0
C134: 126 | D134: 4 | E134: Average annual per capita capital expenditure. | G134: =IF(F134="","",+$F$7) ->  | H134: =IF(F134=0,"",ROUND(F134/G134,4)) ->  | I134: =IF(F134="","",SUM(L134:P134)) ->  | J134: 0.5 | L134: =IF($H134<$S134,$L$5,"") ->  | M134: =IF(AND($H134<$U134,$H134>$R134),$M$5,"") ->  | N134: =IF(AND($H134<$W134,$H134>$T134),$N$5,"") ->  | O134: =IF(AND($H134<$Y134,$H134>$V134),$O$5,"") ->  | P134: =IF(AND($H134<Z134,H134>X134),$P$5,"") ->  | Q134: 0 | R134: 0 | S134: 1e-05 | T134: 499.9999 | U134: 500 | V134: 999.9999 | W134: 1000 | X134: 1499.9999 | Y134: 1500 | Z134: 100000000 | AA134: =IF(OR(AND(AE134="YES",AF134="PHYSICALLY VERIFIED"),AND(AE134="YES",AF134="DOCUMENT VERIFIED"),AND(AE134="YES",'Basic Details'!$D$31="Self Assessment"),AND(AE134="YES",'Basic Details'!$D$31="Draft")),1*IF(BB134="ERROR INPUT",0+1,1),0) -> 0 | AH134: Copies of sanction order and Utilisation / Expenditure certificates / documents | BD134: 0 | BE134: More than 0 but less than 500 | BF134: 500-1000 | BG134: 1000-1500 | BH134: 1500 & Above | BM134: E-1 | BN134: 126 | BO134: 4 | BP134: 0.5 | BQ134: 2 | BR134: 0
C135: 127 | D135: 4 | E135: Average annual per capita operational expenditure. | G135: =IF(F135="","",+$F$7) ->  | H135: =IF(F135=0,"",ROUND(F135/G135,4)) ->  | J135: 0.5 | L135: =IF($H135<$S135,$L$5,"") ->  | M135: =IF(AND($H135<$U135,$H135>$R135),$M$5,"") ->  | N135: =IF(AND($H135<$W135,$H135>$T135),$N$5,"") ->  | O135: =IF(AND($H135<$Y135,$H135>$V135),$O$5,"") ->  | P135: =IF(AND($H135<Z135,H135>X135),$P$5,"") ->  | Q135: 0 | R135: 199.9999 | S135: 200 | T135: 399.9999 | U135: 400 | V135: 599.9999 | W135: 600 | X135: 799.9999 | Y135: 800 | Z135: 100000000 | AA135: =IF(OR(AND(AE135="YES",AF135="PHYSICALLY VERIFIED"),AND(AE135="YES",AF135="DOCUMENT VERIFIED"),AND(AE135="YES",'Basic Details'!$D$31="Self Assessment"),AND(AE135="YES",'Basic Details'!$D$31="Draft")),1*IF(BB135="ERROR INPUT",0+1,1),0) -> 0 | AH135: Copies of sanction order and Utilisation / Expenditure certificates / documents | BD135: 0-200 | BE135: 200-400 | BF135: 400-600 | BG135: 600-800 | BH135: 800 & Above | BM135: E-1 | BN135: 127 | BO135: 4 | BP135: 0.5 | BQ135: 2 | BR135: 0
C136: 128 | D136: 4 | E136: No. of Internal/ CA Audits undertaken during last 3 years. | H136: =+F136 -> 0 | J136: 0.5 | L136: =IF($H136<$S136,$L$5,"") -> 0 | M136: =IF(AND($H136<$U136,$H136>$R136),$M$5,"") ->  | N136: =IF(AND($H136<$W136,$H136>$T136),$N$5,"") ->  | O136: =IF(AND($H136<$Y136,$H136>$V136),$O$5,"") ->  | P136: =IF(AND($H136<Z136,H136>X136),$P$5,"") ->  | Q136: 0 | R136: 0 | S136: 1 | T136: 1 | U136: 2 | V136: 2 | W136: 3 | X136: 3 | Y136: 4 | Z136: 10000 | AA136: =IF(OR(AND(AE136="YES",AF136="PHYSICALLY VERIFIED"),AND(AE136="YES",AF136="DOCUMENT VERIFIED"),AND(AE136="YES",'Basic Details'!$D$31="Self Assessment"),AND(AE136="YES",'Basic Details'!$D$31="Draft")),1*IF(BB136="ERROR INPUT",0+1,1),0) -> 0 | AC136: =IF(AB136="","","-") ->  | AH136: Copies of audit reports | BD136: 0 | BE136: 1 | BF136: 2 | BG136: 3 | BH136: 4 & Above | BM136: E-1 | BN136: 128 | BO136: 4 | BP136: 0.5 | BQ136: 2 | BR136: 0 | BS136: =SUM(BP133:BP136) -> 2 | BT136: =SUM(BR133:BR136) -> 0 | BU136: =SUM(BQ133:BQ136) -> 8
B137: E-2 Self Financing Efforts | C137: 129 | E137: (a)(i) Source of Income-Donationas/Grants in Aid-From Government | H137: =+F137 -> 0 | I137: =IF(F137="","",SUM(L137:P137)) ->  | J137: 0.5 | K137: =IF(I137="","",+I137*J137*AA137) ->  | L137: =IF(OR(H137="",H137="NO"),$L$5,"") ->  | M137: =IF(AND($H137<$U137%,$H137>$R137%),$M$5,"") ->  | N137: =IF(AND($H137<$W137%,$H137>$T137%),$N$5,"") ->  | O137: =IF(AND($H137<$Y137%,$H137>$V137%),$O$5,"") ->  | P137: =IF(H137="YES",$P$5,"") ->  | AA137: =IF(OR(AND(AE137="YES",AF137="PHYSICALLY VERIFIED"),AND(AE137="YES",AF137="DOCUMENT VERIFIED"),AND(AE137="YES",'Basic Details'!$D$31="Self Assessment"),AND(AE137="YES",'Basic Details'!$D$31="Draft")),1*IF(BB137="ERROR INPUT",0+1,1),0) -> 0 | AH137: To be verified physically by Peer Team | BD137: NO | BH137: Yes | BM137: E-1 | BN137: =+C137 -> 129 | BO137: 4 | BP137: =+J137 -> 0.5 | BQ137: =+BO137*BP137 -> 2 | BR137: =IF(K137="",0,+K137) -> 0
C138: 130 | E138: (a)(ii) Source of Income-Donationas-From Private | H138: 0 | I138: =IF(F138="","",SUM(L138:P138)) ->  | J138: 0.5 | K138: =IF(I138="","",+I138*J138*AA138) ->  | L138: =IF(OR(H138="",H138="NO"),$L$5,"") ->  | P138: =IF(H138="YES",$P$5,"") ->  | AA138: =IF(OR(AND(AE138="YES",AF138="PHYSICALLY VERIFIED"),AND(AE138="YES",AF138="DOCUMENT VERIFIED"),AND(AE138="YES",'Basic Details'!$D$31="Self Assessment"),AND(AE138="YES",'Basic Details'!$D$31="Draft")),1*IF(BB138="ERROR INPUT",0+1,1),0) -> 0 | AH138: To be verified physically by Peer Team | BD138: NO | BH138: Yes | BM138: E-1 | BN138: 130 | BO138: 4 | BP138: 0.5 | BQ138: 2 | BR138: 0
C139: 131 | E139: (a)(iii) Source of Income-Donationas-From Others | H139: 0 | J139: 0.5 | L139: =IF(OR(H139="",H139="NO"),$L$5,"") ->  | P139: =IF(H139="YES",$P$5,"") ->  | AA139: =IF(OR(AND(AE139="YES",AF139="PHYSICALLY VERIFIED"),AND(AE139="YES",AF139="DOCUMENT VERIFIED"),AND(AE139="YES",'Basic Details'!$D$31="Self Assessment"),AND(AE139="YES",'Basic Details'!$D$31="Draft")),1*IF(BB139="ERROR INPUT",0+1,1),0) -> 0 | AH139: To be verified physically by Peer Team | BD139: NO | BH139: Yes | BM139: E-1 | BN139: 131 | BO139: 4 | BP139: 0.5 | BQ139: 2 | BR139: 0
C140: 132 | E140: (b) Source of Income-Fee Receipt | H140: 0 | J140: 0.5 | L140: =IF(OR(H140="",H140="NO"),$L$5,"") ->  | P140: =IF(H140="YES",$P$5,"") ->  | AA140: =IF(OR(AND(AE140="YES",AF140="PHYSICALLY VERIFIED"),AND(AE140="YES",AF140="DOCUMENT VERIFIED"),AND(AE140="YES",'Basic Details'!$D$31="Self Assessment"),AND(AE140="YES",'Basic Details'!$D$31="Draft")),1*IF(BB140="ERROR INPUT",0+1,1),0) -> 0 | AH140: To be verified physically by Peer Team | BD140: NO | BH140: Yes | BM140: E-1 | BN140: 132 | BO140: 4 | BP140: 0.5 | BQ140: 2 | BR140: 0
C141: =1+C140 -> 133 | D141: 4 | E141: Total funds received from all sources (last 3 years). | H141: =+F141 -> 0 | J141: 1.25 | L141: =IF($H141<$S141,$L$5,"") -> 0 | M141: =IF(AND($H141<$U141,$H141>$R141),$M$5,"") ->  | N141: =IF(AND($H141<$W141,$H141>$T141),$N$5,"") ->  | O141: =IF(AND($H141<$Y141,$H141>$V141),$O$5,"") ->  | P141: =IF(AND($H141<Z141,H141>X141),$P$5,"") ->  | Q141: 0 | R141: 0 | S141: 1 | T141: =-0.1+100000 -> 99999.9 | U141: 100000 | V141: =-0.1+600000 -> 599999.9 | W141: 600000 | X141: =-0.1+2000000 -> 1999999.9 | Y141: 2000000 | Z141: 1000000000 | AA141: =IF(OR(AND(AE141="YES",AF141="PHYSICALLY VERIFIED"),AND(AE141="YES",AF141="DOCUMENT VERIFIED"),AND(AE141="YES",'Basic Details'!$D$31="Self Assessment"),AND(AE141="YES",'Basic Details'!$D$31="Draft")),1*IF(BB141="ERROR INPUT",0+1,1),0) -> 0 | AH141: Copies of such grant / gift sanctioned orders / letter | BD141: 0 | BE141: Upto 1 Lakh | BF141: 1-6 Lakh | BG141: 6-20 Lakh | BH141: 20 lakh & Above | BM141: E-2 | BN141: 133 | BO141: 4 | BP141: 1.25 | BQ141: 5 | BR141: 0 | BS141: =+BP141 -> 1.25 | BT141: =+BR141 -> 0 | BU141: =+BQ141 -> 5 | BV141: =+BS136+BS141 -> 3.25 | BW141: =+BT136+BT141 -> 0 | BX141: =+BU136+BU141 -> 13
A142: F. Commitment, Leadership and Management | B142: F-1 Societal Footprint | C142: 134 | E142: Whether college has any regular center for IGNOU / VMOU etc.. | H142: =+F142 -> 0 | I142: =IF(F142="","",SUM(L142:P142)) ->  | J142: 0.25 | K142: =IF(I142="","",+I142*J142*AA142) ->  | L142: =IF(OR(H142="",H142="NO"),$L$5,"") ->  | M142: =IF(AND($H142<$U142%,$H142>$R142%),$M$5,"") ->  | N142: =IF(AND($H142<$W142%,$H142>$T142%),$N$5,"") ->  | O142: =IF(AND($H142<$Y142%,$H142>$V142%),$O$5,"") ->  | P142: =IF(H142="YES",$P$5,"") ->  | AA142: =IF(OR(AND(AE142="YES",AF142="PHYSICALLY VERIFIED"),AND(AE142="YES",AF142="DOCUMENT VERIFIED"),AND(AE142="YES",'Basic Details'!$D$31="Self Assessment"),AND(AE142="YES",'Basic Details'!$D$31="Draft")),1*IF(BB142="ERROR INPUT",0+1,1),0) -> 0 | AH142: Copies of news / photographs / reports of activities (Make a list of such events) | BD142: No | BH142: Yes | BM142: F-1 | BN142: 134 | BO142: 4 | BP142: 0.25 | BQ142: 1 | BR142: 0
C143: 135 | E143: No. of efforts undertaken for creating national integration and Community awareness among students. | H143: =+F143 -> 0 | J143: 0.25 | L143: =IF($H143<$S143,$L$5,"") -> 0 | M143: =IF(AND($H143<$U143,$H143>$R143),$M$5,"") ->  | N143: =IF(AND($H143<$W143,$H143>$T143),$N$5,"") ->  | O143: =IF(AND($H143<$Y143,$H143>$V143),$O$5,"") ->  | P143: =IF(AND($H143<Z143,H143>X143),$P$5,"") ->  | Q143: 0 | R143: 0 | S143: 1 | T143: 3 | U143: 4 | V143: 6 | W143: 7 | X143: 9 | Y143: 10 | Z143: 10000 | AA143: =IF(OR(AND(AE143="YES",AF143="PHYSICALLY VERIFIED"),AND(AE143="YES",AF143="DOCUMENT VERIFIED"),AND(AE143="YES",'Basic Details'!$D$31="Self Assessment"),AND(AE143="YES",'Basic Details'!$D$31="Draft")),1*IF(BB143="ERROR INPUT",0+1,1),0) -> 0 | AH143: Copies of news / photographs / reports of activities (Make a list of such events) | BD143: 0 | BE143: 1-3 | BF143: 4-6 | BG143: 7-9 | BH143: 10 & Above | BM143: F-1 | BN143: 135 | BO143: 4 | BP143: 0.25 | BQ143: 1 | BR143: 0
C144: 136 | E144: No. of Institutional/ Corporate Collaborative activities undertaken by College. | H144: =+F144 -> 0 | J144: 0.25 | L144: =IF($H144<$S144,$L$5,"") -> 0 | M144: =IF(AND($H144<$U144,$H144>$R144),$M$5,"") ->  | N144: =IF(AND($H144<$W144,$H144>$T144),$N$5,"") ->  | O144: =IF(AND($H144<$Y144,$H144>$V144),$O$5,"") ->  | P144: =IF(AND($H144<Z144,H144>X144),$P$5,"") ->  | Q144: 0 | R144: 0 | S144: 1 | T144: 1 | U144: 2 | V144: 2 | W144: 3 | X144: 3 | Y144: 4 | Z144: 10000 | AA144: =IF(OR(AND(AE144="YES",AF144="PHYSICALLY VERIFIED"),AND(AE144="YES",AF144="DOCUMENT VERIFIED"),AND(AE144="YES",'Basic Details'!$D$31="Self Assessment"),AND(AE144="YES",'Basic Details'!$D$31="Draft")),1*IF(BB144="ERROR INPUT",0+1,1),0) -> 0 | AH144: Copies of formal letter / MOU for collaboration (Make a list of such events) | BD144: 0 | BE144: 1 | BF144: 2 | BG144: 3 | BH144: 4 & Above | BM144: F-1 | BN144: 136 | BO144: 4 | BP144: 0.25 | BQ144: 1 | BR144: 0 | BS144: =SUM(BP142:BP144) -> 0.75 | BT144: =SUM(BR142:BR144) -> 0 | BU144: =SUM(BQ142:BQ144) -> 3
C145: 137 | E145: Govt. Schemes run by the college | H145: =+F145 -> 0 | I145: =IF(F145="","",SUM(L145:P145)) ->  | J145: 0.5 | L145: =IF(OR(H145="",H145="NO"),$L$5,"") ->  | M145: =IF(AND($H145<$U145%,$H145>$R145%),$M$5,"") ->  | N145: =IF(AND($H145<$W145%,$H145>$T145%),$N$5,"") ->  | O145: =IF(AND($H145<$Y145%,$H145>$V145%),$O$5,"") ->  | P145: =IF(H145="YES",$P$5,"") ->  | AA145: =IF(OR(AND(AE145="YES",AF145="PHYSICALLY VERIFIED"),AND(AE145="YES",AF145="DOCUMENT VERIFIED"),AND(AE145="YES",'Basic Details'!$D$31="Self Assessment"),AND(AE145="YES",'Basic Details'!$D$31="Draft")),1*IF(BB145="ERROR INPUT",0+1,1),0) -> 0 | BD145: NO | BH145: Yes | BM145: F-1 | BN145: =+C145 -> 137 | BO145: 4 | BP145: =+J145 -> 0.5 | BQ145: =+BO145*BP145 -> 2 | BR145: =IF(K145="",0,+K145) -> 0
B146: F-2 Innovation | C146: =1+C145 -> 138 | E146: No. of initiatives undertaken for Students welfare (Human Value added based). | H146: =+F146 -> 0 | J146: 0.25 | L146: =IF($H146<$S146,$L$5,"") -> 0 | M146: =IF(AND($H146<$U146,$H146>$R146),$M$5,"") ->  | N146: =IF(AND($H146<$W146,$H146>$T146),$N$5,"") ->  | O146: =IF(AND($H146<$Y146,$H146>$V146),$O$5,"") ->  | P146: =IF(AND($H146<Z146,H146>X146),$P$5,"") ->  | Q146: 0 | R146: 0 | S146: 1 | T146: 1 | U146: 2 | V146: 2 | W146: 3 | X146: 3 | Y146: 4 | Z146: 10000 | AA146: =IF(OR(AND(AE146="YES",AF146="PHYSICALLY VERIFIED"),AND(AE146="YES",AF146="DOCUMENT VERIFIED"),AND(AE146="YES",'Basic Details'!$D$31="Self Assessment"),AND(AE146="YES",'Basic Details'!$D$31="Draft")),1*IF(BB146="ERROR INPUT",0+1,1),0) -> 0 | AH146: Copies of news / photographs / reports of activities (Make a list of such events) | BD146: 0 | BE146: 1 | BF146: 2 | BG146: 3 | BH146: 4 & Above | BM146: F-2 | BN146: 138 | BO146: 4 | BP146: 0.25 | BQ146: 1 | BR146: 0
C147: 139 | E147: Quality enhancement training for Faculty/Staff Initiatives/Activities organised by college. | H147: =+F147 -> 0 | I147: =IF(F147="","",SUM(L147:P147)) ->  | J147: 0.25 | L147: =IF(OR(H147="",H147="NO"),$L$5,"") ->  | M147: =IF(AND($H147<$U147%,$H147>$R147%),$M$5,"") ->  | N147: =IF(AND($H147<$W147%,$H147>$T147%),$N$5,"") ->  | O147: =IF(AND($H147<$Y147%,$H147>$V147%),$O$5,"") ->  | P147: =IF(H147="YES",$P$5,"") ->  | AA147: =IF(OR(AND(AE147="YES",AF147="PHYSICALLY VERIFIED"),AND(AE147="YES",AF147="DOCUMENT VERIFIED"),AND(AE147="YES",'Basic Details'!$D$31="Self Assessment"),AND(AE147="YES",'Basic Details'!$D$31="Draft")),1*IF(BB147="ERROR INPUT",0+1,1),0) -> 0 | AH147: Copes of certificates / news / photographs (Make a list of such activities with date and institution name etc.) | BD147: No | BH147: Yes | BM147: F-2 | BN147: 139 | BO147: 4 | BP147: 0.25 | BQ147: 1 | BR147: 0
C148: 140 | E148: Games and Sports Activities for Faculty/Staff organised by college. | H148: 0 | I148: =IF(F148="","",SUM(L148:P148)) ->  | J148: 0.25 | K148: =IF(I148="","",+I148*J148*AA148) ->  | L148: =IF(OR(H148="",H148="NO"),$L$5,"") ->  | P148: =IF(H148="YES",$P$5,"") ->  | AA148: =IF(OR(AND(AE148="YES",AF148="PHYSICALLY VERIFIED"),AND(AE148="YES",AF148="DOCUMENT VERIFIED"),AND(AE148="YES",'Basic Details'!$D$31="Self Assessment"),AND(AE148="YES",'Basic Details'!$D$31="Draft")),1*IF(BB148="ERROR INPUT",0+1,1),0) -> 0 | BD148: No | BH148: Yes | BM148: F-2 | BN148: 140 | BO148: 4 | BP148: 0.25 | BQ148: 1 | BR148: 0
C149: 141 | E149: No. of Books collected under Community Book Bank scheme. | H149: =+F149 -> 0 | J149: 0.5 | L149: =IF($H149<$S149,$L$5,"") -> 0 | M149: =IF(AND($H149<$U149,$H149>$R149),$M$5,"") ->  | N149: =IF(AND($H149<$W149,$H149>$T149),$N$5,"") ->  | O149: =IF(AND($H149<$Y149,$H149>$V149),$O$5,"") ->  | P149: =IF(AND($H149<Z149,H149>X149),$P$5,"") ->  | Q149: 0 | R149: 0 | S149: 1 | T149: 100 | U149: 101 | V149: 200 | W149: 201 | X149: 499 | Y149: 500 | Z149: 10000 | AA149: =IF(OR(AND(AE149="YES",AF149="PHYSICALLY VERIFIED"),AND(AE149="YES",AF149="DOCUMENT VERIFIED"),AND(AE149="YES",'Basic Details'!$D$31="Self Assessment"),AND(AE149="YES",'Basic Details'!$D$31="Draft")),1*IF(BB149="ERROR INPUT",0+1,1),0) -> 0 | AH149: Collection of books register AND issue of books register to be verified physically by Peer Team | BD149: 0 | BE149: 1-100 | BF149: 101-200 | BG149: 201-500 | BH149: 500 & Above | BM149: F-2 | BN149: 141 | BO149: 4 | BP149: 0.5 | BQ149: 2 | BR149: 0
A150: F. Commitment, Leadership and Management | B150: F-2 Innovation | C150: 142 | E150: Participation of college in District level campaigning/ activities organized by district administration (Total Number). | H150: =+F150 -> 0 | J150: 0.5 | L150: =IF($H150<$S150,$L$5,"") -> 0 | M150: =IF(AND($H150<$U150,$H150>$R150),$M$5,"") ->  | N150: =IF(AND($H150<$W150,$H150>$T150),$N$5,"") ->  | O150: =IF(AND($H150<$Y150,$H150>$V150),$O$5,"") ->  | P150: =IF(AND($H150<Z150,H150>X150),$P$5,"") ->  | Q150: 0 | R150: 0 | S150: 1 | T150: 2 | U150: 3 | V150: 4 | W150: 5 | X150: 6 | Y150: 7 | Z150: 10000 | AA150: =IF(OR(AND(AE150="YES",AF150="PHYSICALLY VERIFIED"),AND(AE150="YES",AF150="DOCUMENT VERIFIED"),AND(AE150="YES",'Basic Details'!$D$31="Self Assessment"),AND(AE150="YES",'Basic Details'!$D$31="Draft")),1*IF(BB150="ERROR INPUT",0+1,1),0) -> 0 | AH150: Copies of formal letter / news / photographs / reports of activities (Make a list of such events) | BD150: 0 | BE150: 1-2 | BF150: 3-4 | BG150: 5-6 | BH150: 7 & Above | BM150: F-2 | BN150: 142 | BO150: 4 | BP150: 0.5 | BQ150: 2 | BR150: 0
C151: 143 | E151: Feedback availability for stakeholders (Students/Parents/Teachers/Others). | H151: =+F151 -> 0 | I151: =IF(F151="","",SUM(L151:P151)) ->  | J151: 0.5 | L151: =IF(OR(H151="",H151="NO"),$L$5,"") ->  | M151: =IF(AND($H151<$U151%,$H151>$R151%),$M$5,"") ->  | N151: =IF(AND($H151<$W151%,$H151>$T151%),$N$5,"") ->  | O151: =IF(AND($H151<$Y151%,$H151>$V151%),$O$5,"") ->  | P151: =IF(H151="YES",$P$5,"") ->  | AA151: =IF(OR(AND(AE151="YES",AF151="PHYSICALLY VERIFIED"),AND(AE151="YES",AF151="DOCUMENT VERIFIED"),AND(AE151="YES",'Basic Details'!$D$31="Self Assessment"),AND(AE151="YES",'Basic Details'!$D$31="Draft")),1*IF(BB151="ERROR INPUT",0+1,1),0) -> 0 | AH151: Copes of details of feedback system with followup | BD151: No | BH151: Yes | BM151: F-2 | BN151: 143 | BO151: 4 | BP151: 0.5 | BQ151: 2 | BR151: 0
C152: 144 | E152: Percentage of active e-mail ID of Students. | G152: =IF(F152="","",+$F$7) ->  | H152: =IF(F152="","",ROUND(F152/G152,4)) ->  | I152: =IF(OR(F152="",G152="",G152=0),"",SUM(L152:P152)) ->  | J152: 0.25 | K152: =IF(I152="","",+I152*J152*AA152) ->  | L152: =IF($H152<$S152%,$L$5,"") ->  | M152: =IF(AND($H152<$U152%,$H152>$R152%),$M$5,"") ->  | N152: =IF(AND($H152<$W152%,$H152>$T152%),$N$5,"") ->  | O152: =IF(AND($H152<$Y152%,$H152>$V152%),$O$5,"") ->  | P152: =IF(AND($H152<Z152%,H152>X152%),$P$5,"") ->  | Q152: 0 | R152: 0 | S152: 0.0001 | T152: 25 | U152: 25.00001 | V152: 50 | W152: 50.0001 | X152: 75 | Y152: 75.0001 | Z152: 100000000 | AA152: =IF(OR(AND(AE152="YES",AF152="PHYSICALLY VERIFIED"),AND(AE152="YES",AF152="DOCUMENT VERIFIED"),AND(AE152="YES",'Basic Details'!$D$31="Self Assessment"),AND(AE152="YES",'Basic Details'!$D$31="Draft")),1*IF(BB152="ERROR INPUT",0+1,1),0) -> 0 | BD152: 0 | BE152: More than 0 but upto 25 | BF152: More than 25 but upto 50 | BG152: More than 50 but upto 75 | BH152: More than 75 | BM152: F-2 | BN152: 144 | BO152: 4 | BP152: 0.25 | BQ152: 1 | BR152: 0 | BS152: =SUM(BP146:BP152) -> 2.5 | BT152: =SUM(BR146:BR152) -> 0 | BU152: =SUM(BQ146:BQ152) -> 10
B153: F-3 Effective Implementatin of Govt. Schemes | C153: 145 | E153: Implementation of Scholarships / Incentive schemes (distributional efficacy). | H153: =+F153 -> 0 | J153: 0.5 | L153: =IF(OR(F153="",F153="YES PENDENCY"),$L$5,"") -> 0 | M153: =IF(AND($H153<$U153%,$H153>$R153%),$M$5,"") ->  | N153: =IF(AND($H153<$W153%,$H153>$T153%),$N$5,"") ->  | O153: =IF(AND($H153<$Y153%,$H153>$V153%),$O$5,"") ->  | P153: =IF(F153="NO PENDENCY",$P$5,"") ->  | AA153: =IF(OR(AND(AE153="YES",AF153="PHYSICALLY VERIFIED"),AND(AE153="YES",AF153="DOCUMENT VERIFIED"),AND(AE153="YES",'Basic Details'!$D$31="Self Assessment"),AND(AE153="YES",'Basic Details'!$D$31="Draft")),1*IF(BB153="ERROR INPUT",0+1,1),0) -> 0 | AH153: Copies of varifiable documents for various types of scholarships being disbrused by institute. | BD153: Yes, Pendency | BH153: No, Pendency | BM153: F-3 | BN153: =+C153 -> 145 | BO153: 4 | BP153: =+J153 -> 0.5 | BQ153: =+BO153*BP153 -> 2 | BR153: =IF(K153="",0,+K153) -> 0
C154: 146 | E154: Number of Innovative programe organised by college, | H154: =+F154 -> 0 | I154: =IF(OR(F154="",F154=0),"",SUM(L154:P154)) ->  | J154: 0.5 | L154: =IF($H154<$S154,$L$5,"") -> 0 | M154: =IF(AND($H154<$U154,$H154>$R154),$M$5,"") ->  | N154: =IF(AND($H154<$W154,$H154>$T154),$N$5,"") ->  | O154: =IF(AND($H154<$Y154,$H154>$V154),$O$5,"") ->  | P154: =IF(AND($H154<Z154,H154>X154),$P$5,"") ->  | Q154: 0 | R154: 0 | S154: 1 | T154: 1.99999 | U154: 2 | V154: 2.9999 | W154: 3 | X154: 3.99999 | Y154: 4 | Z154: 10000 | AA154: =IF(OR(AND(AE154="YES",AF154="PHYSICALLY VERIFIED"),AND(AE154="YES",AF154="DOCUMENT VERIFIED"),AND(AE154="YES",'Basic Details'!$D$31="Self Assessment"),AND(AE154="YES",'Basic Details'!$D$31="Draft")),1*IF(BB154="ERROR INPUT",0+1,1),0) -> 0 | AH154: Copies of signed lists of benefitted students | BD154: 0 | BE154: 1 | BF154: 2 | BG154: 3 | BH154: 4 & Above | BM154: F-3 | BN154: 146 | BO154: 4 | BP154: 0.5 | BQ154: 2 | BR154: 0
BD155: 0-20 | BE155: 20-40 | BF155: 40-60 | BG155: 60-80 | BH155: 80 & Above | BM155: F-3 | BN155: 0 | BO155: 4 | BP155: 0 | BQ155: 0 | BR155: 0
C156: =1+C154 -> 147 | E156: Whether any kind of extra/remedial classes provided by the college | H156: =+F156 -> 0 | I156: =IF(F156="","",SUM(L156:P156)) ->  | J156: 0.25 | L156: =IF(OR(H156="",H156="NO"),$L$5,"") ->  | M156: =IF(AND($H156<$U156%,$H156>$R156%),$M$5,"") ->  | N156: =IF(AND($H156<$W156%,$H156>$T156%),$N$5,"") ->  | O156: =IF(AND($H156<$Y156%,$H156>$V156%),$O$5,"") ->  | P156: =IF(H156="YES",$P$5,"") ->  | AA156: =IF(OR(AND(AE156="YES",AF156="PHYSICALLY VERIFIED"),AND(AE156="YES",AF156="DOCUMENT VERIFIED"),AND(AE156="YES",'Basic Details'!$D$31="Self Assessment"),AND(AE156="YES",'Basic Details'!$D$31="Draft")),1*IF(BB156="ERROR INPUT",0+1,1),0) -> 0 | AH156: Copies of Complete list of classes organised AND time table AND attendance sheet | BD156: 0-20 | BE156: 20-40 | BF156: 40-60 | BG156: 60-80 | BH156: 80 & Above | BM156: F-3 | BN156: 147 | BO156: 4 | BP156: 0.25 | BQ156: 1 | BR156: 0
A157: F. Commitment, Leadership and Management | B157: F-3 Effective Implementatin of Govt. Schemes | C157: =1+C156 -> 148 | E157: Whether the college has developed any supportive extra class system for regular students (online/offline). excludiing IGNOU, BMOU, Non-collegeiate teaching. | H157: 0 | I157: =IF(F157="","",SUM(L157:P157)) ->  | J157: 0.25 | L157: =IF(OR(H157="",H157="NO"),$L$5,"") ->  | P157: =IF(H157="YES",$P$5,"") ->  | AA157: =IF(OR(AND(AE157="YES",AF157="PHYSICALLY VERIFIED"),AND(AE157="YES",AF157="DOCUMENT VERIFIED"),AND(AE157="YES",'Basic Details'!$D$31="Self Assessment"),AND(AE157="YES",'Basic Details'!$D$31="Draft")),1*IF(BB157="ERROR INPUT",0+1,1),0) -> 0 | AH157: Number of trees planted as given in spreadsheet to be verified physically by Peer Team | BD157: No | BH157: Yes | BM157: F-3 | BN157: 148 | BO157: 4 | BP157: 0.25 | BQ157: 1 | BR157: 0 | BS157: =SUM(BP153:BP157) -> 1.5 | BT157: =SUM(BR153:BR157) -> 0 | BU157: =SUM(BQ153:BQ157) -> 6
B158: F-4 Strengthening the bond | C158: 149 | E158: No. of Interactive sessions organised for students with motivational mentors/ excellent performers. | H158: =+F158 -> 0 | I158: =IF(F158="","",SUM(L158:P158)) ->  | J158: 0.25 | L158: =IF($H158<$S158,$L$5,"") -> 0 | M158: =IF(AND($H158<$U158,$H158>$R158),$M$5,"") ->  | N158: =IF(AND($H158<$W158,$H158>$T158),$N$5,"") ->  | O158: =IF(AND($H158<$Y158,$H158>$V158),$O$5,"") ->  | P158: =IF(AND($H158<Z158,H158>X158),$P$5,"") ->  | Q158: 0 | R158: 0 | S158: 1 | T158: 1 | U158: 2 | V158: 2 | W158: 3 | X158: 3 | Y158: 4 | Z158: 10000 | AA158: =IF(OR(AND(AE158="YES",AF158="PHYSICALLY VERIFIED"),AND(AE158="YES",AF158="DOCUMENT VERIFIED"),AND(AE158="YES",'Basic Details'!$D$31="Self Assessment"),AND(AE158="YES",'Basic Details'!$D$31="Draft")),1*IF(BB158="ERROR INPUT",0+1,1),0) -> 0 | AH158: Copies of meeting notices / news / photographs / reports of events (Make a list such events) | BD158: 0 | BE158: 1 | BF158: 2 | BG158: 3 | BH158: 4 & Above | BM158: F-4 | BN158: 149 | BO158: 4 | BP158: 0.25 | BQ158: 1 | BR158: 0
C159: 150 | E159: No. of Students- Principal interactions. | H159: =+F159 -> 0 | J159: 0.25 | L159: 0 | Q159: 0 | R159: 0 | S159: 1 | T159: 1 | U159: 2 | V159: 2 | W159: 3 | X159: 3 | Y159: 4 | Z159: 10000 | AA159: =IF(OR(AND(AE159="YES",AF159="PHYSICALLY VERIFIED"),AND(AE159="YES",AF159="DOCUMENT VERIFIED"),AND(AE159="YES",'Basic Details'!$D$31="Self Assessment"),AND(AE159="YES",'Basic Details'!$D$31="Draft")),1*IF(BB159="ERROR INPUT",0+1,1),0) -> 0 | AH159: Copies of meeting notices / news / photographs / reports of events (Make a list such events) | BD159: 0 | BE159: 1 | BF159: 2 | BG159: 3 | BH159: 4 & Above | BM159: F-4 | BN159: 150 | BO159: 4 | BP159: 0.25 | BQ159: 1 | BR159: 0
C160: 151 | E160: No. of Student- Teacher meetings other than class room teaching. | H160: =+F160 -> 0 | J160: 0.25 | L160: 0 | Q160: 0 | R160: 0 | S160: 1 | T160: 1 | U160: 2 | V160: 2 | W160: 3 | X160: 3 | Y160: 4 | Z160: 10000 | AA160: =IF(OR(AND(AE160="YES",AF160="PHYSICALLY VERIFIED"),AND(AE160="YES",AF160="DOCUMENT VERIFIED"),AND(AE160="YES",'Basic Details'!$D$31="Self Assessment"),AND(AE160="YES",'Basic Details'!$D$31="Draft")),1*IF(BB160="ERROR INPUT",0+1,1),0) -> 0 | AH160: Copies of meeting notices / news / photographs / reports of events (Make a list such events) | BD160: 0 | BE160: 1 | BF160: 2 | BG160: 3 | BH160: 4 & Above | BM160: F-4 | BN160: 151 | BO160: 4 | BP160: 0.25 | BQ160: 1 | BR160: 0
C161: 152 | E161: No. of Staff Council and Development committee meetings held. | H161: =+F161 -> 0 | J161: 0.25 | L161: 0 | Q161: 0 | R161: 0 | S161: 1 | T161: 1 | U161: 2 | V161: 2 | W161: 3 | X161: 3 | Y161: 4 | Z161: 10000 | AA161: =IF(OR(AND(AE161="YES",AF161="PHYSICALLY VERIFIED"),AND(AE161="YES",AF161="DOCUMENT VERIFIED"),AND(AE161="YES",'Basic Details'!$D$31="Self Assessment"),AND(AE161="YES",'Basic Details'!$D$31="Draft")),1*IF(BB161="ERROR INPUT",0+1,1),0) -> 0 | AH161: Copies of meeting notices / news / photographs / reports / minutes of events (Make a list such events) | BD161: 0 | BE161: 1 | BF161: 2 | BG161: 3 | BH161: 4 & Above | BM161: F-4 | BN161: 152 | BO161: 4 | BP161: 0.25 | BQ161: 1 | BR161: 0
C162: 153 | E162: No. of Parents- Teacher meetings. | H162: =+F162 -> 0 | J162: 0.25 | L162: 0 | Q162: 0 | R162: 0 | S162: 1 | T162: 1 | U162: 2 | V162: 2 | W162: 3 | X162: 3 | Y162: 4 | Z162: 10000 | AA162: =IF(OR(AND(AE162="YES",AF162="PHYSICALLY VERIFIED"),AND(AE162="YES",AF162="DOCUMENT VERIFIED"),AND(AE162="YES",'Basic Details'!$D$31="Self Assessment"),AND(AE162="YES",'Basic Details'!$D$31="Draft")),1*IF(BB162="ERROR INPUT",0+1,1),0) -> 0 | AH162: Copies of meeting notices / news / photographs / reports / minutes of events (Make a list such events) | BD162: 0 | BE162: 1 | BF162: 2 | BG162: 3 | BH162: 4 & Above | BM162: F-4 | BN162: 153 | BO162: 4 | BP162: 0.25 | BQ162: 1 | BR162: 0
C163: 154 | E163: Alumni Association of college is formed / Registered. | H163: =IF(F163="No",0,IF(F163="yes Formed only",1,IF(F163="yes formed & registered",2,0))) -> 0 | I163: =IF(F163="","",SUM(L163:P163)) ->  | J163: 0.25 | K163: =IF(I163="","",+I163*J163*AA163) ->  | Q163: 0 | R163: 0 | S163: 0 | T163: 0 | U163: 1 | V163: 1 | W163: 2 | X163: 1 | Y163: 2 | Z163: 100 | AA163: =IF(OR(AND(AE163="YES",AF163="PHYSICALLY VERIFIED"),AND(AE163="YES",AF163="DOCUMENT VERIFIED"),AND(AE163="YES",'Basic Details'!$D$31="Self Assessment"),AND(AE163="YES",'Basic Details'!$D$31="Draft")),1*IF(BB163="ERROR INPUT",0+1,1),0) -> 0 | BD163: No | BF163: yes Formed only | BH163: Yes Formed & Registered | BM163: F-4 | BN163: 154 | BO163: 4 | BP163: 0.25 | BQ163: 1 | BR163: 0
C164: 155 | E164: No. of Alumni meetings held (last 2 years). | H164: =+F164 -> 0 | I164: =IF(F164="","",SUM(L164:P164)) ->  | J164: 0.25 | K164: =IF(I164="","",+I164*J164*AA164) ->  | L164: 0 | Q164: 0 | R164: 0 | S164: 1 | T164: 1 | U164: 2 | V164: 2 | W164: 3 | X164: 3 | Y164: 4 | Z164: 10000 | AA164: =IF(OR(AND(AE164="YES",AF164="PHYSICALLY VERIFIED"),AND(AE164="YES",AF164="DOCUMENT VERIFIED"),AND(AE164="YES",'Basic Details'!$D$31="Self Assessment"),AND(AE164="YES",'Basic Details'!$D$31="Draft")),1*IF(BB164="ERROR INPUT",0+1,1),0) -> 0 | AH164: Copies of meeting notices / news / photographs / reports / minutes of events (Make a list such events) | BD164: 0 | BE164: 1 | BF164: 2 | BG164: 3 | BH164: 4 & Above | BM164: F-4 | BN164: 155 | BO164: 4 | BP164: 0.25 | BQ164: 1 | BR164: 0 | BS164: =SUM(BP158:BP164) -> 1.75 | BT164: =SUM(BR158:BR164) -> 0 | BU164: =SUM(BQ158:BQ164) -> 7
B165: F-5 Institutional Distictiveness and Best Practice | C165: 156 | E165: How many Waste Management System (Solid waste/Liquid Waste/E waste/Bio-waste) the college has. | H165: =+F165 -> 0 | J165: 0.5 | K165: =IF(I165="","",+I165*J165*AA165) ->  | L165: 0 | Q165: 0 | R165: 0 | S165: 1 | T165: 1 | U165: 2 | V165: 2 | W165: 3 | X165: 3 | Y165: 4 | Z165: 10000 | AA165: =IF(OR(AND(AE165="YES",AF165="PHYSICALLY VERIFIED"),AND(AE165="YES",AF165="DOCUMENT VERIFIED"),AND(AE165="YES",'Basic Details'!$D$31="Self Assessment"),AND(AE165="YES",'Basic Details'!$D$31="Draft")),1*IF(BB165="ERROR INPUT",0+1,1),0) -> 0 | BD165: 0 | BE165: 1 | BF165: 2 | BG165: 3 | BH165: 4 | BM165: F-5 | BN165: 156 | BO165: 4 | BP165: 0.5 | BQ165: 2 | BR165: 0
A166: F. Commitment, Leadership and Management | B166: F-5 Institutional Distictiveness and Best Practice | C166: 157 | E166: Provide writeup of minimum two Best Practices in maximum 500 words (To be uploaded on web portal and provide the link below). | H166: =+F166 -> 0 | I166: =IF(F166="","",SUM(L166:P166)) ->  | J166: 0.5 | L166: =IF(OR(F166="",F166="NO"),$L$5,"") -> 0 | M166: =IF(AND($H166<$U166%,$H166>$R166%),$M$5,"") ->  | N166: =IF(AND($H166<$W166%,$H166>$T166%),$N$5,"") ->  | O166: =IF(AND($H166<$Y166%,$H166>$V166%),$O$5,"") ->  | P166: =IF(F166="YES",$P$5,"") ->  | AA166: =IF(OR(AND(AE166="YES",AF166="PHYSICALLY VERIFIED"),AND(AE166="YES",AF165="DOCUMENT VERIFIED"),AND(AE166="YES",'Basic Details'!$D$31="Self Assessment"),AND(AE166="YES",'Basic Details'!$D$31="Draft")),1*IF(BB166="ERROR INPUT",0+1,1),0) -> 0 | AC166: =IF(AB166="","","-") ->  | BD166: No | BH166: Yes | BM166: F-5 | BN166: 157 | BO166: 4 | BP166: 0.5 | BQ166: 2 | BR166: 0
C167: 158 | BN167: 141
C168: =1+C166 -> 158 | E168: Provide writeup of Institutional Distinctiveness in maximum 1000 words (To be uploaded on web portal and provide the link below). | H168: =+F168 -> 0 | I168: =IF(F168="","",SUM(L168:P168)) ->  | J168: 0.5 | L168: =IF(OR(F168="",F168="NO"),$L$5,"") -> 0 | P168: =IF(F168="YES",$P$5,"") ->  | AA168: =IF(OR(AND(AE168="YES",AF168="PHYSICALLY VERIFIED"),AND(AE168="YES",AF168="DOCUMENT VERIFIED"),AND(AE168="YES",'Basic Details'!$D$31="Self Assessment"),AND(AE168="YES",'Basic Details'!$D$31="Draft")),1*IF(BB168="ERROR INPUT",0+1,1),0) -> 0 | AC168: =IF(AB168="","","-") ->  | BD168: No | BH168: Yes | BM168: F-5 | BN168: 158 | BO168: 4 | BP168: =+J168 -> 0.5 | BQ168: =+BO168*BP168 -> 2 | BR168: =IF(K168="",0,+K168) -> 0
C169: 159 | BN169: 142
C170: =1+C168 -> 159 | E170: Energy Conservation (Solar/Wind/Bio-Gas). | H170: =+F170 -> 0 | I170: =IF(F170="","",SUM(L170:P170)) ->  | J170: 0.25 | K170: =IF(I170="","",+I170*J170*AA170) ->  | L170: =IF(OR(H170="",H170="NO"),$L$5,"") ->  | M170: =IF(AND($H170<$U170%,$H170>$R170%),$M$5,"") ->  | N170: =IF(AND($H170<$W170%,$H170>$T170%),$N$5,"") ->  | O170: =IF(AND($H170<$Y170%,$H170>$V170%),$O$5,"") ->  | P170: =IF(H170="YES",$P$5,"") ->  | AA170: =IF(OR(AND(AE170="YES",AF170="PHYSICALLY VERIFIED"),AND(AE170="YES",AF170="DOCUMENT VERIFIED"),AND(AE170="YES",'Basic Details'!$D$31="Self Assessment"),AND(AE170="YES",'Basic Details'!$D$31="Draft")),1*IF(BB170="ERROR INPUT",0+1,1),0) -> 0 | AC170: =IF(AB170="","","-") ->  | BD170: No | BH170: Yes | BM170: F-5 | BN170: 159 | BO170: 4 | BP170: 0.25 | BQ170: 1 | BR170: 0
C171: 160 | E171: Green campus initiatives (like water conservation, water harvesting system, air purifier, green compost, herbal garden etc.). | H171: 0 | I171: =IF(F171="","",SUM(L171:P171)) ->  | J171: 0.5 | K171: =IF(I171="","",+I171*J171*AA171) ->  | L171: =IF(OR(H171="",H171="NO"),$L$5,"") ->  | P171: =IF(H171="YES",$P$5,"") ->  | AA171: =IF(OR(AND(AE171="YES",AF171="PHYSICALLY VERIFIED"),AND(AE171="YES",AF171="DOCUMENT VERIFIED"),AND(AE171="YES",'Basic Details'!$D$31="Self Assessment"),AND(AE171="YES",'Basic Details'!$D$31="Draft")),1*IF(BB171="ERROR INPUT",0+1,1),0) -> 0 | BD171: No | BH171: Yes | BM171: F-5 | BN171: 160 | BO171: 4 | BP171: 0.5 | BQ171: 2 | BR171: 0
C172: 161 | E172: Green Audit. | H172: =+F172 -> 0 | I172: =IF(F172="","",SUM(L172:P172)) ->  | J172: 0.5 | L172: =IF(OR(H172="",H172="NO"),$L$5,"") ->  | P172: =IF(H172="YES",$P$5,"") ->  | AA172: =IF(OR(AND(AE172="YES",AF172="PHYSICALLY VERIFIED"),AND(AE172="YES",AF172="DOCUMENT VERIFIED"),AND(AE172="YES",'Basic Details'!$D$31="Self Assessment"),AND(AE172="YES",'Basic Details'!$D$31="Draft")),1*IF(BB172="ERROR INPUT",0+1,1),0) -> 0 | BD172: No | BH172: Yes | BM172: F-5 | BN172: 161 | BO172: 4 | BP172: 0.5 | BQ172: 2 | BR172: 0
A173: F. Commitment, Leadership and Management | B173: F-5 Institutional Distictiveness and Best Practice | C173: 162 | E173: Display of Code of conduct (Duties and Responsibilities) on College Web Page - Student, Teacher, Others. | H173: 0 | I173: =IF(F173="","",SUM(L173:P173)) ->  | J173: 0.25 | K173: =IF(I173="","",+I173*J173*AA173) ->  | L173: =IF(OR(H173="",H173="NO"),$L$5,"") ->  | P173: =IF(H173="YES",$P$5,"") ->  | AA173: =IF(OR(AND(AE173="YES",AF173="PHYSICALLY VERIFIED"),AND(AE173="YES",AF173="DOCUMENT VERIFIED"),AND(AE173="YES",'Basic Details'!$D$31="Self Assessment"),AND(AE173="YES",'Basic Details'!$D$31="Draft")),1*IF(BB173="ERROR INPUT",0+1,1),0) -> 0 | BD173: No | BH173: Yes | BM173: F-5 | BN173: 162 | BO173: 4 | BP173: 0.25 | BQ173: 1 | BR173: 0
C174: 163 | E174: Percentage of Students passed in Competitive Exams. | G174: =IF(F174="","",+$F$7) ->  | H174: =IF(F174="","",ROUND(F174/G174,4)) ->  | I174: =IF(OR(F174="",G174="",G174=0),"",SUM(L174:P174)) ->  | J174: 0.5 | L174: =IF($H174<$S174%,$L$5,"") ->  | M174: =IF(AND($H174<$U174%,$H174>$R174%),$M$5,"") ->  | N174: =IF(AND($H174<$W174%,$H174>$T174%),$N$5,"") ->  | O174: =IF(AND($H174<$Y174%,$H174>$V174%),$O$5,"") ->  | P174: =IF(AND($H174<Z174%,H174>X174%),$P$5,"") ->  | Q174: 0 | R174: 0 | S174: 0.0001 | T174: 2 | U174: 2.00001 | V174: 5 | W174: 5.00001 | X174: 10 | Y174: 10.0001 | Z174: 1000000 | AA174: =IF(OR(AND(AE174="YES",AF174="PHYSICALLY VERIFIED"),AND(AE174="YES",AF174="DOCUMENT VERIFIED"),AND(AE174="YES",'Basic Details'!$D$31="Self Assessment"),AND(AE174="YES",'Basic Details'!$D$31="Draft")),1*IF(BB174="ERROR INPUT",0+1,1),0) -> 0 | BD174: 0 | BE174: More than 0 but upto 2 | BF174: More than 2 but upto 5 | BG174: More than 5 but upto 10 | BH174: More than 10 | BM174: F-5 | BN174: 163 | BO174: 4 | BP174: 0.5 | BQ174: 2 | BR174: 0
C175: 164 | E175: Organised Blood Donation Camp. | H175: =+F175 -> 0 | I175: =IF(F175="","",SUM(L175:P175)) ->  | J175: 0.5 | K175: =IF(I175="","",+I175*J175*AA175) ->  | L175: =IF(OR(H175="",H175="NO"),$L$5,"") ->  | M175: =IF(AND($H175<$U175%,$H175>$R175%),$M$5,"") ->  | N175: =IF(AND($H175<$W175%,$H175>$T175%),$N$5,"") ->  | O175: =IF(AND($H175<$Y175%,$H175>$V175%),$O$5,"") ->  | P175: =IF(H175="YES",$P$5,"") ->  | AA175: =IF(OR(AND(AE175="YES",AF175="PHYSICALLY VERIFIED"),AND(AE175="YES",AF175="DOCUMENT VERIFIED"),AND(AE175="YES",'Basic Details'!$D$31="Self Assessment"),AND(AE175="YES",'Basic Details'!$D$31="Draft")),1*IF(BB175="ERROR INPUT",0+1,1),0) -> 0 | BD175: No | BH175: Yes | BM175: F-5 | BN175: 164 | BO175: 4 | BP175: 0.5 | BQ175: 2 | BR175: 0
C176: 165 | E176: Health Awarness Camps are orgranised by College. | H176: =+F176 -> 0 | J176: 0.25 | L176: =IF(OR(H176="",H176="NO"),$L$5,"") ->  | P176: =IF(H176="YES",$P$5,"") ->  | AA176: =IF(OR(AND(AE176="YES",AF176="PHYSICALLY VERIFIED"),AND(AE176="YES",AF176="DOCUMENT VERIFIED"),AND(AE176="YES",'Basic Details'!$D$31="Self Assessment"),AND(AE176="YES",'Basic Details'!$D$31="Draft")),1*IF(BB176="ERROR INPUT",0+1,1),0) -> 0 | BD176: No | BH176: Yes | BM176: F-5 | BN176: 165 | BO176: 4 | BP176: 0.25 | BQ176: 1 | BR176: 0
C177: 166 | E177: Celebration of National/International Days (No.) | H177: =+F177 -> 0 | I177: =IF(F177="","",SUM(L177:P177)) ->  | J177: 0.25 | L177: =IF($H177<$S177,$L$5,"") -> 0 | M177: =IF(AND($H177<$U177,$H177>$R177),$M$5,"") ->  | N177: =IF(AND($H177<$W177,$H177>$T177),$N$5,"") ->  | O177: =IF(AND($H177<$Y177,$H177>$V177),$O$5,"") ->  | P177: =IF(AND($H177<Z177,H177>X177),$P$5,"") ->  | Q177: 0 | R177: 0 | S177: 0.0001 | T177: 0.99999 | U177: 1 | V177: 9 | W177: 10 | X177: 9 | Y177: 10 | Z177: 10000 | AA177: =IF(OR(AND(AE177="YES",AF177="PHYSICALLY VERIFIED"),AND(AE177="YES",AF177="DOCUMENT VERIFIED"),AND(AE177="YES",'Basic Details'!$D$31="Self Assessment"),AND(AE177="YES",'Basic Details'!$D$31="Draft")),1*IF(BB177="ERROR INPUT",0+1,1),0) -> 0 | BD177: 0 | BF177: 1-9 | BH177: 10 & Above | BM177: F-5 | BN177: 166 | BO177: 4 | BP177: 0.25 | BQ177: 1 | BR177: 0
C178: 167 | E178: Percentage of Departments/Faculty having its own association. | H178: =IF(F178="","",ROUND(F178/G178,4)) ->  | I178: =IF(OR(F178="",G178="",G178=0),"",SUM(L178:P178)) ->  | J178: 0.25 | L178: =IF($H178<$S178%,$L$5,"") ->  | M178: =IF(AND($H178<$U178%,$H178>$R178%),$M$5,"") ->  | N178: =IF(AND($H178<$W178%,$H178>$T178%),$N$5,"") ->  | O178: =IF(AND($H178<$Y178%,$H178>$V178%),$O$5,"") ->  | P178: =IF(AND($H178<Z178%,H178>X178%),$P$5,"") ->  | Q178: 0 | R178: 0 | S178: 0.0001 | T178: 25 | U178: 25.00001 | V178: 50 | W178: 50.0001 | X178: 75 | Y178: 75.0001 | Z178: 100000000 | AA178: =IF(OR(AND(AE178="YES",AF178="PHYSICALLY VERIFIED"),AND(AE178="YES",AF178="DOCUMENT VERIFIED"),AND(AE178="YES",'Basic Details'!$D$31="Self Assessment"),AND(AE178="YES",'Basic Details'!$D$31="Draft")),1*IF(BB178="ERROR INPUT",0+1,1),0) -> 0 | BD178: 0 | BE178: More than 0 but upto 25 | BF178: More than 25 but upto 50 | BG178: More than 50 but upto 75 | BH178: More than 75 | BM178: F-5 | BN178: 167 | BO178: 4 | BP178: 0.25 | BQ178: 1 | BR178: 0
C179: 168 | E179: No. of trees planted and Survived in the college campus. | H179: =+F179 -> 0 | I179: =IF(F179="","",SUM(L179:P179)) ->  | J179: 0.5 | K179: =IF(I179="","",+I179*J179*AA179) ->  | L179: =IF($H179<$S179,$L$5,"") -> 0 | M179: =IF(AND($H179<$U179,$H179>$R179),$M$5,"") ->  | N179: =IF(AND($H179<$W179,$H179>$T179),$N$5,"") ->  | O179: =IF(AND($H179<$Y179,$H179>$V179),$O$5,"") ->  | P179: =IF(AND($H179<Z179,H179>X179),$P$5,"") ->  | Q179: 0 | R179: 10 | S179: 11 | T179: 50 | U179: 51 | V179: 100 | W179: 101 | X179: 200 | Y179: 201 | Z179: 10000 | AA179: =IF(OR(AND(AE179="YES",AF179="PHYSICALLY VERIFIED"),AND(AE179="YES",AF179="DOCUMENT VERIFIED"),AND(AE179="YES",'Basic Details'!$D$31="Self Assessment"),AND(AE179="YES",'Basic Details'!$D$31="Draft")),1*IF(BB179="ERROR INPUT",0+1,1),0) -> 0 | AH179: Number of trees planted as given in spreadsheet to be verified physically by Peer Team | BD179: 0-10 | BE179: 11-50 | BF179: 51-100 | BG179: 101-200 | BH179: 201 & Above | BM179: F-5 | BN179: 168 | BO179: 4 | BP179: 0.5 | BQ179: 2 | BR179: 0
C180: 169 | E180: Percentage of students placed through Employment Fairs/Placement Camps/Campus Recruitment Drives organised by the college. | G180: =IF(F180="","",+$F$7) ->  | H180: =IF(F180="","",ROUND(F180/G180,4)) ->  | I180: =IF(OR(F180="",G180="",G180=0),"",SUM(L180:P180)) ->  | J180: 0.5 | L180: =IF($H180<$S180%,$L$5,"") ->  | M180: =IF(AND($H180<$U180%,$H180>$R180%),$M$5,"") ->  | N180: =IF(AND($H180<$W180%,$H180>$T180%),$N$5,"") ->  | O180: =IF(AND($H180<$Y180%,$H180>$V180%),$O$5,"") ->  | P180: =IF(AND($H180<Z180%,H180>X180%),$P$5,"") ->  | Q180: 0 | R180: 0 | S180: 0.0001 | T180: 1.9999 | U180: 2 | V180: 3.9999 | W180: 4 | X180: 5.9999 | Y180: 6 | Z180: 10000 | AA180: =IF(OR(AND(AE180="YES",AF180="PHYSICALLY VERIFIED"),AND(AE180="YES",AF180="DOCUMENT VERIFIED"),AND(AE180="YES",'Basic Details'!$D$31="Self Assessment"),AND(AE180="YES",'Basic Details'!$D$31="Draft")),1*IF(BB180="ERROR INPUT",0+1,1),0) -> 0 | AH180: Copies of orders / news / photographs / reports AND list of students who have been placed through such fairs | BB180: =IF(F180>G180,"ERROR INPUT","") ->  | BD180: 0 | BE180: More than 0 but less than 2 | BF180: 2-4 | BG180: 4-6 | BH180: 6 & Above | BM180: F-5 | BN180: 169 | BO180: 4 | BP180: 0.5 | BQ180: 2 | BR180: 0
C181: 170 | E181: No. of years for which Placement Data is maintained. | H181: =+F181 -> 0 | I181: =IF(F181="","",SUM(L181:P181)) ->  | J181: 0.25 | L181: =IF($H181<$S181,$L$5,"") -> 0 | M181: =IF(AND($H181<$U181,$H181>$R181),$M$5,"") ->  | N181: =IF(AND($H181<$W181,$H181>$T181),$N$5,"") ->  | O181: =IF(AND($H181<$Y181,$H181>$V181),$O$5,"") ->  | P181: =IF(AND($H181<Z181,H181>X181),$P$5,"") ->  | Q181: 0 | R181: 0 | S181: 1 | T181: 1 | U181: 2 | V181: 2 | W181: 3 | X181: 3 | Y181: 4 | Z181: 10000 | AA181: =IF(OR(AND(AE181="YES",AF181="PHYSICALLY VERIFIED"),AND(AE181="YES",AF181="DOCUMENT VERIFIED"),AND(AE181="YES",'Basic Details'!$D$31="Self Assessment"),AND(AE181="YES",'Basic Details'!$D$31="Draft")),1*IF(BB181="ERROR INPUT",0+1,1),0) -> 0 | AH181: Copies of orders / news / photographs / reports AND list of students who have been placed through such fairs | BB181: =IF(F181>G181,"ERROR INPUT","") ->  | BD181: 0 | BE181: 1 | BF181: 2 | BG181: 3 | BH181: 4 & Above | BM181: F-5 | BN181: 170 | BO181: 4 | BP181: 0.25 | BQ181: 1 | BR181: 0
C182: 171 | E182: Gender Equity Programes organised by College. | H182: =+F182 -> 0 | I182: =IF(F182="","",SUM(L182:P182)) ->  | J182: 0.25 | K182: =IF(I182="","",+I182*J182*AA182) ->  | L182: =IF(OR(H182="",H182="NO"),$L$5,"") ->  | M182: =IF(AND($H182<$U182%,$H182>$R182%),$M$5,"") ->  | N182: =IF(AND($H182<$W182%,$H182>$T182%),$N$5,"") ->  | O182: =IF(AND($H182<$Y182%,$H182>$V182%),$O$5,"") ->  | P182: =IF(H182="YES",$P$5,"") ->  | AA182: =IF(OR(AND(AE182="YES",AF182="PHYSICALLY VERIFIED"),AND(AE182="YES",AF182="DOCUMENT VERIFIED"),AND(AE182="YES",'Basic Details'!$D$31="Self Assessment"),AND(AE182="YES",'Basic Details'!$D$31="Draft")),1*IF(BB182="ERROR INPUT",0+1,1),0) -> 0 | BD182: No | BH182: Yes | BM182: F-5 | BN182: 171 | BO182: 4 | BP182: =+J182 -> 0.25 | BQ182: =+BO182*BP182 -> 1 | BR182: =IF(K182="",0,+K182) -> 0
A183: F. Commitment, Leadership and Management | B183: F-5 Institutional Distictiveness and Best Practice | C183: 172 | E183: Security and Safety Programes for Women organised by College. | H183: =+F183 -> 0 | J183: 0.25 | L183: =IF(OR(H183="",H183="NO"),$L$5,"") ->  | P183: =IF(H183="YES",$P$5,"") ->  | AA183: =IF(OR(AND(AE183="YES",AF183="PHYSICALLY VERIFIED"),AND(AE183="YES",AF183="DOCUMENT VERIFIED"),AND(AE183="YES",'Basic Details'!$D$31="Self Assessment"),AND(AE183="YES",'Basic Details'!$D$31="Draft")),1*IF(BB183="ERROR INPUT",0+1,1),0) -> 0 | BD183: No | BH183: Yes | BM183: F-5 | BN183: 172 | BO183: 4 | BP183: 0.25 | BQ183: 1 | BR183: 0
C184: 173 | E184: Whether Sanitary Napkin distribution facility is available in the College. | H184: 0 | J184: 0.25 | L184: =IF(OR(H184="",H184="NO"),$L$5,"") ->  | P184: =IF(H184="YES",$P$5,"") ->  | AA184: =IF(OR(AND(AE184="YES",AF184="PHYSICALLY VERIFIED"),AND(AE184="YES",AF184="DOCUMENT VERIFIED"),AND(AE184="YES",'Basic Details'!$D$31="Self Assessment"),AND(AE184="YES",'Basic Details'!$D$31="Draft")),1*IF(BB184="ERROR INPUT",0+1,1),0) -> 0 | AC184: =IF(AB184="","","-") ->  | BD184: No | BH184: Yes | BM184: F-5 | BN184: 173 | BO184: 4 | BP184: 0.25 | BQ184: 1 | BR184: 0
C185: 174 | E185: Whether the college prepares Institutional Development Plan. | H185: =IF(F185="No",0,IF(F185="annual",1,IF(F185="5-Yearly",2,0))) -> 0 | I185: =IF(F185="","",SUM(L185:P185)) ->  | J185: 0.25 | L185: =IF($H185<$S185,$L$5,"") ->  | M185: =IF(AND($H185<$U185,$H185>$R185),$M$5,"") ->  | N185: =IF(AND($H185<$W185,$H185>$T185),$N$5,"") ->  | O185: =IF(AND($H185<$Y185,$H185>$V185),$O$5,"") ->  | P185: =IF(AND($H185<Z185,H185>X185),$P$5,"") ->  | Q185: 0 | R185: 0 | S185: 0 | T185: 0 | U185: 1 | V185: 1 | W185: 2 | X185: 1 | Y185: 2 | Z185: 100 | AA185: =IF(OR(AND(AE185="YES",AF185="PHYSICALLY VERIFIED"),AND(AE185="YES",AF185="DOCUMENT VERIFIED"),AND(AE185="YES",'Basic Details'!$D$31="Self Assessment"),AND(AE185="YES",'Basic Details'!$D$31="Draft")),1*IF(BB185="ERROR INPUT",0+1,1),0) -> 0 | AC185: =IF(AB185="","","-") ->  | BD185: No | BF185: Annual | BH185: 5-Yearly | BM185: F-5 | BN185: 174 | BO185: 4 | BP185: 0.25 | BQ185: 1 | BR185: 0
C186: 175 | E186: Whether minutes of meetings of IQAC and ATR are uploaded on website. | H186: =+F186 -> 0 | I186: =IF(F186="","",SUM(L186:P186)) ->  | J186: 0.25 | K186: =IF(I186="","",+I186*J186*AA186) ->  | L186: =IF(OR(H186="",H186="NO"),$L$5,"") ->  | M186: =IF(AND($H186<$U186%,$H186>$R186%),$M$5,"") ->  | N186: =IF(AND($H186<$W186%,$H186>$T186%),$N$5,"") ->  | O186: =IF(AND($H186<$Y186%,$H186>$V186%),$O$5,"") ->  | P186: =IF(H186="YES",$P$5,"") ->  | AA186: =IF(OR(AND(AE186="YES",AF186="PHYSICALLY VERIFIED"),AND(AE186="YES",AF186="DOCUMENT VERIFIED"),AND(AE186="YES",'Basic Details'!$D$31="Self Assessment"),AND(AE186="YES",'Basic Details'!$D$31="Draft")),1*IF(BB186="ERROR INPUT",0+1,1),0) -> 0 | AC186: =IF(AB186="","","-") ->  | BD186: No | BH186: Yes | BM186: F-5 | BN186: 175 | BO186: 4 | BP186: 0.25 | BQ186: 1 | BR186: 0
C187: 176 | E187: Whether Course Outcomes (COs), Programme Outcomes (POs), Programme Specific Outcomes (PSOs) are displayed and learning outcomes are maintained annually. | H187: =+F187 -> 0 | J187: 0.25 | L187: =IF(OR(H187="",H187="NO"),$L$5,"") ->  | P187: =IF(H187="YES",$P$5,"") ->  | AA187: =IF(OR(AND(AE187="YES",AF187="PHYSICALLY VERIFIED"),AND(AE187="YES",AF187="DOCUMENT VERIFIED"),AND(AE187="YES",'Basic Details'!$D$31="Self Assessment"),AND(AE187="YES",'Basic Details'!$D$31="Draft")),1*IF(BB187="ERROR INPUT",0+1,1),0) -> 0 | BD187: No | BH187: Yes | BM187: F-5 | BN187: 176 | BO187: 4 | BP187: 0.25 | BQ187: 1 | BR187: 0 | BS187: =SUM(BP165:BP187) -> 7.5 | BT187: =SUM(BR165:BR187) -> 0 | BU187: =SUM(BQ165:BQ187) -> 30 | BV187: =SUM(BS142:BS187) -> 14 | BW187: =SUM(BT142:BT187) -> 0 | BX187: =SUM(BU142:BU187) -> 56
A189: =+'Result KeyFactorwise AAP'!A26:C26 -> 1. , Principal, , , Mobile No. : | F189: =+'Result KeyFactorwise AAP'!D26 -> Team Leader
A190: =+'Result KeyFactorwise AAP'!A27:C27 -> 2. , Associate Professor, , , Mobile No. : | F190: Co-in-Charge
A191: =+'Result KeyFactorwise AAP'!A28:C28 -> 3. , Assistant Professor, , , Mobile No. : | F191: =+'Result KeyFactorwise AAP'!D28 -> Member
A192: Despatch No. and Date :
A193: =+'Result KeyFactorwise AAP'!A30:D30 -> , Principal, , Mobile No. :

Sheet Result KeyFactorwise
A1: =+Result!B1 -> 
A2: =+Input!A2 -> Assessment Matrix for Annual Auditing Programe : 2022 Report
A3: =+Result!B3 -> Inspection Phase : (Draft) for Session : and Inspection Dates : -- and --
A4: Crteria | B4: Key Factors Criteria | C4: Maximum Weighted Credits Possible | D4: Actual Weighted Credits | E4: Maximum Weighted Credits | F4: Percentage of Actual with Maximum | H4: Delete Input Values Key Factor
A5: A. Teaching and Learning | B5: A-1 Student Strength | C5: =+E5 -> 14 | D5: =+'Result KeyFactorwise AAP'!D5 -> 0 | E5: =+'Result KeyFactorwise AAP'!E5 -> 14 | F5: =IF(D5=0,"",ROUND(D5/C5*100,2)) -> 
B6: A-2 Inclusivity | C6: =+E6 -> 13 | D6: =+'Result KeyFactorwise AAP'!D6 -> 0 | E6: =+'Result KeyFactorwise AAP'!E6 -> 13
B7: A-3 Choices | C7: 26 | D7: =+'Result KeyFactorwise AAP'!D7 -> 0 | E7: =+'Result KeyFactorwise AAP'!E7 -> 26
B8: A-4 Faculty-Portrayal | C8: 46 | D8: =+'Result KeyFactorwise AAP'!D8 -> 0 | E8: =+'Result KeyFactorwise AAP'!E8 -> 46
B9: A-5 Student performance and learning outcomes | C9: 26 | D9: =+'Result KeyFactorwise AAP'!D9 -> 0 | E9: =+'Result KeyFactorwise AAP'!E9 -> 26
A10: B. Research and Professional Practices | B10: B-1 Research Output | C10: 58 | D10: =+'Result KeyFactorwise AAP'!D10 -> 0 | E10: =+'Result KeyFactorwise AAP'!E10 -> 58
B11: B-2 Academic Enrichment | C11: 16 | D11: =+'Result KeyFactorwise AAP'!D11 -> 0 | E11: =+'Result KeyFactorwise AAP'!E11 -> 16
A12: C. Infrastructure and Learning Resources | B12: C-1 Physical Assets | C12: 57 | D12: =+'Result KeyFactorwise AAP'!D12 -> 0 | E12: =+'Result KeyFactorwise AAP'!E12 -> 57 | H12: C
B13: C-2 Office Setup | C13: 11 | D13: =+'Result KeyFactorwise AAP'!D13 -> 0 | E13: =+'Result KeyFactorwise AAP'!E13 -> 11
A14: D. Student Support and participation | B14: D-1 Learning Support | C14: 15 | D14: =+'Result KeyFactorwise AAP'!D14 -> 0 | E14: =+'Result KeyFactorwise AAP'!E14 -> 15 | H14: D
B15: D-2 Counseling and Mentoring | C15: 39 | D15: =+'Result KeyFactorwise AAP'!D15 -> 0 | E15: =+'Result KeyFactorwise AAP'!E15 -> 39
A16: E. Financial Resources and Utilisation | B16: E-1 Financial Management | C16: 16 | D16: =+'Result KeyFactorwise AAP'!D16 -> 0 | E16: =+'Result KeyFactorwise AAP'!E16 -> 16
B17: E-2 Self Financing Efforts | C17: 5 | D17: =+'Result KeyFactorwise AAP'!D17 -> 0 | E17: =+'Result KeyFactorwise AAP'!E17 -> 5
A18: F. Commitment, Leadership and Management | B18: F-1 Societal Footprint | C18: 5 | D18: =+'Result KeyFactorwise AAP'!D18 -> 0 | E18: =+'Result KeyFactorwise AAP'!E18 -> 5
B19: F-2 Innovations | C19: 10 | D19: =+'Result KeyFactorwise AAP'!D19 -> 0 | E19: =+'Result KeyFactorwise AAP'!E19 -> 10
B20: F-3 Effective Implementatin of Govt. Schemes | C20: 6 | D20: =+'Result KeyFactorwise AAP'!D20 -> 0 | E20: =+'Result KeyFactorwise AAP'!E20 -> 6
B21: F-4 Strengthening the bond | C21: 7 | D21: =+'Result KeyFactorwise AAP'!D21 -> 0 | E21: =+'Result KeyFactorwise AAP'!E21 -> 7
B22: F-5 Institutional Values and Best Pratices | C22: 30 | D22: =+'Result KeyFactorwise AAP'!D22 -> 0 | E22: =+'Result KeyFactorwise AAP'!E22 -> 30
B23: TOTAL | C23: =IF(SUM(C5:C22)=0,"",SUM(C5:C22)) -> 400 | D23: =IF(SUM(D5:D22)=0,"",SUM(D5:D22)) -> 
B24: Average | C24: =IF(C23="","",ROUND(C23/4,2)) -> 100 | D24: =IF(D23="","",ROUND(D23/4,4)) -> 

Sheet Result
B1: =+'Result AAP'!B1:G1 -> 
B2: =+Input!A2 -> Assessment Matrix for Annual Auditing Programe : 2022 Report
B3: =+Input!A3 -> Inspection Phase : (Draft) for Session : and Inspection Dates : -- and --
B4: Performance Criteria | C4: Maximum Weighted Credits Possible | D4: Actual Weighted Credits | E4: Maximum Weighted Credits | F4: Percentage of Actual with Maximum | J4: Delete Input Values Performance Criteria
B5: =+Input!A7 -> A. Teaching and Learning | C5: =+E5 -> 125 | D5: =+'Result AAP'!D5 -> 0 | E5: =+'Result AAP'!E5 -> 125 | F5: =IF(D5="","",ROUND(D5/C5*100,2)) -> 0 | J5: A
B6: =+Input!A49 -> B. Research and Professional Practices | C6: =+E6 -> 74 | D6: =+'Result AAP'!D6 -> 0 | E6: =+'Result AAP'!E6 -> 74 | F6: 0 | J6: B
B7: =+Input!A65 -> C. Infrastructure and Learning Resources | C7: 68 | D7: =+'Result AAP'!D7 -> 0 | E7: =+'Result AAP'!E7 -> 68 | F7: 0 | J7: C
B8: =+Input!A94 -> D. Student Support and participation | C8: 54 | D8: =+'Result AAP'!D8 -> 0 | E8: =+'Result AAP'!E8 -> 54 | F8: 0 | J8: D
B9: =+Input!A133 -> E. Financial Resources and Utilisation | C9: 21 | D9: =+'Result AAP'!D9 -> 0 | E9: =+'Result AAP'!E9 -> 21 | F9: 0 | J9: E
B10: =+Input!A142 -> F. Commitment, Leadership and Management | C10: 58 | D10: =+'Result AAP'!D10 -> 0 | E10: =+'Result AAP'!E10 -> 58 | F10: 0 | J10: F
B11: TOTAL | C11: =IF(SUM(C5:C10)=0,"",SUM(C5:C10)) -> 400 | D11: =IF(SUM(D5:D10)=0,"",SUM(D5:D10)) ->  | E11: =IF(SUM(E5:E10)=0,"",SUM(E5:E10)) -> 400
B12: Average | C12: =IF(C11="","",ROUND(C11/4,2)) -> 100 | D12: =IF(D11="","",ROUND(D11/4,4)) -> 

Sheet Scoring Rules
AE1: PRADEEP MODI | AI1: AAP Version B : 20220313 | AJ1: 123456 | AQ1: =IF(LEFT($AJ$1,1)="",0,INT(LEFT($AJ$1,1))) -> 1 | AR1: =IF(MID($AJ$1,5,1)="",0,INT(MID($AJ$1,5,1))) -> 5 | AS1: =IF(SUM(AT1:AZ4)<>600,0,21) -> 21 | AT1: =IF(COUNTIF($AQ$1:$AR$4,"=1")=1,100,0) -> 100 | AZ1: =IF(COUNTIF($AQ$1:$AR$4,"=5")=1,100,0) -> 100 | BD1: Scoring Rules
A2: Assessment Matrix for Annual Auditing Programme (Revised) - For Private Colleges | AE2: 9413307717 | AQ2: =IF(MID($AJ$1,2,1)="",0,INT(MID($AJ$1,2,1))) -> 2 | AR2: =IF(RIGHT($AJ$1,1)="",0,INT(RIGHT($AJ$1,1))) -> 6 | AT2: =IF(COUNTIF($AQ$1:$AR$4,"=2")=1,100,0) -> 100 | AZ2: =IF(COUNTIF($AQ$1:$AR$4,"=6")=1,100,0) -> 100 | BZ2: Assessment Matrix for Annual Auditing Programme (Revised) - For Private Colleges
AE3: pradeepjimodi@gmail.com | AQ3: =IF(MID($AJ$1,3,1)="",0,INT(MID($AJ$1,3,1))) -> 3 | AT3: =IF(COUNTIF($AQ$1:$AR$4,"=3")=1,100,0) -> 100
A4: Detailed Rules for Scoring Credits with Weightage | AQ4: =IF(MID($AJ$1,4,1)="",0,INT(MID($AJ$1,4,1))) -> 4 | AT4: =IF(COUNTIF($AQ$1:$AR$4,"=4")=1,100,0) -> 100 | BZ4: Detailed Rules for Scoring Credits with Weightage
A5: Crtieria | B5: Key Indicators | C5: SN | D5: S. No. old | E5: Parameters | F5: Input Values | H5: Percentage or Ratio points | I5: Credits | J5: Weights | K5: Weighted Credits | L5: 0 | M5: 1 | N5: 2 | O5: 3 | P5: 4 | Q5: Credits | AB5: Supporting Documents Seq. Number | AE5: Proof Available ? | AF5: Team Verification | AH5: Supporting Documents/Proofs | BB5: Error Message | BD5: Credits
Q6: 0 | S6: 1 | U6: 2 | W6: 3 | Y6: 4 | BD6: 0 | BE6: 1 | BF6: 2 | BG6: 3 | BH6: 4 | BO6: =SUM(BO7:BO187) -> 716 | BP6: 100.25 | BQ6: 401 | BR6: 0 | BS6: 93.25 | BT6: 0 | BU6: 373 | BV6: 93.25 | BW6: 0 | BX6: 373
A7: A. Teaching and Learning | B7: A-1 Student Strength | C7: 1 | D7: 1 | E7: Actual Student Strength as percentage of Sanctioned Strength. | H7: =IF(F7="","",ROUND(F7/G7,4)) ->  | I7: =IF(OR(F7="",G7="",G7=0),"",SUM(L7:P7)) ->  | J7: 2 | K7: =IF(I7="","",+I7*J7*AA7) ->  | L7: =IF($H7<$S7%,$L$5,"") ->  | M7: =IF(AND($H7<$U7%,$H7>$R7%),$M$5,"") ->  | N7: =IF(AND($H7<$W7%,$H7>$T7%),$N$5,"") ->  | O7: =IF(AND($H7<$Y7%,$H7>$V7%),$O$5,"") ->  | P7: =IF(AND($H7<Z7%,H7>X7%),$P$5,"") ->  | Q7: 0 | R7: 20 | S7: 20.0001 | T7: 40 | U7: 40.0001 | V7: 60 | W7: 60.0001 | X7: 80 | Y7: 80.0001 | Z7: 10000 | AA7: =IF(OR(AND(AE7="YES",AF7="PHYSICALLY VERIFIED"),AND(AE7="YES",AF7="DOCUMENT VERIFIED"),AND(AE7="YES",'Basic Details'!$D$31="Self Assessment"),AND(AE7="YES",'Basic Details'!$D$31="Draft")),1*IF(BB7="ERROR INPUT",0+1,1),0) -> 0 | AB7: 0 | AC7: =IF(AB7="","","-") -> - | AD7: 0 | AH7: College Statistical booklet / AISHE DCF / Online data verified from nodal login | BB7: =IF(F7>G7,"ERROR INPUT","") ->  | BD7: 0-20 | BE7: 20-40 | BF7: 40-60 | BG7: 60-80 | BH7: 80-100 | BM7: A-1 | BN7: =+C7 -> 1 | BO7: 4 | BP7: =+J7 -> 2 | BQ7: =+BO7*BP7 -> 8 | BR7: =IF(K7="",0,+K7) -> 0
C8: =1+C7 -> 2 | D8: 1 | E8: No. of Applications received as the ratio of Sanctioned seats in UG Part-I and PG (Prev. ). | H8: =IF(F8=0,"",ROUND(F8/G8,4)) ->  | I8: =IF(OR(F8="",G8="",G8=0),"",SUM(L8:P8)) ->  | J8: 1.5 | K8: =IF(I8="","",+I8*J8*AA8) ->  | L8: =IF($H8<$S8,$L$5,"") ->  | M8: =IF(AND($H8<$U8,$H8>$R8),$M$5,"") ->  | N8: =IF(AND($H8<$W8,$H8>$T8),$N$5,"") ->  | O8: =IF(AND($H8<$Y8,$H8>$V8),$O$5,"") ->  | P8: =IF(AND($H8<Z8,H8>X8),$P$5,"") ->  | Q8: 0 | R8: 0.1999 | S8: 0.2 | T8: 0.9999 | U8: 1 | V8: 1.4999 | W8: 1.5 | X8: 1.9999 | Y8: 2 | Z8: 10000 | AA8: =IF(OR(AND(AE8="YES",AF8="PHYSICALLY VERIFIED"),AND(AE8="YES",AF8="DOCUMENT VERIFIED"),AND(AE8="YES",'Basic Details'!$D$31="Self Assessment"),AND(AE8="YES",'Basic Details'!$D$31="Draft")),1*IF(BB8="ERROR INPUT",0+1,1),0) -> 0 | AC8: =IF(AB8="","","-") ->  | AH8: From College Admission Nodal login | BD8: 0.0-0.2 | BE8: 0.2-1.0 | BF8: 1.0-1.5 | BG8: 1.5-2.0 | BH8: 2.0 & Above | BM8: A-1 | BN8: 2 | BO8: 4 | BP8: =+J8 -> 1.5 | BQ8: =+BO8*BP8 -> 6 | BR8: =IF(K8="",0,+K8) -> 0 | BS8: =+BP8+BP7 -> 3.5 | BT8: =+BR8+BR7 -> 0 | BU8: =+BQ8+BQ7 -> 14
B9: A-2 Inclusivity | C9: =1+C8 -> 3 | D9: 1 | E9: Percentage of Girls in case of (a) Co Ed. College. | G9: =IF(F10="yes","",IF(F9="","",+$F$7)) ->  | H9: =IF(F9="","",ROUND(F9/G9,4)) ->  | I9: =IF(OR(F9="",G9="",G9=0),"",IF(F10="yes",0,SUM(L9:P9))) ->  | J9: 1 | K9: =IF(I9="","",+I9*J9*AA9) ->  | L9: =IF($H9<$S9%,$L$5,"") ->  | M9: =IF(AND($H9<$U9%,$H9>$R9%),$M$5,"") ->  | N9: =IF(AND($H9<$W9%,$H9>$T9%),$N$5,"") ->  | O9: =IF(AND($H9<$Y9%,$H9>$V9%),$O$5,"") ->  | P9: =IF(AND($H9<Z9%,H9>X9%),$P$5,"") ->  | Q9: 0 | R9: 9.999 | S9: 10 | T9: 19.999 | U9: 20 | V9: 29.999 | W9: 30 | X9: 49.999 | Y9: 50 | Z9: 10000 | AA9: =IF(OR(AND(AE9="YES",AF9="PHYSICALLY VERIFIED"),AND(AE9="YES",AF9="DOCUMENT VERIFIED"),AND(AE9="YES",'Basic Details'!$D$31="Self Assessment"),AND(AE9="YES",'Basic Details'!$D$31="Draft")),1*IF(BB9="ERROR INPUT",0+1,1),0) -> 0 | AH9: College Statistical booklet/AISHE DCF / Online data verified from nodal login | BB9: =IF(F9>G9,"ERROR INPUT","") ->  | BD9: 0-10 | BE9: 10-20 | BF9: 20-30 | BG9: 30-50 | BH9: 50 & Above | BM9: A-2 | BN9: 3 | BO9: 4 | BP9: 1 | BQ9: 4 | BR9: 0
C10: 4 | E10: Percentage of Girls in case of (b) Girls College. | H10: =+F10 -> 0 | I10: =IF(I7="","",IF(H10="",0,SUM(L10:P10))) ->  | K10: =IF(I10="","",+I10*J9*AA10) ->  | L10: =IF(OR(H10="",H10="NO"),$L$5,"") ->  | M10: =IF(AND($H10<$U10%,$H10>$R10%),$M$5,"") ->  | N10: =IF(AND($H10<$W10%,$H10>$T10%),$N$5,"") ->  | O10: =IF(AND($H10<$Y10%,$H10>$V10%),$O$5,"") ->  | P10: =IF(H10="YES",$P$5,"") ->  | AA10: =IF(OR(AND(AE10="YES",AF10="PHYSICALLY VERIFIED"),AND(AE10="YES",AF10="DOCUMENT VERIFIED"),AND(AE10="YES",'Basic Details'!$D$31="Self Assessment"),AND(AE10="YES",'Basic Details'!$D$31="Draft")),1*IF(BB10="ERROR INPUT",0+1,1),0) -> 0 | AH10: College Statistical booklet/AISHE DCF / Online data verified from nodal login | BD10: NO | BH10: Yes | BM10: A-2 | BN10: 4 | BO10: 4 | BP10: 0 | BQ10: 0 | BR10: 0
C11: =1+C9 -> 4 | D11: 1 | E11: Percentage of SC. | G11: =IF(F11="","",+$F$7) ->  | H11: =IF(F11="","",ROUND(F11/G11,4)) ->  | I11: =IF(OR(F11="",G11="",G11=0),"",SUM(L11:P11)) ->  | J11: 0.25 | K11: =IF(I11="","",+I11*J11*AA11) ->  | L11: =IF($H11<$S11%,$L$5,"") ->  | P11: =IF(AND($H11<Z11%,H11>X11%),$P$5,"") ->  | Q11: 0 | R11: 0 | S11: 0.0009 | T11: 9.9999 | U11: 10 | V11: 19.999 | W11: 20 | X11: 29.999 | Y11: 30 | Z11: 10000 | AA11: =IF(OR(AND(AE11="YES",AF11="PHYSICALLY VERIFIED"),AND(AE11="YES",AF11="DOCUMENT VERIFIED"),AND(AE11="YES",'Basic Details'!$D$31="Self Assessment"),AND(AE11="YES",'Basic Details'!$D$31="Draft")),1*IF(BB11="ERROR INPUT",0+1,1),0) -> 0 | AH11: College Statistical booklet/AISHE DCF / Online data verified from nodal login | BB11: =IF(F11>G11,"ERROR INPUT","") ->  | BD11: 0 | BE11: More than 0 but less than 10 | BF11: 10-20 | BG11: 20-30 | BH11: 30 & Above | BM11: A-2 | BN11: 4 | BO11: 4 | BP11: 0.25 | BQ11: 1 | BR11: 0
C12: 5 | D12: 1 | E12: Percentage of ST. | J12: 0.25 | Q12: 0 | R12: 0 | S12: 0.0009 | T12: 9.9999 | U12: 10 | V12: 19.999 | W12: 20 | X12: 29.999 | Y12: 30 | Z12: 10000 | AA12: =IF(OR(AND(AE12="YES",AF12="PHYSICALLY VERIFIED"),AND(AE12="YES",AF12="DOCUMENT VERIFIED"),AND(AE12="YES",'Basic Details'!$D$31="Self Assessment"),AND(AE12="YES",'Basic Details'!$D$31="Draft")),1*IF(BB12="ERROR INPUT",0+1,1),0) -> 0 | AH12: College Statistical booklet/AISHE DCF / Online data verified from nodal login | BD12: 0 | BE12: More than 0 but less than 10 | BF12: 10-20 | BG12: 20-30 | BH12: 30 & Above | BM12: A-2 | BN12: 5 | BO12: 4 | BP12: 0.25 | BQ12: 1 | BR12: 0
C13: 6 | D13: 1 | E13: Percentage of OBC. | J13: 0.25 | Q13: 0 | R13: 0 | S13: 0.0009 | T13: 14.999 | U13: 15 | V13: 29.999 | W13: 30 | X13: 44.999 | Y13: 45 | Z13: 10000 | AA13: =IF(OR(AND(AE13="YES",AF13="PHYSICALLY VERIFIED"),AND(AE13="YES",AF13="DOCUMENT VERIFIED"),AND(AE13="YES",'Basic Details'!$D$31="Self Assessment"),AND(AE13="YES",'Basic Details'!$D$31="Draft")),1*IF(BB13="ERROR INPUT",0+1,1),0) -> 0 | AH13: College Statistical booklet/AISHE DCF / Online data verified from nodal login | BD13: 0 | BE13: More than 0 but less than 15 | BF13: 15-20 | BG13: 30-45 | BH13: 45 & Above | BM13: A-2 | BN13: 6 | BO13: 4 | BP13: 0.25 | BQ13: 1 | BR13: 0
C14: 7 | D14: 1 | E14: Percentage of MBC. | J14: 0.25 | Q14: 0 | R14: 0 | S14: 0.0009 | T14: 1.999 | U14: 2 | V14: 3.999 | W14: 4 | X14: 5.999 | Y14: 6 | Z14: 10000 | AA14: =IF(OR(AND(AE14="YES",AF14="PHYSICALLY VERIFIED"),AND(AE14="YES",AF14="DOCUMENT VERIFIED"),AND(AE14="YES",'Basic Details'!$D$31="Self Assessment"),AND(AE14="YES",'Basic Details'!$D$31="Draft")),1*IF(BB14="ERROR INPUT",0+1,1),0) -> 0 | AH14: From nodal (Admission login) | BD14: 0 | BE14: More than 0 but less than 2 | BF14: 2-4 | BG14: 4-6 | BH14: 6 & Above | BM14: A-2 | BN14: 7 | BO14: 4 | BP14: 0.25 | BQ14: 1 | BR14: 0
C15: 8 | D15: 1 | E15: Percentage of EWS. | J15: 0.25 | Q15: 0 | R15: 0 | S15: 0.0009 | T15: 1.999 | U15: 2 | V15: 3.999 | W15: 4 | X15: 5.999 | Y15: 6 | Z15: 10000 | AA15: =IF(OR(AND(AE15="YES",AF15="PHYSICALLY VERIFIED"),AND(AE15="YES",AF15="DOCUMENT VERIFIED"),AND(AE15="YES",'Basic Details'!$D$31="Self Assessment"),AND(AE15="YES",'Basic Details'!$D$31="Draft")),1*IF(BB15="ERROR INPUT",0+1,1),0) -> 0 | AH15: From nodal (Admission login) | BD15: 0 | BE15: More than 0 but less than 2 | BF15: 2-4 | BG15: 4-6 | BH15: 6 & Above | BM15: A-2 | BN15: 8 | BO15: 4 | BP15: 0.25 | BQ15: 1 | BR15: 0
C16: 9 | D16: 1 | E16: Percentage of Minorities. | J16: 0.25 | Q16: 0 | R16: 0 | S16: 0.0009 | T16: 0.999 | U16: 1 | V16: 1.999 | W16: 2 | X16: 2.999 | Y16: 3 | Z16: 10000 | AA16: =IF(OR(AND(AE16="YES",AF16="PHYSICALLY VERIFIED"),AND(AE16="YES",AF16="DOCUMENT VERIFIED"),AND(AE16="YES",'Basic Details'!$D$31="Self Assessment"),AND(AE16="YES",'Basic Details'!$D$31="Draft")),1*IF(BB16="ERROR INPUT",0+1,1),0) -> 0 | AH16: College Statistical booklet/AISHE DCF / Online data verified from nodal login | BD16: 0 | BE16: More than 0 but less than 1 | BF16: 1-2 | BG16: 2-3 | BH16: 3 & Above | BM16: A-2 | BN16: 9 | BO16: 4 | BP16: 0.25 | BQ16: 1 | BR16: 0
C17: 10 | D17: 1 | E17: Percentage of Students from other districts. | J17: 0.25 | Q17: 0 | R17: 0 | S17: 0.0009 | T17: 1.999 | U17: 2 | V17: 3.999 | W17: 4 | X17: 5.999 | Y17: 6 | Z17: 10000 | AA17: =IF(OR(AND(AE17="YES",AF17="PHYSICALLY VERIFIED"),AND(AE17="YES",AF17="DOCUMENT VERIFIED"),AND(AE17="YES",'Basic Details'!$D$31="Self Assessment"),AND(AE17="YES",'Basic Details'!$D$31="Draft")),1*IF(BB17="ERROR INPUT",0+1,1),0) -> 0 | AH17: From nodal (Admission login) | BD17: 0 | BE17: More than 0 but less than 2 | BF17: 2-4 | BG17: 4-6 | BH17: 6 & Above | BM17: A-2 | BN17: 10 | BO17: 4 | BP17: 0.25 | BQ17: 1 | BR17: 0
A18: A. Teaching and Learning | B18: A-2 Inclusivity | C18: 11 | D18: 1 | E18: Percentage of BPL Students. | J18: 0.25 | Q18: 0 | R18: 0 | S18: 0.0009 | T18: 9.9999 | U18: 10 | V18: 19.999 | W18: 20 | X18: 29.999 | Y18: 30 | Z18: 10000 | AA18: =IF(OR(AND(AE18="YES",AF18="PHYSICALLY VERIFIED"),AND(AE18="YES",AF18="DOCUMENT VERIFIED"),AND(AE18="YES",'Basic Details'!$D$31="Self Assessment"),AND(AE18="YES",'Basic Details'!$D$31="Draft")),1*IF(BB18="ERROR INPUT",0+1,1),0) -> 0 | AH18: From nodal (Admission login) | BD18: 0 | BE18: More than 0 but less than 10 | BF18: 10-20 | BG18: 20-30 | BH18: 30 & Above | BM18: A-2 | BN18: 11 | BO18: 4 | BP18: 0.25 | BQ18: 1 | BR18: 0
C19: 12 | D19: 1 | E19: Percentage of Divyang students. | J19: 0.25 | Q19: 0 | R19: 0 | S19: 0.0009 | T19: 0.099 | U19: 0.1 | V19: 0.1999 | W19: 0.2 | X19: 0.2999 | Y19: 0.3 | Z19: 10000 | AA19: =IF(OR(AND(AE19="YES",AF19="PHYSICALLY VERIFIED"),AND(AE19="YES",AF19="DOCUMENT VERIFIED"),AND(AE19="YES",'Basic Details'!$D$31="Self Assessment"),AND(AE19="YES",'Basic Details'!$D$31="Draft")),1*IF(BB19="ERROR INPUT",0+1,1),0) -> 0 | AH19: From AISHE DSF / From nodal (Admission login) | BD19: 0 | BE19: More than 0 but less than 0.1 | BF19: 0.1-0.2 | BG19: 0.2-0.3 | BH19: 0.3 & Above | BM19: A-2 | BN19: 12 | BO19: 4 | BP19: 0.25 | BQ19: 1 | BR19: 0 | BS19: =SUM(BP9:BP19) -> 3.25 | BT19: =SUM(BR9:BR19) -> 0 | BU19: =SUM(BQ9:BQ19) -> 13
B20: A-3 Choices | C20: 13 | D20: 1 | E20: No. of Faculties (Arts, Science, Commerce, Agriculture, Law etc.). | H20: =+F20 -> 0 | I20: =IF(F20="","",SUM(L20:P20)) ->  | J20: 0.5 | L20: =IF($H20<$S20,$L$5,"") -> 0 | M20: =IF(AND($H20<$U20,$H20>$R20),$M$5,"") ->  | N20: =IF(AND($H20<$W20,$H20>$T20),$N$5,"") ->  | O20: =IF(AND($H20<$Y20,$H20>$V20),$O$5,"") ->  | P20: =IF(AND($H20<Z20,H20>X20),$P$5,"") ->  | Q20: 0 | R20: 0.999 | S20: 1 | T20: 1.999 | U20: 2 | V20: 2.999 | W20: 3 | X20: 3.999 | Y20: 4 | Z20: 10000 | AA20: =IF(OR(AND(AE20="YES",AF20="PHYSICALLY VERIFIED"),AND(AE20="YES",AF20="DOCUMENT VERIFIED"),AND(AE20="YES",'Basic Details'!$D$31="Self Assessment"),AND(AE20="YES",'Basic Details'!$D$31="Draft")),1*IF(BB20="ERROR INPUT",0+1,1),0) -> 0 | AH20: College Statistical booklet/AISHE DCF / Online data verified from nodal login | BD20: 0 | BE20: 1 | BF20: 2 | BG20: 3 | BH20: 4 & Above | BM20: A-3 | BN20: 13 | BO20: 4 | BP20: 0.5 | BQ20: 2 | BR20: 0
C21: 14 | D21: 1 | E21: No. of Subjects offered at UG Courses. | H21: =+F21 -> 0 | I21: =IF(F21="","",SUM(L21:P21)) ->  | J21: 1 | L21: =IF($H21<$S21,$L$5,"") -> 0 | M21: =IF(AND($H21<$U21,$H21>$R21),$M$5,"") ->  | N21: =IF(AND($H21<$W21,$H21>$T21),$N$5,"") ->  | O21: =IF(AND($H21<$Y21,$H21>$V21),$O$5,"") ->  | P21: =IF(AND($H21<Z21,H21>X21),$P$5,"") ->  | Q21: 0 | R21: 2 | S21: 3 | T21: 5 | U21: 6 | V21: 8 | W21: 9 | X21: 12 | Y21: 13 | Z21: 10000 | AA21: =IF(OR(AND(AE21="YES",AF21="PHYSICALLY VERIFIED"),AND(AE21="YES",AF21="DOCUMENT VERIFIED"),AND(AE21="YES",'Basic Details'!$D$31="Self Assessment"),AND(AE21="YES",'Basic Details'!$D$31="Draft")),1*IF(BB21="ERROR INPUT",0+1,1),0) -> 0 | AH21: College Statistical booklet/AISHE DCF / Online data verified from nodal login | BD21: 0 | BE21: 3-5 | BF21: 6-8 | BG21: 9-12 | BH21: 13 & Above | BM21: A-3 | BN21: 14 | BO21: 4 | BP21: 1 | BQ21: 4 | BR21: 0
C22: 15 | D22: 1 | E22: No. of PG Courses offered. | H22: 0 | J22: 0.5 | L22: =IF($H22<$S22,$L$5,"") -> 0 | M22: =IF(AND($H22<$U22,$H22>$R22),$M$5,"") ->  | N22: =IF(AND($H22<$W22,$H22>$T22),$N$5,"") ->  | O22: =IF(AND($H22<$Y22,$H22>$V22),$O$5,"") ->  | P22: =IF(AND($H22<Z22,H22>X22),$P$5,"") ->  | Q22: 0 | R22: 0 | S22: 1 | T22: 3 | U22: 4 | V22: 6 | W22: 7 | X22: 9 | Y22: 10 | Z22: 10000 | AA22: =IF(OR(AND(AE22="YES",AF22="PHYSICALLY VERIFIED"),AND(AE22="YES",AF22="DOCUMENT VERIFIED"),AND(AE22="YES",'Basic Details'!$D$31="Self Assessment"),AND(AE22="YES",'Basic Details'!$D$31="Draft")),1*IF(BB22="ERROR INPUT",0+1,1),0) -> 0 | AH22: College Statistical booklet/AISHE DCF / Online data verified from nodal login | BD22: 0 | BE22: 1-3 | BF22: 4-6 | BG22: 7-9 | BH22: 10 & Above | BM22: A-3 | BN22: 15 | BO22: 4 | BP22: 0.5 | BQ22: 2 | BR22: 0
C23: 16 | D23: 1 | E23: No. of Vocational / Skill development Courses offered (RSLDC and Other agencies, including college level). | H23: 0 | J23: 0.5 | L23: =IF($H23<$S23,$L$5,"") -> 0 | M23: =IF(AND($H23<$U23,$H23>$R23),$M$5,"") ->  | N23: =IF(AND($H23<$W23,$H23>$T23),$N$5,"") ->  | O23: =IF(AND($H23<$Y23,$H23>$V23),$O$5,"") ->  | P23: =IF(AND($H23<Z23,H23>X23),$P$5,"") ->  | Q23: 0 | R23: 0 | S23: 1 | T23: 5 | U23: 6 | V23: 10 | W23: 11 | X23: 15 | Y23: 16 | Z23: 10000 | AA23: =IF(OR(AND(AE23="YES",AF23="PHYSICALLY VERIFIED"),AND(AE23="YES",AF23="DOCUMENT VERIFIED"),AND(AE23="YES",'Basic Details'!$D$31="Self Assessment"),AND(AE23="YES",'Basic Details'!$D$31="Draft")),1*IF(BB23="ERROR INPUT",0+1,1),0) -> 0 | AH23: Check from IGNOU / VMOU / Spoken Tutotrial Centre, whichever is applicable | BD23: 0 | BE23: 1-5 | BF23: 6-10 | BG23: 10-15 | BH23: 16 & Above | BM23: A-3 | BN23: 16 | BO23: 4 | BP23: 0.5 | BQ23: 2 | BR23: 0
C24: 17 | D24: 1 | E24: Percentage of students enrolled in Vocational / Skill development Courses. | G24: =IF(F24="","",+$F$7) ->  | H24: =IF(F24="","",ROUND(F24/G24,4)) ->  | I24: =IF(OR(F24="",G24="",G24=0),"",SUM(L24:P24)) ->  | J24: 0.5 | L24: =IF($H24<$S24%,$L$5,"") ->  | M24: =IF(AND($H24<$U24%,$H24>$R24%),$M$5,"") ->  | N24: =IF(AND($H24<$W24%,$H24>$T24%),$N$5,"") ->  | O24: =IF(AND($H24<$Y24%,$H24>$V24%),$O$5,"") ->  | P24: =IF(AND($H24<Z24%,H24>X24%),$P$5,"") ->  | Q24: 0 | R24: 0.999 | S24: 1 | T24: 2.999 | U24: 3 | V24: 5.999 | W24: 6 | X24: 9.999 | Y24: 10 | Z24: 10000 | AA24: =IF(OR(AND(AE24="YES",AF24="PHYSICALLY VERIFIED"),AND(AE24="YES",AF24="DOCUMENT VERIFIED"),AND(AE24="YES",'Basic Details'!$D$31="Self Assessment"),AND(AE24="YES",'Basic Details'!$D$31="Draft")),1*IF(BB24="ERROR INPUT",0+1,1),0) -> 0 | AH24: Registration records of students enrolled in IGNOU/VMOU skill courses | BB24: =IF(F24>G24,"ERROR INPUT","") ->  | BD24: 0-1 | BE24: 1-3 | BF24: 3-6 | BG24: 6-10 | BH24: 10 & Above | BM24: A-3 | BN24: 17 | BO24: 4 | BP24: 0.5 | BQ24: 2 | BR24: 0
C25: 18 | D25: 1 | E25: Percentage of Students passed in Vocational / Skill development Courses. | G25: =+F24 -> 0 | H25: =IF(F25="","",ROUND(F25/G25,4)) ->  | I25: =IF(OR(F25="",G25="",G25=0),"",SUM(L25:P25)) ->  | J25: 1 | Q25: 0 | R25: 0.999 | S25: 1 | T25: 2.999 | U25: 3 | V25: 5.999 | W25: 6 | X25: 9.999 | Y25: 10 | Z25: 10000 | AA25: =IF(OR(AND(AE25="YES",AF25="PHYSICALLY VERIFIED"),AND(AE25="YES",AF25="DOCUMENT VERIFIED"),AND(AE25="YES",'Basic Details'!$D$31="Self Assessment"),AND(AE25="YES",'Basic Details'!$D$31="Draft")),1*IF(BB25="ERROR INPUT",0+1,1),0) -> 0 | AH25: List of enrolled Students / Attendance Register | BB25: =IF(F25>G25,"ERROR INPUT","") ->  | BD25: 0-1 | BE25: 1-3 | BF25: 3-6 | BG25: 6-10 | BH25: 10 & Above | BM25: A-3 | BN25: 18 | BO25: 4 | BP25: 1 | BQ25: 4 | BR25: 0 | BS25: =SUM(BP20:BP25) -> 4 | BT25: =SUM(BR20:BR25) -> 0 | BU25: =SUM(BQ20:BQ25) -> 16
C26: 19 | E26: Number of subjects approved by the CCE | H26: =+F26 -> 0 | I26: =IF(F26="","",SUM(L26:P26)) ->  | J26: 0.5 | L26: =IF($H26<$S26,$L$5,"") -> 0 | M26: =IF(AND($H26<$U26,$H26>$R26),$M$5,"") ->  | N26: =IF(AND($H26<$W26,$H26>$T26),$N$5,"") ->  | O26: =IF(AND($H26<$Y26,$H26>$V26),$O$5,"") ->  | P26: =IF(AND($H26<Z26,H26>X26),$P$5,"") ->  | Q26: 0 | R26: 5 | S26: 6 | T26: 10 | U26: 11 | V26: 15 | W26: 16 | X26: 20 | Y26: 21 | Z26: 10000 | AA26: =IF(OR(AND(AE26="YES",AF26="PHYSICALLY VERIFIED"),AND(AE26="YES",AF26="DOCUMENT VERIFIED"),AND(AE26="YES",'Basic Details'!$D$31="Self Assessment"),AND(AE26="YES",'Basic Details'!$D$31="Draft")),1*IF(BB26="ERROR INPUT",0+1,1),0) -> 0 | BD26: 0-5 | BE26: 6-10 | BF26: 11-15 | BG26: 16-20 | BH26: 21 & Above | BM26: A-3 | BN26: 19 | BO26: 4 | BP26: 0.5 | BQ26: 2 | BR26: 0
A27: A. Teaching and Learning | B27: A-3 Choices | C27: 20 | E27: Number of subjects approved by the University | H27: 0 | J27: 0.5 | L27: 0 | Q27: 0 | R27: 5 | S27: 6 | T27: 10 | U27: 11 | V27: 15 | W27: 16 | X27: 20 | Y27: 21 | Z27: 10000 | AA27: =IF(OR(AND(AE27="YES",AF27="PHYSICALLY VERIFIED"),AND(AE27="YES",AF27="DOCUMENT VERIFIED"),AND(AE27="YES",'Basic Details'!$D$31="Self Assessment"),AND(AE27="YES",'Basic Details'!$D$31="Draft")),1*IF(BB27="ERROR INPUT",0+1,1),0) -> 0 | BD27: 0-5 | BE27: 6-10 | BF27: 11-15 | BG27: 16-20 | BH27: 21 & Above | BM27: A-3 | BN27: 20 | BO27: 4 | BP27: 0.5 | BQ27: 2 | BR27: 0
C28: 21 | E28: Average number of students per class (ARTS-UG-Part 1) | H28: =IF(F28=0,"",ROUND(F28/G28,4)) ->  | J28: 0.25 | Q28: 0 | R28: 0.99999 | S28: 1 | T28: 79.9999 | U28: 80 | V28: 100000 | W28: 100000000 | X28: 100000000 | Y28: 100000000 | Z28: 100000000 | AA28: =IF(OR(AND(AE28="YES",AF28="PHYSICALLY VERIFIED"),AND(AE28="YES",AF28="DOCUMENT VERIFIED"),AND(AE28="YES",'Basic Details'!$D$31="Self Assessment"),AND(AE28="YES",'Basic Details'!$D$31="Draft")),1*IF(BB28="ERROR INPUT",0+1,1),0) -> 0 | BD28: 0 | BE28: More than 0 but less than 80 | BF28: 80 & More | BM28: A-3 | BN28: 21 | BO28: 4 | BP28: 0.25 | BQ28: 1 | BR28: 0
C29: 22 | E29: Average number of students per class (COMMERCE, BBA-UG-Part 1) | H29: =IF(F29=0,"",ROUND(F29/G29,4)) ->  | J29: 0.25 | Q29: 0 | R29: 0.99999 | S29: 1 | T29: 79.9999 | U29: 80 | V29: 100000 | W29: 100000000 | X29: 100000000 | Y29: 100000000 | Z29: 100000000 | AA29: =IF(OR(AND(AE29="YES",AF29="PHYSICALLY VERIFIED"),AND(AE29="YES",AF29="DOCUMENT VERIFIED"),AND(AE29="YES",'Basic Details'!$D$31="Self Assessment"),AND(AE29="YES",'Basic Details'!$D$31="Draft")),1*IF(BB29="ERROR INPUT",0+1,1),0) -> 0 | BD29: 0 | BE29: More than 0 but less than 80 | BF29: 80 & More | BM29: A-3 | BN29: 22 | BO29: 4 | BP29: 0.25 | BQ29: 1 | BR29: 0
C30: 23 | E30: Average number of students per class (ALL SCIENCES-UG-Part 1) | H30: =IF(F30=0,"",ROUND(F30/G30,4)) ->  | J30: 0.25 | Q30: 0 | R30: 0.99999 | S30: 1 | T30: 69.9999 | U30: 70 | V30: 100000 | W30: 100000000 | X30: 100000000 | Y30: 100000000 | Z30: 100000000 | AA30: =IF(OR(AND(AE30="YES",AF30="PHYSICALLY VERIFIED"),AND(AE30="YES",AF30="DOCUMENT VERIFIED"),AND(AE30="YES",'Basic Details'!$D$31="Self Assessment"),AND(AE30="YES",'Basic Details'!$D$31="Draft")),1*IF(BB30="ERROR INPUT",0+1,1),0) -> 0 | BD30: 0 | BE30: More than 0 but less than 70 | BF30: 70 & More | BM30: A-3 | BN30: 23 | BO30: 4 | BP30: 0.25 | BQ30: 1 | BR30: 0
C31: 24 | E31: Number of Working Subject Combinations in (ARTS-UG) | H31: =+F31 -> 0 | J31: 0.25 | L31: 0 | Q31: 0 | R31: 0 | S31: 1 | T31: 5 | U31: 6 | V31: 10 | W31: 11 | X31: 15 | Y31: 16 | Z31: 100 | AA31: =IF(OR(AND(AE31="YES",AF31="PHYSICALLY VERIFIED"),AND(AE31="YES",AF31="DOCUMENT VERIFIED"),AND(AE31="YES",'Basic Details'!$D$31="Self Assessment"),AND(AE31="YES",'Basic Details'!$D$31="Draft")),1*IF(BB31="ERROR INPUT",0+1,1),0) -> 0 | BD31: 0 | BE31: 1-5 | BF31: 6-10 | BG31: 11-15 | BH31: 16 & More | BM31: A-3 | BN31: 24 | BO31: 4 | BP31: 0.25 | BQ31: 1 | BR31: 0
C32: 25 | E32: Number of Working Subject Combinations in (COMMERCE,BBA-UG) | H32: =+F32 -> 0 | J32: 0.25 | L32: 0 | Q32: 0 | R32: 0 | S32: 1 | T32: 1 | U32: 2 | V32: 2 | W32: 3 | X32: 3 | Y32: 4 | Z32: 100 | AA32: =IF(OR(AND(AE32="YES",AF32="PHYSICALLY VERIFIED"),AND(AE32="YES",AF32="DOCUMENT VERIFIED"),AND(AE32="YES",'Basic Details'!$D$31="Self Assessment"),AND(AE32="YES",'Basic Details'!$D$31="Draft")),1*IF(BB32="ERROR INPUT",0+1,1),0) -> 0 | BD32: 0 | BE32: 1 | BF32: 2 | BG32: 3 | BH32: 4 & More | BM32: A-3 | BN32: 25 | BO32: 4 | BP32: 0.25 | BQ32: 1 | BR32: 0
C33: 26 | E33: Number of Working Subject Combinations in (ALL SCIENCES-UG) | H33: 0 | J33: 0.25 | L33: 0 | Q33: 0 | R33: 0 | S33: 1 | T33: 2 | U33: 3 | V33: 3 | W33: 4 | X33: 4 | Y33: 5 | Z33: 100 | AA33: =IF(OR(AND(AE33="YES",AF33="PHYSICALLY VERIFIED"),AND(AE33="YES",AF33="DOCUMENT VERIFIED"),AND(AE33="YES",'Basic Details'!$D$31="Self Assessment"),AND(AE33="YES",'Basic Details'!$D$31="Draft")),1*IF(BB33="ERROR INPUT",0+1,1),0) -> 0 | BD33: 0 | BE33: 1-2 | BF33: 3 | BG33: 4 | BH33: 5 & More | BM33: A-3 | BN33: 26 | BO33: 4 | BP33: 0.25 | BQ33: 1 | BR33: 0
B34: A-4 Faculty-Portrayal | C34: =1+C33 -> 27 | D34: 1 | E34: Working faculty as percentage of posts- required-as-per-rules | H34: =IF(F34="","",ROUND(F34/G34,4)) ->  | J34: 1 | L34: =IF($H34<$S34%,$L$5,"") ->  | M34: =IF(AND($H34<$U34%,$H34>$R34%),$M$5,"") ->  | N34: =IF(AND($H34<$W34%,$H34>$T34%),$N$5,"") ->  | O34: =IF(AND($H34<$Y34%,$H34>$V34%),$O$5,"") ->  | P34: =IF(AND($H34<Z34%,H34>X34%),$P$5,"") ->  | Q34: 0 | R34: 19.999 | S34: 20 | T34: 39.999 | U34: 40 | V34: 59.999 | W34: 60 | X34: 79.999 | Y34: 80 | Z34: 10000 | AA34: =IF(OR(AND(AE34="YES",AF34="PHYSICALLY VERIFIED"),AND(AE34="YES",AF34="DOCUMENT VERIFIED"),AND(AE34="YES",'Basic Details'!$D$31="Self Assessment"),AND(AE34="YES",'Basic Details'!$D$31="Draft")),1*IF(BB34="ERROR INPUT",0+1,1),0) -> 0 | AH34: Attendance Register / AISHE DCF | BD34: 0-20 | BE34: 20-40 | BF34: 40-60 | BG34: 60-80 | BH34: 80 & Above | BM34: A-4 | BN34: 27 | BO34: 4 | BP34: 1 | BQ34: 4 | BR34: 0
C35: 28 | D35: 1 | E35: Percentage of filled posts (regular appointments) against no. of posts-required-as-per-rules | G35: =IF(F35="","",+G34) ->  | H35: =IF(F35="","",ROUND(F35/G35,4)) ->  | J35: 1 | Q35: 0 | R35: 19.999 | S35: 20 | T35: 39.999 | U35: 40 | V35: 59.999 | W35: 60 | X35: 79.999 | Y35: 80 | Z35: 10000 | AA35: =IF(OR(AND(AE35="YES",AF35="PHYSICALLY VERIFIED"),AND(AE35="YES",AF35="DOCUMENT VERIFIED"),AND(AE35="YES",'Basic Details'!$D$31="Self Assessment"),AND(AE35="YES",'Basic Details'!$D$31="Draft")),1*IF(BB35="ERROR INPUT",0+1,1),0) -> 0 | AH35: Attendance Register / AISHE DCF | BD35: 0-20 | BE35: 20-40 | BF35: 40-60 | BG35: 60-80 | BH35: 80 & Above | BM35: A-4 | BN35: 28 | BO35: 4 | BP35: 1 | BQ35: 4 | BR35: 0
A36: A. Teaching and Learning | B36: A-4 Faculty-Portrayal | C36: 29 | D36: 1 | E36: Percentage of working faculty members having Ph.D Degree. | G36: =IF(F36="","",+$F$34) ->  | H36: =IF(F36="","",ROUND(F36/G36,4)) ->  | J36: 1.5 | Q36: 0 | R36: 20 | S36: 20.0001 | T36: 40 | U36: 40.0001 | V36: 60 | W36: 60.0001 | X36: 80 | Y36: 80.0001 | Z36: 10000 | AA36: =IF(OR(AND(AE36="YES",AF36="PHYSICALLY VERIFIED"),AND(AE36="YES",AF36="DOCUMENT VERIFIED"),AND(AE36="YES",'Basic Details'!$D$31="Self Assessment"),AND(AE36="YES",'Basic Details'!$D$31="Draft")),1*IF(BB36="ERROR INPUT",0+1,1),0) -> 0 | AH36: AISHE DCF AND Ph. D. Certificate | BD36: 0-20 | BE36: 20-40 | BF36: 40-60 | BG36: 60-80 | BH36: 80 & Above | BM36: A-4 | BN36: 29 | BO36: 4 | BP36: 1.5 | BQ36: 6 | BR36: 0
C37: 30 | D37: 1 | E37: Percentage of working faculty members having M.Phil. Degree (other than Ph.D). | G37: =IF(F37="","",+$F$34) ->  | J37: 0.5 | Q37: 0 | R37: 1.999 | S37: 2 | T37: 3.999 | U37: 4 | V37: 5.999 | W37: 6 | X37: 7.999 | Y37: 8 | Z37: 10000 | AA37: =IF(OR(AND(AE37="YES",AF37="PHYSICALLY VERIFIED"),AND(AE37="YES",AF37="DOCUMENT VERIFIED"),AND(AE37="YES",'Basic Details'!$D$31="Self Assessment"),AND(AE37="YES",'Basic Details'!$D$31="Draft")),1*IF(BB37="ERROR INPUT",0+1,1),0) -> 0 | AH37: AISHE DCF AND M.Phil. Certificate | BD37: 0-2 | BE37: 2-4 | BF37: 4-6 | BG37: 6-8 | BH37: 8 & Above | BM37: A-4 | BN37: 30 | BO37: 4 | BP37: 0.5 | BQ37: 2 | BR37: 0
C38: 31 | D38: 1 | E38: Percentage of working faculty members awarded PDF/D.Litt. | G38: =IF(F38="","",+$F$34) ->  | J38: 0.5 | Q38: 0 | R38: 1.999 | S38: 2 | T38: 3.999 | U38: 4 | V38: 5.999 | W38: 6 | X38: 7.999 | Y38: 8 | Z38: 10000 | AA38: =IF(OR(AND(AE38="YES",AF38="PHYSICALLY VERIFIED"),AND(AE38="YES",AF38="DOCUMENT VERIFIED"),AND(AE38="YES",'Basic Details'!$D$31="Self Assessment"),AND(AE38="YES",'Basic Details'!$D$31="Draft")),1*IF(BB38="ERROR INPUT",0+1,1),0) -> 0 | AH38: Certificate from Personal File / Copy Provided | BD38: 0-2 | BE38: 2-4 | BF38: 4-6 | BG38: 6-8 | BH38: 8 & Above | BM38: A-4 | BN38: 31 | BO38: 4 | BP38: 0.5 | BQ38: 2 | BR38: 0
C39: 32 | D39: 1 | E39: Student-Teacher ratio as per posts-required-as-per-rules | F39: =+$F$7 -> 0 | G39: =+G35 ->  | H39: =IF(F39=0,"",ROUND(F39/G39,4)) ->  | J39: 2 | L39: =IF($H39>$S39,$L$5,"") -> 0 | M39: =IF(AND($H39>$U39,$H39<$R39),$M$5,"") ->  | N39: =IF(AND($H39>$W39,$H39<$T39),$N$5,"") ->  | O39: =IF(AND($H39>$Y39,$H39<$V39),$O$5,"") ->  | P39: =IF(AND($H39>Z39,H39<X39),$P$5,"") ->  | Q39: 1000 | R39: 100.0001 | S39: 100 | T39: 80.0001 | U39: 80 | V39: 60.0001 | W39: 60 | X39: 40.0001 | Y39: 40 | Z39: 0.0001 | AA39: =IF(OR(AND(AE39="YES",AF39="PHYSICALLY VERIFIED"),AND(AE39="YES",AF39="DOCUMENT VERIFIED"),AND(AE39="YES",'Basic Details'!$D$31="Self Assessment"),AND(AE39="YES",'Basic Details'!$D$31="Draft")),1*IF(BB39="ERROR INPUT",0+1,1),0) -> 0 | AH39: College Statistical booklet/AISHE DCF | BD39: Above 1000 | BE39: 100-80 | BF39: 80-60 | BG39: 60-40 | BH39: 40 & Below | BM39: A-4 | BN39: 32 | BO39: 4 | BP39: 2 | BQ39: 8 | BR39: 0
C40: 33 | D40: 1 | E40: Student-Teacher ratio as per working no. of teachers | F40: =+$F$7 -> 0 | G40: =IF(F40="","",+$F$34) -> 0 | H40: =IF(F40=0,"",ROUND(F40/G40,4)) ->  | J40: 2 | L40: =IF($H40>$S40,$L$5,"") -> 0 | M40: =IF(AND($H40>$U40,$H40<$R40),$M$5,"") ->  | N40: =IF(AND($H40>$W40,$H40<$T40),$N$5,"") ->  | O40: =IF(AND($H40>$Y40,$H40<$V40),$O$5,"") ->  | P40: =IF(AND($H40>Z40,H40<X40),$P$5,"") ->  | Q40: 1000 | R40: 100.0001 | S40: 100 | T40: 80.0001 | U40: 80 | V40: 60.0001 | W40: 60 | X40: 40.0001 | Y40: 40 | Z40: 0.0001 | AA40: =IF(OR(AND(AE40="YES",AF40="PHYSICALLY VERIFIED"),AND(AE40="YES",AF40="DOCUMENT VERIFIED"),AND(AE40="YES",'Basic Details'!$D$31="Self Assessment"),AND(AE40="YES",'Basic Details'!$D$31="Draft")),1*IF(BB40="ERROR INPUT",0+1,1),0) -> 0 | AH40: College Statistical booklet/AISHE DCF | BD40: Above 1000 | BE40: 100-80 | BF40: 80-60 | BG40: 60-40 | BH40: 40 & Below | BM40: A-4 | BN40: 33 | BO40: 4 | BP40: 2 | BQ40: 8 | BR40: 0
C41: 34 | D41: 1 | E41: Target of content-wise teaching achieved in percentage. | H41: =IF(F41="","",ROUND(F41/G41,4)) ->  | J41: 1 | L41: =IF($H41<$S41%,$L$5,"") ->  | M41: =IF(AND($H41<$U41%,$H41>$R41%),$M$5,"") ->  | N41: =IF(AND($H41<$W41%,$H41>$T41%),$N$5,"") ->  | O41: =IF(AND($H41<$Y41%,$H41>$V41%),$O$5,"") ->  | P41: =IF(AND($H41<Z41%,H41>X41%),$P$5,"") ->  | Q41: 0 | R41: 19.999 | S41: 20 | T41: 39.999 | U41: 40 | V41: 59.999 | W41: 60 | X41: 79.999 | Y41: 80 | Z41: 10000 | AA41: =IF(OR(AND(AE41="YES",AF41="PHYSICALLY VERIFIED"),AND(AE41="YES",AF41="DOCUMENT VERIFIED"),AND(AE41="YES",'Basic Details'!$D$31="Self Assessment"),AND(AE41="YES",'Basic Details'!$D$31="Draft")),1*IF(BB41="ERROR INPUT",0+1,1),0) -> 0 | AH41: Self Declaration by concerned faculty and if feasible then to be verified from students. | BD41: 0-20 | BE41: 20-40 | BF41: 40-60 | BG41: 60-80 | BH41: 80 & Above | BM41: A-4 | BN41: 34 | BO41: 4 | BP41: 1 | BQ41: 4 | BR41: 0
C42: 35 | D42: 1 | E42: Percentage of faculty members contributed to devlopment of E-content (which is being utilised in more than one institution). | G42: =IF(F42="","",+$F$34) ->  | H42: =IF(F42="","",ROUND(F42/G42,4)) ->  | J42: 1 | Q42: 0 | R42: 0 | S42: 0.0001 | T42: 9.9999 | U42: 10 | V42: 19.9999 | W42: 20 | X42: 29.9999 | Y42: 30 | Z42: 10000 | AA42: =IF(OR(AND(AE42="YES",AF42="PHYSICALLY VERIFIED"),AND(AE42="YES",AF42="DOCUMENT VERIFIED"),AND(AE42="YES",'Basic Details'!$D$31="Self Assessment"),AND(AE42="YES",'Basic Details'!$D$31="Draft")),1*IF(BB42="ERROR INPUT",0+1,1),0) -> 0 | AH42: CCE Orders AND Recordings / YouTube channel | BB42: =IF(F42>G42,"ERROR INPUT","") ->  | BD42: 0 | BE42: More than 0 but less than 10 | BF42: 10-20 | BG42: 20-30 | BH42: 30 & Above | BM42: A-4 | BN42: 35 | BO42: 4 | BP42: 1 | BQ42: 4 | BR42: 0 | BS42: =SUM(BP34:BP42) -> 10.5 | BT42: =SUM(BR34:BR42) -> 0 | BU42: =SUM(BQ34:BQ42) -> 42
C43: =+C42+1 -> 36 | E43: Percentage of the working staff approved by the University | H43: =IF(F43="","",ROUND(F43/G43,4)) ->  | I43: =IF(F43="","",SUM(L43:P43)) ->  | J43: 0.5 | Q43: 0 | R43: 25 | S43: 25.001 | T43: 50 | U43: 50.001 | V43: 70 | W43: 70.001 | X43: 90 | Y43: 90.001 | Z43: 1000 | AA43: =IF(OR(AND(AE43="YES",AF43="PHYSICALLY VERIFIED"),AND(AE43="YES",AF43="DOCUMENT VERIFIED"),AND(AE43="YES",'Basic Details'!$D$31="Self Assessment"),AND(AE43="YES",'Basic Details'!$D$31="Draft")),1*IF(BB43="ERROR INPUT",0+1,1),0) -> 0 | BD43: 0-25 | BE43: 25-50 | BF43: 50-70 | BG43: 70-90 | BH43: More than 90 | BM43: A-4 | BN43: 36 | BO43: 4 | BP43: 0.5 | BQ43: 2 | BR43: 0
C44: =+C43+1 -> 37 | E44: Percentage of the faculty members (including Principal) working in the college continuously for 5 years. | I44: =IF(F44="","",SUM(L44:P44)) ->  | J44: 0.5 | Q44: 0 | R44: 25 | S44: 25.001 | T44: 50 | U44: 50.001 | V44: 70 | W44: 70.001 | X44: 90 | Y44: 90.001 | Z44: 1000 | AA44: =IF(OR(AND(AE44="YES",AF44="PHYSICALLY VERIFIED"),AND(AE44="YES",AF44="DOCUMENT VERIFIED"),AND(AE44="YES",'Basic Details'!$D$31="Self Assessment"),AND(AE44="YES",'Basic Details'!$D$31="Draft")),1*IF(BB44="ERROR INPUT",0+1,1),0) -> 0 | BD44: 0-25 | BE44: 25-50 | BF44: 50-70 | BG44: 70-90 | BH44: More than 90 | BM44: A-4 | BN44: 37 | BO44: 4 | BP44: 0.5 | BQ44: 2 | BR44: 0
A45: A. Teaching and Learning | B45: A-5 Student performance and learning outcomes | C45: =1+C44 -> 38 | D45: 2 | E45: Pass percentage in last University result. | J45: 3 | Q45: 0 | R45: 20 | S45: 20.0001 | T45: 40 | U45: 40.0001 | V45: 60 | W45: 60.0001 | X45: 80 | Y45: 80.0001 | Z45: 10000 | AA45: =IF(OR(AND(AE45="YES",AF45="PHYSICALLY VERIFIED"),AND(AE45="YES",AF45="DOCUMENT VERIFIED"),AND(AE45="YES",'Basic Details'!$D$31="Self Assessment"),AND(AE45="YES",'Basic Details'!$D$31="Draft")),1*IF(BB45="ERROR INPUT",0+1,1),0) -> 0 | AH45: TR of all courses AND AISHE DCF AND to be randomly verified by team (Only Final UG and Final PG) | BB45: =IF(F45>G45,"ERROR INPUT","") ->  | BD45: 0-20 | BE45: 20-40 | BF45: 40-60 | BG45: 60-80 | BH45: 80-100 | BM45: A-5 | BN45: 38 | BO45: 4 | BP45: 3 | BQ45: 12 | BR45: 0
C46: 39 | D46: 2 | E46: Percentage of Students scored 60% and above in University result. | G46: =+$G$45 -> 0 | J46: 2 | Q46: 0 | R46: 9.999 | S46: 10 | T46: 19.999 | U46: 20 | V46: 29.999 | W46: 30 | X46: 39.999 | Y46: 40 | Z46: 10000 | AA46: =IF(OR(AND(AE46="YES",AF46="PHYSICALLY VERIFIED"),AND(AE46="YES",AF46="DOCUMENT VERIFIED"),AND(AE46="YES",'Basic Details'!$D$31="Self Assessment"),AND(AE46="YES",'Basic Details'!$D$31="Draft")),1*IF(BB46="ERROR INPUT",0+1,1),0) -> 0 | AH46: To be calculated from TR AND to be randomly verified by team | BB46: =IF(F46>G46,"ERROR INPUT","") ->  | BD46: 0-10 | BE46: 10-20 | BF46: 20-30 | BG46: 30-40 | BH46: 40 & Above | BM46: A-5 | BN46: 39 | BO46: 4 | BP46: 2 | BQ46: 8 | BR46: 0
C47: 40 | D47: 2 | E47: Percentage of Students scored 75% and above in University result. | G47: =+$G$45 -> 0 | J47: 1 | L47: =IF($H47<$S47%,$L$5,"") ->  | M47: =IF(AND($H47<$U47%,$H47>$R47%),$M$5,"") ->  | N47: =IF(AND($H47<$W47%,$H47>$T47%),$N$5,"") ->  | O47: =IF(AND($H47<$Y47%,$H47>$V47%),$O$5,"") ->  | P47: =IF(AND($H47<Z47%,H47>X47%),$P$5,"") ->  | Q47: 0 | R47: 5e-05 | S47: 0.0001 | T47: 4.999 | U47: 5 | V47: 9.999 | W47: 10 | X47: 14.9999 | Y47: 15 | Z47: 10000 | AA47: =IF(OR(AND(AE47="YES",AF47="PHYSICALLY VERIFIED"),AND(AE47="YES",AF47="DOCUMENT VERIFIED"),AND(AE47="YES",'Basic Details'!$D$31="Self Assessment"),AND(AE47="YES",'Basic Details'!$D$31="Draft")),1*IF(BB47="ERROR INPUT",0+1,1),0) -> 0 | AH47: To be calculated from TR AND to be randomly verified by team | BB47: =IF(F47>G47,"ERROR INPUT","") ->  | BD47: 0 | BE47: More than 0 but less than 5 | BF47: 5-10 | BG47: 10-15 | BH47: 15 & Above | BM47: A-5 | BN47: 40 | BO47: 4 | BP47: 1 | BQ47: 4 | BR47: 0
C48: 41 | D48: 2 | E48: Number of students who won Gold Medal in University exam. | H48: =+F48 -> 0 | I48: =IF(F48="","",SUM(L48:P48)) ->  | J48: 0.5 | L48: =IF($H48<$S48,$L$5,"") -> 0 | M48: =IF(AND($H48<$U48,$H48>$R48),$M$5,"") ->  | N48: =IF(AND($H48<$W48,$H48>$T48),$N$5,"") ->  | O48: =IF(AND($H48<$Y48,$H48>$V48),$O$5,"") ->  | P48: =IF(AND($H48<Z48,H48>X48),$P$5,"") ->  | Q48: 0 | R48: 0 | S48: 1 | T48: 1 | U48: 2 | V48: 2 | W48: 3 | X48: 3 | Y48: 4 | Z48: 100 | AA48: =IF(OR(AND(AE48="YES",AF48="PHYSICALLY VERIFIED"),AND(AE48="YES",AF48="DOCUMENT VERIFIED"),AND(AE48="YES",'Basic Details'!$D$31="Self Assessment"),AND(AE48="YES",'Basic Details'!$D$31="Draft")),1*IF(BB48="ERROR INPUT",0+1,1),0) -> 0 | BD48: 0 | BE48: 1 | BF48: 2 | BG48: 3 | BH48: 4 & Above | BM48: A-5 | BN48: 41 | BO48: 4 | BP48: 0.5 | BQ48: 2 | BR48: 0 | BS48: =SUM(BP45:BP48) -> 6.5 | BT48: =SUM(BR45:BR48) -> 0 | BU48: =SUM(BQ45:BQ48) -> 26 | BV48: =SUM(BS7:BS48) -> 27.75 | BW48: =SUM(BT7:BT48) -> 0 | BX48: =SUM(BU7:BU48) -> 111
A49: B. Research and Professional Practices | B49: B-1 Research Output | C49: 42 | D49: 1 | E49: Percentage of faculty members having research papers published in UGC care list journals or in peer reviewd journals with ISSN during last 3 years. | G49: =IF(F49="","",+$F$34) ->  | H49: =IF(F49="","",ROUND(F49/G49,4)) ->  | J49: 1.5 | L49: =IF($H49<$S49%,$L$5,"") ->  | M49: =IF(AND($H49<$U49%,$H49>$R49%),$M$5,"") ->  | N49: =IF(AND($H49<$W49%,$H49>$T49%),$N$5,"") ->  | O49: =IF(AND($H49<$Y49%,$H49>$V49%),$O$5,"") ->  | P49: =IF(AND($H49<Z49%,H49>X49%),$P$5,"") ->  | Q49: 0 | R49: 0 | S49: 1e-05 | T49: 1.9999 | U49: 2 | V49: 2.9999 | W49: 3 | X49: 3.9999 | Y49: 4 | Z49: 10000 | AA49: =IF(OR(AND(AE49="YES",AF49="PHYSICALLY VERIFIED"),AND(AE49="YES",AF49="DOCUMENT VERIFIED"),AND(AE49="YES",'Basic Details'!$D$31="Self Assessment"),AND(AE49="YES",'Basic Details'!$D$31="Draft")),1*IF(BB49="ERROR INPUT",0+1,1),0) -> 0 | AH49: URL of Journal/Peer Reviewed/UGC Notified Copies of all publications. (Make a separate file with list) | BB49: =IF(F49>G49,"ERROR INPUT","") ->  | BD49: 0 | BE49: More than 0 but less than 2 | BF49: 2-3 | BG49: 3-4 | BH49: 4 & Above | BM49: B-1 | BN49: 42 | BO49: 4 | BP49: 1.5 | BQ49: 6 | BR49: 0
C50: 43 | D50: 1 | E50: Percentage of faculty members authored/co-authored at least one book with ISBN / Chapter in a Book (with ISBN).during last 3 years. | J50: 1.5 | Q50: 0 | R50: 0 | S50: 1e-05 | T50: 1.9999 | U50: 2 | V50: 2.9999 | W50: 3 | X50: 3.9999 | Y50: 4 | Z50: 10000 | AA50: =IF(OR(AND(AE50="YES",AF50="PHYSICALLY VERIFIED"),AND(AE50="YES",AF50="DOCUMENT VERIFIED"),AND(AE50="YES",'Basic Details'!$D$31="Self Assessment"),AND(AE50="YES",'Basic Details'!$D$31="Draft")),1*IF(BB50="ERROR INPUT",0+1,1),0) -> 0 | AH50: Copies of all books/Chapter published (Make a separate file with list) | BD50: 0 | BE50: More than 0 but less than 2 | BF50: 2-3 | BG50: 3-4 | BH50: 4 & Above | BM50: B-1 | BN50: 43 | BO50: 4 | BP50: 1.5 | BQ50: 6 | BR50: 0
C51: 44 | D51: 1 | E51: Percentage of faculty members recognized as research supervisor. | J51: 1.5 | Q51: 0 | R51: 0 | S51: 1e-05 | T51: 1.9999 | U51: 2 | V51: 2.9999 | W51: 3 | X51: 3.9999 | Y51: 4 | Z51: 10000 | AA51: =IF(OR(AND(AE51="YES",AF51="PHYSICALLY VERIFIED"),AND(AE51="YES",AF51="DOCUMENT VERIFIED"),AND(AE51="YES",'Basic Details'!$D$31="Self Assessment"),AND(AE51="YES",'Basic Details'!$D$31="Draft")),1*IF(BB51="ERROR INPUT",0+1,1),0) -> 0 | AH51: Copies of research guide registration letter (Make a list) | BD51: 0 | BE51: More than 0 but less than 2 | BF51: 2-3 | BG51: 3-4 | BH51: 4 & Above | BM51: B-1 | BN51: 44 | BO51: 4 | BP51: 1.5 | BQ51: 6 | BR51: 0
C52: 45 | D52: 1 | E52: Percentage of faculty members under whom at least one scholar is awarded Ph.D.. | J52: 1 | Q52: 0 | R52: 0 | S52: 1e-05 | T52: 1.9999 | U52: 2 | V52: 2.9999 | W52: 3 | X52: 3.9999 | Y52: 4 | Z52: 10000 | AA52: =IF(OR(AND(AE52="YES",AF52="PHYSICALLY VERIFIED"),AND(AE52="YES",AF52="DOCUMENT VERIFIED"),AND(AE52="YES",'Basic Details'!$D$31="Self Assessment"),AND(AE52="YES",'Basic Details'!$D$31="Draft")),1*IF(BB52="ERROR INPUT",0+1,1),0) -> 0 | AH52: Copies of registeration letter of scholer (Make a list of such scholars) | BD52: 0 | BE52: More than 0 but less than 2 | BF52: 2-3 | BG52: 3-4 | BH52: 4 & Above | BM52: B-1 | BN52: 45 | BO52: 4 | BP52: 1 | BQ52: 4 | BR52: 0
A53: B. Research and Professional Practices | B53: B-1 Research Output | C53: 46 | D53: 1 | E53: Percentage of faculty members presented at least 2 papers in international seminars / conferences / E Conferences during last 3 years. | J53: 1 | Q53: 0 | R53: 0 | S53: 1e-05 | T53: 9.9999 | U53: 10 | V53: 19.9999 | W53: 20 | X53: 29.9999 | Y53: 30 | Z53: 10000 | AA53: =IF(OR(AND(AE53="YES",AF53="PHYSICALLY VERIFIED"),AND(AE53="YES",AF53="DOCUMENT VERIFIED"),AND(AE53="YES",'Basic Details'!$D$31="Self Assessment"),AND(AE53="YES",'Basic Details'!$D$31="Draft")),1*IF(BB53="ERROR INPUT",0+1,1),0) -> 0 | AH53: Copies of certificate of presentation (Make a list of such staff members) | BD53: 0 | BE53: More than 0 but less than 10 | BF53: 10-20 | BG53: 20-30 | BH53: 30 & Above | BM53: B-1 | BN53: 46 | BO53: 4 | BP53: 1 | BQ53: 4 | BR53: 0
C54: 47 | D54: 1 | E54: Percentage faculty members presented at least 3 papers in national seminars / conferences / E Conference during last 3 years. | J54: 1.5 | Q54: 0 | R54: 0 | S54: 1e-05 | T54: 19.9999 | U54: 20 | V54: 29.9999 | W54: 30 | X54: 39.9999 | Y54: 40 | Z54: 10000 | AA54: =IF(OR(AND(AE54="YES",AF54="PHYSICALLY VERIFIED"),AND(AE54="YES",AF54="DOCUMENT VERIFIED"),AND(AE54="YES",'Basic Details'!$D$31="Self Assessment"),AND(AE54="YES",'Basic Details'!$D$31="Draft")),1*IF(BB54="ERROR INPUT",0+1,1),0) -> 0 | AH54: Copies of certificate of presentation (Make a list of such staff members) | BD54: 0 | BE54: More than 0 but less than 20 | BF54: 20-30 | BG54: 30-40 | BH54: 40 & Above | BM54: B-1 | BN54: 47 | BO54: 4 | BP54: 1.5 | BQ54: 6 | BR54: 0
C55: 48 | D55: 1 | E55: No. of International/National seminars / conferences/workshops / E Conference organized during last 5 years. | H55: =+F55 -> 0 | I55: =IF(F55="","",SUM(L55:P55)) ->  | J55: 1.5 | L55: =IF($H55<$S55,$L$5,"") -> 0 | M55: =IF(AND($H55<$U55,$H55>$R55),$M$5,"") ->  | N55: =IF(AND($H55<$W55,$H55>$T55),$N$5,"") ->  | O55: =IF(AND($H55<$Y55,$H55>$V55),$O$5,"") ->  | P55: =IF(AND($H55<Z55,H55>X55),$P$5,"") ->  | Q55: 0 | R55: 0 | S55: 1 | T55: 1 | U55: 2 | V55: 2 | W55: 3 | X55: 3 | Y55: 4 | Z55: 10000 | AA55: =IF(OR(AND(AE55="YES",AF55="PHYSICALLY VERIFIED"),AND(AE55="YES",AF55="DOCUMENT VERIFIED"),AND(AE55="YES",'Basic Details'!$D$31="Self Assessment"),AND(AE55="YES",'Basic Details'!$D$31="Draft")),1*IF(BB55="ERROR INPUT",0+1,1),0) -> 0 | AH55: Copies of brochurs, photographs and proceedings of conference (Make a list of such events) | BD55: 0 | BE55: 1 | BF55: 2 | BG55: 3 | BH55: 4 & Above | BM55: B-1 | BN55: 48 | BO55: 4 | BP55: 1.5 | BQ55: 6 | BR55: 0
C56: 49 | D56: 1 | E56: No. of faculty members who have acted as convener / Organizing secretary in national seminar / conferences / E Conference during last 5 years. | H56: 0 | J56: 1.5 | L56: =IF($H56<$S56,$L$5,"") -> 0 | M56: =IF(AND($H56<$U56,$H56>$R56),$M$5,"") ->  | N56: =IF(AND($H56<$W56,$H56>$T56),$N$5,"") ->  | O56: =IF(AND($H56<$Y56,$H56>$V56),$O$5,"") ->  | P56: =IF(AND($H56<Z56,H56>X56),$P$5,"") ->  | Q56: 0 | R56: 0 | S56: 1 | T56: 1 | U56: 2 | V56: 2 | W56: 3 | X56: 3 | Y56: 4 | Z56: 10000 | AA56: =IF(OR(AND(AE56="YES",AF56="PHYSICALLY VERIFIED"),AND(AE56="YES",AF56="DOCUMENT VERIFIED"),AND(AE56="YES",'Basic Details'!$D$31="Self Assessment"),AND(AE56="YES",'Basic Details'!$D$31="Draft")),1*IF(BB56="ERROR INPUT",0+1,1),0) -> 0 | AH56: Copies of brochurs, photographs and certificates (Make a list of such staff members) | BD56: 0 | BE56: 1 | BF56: 2 | BG56: 3 | BH56: 4 & Above | BM56: B-1 | BN56: 49 | BO56: 4 | BP56: 1.5 | BQ56: 6 | BR56: 0
C57: 50 | D57: 1 | E57: No. of Faculty members delivered Keynote / Plenary / Invited Lecture in Regional / National/ International Seminars / E-Conference (during last 3 years). | H57: =+F57 -> 0 | J57: 1.5 | L57: =IF($H57<$S57,$L$5,"") -> 0 | M57: =IF(AND($H57<$U57,$H57>$R57),$M$5,"") ->  | N57: =IF(AND($H57<$W57,$H57>$T57),$N$5,"") ->  | O57: =IF(AND($H57<$Y57,$H57>$V57),$O$5,"") ->  | P57: =IF(AND($H57<Z57,H57>X57),$P$5,"") ->  | Q57: 0 | R57: 0 | S57: 1 | T57: 1 | U57: 2 | V57: 2 | W57: 3 | X57: 3 | Y57: 4 | Z57: 10000 | AA57: =IF(OR(AND(AE57="YES",AF57="PHYSICALLY VERIFIED"),AND(AE57="YES",AF57="DOCUMENT VERIFIED"),AND(AE57="YES",'Basic Details'!$D$31="Self Assessment"),AND(AE57="YES",'Basic Details'!$D$31="Draft")),1*IF(BB57="ERROR INPUT",0+1,1),0) -> 0 | BD57: 0 | BE57: 1 | BF57: 2 | BG57: 3 | BH57: 4 & Above | BM57: B-1 | BN57: 50 | BO57: 4 | BP57: 1.5 | BQ57: 6 | BR57: 0
A58: B. Research and Professional Practices | B58: B-1 Research Output | C58: 51 | D58: 1 | E58: Percentage of faculty members who have been Awarded Research Projects from UGC, CSIR, DST, DBT, ICSSR and other research funding agency. | G58: =IF(F58="","",+$F$34) ->  | H58: =IF(F58="","",ROUND(F58/G58,4)) ->  | I58: =IF(OR(F58="",G58="",G58=0),"",SUM(L58:P58)) ->  | J58: 1 | L58: =IF($H58<$S58%,$L$5,"") ->  | M58: =IF(AND($H58<$U58%,$H58>$R58%),$M$5,"") ->  | N58: =IF(AND($H58<$W58%,$H58>$T58%),$N$5,"") ->  | O58: =IF(AND($H58<$Y58%,$H58>$V58%),$O$5,"") ->  | P58: =IF(AND($H58<Z58%,H58>X58%),$P$5,"") ->  | Q58: 0 | R58: 0 | S58: 1e-05 | T58: 1.9999 | U58: 2 | V58: 4.9999 | W58: 5 | X58: 8.9999 | Y58: 9 | Z58: 10000 | AA58: =IF(OR(AND(AE58="YES",AF58="PHYSICALLY VERIFIED"),AND(AE58="YES",AF58="DOCUMENT VERIFIED"),AND(AE58="YES",'Basic Details'!$D$31="Self Assessment"),AND(AE58="YES",'Basic Details'!$D$31="Draft")),1*IF(BB58="ERROR INPUT",0+1,1),0) -> 0 | AH58: Copies of Award letter/ (Make a list of such staff members) | BD58: 0 | BE58: More than 0 but less than 2 | BF58: 2-5 | BG58: 5-9 | BH58: 9 & Above | BM58: B-1 | BN58: 51 | BO58: 4 | BP58: 1 | BQ58: 4 | BR58: 0
C59: 52 | D59: 1 | E59: No. of faculty members, who are associated with any foreign agency for research / referee assignments. | H59: =+F59 -> 0 | I59: =IF(F59="","",SUM(L59:P59)) ->  | J59: 1 | L59: =IF($H59<$S59,$L$5,"") -> 0 | M59: =IF(AND($H59<$U59,$H59>$R59),$M$5,"") ->  | N59: =IF(AND($H59<$W59,$H59>$T59),$N$5,"") ->  | O59: =IF(AND($H59<$Y59,$H59>$V59),$O$5,"") ->  | P59: =IF(AND($H59<Z59,H59>X59),$P$5,"") ->  | Q59: 0 | R59: 0 | S59: 1 | T59: 1 | U59: 2 | V59: 2 | W59: 3 | X59: 3 | Y59: 4 | Z59: 10000 | AA59: =IF(OR(AND(AE59="YES",AF59="PHYSICALLY VERIFIED"),AND(AE59="YES",AF59="DOCUMENT VERIFIED"),AND(AE59="YES",'Basic Details'!$D$31="Self Assessment"),AND(AE59="YES",'Basic Details'!$D$31="Draft")),1*IF(BB59="ERROR INPUT",0+1,1),0) -> 0 | AH59: Copies of documents issued by agency (Make a list of such staff members) | BD59: 0 | BE59: 1 | BF59: 2 | BG59: 3 | BH59: 4 & Above | BM59: B-1 | BN59: 52 | BO59: 4 | BP59: 1 | BQ59: 4 | BR59: 0 | BS59: =SUM(BP49:BP59) -> 14.5 | BT59: =SUM(BR49:BR59) -> 0 | BU59: =SUM(BQ49:BQ59) -> 58
B60: B-2 Academic Enrichment | C60: 53 | D60: 1 | E60: Percentage of faculty members associated with academic associations/BOS member/University Academic Council/Associated with Board/Public Service Commission of any state. | G60: =IF(F60="","",+$F$34) ->  | H60: =IF(F60="","",ROUND(F60/G60,4)) ->  | I60: =IF(OR(F60="",G60="",G60=0),"",SUM(L60:P60)) ->  | J60: 1 | L60: =IF($H60<$S60%,$L$5,"") ->  | M60: =IF(AND($H60<$U60%,$H60>$R60%),$M$5,"") ->  | N60: =IF(AND($H60<$W60%,$H60>$T60%),$N$5,"") ->  | O60: =IF(AND($H60<$Y60%,$H60>$V60%),$O$5,"") ->  | P60: =IF(AND($H60<Z60%,H60>X60%),$P$5,"") ->  | Q60: 0 | R60: 0 | S60: 1e-05 | T60: 19.9999 | U60: 20 | V60: 29.9999 | W60: 30 | X60: 39.9999 | Y60: 40 | Z60: 10000 | AA60: =IF(OR(AND(AE60="YES",AF60="PHYSICALLY VERIFIED"),AND(AE60="YES",AF60="DOCUMENT VERIFIED"),AND(AE60="YES",'Basic Details'!$D$31="Self Assessment"),AND(AE60="YES",'Basic Details'!$D$31="Draft")),1*IF(BB60="ERROR INPUT",0+1,1),0) -> 0 | AH60: Copies of certificates issued by Academic Association etc. (Make a list of such staff members) | BD60: 0 | BE60: More than 0 but less than 20 | BF60: 20-30 | BG60: 30-40 | BH60: 40 & Above | BM60: B-2 | BN60: 53 | BO60: 4 | BP60: 1 | BQ60: 4 | BR60: 0
C61: 54 | D61: 1 | E61: Percentage of faculty members who have attended international level academic events / programmes outside India during last 5 years. | G61: =IF(F61="","",+$F$34) ->  | J61: 1 | Q61: 0 | R61: 0 | S61: 1e-05 | T61: 0.999 | U61: 1 | V61: 1.999 | W61: 2 | X61: 2.999 | Y61: 3 | Z61: 10000 | AA61: =IF(OR(AND(AE61="YES",AF61="PHYSICALLY VERIFIED"),AND(AE61="YES",AF61="DOCUMENT VERIFIED"),AND(AE61="YES",'Basic Details'!$D$31="Self Assessment"),AND(AE61="YES",'Basic Details'!$D$31="Draft")),1*IF(BB61="ERROR INPUT",0+1,1),0) -> 0 | AH61: Copies of participation certificates (Make a list of such staff members) | BD61: 0 | BE61: More than 0 but less than 1 | BF61: 1-2 | BG61: 2-3 | BH61: 3 & Above | BM61: B-2 | BN61: 54 | BO61: 4 | BP61: 1 | BQ61: 4 | BR61: 0
C62: 55 | D62: 1 | E62: Number of IPRs (Patents, Copyrights, Trade marks etc.) if any, in the name of faculty member of the college. | H62: =+F62 -> 0 | I62: =IF(F62="","",SUM(L62:P62)) ->  | J62: 1 | L62: =IF($H62<$S62,$L$5,"") -> 0 | M62: =IF(AND($H62<$U62,$H62>$R62),$M$5,"") ->  | N62: =IF(AND($H62<$W62,$H62>$T62),$N$5,"") ->  | O62: =IF(AND($H62<$Y62,$H62>$V62),$O$5,"") ->  | P62: =IF(AND($H62<Z62,H62>X62),$P$5,"") ->  | Q62: 0 | R62: 0 | S62: 1 | T62: 1 | U62: 2 | V62: 2 | W62: 3 | X62: 3 | Y62: 4 | Z62: 10000 | AA62: =IF(OR(AND(AE62="YES",AF62="PHYSICALLY VERIFIED"),AND(AE62="YES",AF62="DOCUMENT VERIFIED"),AND(AE62="YES",'Basic Details'!$D$31="Self Assessment"),AND(AE62="YES",'Basic Details'!$D$31="Draft")),1*IF(BB62="ERROR INPUT",0+1,1),0) -> 0 | AH62: Copies of documentary proof of IPR (Make a list of such staff members) | BD62: 0 | BE62: 1 | BF62: 2 | BG62: 3 | BH62: 4 & Above | BM62: B-2 | BN62: 55 | BO62: 4 | BP62: 1 | BQ62: 4 | BR62: 0 | BS62: =SUM(BP60:BP62) -> 3 | BT62: =SUM(BR60:BR62) -> 0 | BU62: =SUM(BQ60:BQ62) -> 12 | BV62: =SUM(BS49:BS62) -> 17.5 | BW62: =SUM(BT49:BT62) -> 0 | BX62: =SUM(BU49:BU62) -> 70
C63: 56 | E63: Have you ever been declared a defaulter by the CCE | H63: 0 | I63: =IF(F63="","",SUM(L63:P63)) ->  | J63: 0.5 | L63: =IF(OR(H63="",H63="yes"),$L$5,"") ->  | M63: =IF(AND($H63<$U63%,$H63>$R63%),$M$5,"") ->  | N63: =IF(AND($H63<$W63%,$H63>$T63%),$N$5,"") ->  | O63: =IF(AND($H63<$Y63%,$H63>$V63%),$O$5,"") ->  | P63: =IF(H63="no",$N$5,"") ->  | AA63: =IF(OR(AND(AE63="YES",AF63="PHYSICALLY VERIFIED"),AND(AE63="YES",AF63="DOCUMENT VERIFIED"),AND(AE63="YES",'Basic Details'!$D$31="Self Assessment"),AND(AE63="YES",'Basic Details'!$D$31="Draft")),1*IF(BB63="ERROR INPUT",0+1,1),0) -> 0 | BD63: Yes | BF63: No | BM63: B-2 | BN63: 56 | BO63: 4 | BP63: 0.5 | BQ63: 2 | BR63: 0
C64: 57 | E64: Have you ever been declared a defaulter by the University? | H64: 0 | I64: =IF(F64="","",SUM(L64:P64)) ->  | J64: 0.5 | L64: =IF(OR(H64="",H64="yes"),$L$5,"") ->  | P64: =IF(H64="no",$N$5,"") ->  | AA64: =IF(OR(AND(AE64="YES",AF64="PHYSICALLY VERIFIED"),AND(AE64="YES",AF64="DOCUMENT VERIFIED"),AND(AE64="YES",'Basic Details'!$D$31="Self Assessment"),AND(AE64="YES",'Basic Details'!$D$31="Draft")),1*IF(BB64="ERROR INPUT",0+1,1),0) -> 0 | BD64: Yes | BF64: No | BM64: B-2 | BN64: 57 | BO64: 4 | BP64: 0.5 | BQ64: 2 | BR64: 0
A65: C. Infrastructure and Learning Resources | B65: C-1 Physical Assets | C65: =1+C64 -> 58 | D65: 1 | E65: Whether the college has its own building. | H65: 0 | I65: =IF(F65="","",SUM(L65:P65)) ->  | J65: 0.5 | L65: =IF(OR(H65="",H65="NO"),$L$5,"") ->  | P65: =IF(H65="YES",$P$5,"") ->  | AA65: =IF(OR(AND(AE65="YES",AF65="PHYSICALLY VERIFIED"),AND(AE65="YES",AF65="DOCUMENT VERIFIED"),AND(AE65="YES",'Basic Details'!$D$31="Self Assessment"),AND(AE65="YES",'Basic Details'!$D$31="Draft")),1*IF(BB65="ERROR INPUT",0+1,1),0) -> 0 | AH65: To be verified physically by Peer Team | BD65: NO | BH65: Yes | BM65: C-1 | BN65: 58 | BO65: 4 | BP65: 0.5 | BQ65: 2 | BR65: 0
C66: 59 | D66: 1 | E66: Ratio of total students to No. of classrooms in the college. | F66: =IF(G66="","",+$F$7) ->  | H66: =IF(F66=0,"",ROUND(F66/G66,4)) ->  | I66: =IF(OR(F66="",G66="",G66=0),"",SUM(L66:P66)) ->  | J66: 1 | L66: =IF($H66>$S66,$L$5,"") ->  | M66: =IF(AND($H66>$U66,$H66<$R66),$M$5,"") ->  | N66: =IF(AND($H66>$W66,$H66<$T66),$N$5,"") ->  | O66: =IF(AND($H66>$Y66,$H66<$V66),$O$5,"") ->  | P66: =IF(AND($H66>Z66,H66<X66),$P$5,"") ->  | Q66: 1000 | R66: 150.0001 | S66: 150 | T66: 125.0001 | U66: 125 | V66: 100.0001 | W66: 100 | X66: 80.0001 | Y66: 80 | Z66: 0.0001 | AA66: =IF(OR(AND(AE66="YES",AF66="PHYSICALLY VERIFIED"),AND(AE66="YES",AF66="DOCUMENT VERIFIED"),AND(AE66="YES",'Basic Details'!$D$31="Self Assessment"),AND(AE66="YES",'Basic Details'!$D$31="Draft")),1*IF(BB66="ERROR INPUT",0+1,1),0) -> 0 | AH66: To be verified physically by Peer Team | BD66: Above 150 | BE66: 125-150 | BF66: 100-125 | BG66: 80-100 | BH66: 80 & Below | BM66: C-1 | BN66: 59 | BO66: 4 | BP66: 1 | BQ66: 4 | BR66: 0
C67: 60 | D67: 1 | E67: Ratio of students in practical subjects to the number of labs. | H67: =IF(F67=0,"",ROUND(F67/G67,4)) ->  | J67: 1 | L67: =IF($H67>$S67,$L$5,"") -> 0 | M67: =IF(AND($H67>$U67,$H67<$R67),$M$5,"") ->  | N67: =IF(AND($H67>$W67,$H67<$T67),$N$5,"") ->  | O67: =IF(AND($H67>$Y67,$H67<$V67),$O$5,"") ->  | P67: =IF(AND($H67>Z67,H67<X67),$P$5,"") ->  | Q67: 1000 | R67: 150.0001 | S67: 150 | T67: 120.0001 | U67: 120 | V67: 90.0001 | W67: 90 | X67: 60.0001 | Y67: 60 | Z67: 0.0001 | AA67: =IF(OR(AND(AE67="YES",AF67="PHYSICALLY VERIFIED"),AND(AE67="YES",AF67="DOCUMENT VERIFIED"),AND(AE67="YES",'Basic Details'!$D$31="Self Assessment"),AND(AE67="YES",'Basic Details'!$D$31="Draft")),1*IF(BB67="ERROR INPUT",0+1,1),0) -> 0 | AH67: Classwise list of Students with practical subjects AND Labs to be verified physically by Peer Team | BD67: Above 150 | BE67: 120-150 | BF67: 120-90 | BG67: 60-90 | BH67: 60 & Below | BM67: C-1 | BN67: 60 | BO67: 4 | BP67: 1 | BQ67: 4 | BR67: 0
C68: 61 | D68: 1 | E68: Ratio of student furniture to the total number of class rooms. | G68: =+$G$66 -> 0 | H68: =IF(F68=0,"",ROUND(F68/G68,4)) ->  | J68: 1 | L68: =IF($H68<$S68,$L$5,"") ->  | M68: =IF(AND($H68<$U68,$H68>$R68),$M$5,"") ->  | N68: =IF(AND($H68<$W68,$H68>$T68),$N$5,"") ->  | O68: =IF(AND($H68<$Y68,$H68>$V68),$O$5,"") ->  | P68: =IF(AND($H68<Z68,H68>X68),$P$5,"") ->  | Q68: 0 | R68: 19.9999 | S68: 20 | T68: 49.9999 | U68: 50 | V68: 69.9999 | W68: 70 | X68: 89.9999 | Y68: 90 | Z68: 10000 | AA68: =IF(OR(AND(AE68="YES",AF68="PHYSICALLY VERIFIED"),AND(AE68="YES",AF68="DOCUMENT VERIFIED"),AND(AE68="YES",'Basic Details'!$D$31="Self Assessment"),AND(AE68="YES",'Basic Details'!$D$31="Draft")),1*IF(BB68="ERROR INPUT",0+1,1),0) -> 0 | AH68: To be verified from stock register AND to be verified physically randomly by Peer Team | BD68: 0-20 | BE68: 20-50 | BF68: 50-70 | BG68: 70-90 | BH68: 90 & Above | BM68: C-1 | BN68: 61 | BO68: 4 | BP68: 1 | BQ68: 4 | BR68: 0
C69: 62 | D69: 1 | E69: Percentage of class rooms / labs equipped with working fans and LED tube lights / bulbs. | G69: =+$G$66+$G$67 -> 0 | H69: =IF(F69="","",ROUND(F69/G69,4)) ->  | J69: 0.5 | L69: =IF($H69<$S69%,$L$5,"") ->  | M69: =IF(AND($H69<$U69%,$H69>$R69%),$M$5,"") ->  | N69: =IF(AND($H69<$W69%,$H69>$T69%),$N$5,"") ->  | O69: =IF(AND($H69<$Y69%,$H69>$V69%),$O$5,"") ->  | P69: =IF(AND($H69<Z69%,H69>X69%),$P$5,"") ->  | Q69: 0 | R69: 20 | S69: 20.0001 | T69: 40 | U69: 40.0001 | V69: 60 | W69: 60.0001 | X69: 80 | Y69: 80.0001 | Z69: 10000 | AA69: =IF(OR(AND(AE69="YES",AF69="PHYSICALLY VERIFIED"),AND(AE69="YES",AF69="DOCUMENT VERIFIED"),AND(AE69="YES",'Basic Details'!$D$31="Self Assessment"),AND(AE69="YES",'Basic Details'!$D$31="Draft")),1*IF(BB69="ERROR INPUT",0+1,1),0) -> 0 | AH69: To be verified physically by Peer Team | BD69: 0-20 | BE69: 20-40 | BF69: 40-60 | BG69: 60-80 | BH69: 80-100 | BM69: C-1 | BN69: 62 | BO69: 4 | BP69: 0.5 | BQ69: 2 | BR69: 0
C70: 63 | D70: 1 | E70: Ratio of number of boys students to the No. of toilets. | F70: =IF(G70="","",IF(F10="yes","",+F7-F9)) ->  | H70: =IF(F70=0,"",ROUND(F70/G70,4)) ->  | J70: 0.5 | L70: =IF($H70>$S70,$L$5,"") ->  | M70: =IF(AND($H70>$U70,$H70<$R70),$M$5,"") ->  | N70: =IF(AND($H70>$W70,$H70<$T70),$N$5,"") ->  | O70: =IF(AND($H70>$Y70,$H70<$V70),$O$5,"") ->  | P70: =IF(AND($H70>Z70,H70<X70),$P$5,"") ->  | Q70: 1000 | R70: 400.0001 | S70: 400 | T70: 300.001 | U70: 300 | V70: 200.001 | W70: 200 | X70: 100.001 | Y70: 100 | Z70: 0.0001 | AA70: =IF(OR(AND(AE70="YES",AF70="PHYSICALLY VERIFIED"),AND(AE70="YES",AF70="DOCUMENT VERIFIED"),AND(AE70="YES",'Basic Details'!$D$31="Self Assessment"),AND(AE70="YES",'Basic Details'!$D$31="Draft")),1*IF(BB70="ERROR INPUT",0+1,1),0) -> 0 | AH70: Number and functional status to be verified physically by Peer Team | BD70: Above 400 | BE70: 300-400 | BF70: 200-300 | BG70: 100-200 | BH70: 100 & Below | BM70: C-1 | BN70: 63 | BO70: 4 | BP70: 0.5 | BQ70: 2 | BR70: 0
C71: 64 | D71: 1 | E71: Ratio of number of girls students to the No. of toilets. | F71: =IF(G71="","",IF(F70="",$F$7,+$F$7-F70)) ->  | H71: =IF(F71=0,"",ROUND(F71/G71,4)) ->  | J71: 0.5 | L71: =IF($H71>$S71,$L$5,"") ->  | M71: =IF(AND($H71>$U71,$H71<$R71),$M$5,"") ->  | N71: =IF(AND($H71>$W71,$H71<$T71),$N$5,"") ->  | O71: =IF(AND($H71>$Y71,$H71<$V71),$O$5,"") ->  | P71: =IF(AND($H71>Z71,H71<X71),$P$5,"") ->  | Q71: 1000 | R71: 200.001 | S71: 200 | T71: 150.001 | U71: 150 | V71: 100.001 | W71: 100 | X71: 50.001 | Y71: 50 | Z71: 0.0001 | AA71: =IF(OR(AND(AE71="YES",AF71="PHYSICALLY VERIFIED"),AND(AE71="YES",AF71="DOCUMENT VERIFIED"),AND(AE71="YES",'Basic Details'!$D$31="Self Assessment"),AND(AE71="YES",'Basic Details'!$D$31="Draft")),1*IF(BB71="ERROR INPUT",0+1,1),0) -> 0 | AH71: Number and functional status to be verified physically by Peer Team | BD71: Above 200 | BE71: 150-200 | BF71: 100-150 | BG71: 50-100 | BH71: 50 & Below | BM71: C-1 | BN71: =+C71 -> 64 | BO71: 4 | BP71: 0.5 | BQ71: 2 | BR71: 0
C72: 65 | D72: 1 | E72: Ratio of number of staff (teaching and non-teaching) members to the No. of toilets. | F72: =+$F$34+$F$90+$F$91+$F$97+IF(F$92="yes",1,0)+IF($F$95="yes",1,0)+IF($F$107="Yes",1,0) -> 0 | H72: =IF(F72=0,"",ROUND(F72/G72,4)) ->  | J72: 0.5 | L72: =IF($H72>$S72,$L$5,"") -> 0 | M72: =IF(AND($H72>$U72,$H72<$R72),$M$5,"") ->  | N72: =IF(AND($H72>$W72,$H72<$T72),$N$5,"") ->  | O72: =IF(AND($H72>$Y72,$H72<$V72),$O$5,"") ->  | P72: =IF(AND($H72>Z72,H72<X72),$P$5,"") ->  | Q72: 1000 | R72: 80.0001 | S72: 80 | T72: 60.0001 | U72: 60 | V72: 40.0001 | W72: 40 | X72: 20.0001 | Y72: 20 | Z72: 0.0001 | AA72: =IF(OR(AND(AE72="YES",AF72="PHYSICALLY VERIFIED"),AND(AE72="YES",AF72="DOCUMENT VERIFIED"),AND(AE72="YES",'Basic Details'!$D$31="Self Assessment"),AND(AE72="YES",'Basic Details'!$D$31="Draft")),1*IF(BB72="ERROR INPUT",0+1,1),0) -> 0 | AC72: =IF(AB72="","","-") ->  | AH72: To be verified physically by Peer Team | BD72: Above 80 | BE72: 60-80 | BF72: 40-60 | BG72: 20-40 | BH72: 20 & Below | BM72: C-1 | BN72: 65 | BO72: 4 | BP72: 0.5 | BQ72: 2 | BR72: 0
C73: =1+C72 -> 66 | D73: 1 | E73: Toilets facility for Divyang students and staff members. | H73: =+F73 -> 0 | I73: =IF(F73="","",SUM(L73:P73)) ->  | J73: 0.5 | L73: =IF(OR(H73="",H73="NO"),$L$5,"") ->  | M73: =IF(AND($H73<$U73%,$H73>$R73%),$M$5,"") ->  | N73: =IF(AND($H73<$W73%,$H73>$T73%),$N$5,"") ->  | O73: =IF(AND($H73<$Y73%,$H73>$V73%),$O$5,"") ->  | P73: =IF(H73="YES",$P$5,"") ->  | AA73: =IF(OR(AND(AE73="YES",AF73="PHYSICALLY VERIFIED"),AND(AE73="YES",AF73="DOCUMENT VERIFIED"),AND(AE73="YES",'Basic Details'!$D$31="Self Assessment"),AND(AE73="YES",'Basic Details'!$D$31="Draft")),1*IF(BB73="ERROR INPUT",0+1,1),0) -> 0 | BD73: NO | BH73: Yes | BM73: C-1 | BN73: 66 | BO73: 4 | BP73: 0.5 | BQ73: 2 | BR73: 0
C74: 67 | D74: 1 | E74: Ramp and other facilities for Divyang students and staff members. | H74: 0 | J74: 0.5 | L74: =IF(OR(H74="",H74="NO"),$L$5,"") ->  | P74: =IF(H74="YES",$P$5,"") ->  | AA74: =IF(OR(AND(AE74="YES",AF74="PHYSICALLY VERIFIED"),AND(AE74="YES",AF74="DOCUMENT VERIFIED"),AND(AE74="YES",'Basic Details'!$D$31="Self Assessment"),AND(AE74="YES",'Basic Details'!$D$31="Draft")),1*IF(BB74="ERROR INPUT",0+1,1),0) -> 0 | AH74: Toilets, drinking water facilities and RAMPS to be verified physically by Peer Team | BD74: NO | BH74: Yes | BM74: C-1 | BN74: 67 | BO74: 4 | BP74: 0.5 | BQ74: 2 | BR74: 0
A75: C. Infrastructure and Learning Resources | B75: C-1 Physical Assets | C75: 68 | D75: 1 | E75: Girls common room facility (Number of Activities undertaken specially in the Girls Common room other than activities of women cell). | H75: =+F75 -> 0 | I75: =IF(F75="","",SUM(L75:P75)) ->  | J75: 0.5 | L75: =IF($H75<$S75,$L$5,"") -> 0 | M75: =IF(AND($H75<$U75,$H75>$R75),$M$5,"") ->  | N75: =IF(AND($H75<$W75,$H75>$T75),$N$5,"") ->  | O75: =IF(AND($H75<$Y75,$H75>$V75),$O$5,"") ->  | P75: =IF(AND($H75<Z75,H75>X75),$P$5,"") ->  | Q75: 0 | R75: 0 | S75: 1 | T75: 2 | U75: 3 | V75: 4 | W75: 5 | X75: 6 | Y75: 7 | Z75: 10000 | AA75: =IF(OR(AND(AE75="YES",AF75="PHYSICALLY VERIFIED"),AND(AE75="YES",AF75="DOCUMENT VERIFIED"),AND(AE75="YES",'Basic Details'!$D$31="Self Assessment"),AND(AE75="YES",'Basic Details'!$D$31="Draft")),1*IF(BB75="ERROR INPUT",0+1,1),0) -> 0 | AH75: Activities to be verified physically by Peer Team | BD75: 0 | BE75: 1-2 | BF75: 3-4 | BG75: 5-6 | BH75: 7 & Above | BM75: C-1 | BN75: 68 | BO75: 4 | BP75: 0.5 | BQ75: 2 | BR75: 0
C76: 69 | D76: 1 | E76: Availability of Staff room. | H76: =+F76 -> 0 | I76: =IF(F76="","",SUM(L76:P76)) ->  | J76: 0.25 | L76: =IF(OR(H76="",H76="NO"),$L$5,"") ->  | M76: =IF(AND($H76<$U76%,$H76>$R76%),$M$5,"") ->  | N76: =IF(AND($H76<$W76%,$H76>$T76%),$N$5,"") ->  | O76: =IF(AND($H76<$Y76%,$H76>$V76%),$O$5,"") ->  | P76: =IF(H76="YES",$P$5,"") ->  | AA76: =IF(OR(AND(AE76="YES",AF76="PHYSICALLY VERIFIED"),AND(AE76="YES",AF76="DOCUMENT VERIFIED"),AND(AE76="YES",'Basic Details'!$D$31="Self Assessment"),AND(AE76="YES",'Basic Details'!$D$31="Draft")),1*IF(BB76="ERROR INPUT",0+1,1),0) -> 0 | AH76: To be verified physically by Peer Team | BD76: NO | BH76: Yes | BM76: C-1 | BN76: 69 | BO76: 4 | BP76: 0.25 | BQ76: 1 | BR76: 0
C77: 70 | D77: 1 | E77: Departmental rooms in percentage to No. of subjects being taught in the college. | H77: =IF(F77=0,"",ROUND(F77/G77,4)) ->  | I77: =IF(OR(F77="",G77="",G77=0),"",SUM(L77:P77)) ->  | J77: 0.5 | L77: =IF($H77<$S77,$L$5,"") ->  | M77: =IF(AND($H77<$U77,$H77>$R77),$M$5,"") ->  | N77: =IF(AND($H77<$W77,$H77>$T77),$N$5,"") ->  | O77: =IF(AND($H77<$Y77,$H77>$V77),$O$5,"") ->  | P77: =IF(AND($H77<Z77,H77>X77),$P$5,"") ->  | Q77: 0 | R77: 0 | S77: 1e-05 | T77: 24.9999 | U77: 25 | V77: 49.9999 | W77: 50 | X77: 74.9999 | Y77: 75 | Z77: 10000 | AA77: =IF(OR(AND(AE77="YES",AF77="PHYSICALLY VERIFIED"),AND(AE77="YES",AF77="DOCUMENT VERIFIED"),AND(AE77="YES",'Basic Details'!$D$31="Self Assessment"),AND(AE77="YES",'Basic Details'!$D$31="Draft")),1*IF(BB77="ERROR INPUT",0+1,1),0) -> 0 | AH77: To be verified physically by Peer Team | BD77: 0 | BE77: More than 0 but less than 25 | BF77: 25-50 | BG77: 50-75 | BH77: 75 & Above | BM77: C-1 | BN77: 70 | BO77: 4 | BP77: 0.5 | BQ77: 2 | BR77: 0
C78: 71 | D78: 1 | E78: No. of computers in campus for Students only (including ICT labs, laboratories etc.). | H78: =+F78 -> 0 | I78: =IF(F78="","",SUM(L78:P78)) ->  | J78: 0.5 | L78: =IF($H78<$S78,$L$5,"") -> 0 | M78: =IF(AND($H78<$U78,$H78>$R78),$M$5,"") ->  | N78: =IF(AND($H78<$W78,$H78>$T78),$N$5,"") ->  | O78: =IF(AND($H78<$Y78,$H78>$V78),$O$5,"") ->  | P78: =IF(AND($H78<Z78,H78>X78),$P$5,"") ->  | Q78: 0 | R78: 0 | S78: 1 | T78: 5 | U78: 6 | V78: 10 | W78: 11 | X78: 20 | Y78: 21 | Z78: 10000 | AA78: =IF(OR(AND(AE78="YES",AF78="PHYSICALLY VERIFIED"),AND(AE78="YES",AF78="DOCUMENT VERIFIED"),AND(AE78="YES",'Basic Details'!$D$31="Self Assessment"),AND(AE78="YES",'Basic Details'!$D$31="Draft")),1*IF(BB78="ERROR INPUT",0+1,1),0) -> 0 | AH78: Number and functional status to be verified physically by Peer Team | BD78: 0 | BE78: 1-5 | BF78: 6-10 | BG78: 11-20 | BH78: 21 & Above | BM78: C-1 | BN78: 71 | BO78: 4 | BP78: 0.5 | BQ78: 2 | BR78: 0
C79: 72 | E79: Ratio of Computers with free access of internet surfing for students. | G79: =IF(F79="","",+$F$7) ->  | H79: =IF(F79=0,"",ROUND(F79/G79,4)) ->  | I79: =IF(OR(F79="",G79="",G79=0),"",SUM(L79:P79)) ->  | J79: 0.5 | L79: =IF($H79<$S79,$L$5,"") ->  | M79: =IF(AND($H79<$U79,$H79>$R79),$M$5,"") ->  | N79: =IF(AND($H79<$W79,$H79>$T79),$N$5,"") ->  | O79: =IF(AND($H79<$Y79,$H79>$V79),$O$5,"") ->  | P79: =IF(AND($H79<Z79,H79>X79),$P$5,"") ->  | Q79: 0 | R79: =0.999/1000 -> 0.000999 | S79: =1/1000 -> 0.001 | T79: =2.9999/1000 -> 0.0029999 | U79: =3/1000 -> 0.003 | V79: =5.999999/1000 -> 0.005999999 | W79: =6/1000 -> 0.006 | X79: =8.99999/1000 -> 0.00899999 | Y79: =9/1000 -> 0.009 | Z79: =1000/1000 -> 1 | AA79: =IF(OR(AND(AE79="YES",AF79="PHYSICALLY VERIFIED"),AND(AE79="YES",AF79="DOCUMENT VERIFIED"),AND(AE79="YES",'Basic Details'!$D$31="Self Assessment"),AND(AE79="YES",'Basic Details'!$D$31="Draft")),1*IF(BB79="ERROR INPUT",0+1,1),0) -> 0 | BD79: Less than .001 | BE79: 0.001 but less than 0.003 | BF79: 0.003 but less than 0.006 | BG79: 0.006 but less than 0.009 | BH79: 0.009 & Above | BM79: C-1 | BN79: 72 | BO79: 4 | BP79: 0.5 | BQ79: 2 | BR79: 0
C80: 73 | E80: Availability of Safe/Clean drinking water with functional water purifier system. | H80: =+F80 -> 0 | J80: 1 | L80: =IF(OR(H80="",H80="NO"),$L$5,"") ->  | M80: =IF(AND($H80<$U80%,$H80>$R80%),$M$5,"") ->  | N80: =IF(AND($H80<$W80%,$H80>$T80%),$N$5,"") ->  | O80: =IF(AND($H80<$Y80%,$H80>$V80%),$O$5,"") ->  | P80: =IF(H80="YES",$P$5,"") ->  | AA80: =IF(OR(AND(AE80="YES",AF80="PHYSICALLY VERIFIED"),AND(AE80="YES",AF80="DOCUMENT VERIFIED"),AND(AE80="YES",'Basic Details'!$D$31="Self Assessment"),AND(AE80="YES",'Basic Details'!$D$31="Draft")),1*IF(BB80="ERROR INPUT",0+1,1),0) -> 0 | AH80: Installed ROs to be verified physically by Peer Team AND if possible get TDS done. | BD80: NO | BH80: Yes | BM80: C-1 | BN80: 73 | BO80: 4 | BP80: 1 | BQ80: 4 | BR80: 0
C81: =1+C80 -> 74 | E81: No of Languages associated with Language Lab. | H81: 0 | J81: 0.5 | L81: =IF($H81<$S81,$L$5,"") -> 0 | M81: =IF(AND($H81<$U81,$H81>$R81),$M$5,"") ->  | N81: =IF(AND($H81<$W81,$H81>$T81),$N$5,"") ->  | O81: =IF(AND($H81<$Y81,$H81>$V81),$O$5,"") ->  | P81: =IF(AND($H81<Z81,H81>X81),$P$5,"") ->  | Q81: 0 | R81: 0 | S81: 1 | T81: 1 | U81: 2 | V81: 2 | W81: 3 | X81: 3 | Y81: 4 | Z81: 20 | AA81: =IF(OR(AND(AE81="YES",AF81="PHYSICALLY VERIFIED"),AND(AE81="YES",AF81="DOCUMENT VERIFIED"),AND(AE81="YES",'Basic Details'!$D$31="Self Assessment"),AND(AE81="YES",'Basic Details'!$D$31="Draft")),1*IF(BB81="ERROR INPUT",0+1,1),0) -> 0 | AH81: Lab AND consoles AND Mike to be verified physically by Peer Team | BD81: 0 | BE81: 1 | BF81: 2 | BG81: 3 | BH81: 4 & Above | BM81: C-1 | BN81: 74 | BO81: 4 | BP81: 0.5 | BQ81: 2 | BR81: 0
C82: 75 | E82: Speed of Wi-Fi facility in the Campus. | H82: 0 | J82: 0.5 | L82: =IF($H82<$S82,$L$5,"") -> 0 | M82: =IF(AND($H82<$U82,$H82>$R82),$M$5,"") ->  | N82: =IF(AND($H82<$W82,$H82>$T82),$N$5,"") ->  | O82: =IF(AND($H82<$Y82,$H82>$V82),$O$5,"") ->  | P82: =IF(AND($H82<Z82,H82>X82),$P$5,"") ->  | Q82: 0 | R82: 0 | S82: 1 | T82: 20 | U82: 20.001 | V82: 40 | W82: 40.001 | X82: 49.001 | Y82: 50 | Z82: 20000 | AA82: =IF(OR(AND(AE82="YES",AF82="PHYSICALLY VERIFIED"),AND(AE82="YES",AF82="DOCUMENT VERIFIED"),AND(AE82="YES",'Basic Details'!$D$31="Self Assessment"),AND(AE82="YES",'Basic Details'!$D$31="Draft")),1*IF(BB82="ERROR INPUT",0+1,1),0) -> 0 | AH82: To be verified by Peer Team by connecting through college wi-fi network | BD82: 0 | BE82: 1-20 | BF82: 20-40 | BG82: 40-50 | BH82: 50 & Above | BM82: C-1 | BN82: 75 | BO82: 4 | BP82: 0.5 | BQ82: 2 | BR82: 0
C83: 76 | E83: Number of class rooms covered under LAN. | H83: 0 | J83: 0.5 | L83: =IF($H83<$S83,$L$5,"") -> 0 | M83: =IF(AND($H83<$U83,$H83>$R83),$M$5,"") ->  | N83: =IF(AND($H83<$W83,$H83>$T83),$N$5,"") ->  | O83: =IF(AND($H83<$Y83,$H83>$V83),$O$5,"") ->  | P83: =IF(AND($H83<Z83,H83>X83),$P$5,"") ->  | Q83: 0 | R83: 0 | S83: 1 | T83: 4 | U83: 5 | V83: 9 | W83: 10 | X83: 19 | Y83: 20 | Z83: 100 | AA83: =IF(OR(AND(AE83="YES",AF83="PHYSICALLY VERIFIED"),AND(AE83="YES",AF83="DOCUMENT VERIFIED"),AND(AE83="YES",'Basic Details'!$D$31="Self Assessment"),AND(AE83="YES",'Basic Details'!$D$31="Draft")),1*IF(BB83="ERROR INPUT",0+1,1),0) -> 0 | BD83: 0 | BE83: 1-4 | BF83: 5-9 | BG83: 10-19 | BH83: 20 & Above | BM83: C-1 | BN83: 76 | BO83: 4 | BP83: 0.5 | BQ83: 2 | BR83: 0
C84: 77 | E84: No. of smart classrooms (Functional interactive Board). | H84: 0 | J84: 0.5 | L84: =IF($H84<$S84,$L$5,"") -> 0 | M84: =IF(AND($H84<$U84,$H84>$R84),$M$5,"") ->  | N84: =IF(AND($H84<$W84,$H84>$T84),$N$5,"") ->  | O84: =IF(AND($H84<$Y84,$H84>$V84),$O$5,"") ->  | P84: =IF(AND($H84<Z84,H84>X84),$P$5,"") ->  | Q84: 0 | R84: 0 | S84: 1 | T84: 1 | U84: 2 | V84: 2 | W84: 3 | X84: 3 | Y84: 4 | Z84: 10000 | AA84: =IF(OR(AND(AE84="YES",AF84="PHYSICALLY VERIFIED"),AND(AE84="YES",AF84="DOCUMENT VERIFIED"),AND(AE84="YES",'Basic Details'!$D$31="Self Assessment"),AND(AE84="YES",'Basic Details'!$D$31="Draft")),1*IF(BB84="ERROR INPUT",0+1,1),0) -> 0 | AH84: Installed set up and its functionality to be verified physically by Peer Team | BD84: 0 | BE84: 1 | BF84: 2 | BG84: 3 | BH84: 4 & Above | BM84: C-1 | BN84: 77 | BO84: 4 | BP84: =+J84 -> 0.5 | BQ84: =+BO84*BP84 -> 2 | BR84: =IF(K84="",0,+K84) -> 0
A85: C. Infrastructure and Learning Resources | B85: C-1 Physical Assets | C85: 78 | E85: Percentage of capacity of power generation through Generator / inverter/Solar panel to total electricity requirement of the college. | H85: =IF(F85="","",ROUND(F85/G85,4)) ->  | I85: =IF(OR(F85="",G85="",G85=0),"",SUM(L85:P85)) ->  | J85: 0.75 | L85: =IF($H85<$S85%,$L$5,"") ->  | M85: =IF(AND($H85<$U85%,$H85>$R85%),$M$5,"") ->  | N85: =IF(AND($H85<$W85%,$H85>$T85%),$N$5,"") ->  | O85: =IF(AND($H85<$Y85%,$H85>$V85%),$O$5,"") ->  | P85: =IF(AND($H85<Z85%,H85>X85%),$P$5,"") ->  | Q85: 0 | R85: 20 | S85: 20.0001 | T85: 40 | U85: 40.0001 | V85: 60 | W85: 60.0001 | X85: 80 | Y85: 80.0001 | Z85: 10000 | AA85: =IF(OR(AND(AE85="YES",AF85="PHYSICALLY VERIFIED"),AND(AE85="YES",AF85="DOCUMENT VERIFIED"),AND(AE85="YES",'Basic Details'!$D$31="Self Assessment"),AND(AE85="YES",'Basic Details'!$D$31="Draft")),1*IF(BB85="ERROR INPUT",0+1,1),0) -> 0 | AH85: Documentary proof of total electricity load AND its generation in institute AND to be verified physically by Peer Team | BD85: 0-20 | BE85: 20-40 | BF85: 40-60 | BG85: 60-80 | BH85: 80-100 | BM85: C-1 | BN85: 78 | BO85: 4 | BP85: 0.75 | BQ85: 3 | BR85: 0
C86: 79 | E86: Availability of Audio / video system in the college (Mic, TV, Projector, Laptops etc.). | H86: =+F86 -> 0 | I86: =IF(F86="","",SUM(L86:P86)) ->  | J86: 0.5 | L86: =IF(OR(H86="",H86="NO"),$L$5,"") ->  | M86: =IF(AND($H86<$U86%,$H86>$R86%),$M$5,"") ->  | N86: =IF(AND($H86<$W86%,$H86>$T86%),$N$5,"") ->  | O86: =IF(AND($H86<$Y86%,$H86>$V86%),$O$5,"") ->  | P86: =IF(H86="YES",$P$5,"") ->  | AA86: =IF(OR(AND(AE86="YES",AF86="PHYSICALLY VERIFIED"),AND(AE86="YES",AF86="DOCUMENT VERIFIED"),AND(AE86="YES",'Basic Details'!$D$31="Self Assessment"),AND(AE86="YES",'Basic Details'!$D$31="Draft")),1*IF(BB86="ERROR INPUT",0+1,1),0) -> 0 | AH86: To be verified physically by Peer Team | BD86: NO | BH86: Yes | BM86: C-1 | BN86: 79 | BO86: 4 | BP86: 0.5 | BQ86: 2 | BR86: 0
C87: 80 | E87: Availability of Auditorium in the Campus (Above 150 seating capacity). | H87: 0 | I87: =IF(F87="","",SUM(L87:P87)) ->  | J87: 0.5 | L87: =IF(OR(H87="",H87="NO"),$L$5,"") ->  | P87: =IF(H87="YES",$P$5,"") ->  | AA87: =IF(OR(AND(AE87="YES",AF87="PHYSICALLY VERIFIED"),AND(AE87="YES",AF87="DOCUMENT VERIFIED"),AND(AE87="YES",'Basic Details'!$D$31="Self Assessment"),AND(AE87="YES",'Basic Details'!$D$31="Draft")),1*IF(BB87="ERROR INPUT",0+1,1),0) -> 0 | BD87: NO | BH87: Yes | BM87: C-1 | BN87: 80 | BO87: 4 | BP87: 0.5 | BQ87: 2 | BR87: 0
C88: 81 | E88: No. of Seminar Halls/Lecture Theater with fitted/permanent Audio/Video system. | H88: =+F88 -> 0 | I88: =IF(F88="","",SUM(L88:P88)) ->  | J88: 0.5 | L88: =IF($H88<$S88,$L$5,"") -> 0 | M88: =IF(AND($H88<$U88,$H88>$R88),$M$5,"") ->  | N88: =IF(AND($H88<$W88,$H88>$T88),$N$5,"") ->  | O88: =IF(AND($H88<$Y88,$H88>$V88),$O$5,"") ->  | P88: =IF(AND($H88<Z88,H88>X88),$P$5,"") ->  | Q88: 0 | R88: 0 | S88: 1 | T88: 1 | U88: 2 | V88: 2 | W88: 3 | X88: 3 | Y88: 4 | Z88: 10000 | AA88: =IF(OR(AND(AE88="YES",AF88="PHYSICALLY VERIFIED"),AND(AE88="YES",AF88="DOCUMENT VERIFIED"),AND(AE88="YES",'Basic Details'!$D$31="Self Assessment"),AND(AE88="YES",'Basic Details'!$D$31="Draft")),1*IF(BB88="ERROR INPUT",0+1,1),0) -> 0 | BD88: 0 | BE88: 1 | BF88: 2 | BG88: 3 | BH88: 4 & Above | BM88: C-1 | BN88: 81 | BO88: 4 | BP88: 0.5 | BQ88: 2 | BR88: 0
C89: 82 | E89: Functional Fire Extinguishers available. | H89: =+F89 -> 0 | J89: 0.25 | L89: =IF(OR(H89="",H89="NO"),$L$5,"") ->  | M89: =IF(AND($H89<$U89%,$H89>$R89%),$M$5,"") ->  | N89: =IF(AND($H89<$W89%,$H89>$T89%),$N$5,"") ->  | O89: =IF(AND($H89<$Y89%,$H89>$V89%),$O$5,"") ->  | P89: =IF(H89="YES",$P$5,"") ->  | AA89: =IF(OR(AND(AE89="YES",AF89="PHYSICALLY VERIFIED"),AND(AE89="YES",AF89="DOCUMENT VERIFIED"),AND(AE89="YES",'Basic Details'!$D$31="Self Assessment"),AND(AE89="YES",'Basic Details'!$D$31="Draft")),1*IF(BB89="ERROR INPUT",0+1,1),0) -> 0 | AH89: Installation and date of refill to be verified physically by Peer Team | BD89: NO | BH89: Yes | BM89: C-1 | BN89: 82 | BO89: 4 | BP89: 0.25 | BQ89: 1 | BR89: 0 | BS89: =SUM(BP65:BP89) -> 14.25 | BT89: =SUM(BR65:BR89) -> 0 | BU89: =SUM(BQ65:BQ89) -> 57
B90: C-2 Office Setup | C90: =1+C89 -> 83 | E90: Percentage of working Ministerial staff to no. of posts-required-as-per-rules (including Lab asstts.). | H90: =IF(F90="","",ROUND(F90/G90,4)) ->  | I90: =IF(OR(F90="",G90="",G90=0),"",SUM(L90:P90)) ->  | J90: 1 | L90: =IF($H90<$S90%,$L$5,"") ->  | P90: =IF(AND($H90<Z90%,H90>X90%),$P$5,"") ->  | Q90: 0 | R90: 20 | S90: 20.0001 | T90: 40 | U90: 40.0001 | V90: 60 | W90: 60.0001 | X90: 80 | Y90: 80.0001 | Z90: 10000 | AA90: =IF(OR(AND(AE90="YES",AF90="PHYSICALLY VERIFIED"),AND(AE90="YES",AF90="DOCUMENT VERIFIED"),AND(AE90="YES",'Basic Details'!$D$31="Self Assessment"),AND(AE90="YES",'Basic Details'!$D$31="Draft")),1*IF(BB90="ERROR INPUT",0+1,1),0) -> 0 | AH90: Attendance Register / AISHE DCF | BD90: 0-20 | BE90: 20-40 | BF90: 40-60 | BG90: 60-80 | BH90: 80-100 | BM90: C-2 | BN90: 83 | BO90: 4 | BP90: 1 | BQ90: 4 | BR90: 0
C91: 84 | E91: Percentage of working supporting staff to no. of posts-required-as-per-rules (including Lab bearers, gas man etc.). | J91: 1 | Q91: 0 | R91: 20 | S91: 20.0001 | T91: 40 | U91: 40.0001 | V91: 60 | W91: 60.0001 | X91: 80 | Y91: 80.0001 | Z91: 10000 | AA91: =IF(OR(AND(AE91="YES",AF91="PHYSICALLY VERIFIED"),AND(AE91="YES",AF91="DOCUMENT VERIFIED"),AND(AE91="YES",'Basic Details'!$D$31="Self Assessment"),AND(AE91="YES",'Basic Details'!$D$31="Draft")),1*IF(BB91="ERROR INPUT",0+1,1),0) -> 0 | AH91: Attendance Register / AISHE DCF | BD91: 0-20 | BE91: 20-40 | BF91: 40-60 | BG91: 60-80 | BH91: 80-100 | BM91: C-2 | BN91: 84 | BO91: 4 | BP91: 1 | BQ91: 4 | BR91: 0
C92: 85 | E92: Working accounts personnel. | H92: =+F92 -> 0 | I92: =IF(F92="","",SUM(L92:P92)) ->  | J92: 0.5 | L92: =IF(OR(H92="",H92="NO"),$L$5,"") ->  | P92: =IF(H92="YES",$P$5,"") ->  | AA92: =IF(OR(AND(AE92="YES",AF92="PHYSICALLY VERIFIED"),AND(AE92="YES",AF92="DOCUMENT VERIFIED"),AND(AE92="YES",'Basic Details'!$D$31="Self Assessment"),AND(AE92="YES",'Basic Details'!$D$31="Draft")),1*IF(BB92="ERROR INPUT",0+1,1),0) -> 0 | AH92: Attendance Register | BD92: NO | BH92: Yes | BM92: C-2 | BN92: 85 | BO92: 4 | BP92: 0.5 | BQ92: 2 | BR92: 0
C93: 86 | E93: Automation of offices. | H93: 0 | J93: 0.25 | K93: =IF(I93="","",+I93*J93*AA93) ->  | L93: =IF(OR(H93="",H93="NO"),$L$5,"") ->  | P93: =IF(H93="YES",$P$5,"") ->  | AA93: =IF(OR(AND(AE93="YES",AF93="PHYSICALLY VERIFIED"),AND(AE93="YES",AF93="DOCUMENT VERIFIED"),AND(AE93="YES",'Basic Details'!$D$31="Self Assessment"),AND(AE93="YES",'Basic Details'!$D$31="Draft")),1*IF(BB93="ERROR INPUT",0+1,1),0) -> 0 | BD93: NO | BH93: Yes | BM93: C-2 | BN93: 86 | BO93: 4 | BP93: 0.25 | BQ93: 1 | BR93: 0 | BS93: =SUM(BP90:BP93) -> 2.75 | BT93: =SUM(BR90:BR93) -> 0 | BU93: =SUM(BQ90:BQ93) -> 11 | BV93: =SUM(BS65:BS93) -> 17 | BW93: =SUM(BT65:BT93) -> 0 | BX93: =SUM(BU65:BU93) -> 68
A94: D. Student Support and participation | B94: D-1 Learning Support | C94: 87 | E94: Library with or without e-library/inflibnet/delnet facility (Based on total Hits). | H94: =IF(F94="Yes Library No Facility",1,IF(F94="yes library yes facility",2,0)) -> 0 | J94: 0.5 | L94: =IF($H94<$S94,$L$5,"") ->  | M94: =IF(AND($H94<$U94,$H94>$R94),$M$5,"") ->  | N94: =IF(AND($H94<$W94,$H94>$T94),$N$5,"") ->  | O94: =IF(AND($H94<$Y94,$H94>$V94),$O$5,"") ->  | P94: =IF(AND($H94<Z94,H94>X94),$P$5,"") ->  | Q94: 0 | R94: 0 | S94: 0 | T94: 0 | U94: 1 | V94: 1 | W94: 2 | X94: 1 | Y94: 2 | Z94: 100 | AA94: =IF(OR(AND(AE94="YES",AF94="PHYSICALLY VERIFIED"),AND(AE94="YES",AF94="DOCUMENT VERIFIED"),AND(AE94="YES",'Basic Details'!$D$31="Self Assessment"),AND(AE94="YES",'Basic Details'!$D$31="Draft")),1*IF(BB94="ERROR INPUT",0+1,1),0) -> 0 | AH94: To be verified physically by Peer Team | BD94: No Library | BF94: Yes Library, No Facility | BH94: Yes Library, Yes Facility | BM94: D-1 | BN94: 87 | BO94: 4 | BP94: 0.5 | BQ94: 2 | BR94: 0
C95: 88 | E95: Working Librarian. | H95: =+F95 -> 0 | J95: 0.25 | L95: =IF(OR(H95="",H95="NO"),$L$5,"") ->  | M95: =IF(AND($H95<$U95%,$H95>$R95%),$M$5,"") ->  | N95: =IF(AND($H95<$W95%,$H95>$T95%),$N$5,"") ->  | O95: =IF(AND($H95<$Y95%,$H95>$V95%),$O$5,"") ->  | P95: =IF(H95="YES",$P$5,"") ->  | AA95: =IF(OR(AND(AE95="YES",AF95="PHYSICALLY VERIFIED"),AND(AE95="YES",AF95="DOCUMENT VERIFIED"),AND(AE95="YES",'Basic Details'!$D$31="Self Assessment"),AND(AE95="YES",'Basic Details'!$D$31="Draft")),1*IF(BB95="ERROR INPUT",0+1,1),0) -> 0 | AH95: Attendance Register | BD95: No | BH95: Yes | BM95: D-1 | BN95: 88 | BO95: 4 | BP95: 0.25 | BQ95: 1 | BR95: 0
C96: 89 | E96: Whether library is automated. | H96: 0 | J96: 0.25 | L96: =IF(OR(H96="",H96="NO"),$L$5,"") ->  | P96: =IF(H96="YES",$P$5,"") ->  | AA96: =IF(OR(AND(AE96="YES",AF96="PHYSICALLY VERIFIED"),AND(AE96="YES",AF96="DOCUMENT VERIFIED"),AND(AE96="YES",'Basic Details'!$D$31="Self Assessment"),AND(AE96="YES",'Basic Details'!$D$31="Draft")),1*IF(BB96="ERROR INPUT",0+1,1),0) -> 0 | AH96: Bar-coding, issuing of books using the software to be verified physically by Peer Team | BD96: No | BH96: Yes | BM96: D-1 | BN96: 89 | BO96: 4 | BP96: 0.25 | BQ96: 1 | BR96: 0
C97: 90 | E97: Percentage of working Library staff against no. of posts-required-as-per-rules | H97: =IF(F97="","",ROUND(F97/G97,4)) ->  | I97: =IF(OR(F97="",G97="",G97=0),"",SUM(L97:P97)) ->  | J97: 0.25 | L97: =IF($H97<$S97%,$L$5,"") ->  | P97: =IF(AND($H97<Z97%,H97>X97%),$P$5,"") ->  | Q97: 0 | R97: 20 | S97: 20.0001 | T97: 40 | U97: 40.0001 | V97: 60 | W97: 60.0001 | X97: 80 | Y97: 80.0001 | Z97: 10000 | AA97: =IF(OR(AND(AE97="YES",AF97="PHYSICALLY VERIFIED"),AND(AE97="YES",AF97="DOCUMENT VERIFIED"),AND(AE97="YES",'Basic Details'!$D$31="Self Assessment"),AND(AE97="YES",'Basic Details'!$D$31="Draft")),1*IF(BB97="ERROR INPUT",0+1,1),0) -> 0 | AH97: Attendance Register | BD97: 0-20 | BE97: 20-40 | BF97: 40-60 | BG97: 60-80 | BH97: 80-100 | BM97: D-1 | BN97: 90 | BO97: 4 | BP97: 0.25 | BQ97: 1 | BR97: 0
C98: 91 | E98: Ratio of total books in library to total No. of students. | G98: =IF(F98="","",+$F$7) ->  | H98: =IF(F98=0,"",ROUND(F98/G98,4)) ->  | J98: 0.5 | L98: =IF($H98<$S98,$L$5,"") ->  | M98: =IF(AND($H98<$U98,$H98>$R98),$M$5,"") ->  | N98: =IF(AND($H98<$W98,$H98>$T98),$N$5,"") ->  | O98: =IF(AND($H98<$Y98,$H98>$V98),$O$5,"") ->  | P98: =IF(AND($H98<Z98,H98>X98),$P$5,"") ->  | Q98: 0 | R98: 0 | S98: 0.0001 | T98: 2.9999 | U98: 3 | V98: 3.9999 | W98: 4 | X98: 4.9999 | Y98: 5 | Z98: 10000 | AA98: =IF(OR(AND(AE98="YES",AF98="PHYSICALLY VERIFIED"),AND(AE98="YES",AF98="DOCUMENT VERIFIED"),AND(AE98="YES",'Basic Details'!$D$31="Self Assessment"),AND(AE98="YES",'Basic Details'!$D$31="Draft")),1*IF(BB98="ERROR INPUT",0+1,1),0) -> 0 | AH98: Library stock register | BD98: 0 | BE98: More than 0 and less than 3 | BF98: 3-4 | BG98: 4-5 | BH98: 5 & Above | BM98: D-1 | BN98: 91 | BO98: 4 | BP98: 0.5 | BQ98: 2 | BR98: 0
C99: 92 | E99: No. of Reading Rooms. | H99: =+F99 -> 0 | I99: =IF(F99="","",SUM(L99:P99)) ->  | J99: 0.5 | L99: =IF($H99<$S99,$L$5,"") -> 0 | M99: =IF(AND($H99<$U99,$H99>$R99),$M$5,"") ->  | N99: =IF(AND($H99<$W99,$H99>$T99),$N$5,"") ->  | O99: =IF(AND($H99<$Y99,$H99>$V99),$O$5,"") ->  | P99: =IF(AND($H99<Z99,H99>X99),$P$5,"") ->  | Q99: 0 | R99: 0.999 | S99: 0.999 | T99: 0.999 | U99: 1 | V99: 1.9999 | W99: 2 | X99: 1.9999 | Y99: 2 | Z99: 10000 | AA99: =IF(OR(AND(AE99="YES",AF99="PHYSICALLY VERIFIED"),AND(AE99="YES",AF99="DOCUMENT VERIFIED"),AND(AE99="YES",'Basic Details'!$D$31="Self Assessment"),AND(AE99="YES",'Basic Details'!$D$31="Draft")),1*IF(BB99="ERROR INPUT",0+1,1),0) -> 0 | AH99: Required furniture and display stands to be verified physically by Peer Team | BD99: 0 | BF99: 1 | BH99: 2 & Above | BM99: D-1 | BN99: 92 | BO99: 4 | BP99: 0.5 | BQ99: 2 | BR99: 0
C100: 93 | E100: No. of copies of News papers subscribed per 100 students. | G100: =IF(F100="","",+$F$7) ->  | H100: =IF(F100=0,"",ROUND(F100/G100,4)) ->  | I100: =IF(OR(F100="",G100="",G100=0),"",SUM(L100:P100)) ->  | J100: 0.25 | L100: =IF($H100<$S100,$L$5,"") ->  | M100: =IF(AND($H100<$U100,$H100>$R100),$M$5,"") ->  | N100: =IF(AND($H100<$W100,$H100>$T100),$N$5,"") ->  | O100: =IF(AND($H100<$Y100,$H100>$V100),$O$5,"") ->  | P100: =IF(AND($H100<Z100,H100>X100),$P$5,"") ->  | Q100: 0 | R100: 0 | S100: 1 | T100: 1 | U100: 2 | V100: 2 | W100: 3 | X100: 3 | Y100: 4 | Z100: 10000 | AA100: =IF(OR(AND(AE100="YES",AF100="PHYSICALLY VERIFIED"),AND(AE100="YES",AF100="DOCUMENT VERIFIED"),AND(AE100="YES",'Basic Details'!$D$31="Self Assessment"),AND(AE100="YES",'Basic Details'!$D$31="Draft")),1*IF(BB100="ERROR INPUT",0+1,1),0) -> 0 | AH100: Number of copies of last 2 months to be verified physically by Peer Team | BD100: 0 | BE100: 1 | BF100: 2 | BG100: 3 | BH100: 4 & Above | BM100: D-1 | BN100: 93 | BO100: 4 | BP100: 0.25 | BQ100: 1 | BR100: 0
C101: 94 | E101: Subscription of employment News paper. | H101: =+F101 -> 0 | I101: =IF(F101="","",SUM(L101:P101)) ->  | J101: 0.25 | L101: =IF(OR(H101="",H101="NO"),$L$5,"") ->  | M101: =IF(AND($H101<$U101%,$H101>$R101%),$M$5,"") ->  | N101: =IF(AND($H101<$W101%,$H101>$T101%),$N$5,"") ->  | O101: =IF(AND($H101<$Y101%,$H101>$V101%),$O$5,"") ->  | P101: =IF(H101="YES",$P$5,"") ->  | AA101: =IF(OR(AND(AE101="YES",AF101="PHYSICALLY VERIFIED"),AND(AE101="YES",AF101="DOCUMENT VERIFIED"),AND(AE101="YES",'Basic Details'!$D$31="Self Assessment"),AND(AE101="YES",'Basic Details'!$D$31="Draft")),1*IF(BB101="ERROR INPUT",0+1,1),0) -> 0 | AH101: Number of copies of last 2 months to be verified physically by Peer Team | BD101: No | BH101: Yes | BM101: D-1 | BN101: 94 | BO101: 4 | BP101: 0.25 | BQ101: 1 | BR101: 0
C102: 95 | E102: No. of magazines subscribed. | H102: =+F102 -> 0 | I102: =IF(F102="","",SUM(L102:P102)) ->  | J102: 0.25 | L102: =IF($H102<$S102,$L$5,"") -> 0 | M102: =IF(AND($H102<$U102,$H102>$R102),$M$5,"") ->  | N102: =IF(AND($H102<$W102,$H102>$T102),$N$5,"") ->  | O102: =IF(AND($H102<$Y102,$H102>$V102),$O$5,"") ->  | P102: =IF(AND($H102<Z102,H102>X102),$P$5,"") ->  | Q102: 0 | R102: 0 | S102: 1 | T102: 3 | U102: 4 | V102: 6 | W102: 7 | X102: 9 | Y102: 10 | Z102: 10000 | AA102: =IF(OR(AND(AE102="YES",AF102="PHYSICALLY VERIFIED"),AND(AE102="YES",AF102="DOCUMENT VERIFIED"),AND(AE102="YES",'Basic Details'!$D$31="Self Assessment"),AND(AE102="YES",'Basic Details'!$D$31="Draft")),1*IF(BB102="ERROR INPUT",0+1,1),0) -> 0 | AH102: Latest and few earlier editions to be verified physically by Peer Team | BD102: 0 | BE102: 1-3 | BF102: 4-6 | BG102: 7-9 | BH102: 10 & Above | BM102: D-1 | BN102: 95 | BO102: 4 | BP102: 0.25 | BQ102: 1 | BR102: 0
C103: 96 | E103: Number of journals subscribed per subject by the college. | G103: =+$G$77 -> 0 | H103: =IF(F103=0,"",ROUND(F103/G103,4)) ->  | I103: =IF(OR(F103="",G103="",G103=0),"",SUM(L103:P103)) ->  | J103: 0.25 | L103: =IF($H103<$S103,$L$5,"") ->  | M103: =IF(AND($H103<$U103,$H103>$R103),$M$5,"") ->  | N103: =IF(AND($H103<$W103,$H103>$T103),$N$5,"") ->  | O103: =IF(AND($H103<$Y103,$H103>$V103),$O$5,"") ->  | P103: =IF(AND($H103<Z103,H103>X103),$P$5,"") ->  | Q103: 0 | R103: 0 | S103: 1 | T103: 1 | U103: 2 | V103: 2 | W103: 3 | X103: 3 | Y103: 4 | Z103: 10000 | AA103: =IF(OR(AND(AE103="YES",AF103="PHYSICALLY VERIFIED"),AND(AE103="YES",AF103="DOCUMENT VERIFIED"),AND(AE103="YES",'Basic Details'!$D$31="Self Assessment"),AND(AE103="YES",'Basic Details'!$D$31="Draft")),1*IF(BB103="ERROR INPUT",0+1,1),0) -> 0 | AH103: Latest and few earlier editions to be verified physically by Peer Team | BD103: 0 | BE103: 1 | BF103: 2 | BG103: 3 | BH103: 4 & Above | BM103: D-1 | BN103: 96 | BO103: 4 | BP103: 0.25 | BQ103: 1 | BR103: 0
C104: 97 | E104: Log book is maintained regularly in the library. | H104: =+F104 -> 0 | I104: =IF(F104="","",SUM(L104:P104)) ->  | J104: 0.5 | L104: =IF(OR(H104="",H104="NO"),$L$5,"") ->  | M104: =IF(AND($H104<$U104%,$H104>$R104%),$M$5,"") ->  | N104: =IF(AND($H104<$W104%,$H104>$T104%),$N$5,"") ->  | O104: =IF(AND($H104<$Y104%,$H104>$V104%),$O$5,"") ->  | P104: =IF(H104="YES",$P$5,"") ->  | AA104: =IF(OR(AND(AE104="YES",AF104="PHYSICALLY VERIFIED"),AND(AE104="YES",AF104="DOCUMENT VERIFIED"),AND(AE104="YES",'Basic Details'!$D$31="Self Assessment"),AND(AE104="YES",'Basic Details'!$D$31="Draft")),1*IF(BB104="ERROR INPUT",0+1,1),0) -> 0 | BD104: No | BF104: Yes | BM104: D-1 | BN104: 97 | BO104: 4 | BP104: 0.5 | BQ104: 2 | BR104: 0 | BS104: =SUM(BP94:BP104) -> 3.75 | BT104: =SUM(BR94:BR104) -> 0 | BU104: =SUM(BQ94:BQ104) -> 15
A105: D. Student Support and participation | B105: D-2 Counseling and Mentoring | C105: 98 | E105: Percentage of Students guided through Counselling cell (includes mental health counselling and career counselling). | G105: =IF(F105="","",+$F$7) ->  | H105: =IF(F105="","",ROUND(F105/G105,4)) ->  | J105: 0.25 | L105: =IF($H105<$S105%,$L$5,"") ->  | M105: =IF(AND($H105<$U105%,$H105>$R105%),$M$5,"") ->  | N105: =IF(AND($H105<$W105%,$H105>$T105%),$N$5,"") ->  | O105: =IF(AND($H105<$Y105%,$H105>$V105%),$O$5,"") ->  | P105: =IF(AND($H105<Z105%,H105>X105%),$P$5,"") ->  | Q105: 0 | R105: 0 | S105: 0.0001 | T105: 1.9999 | U105: 2 | V105: 3.9999 | W105: 4 | X105: 5.9999 | Y105: 6 | Z105: 10000 | AA105: =IF(OR(AND(AE105="YES",AF105="PHYSICALLY VERIFIED"),AND(AE105="YES",AF105="DOCUMENT VERIFIED"),AND(AE105="YES",'Basic Details'!$D$31="Self Assessment"),AND(AE105="YES",'Basic Details'!$D$31="Draft")),1*IF(BB105="ERROR INPUT",0+1,1),0) -> 0 | AH105: Register / Relevant document for number of students guided along with field | BD105: 0 | BE105: More than 0 but less than 2 | BF105: 2-4 | BG105: 4-6 | BH105: 6 & Above | BM105: D-2 | BN105: 98 | BO105: 4 | BP105: 0.25 | BQ105: 1 | BR105: 0
C106: 99 | E106: Sports Ground. | H106: =+F106 -> 0 | I106: =IF(F106="","",SUM(L106:P106)) ->  | J106: 0.25 | L106: =IF(OR(H106="",H106="NO"),$L$5,"") ->  | M106: =IF(AND($H106<$U106%,$H106>$R106%),$M$5,"") ->  | N106: =IF(AND($H106<$W106%,$H106>$T106%),$N$5,"") ->  | O106: =IF(AND($H106<$Y106%,$H106>$V106%),$O$5,"") ->  | P106: =IF(H106="YES",$P$5,"") ->  | AA106: =IF(OR(AND(AE106="YES",AF106="PHYSICALLY VERIFIED"),AND(AE106="YES",AF106="DOCUMENT VERIFIED"),AND(AE106="YES",'Basic Details'!$D$31="Self Assessment"),AND(AE106="YES",'Basic Details'!$D$31="Draft")),1*IF(BB106="ERROR INPUT",0+1,1),0) -> 0 | AH106: To be verified physically by Peer Team | BD106: No | BH106: Yes | BM106: D-2 | BN106: 99 | BO106: 4 | BP106: 0.25 | BQ106: 1 | BR106: 0
C107: 100 | E107: Working Director Physical Education. | H107: 0 | J107: 0.25 | L107: =IF(OR(H107="",H107="NO"),$L$5,"") ->  | P107: =IF(H107="YES",$P$5,"") ->  | AA107: =IF(OR(AND(AE107="YES",AF107="PHYSICALLY VERIFIED"),AND(AE107="YES",AF107="DOCUMENT VERIFIED"),AND(AE107="YES",'Basic Details'!$D$31="Self Assessment"),AND(AE107="YES",'Basic Details'!$D$31="Draft")),1*IF(BB107="ERROR INPUT",0+1,1),0) -> 0 | AH107: Attendance Register | BD107: No | BH107: Yes | BM107: D-2 | BN107: 100 | BO107: 4 | BP107: 0.25 | BQ107: 1 | BR107: 0
C108: 101 | E108: No. of games for which complete set of equipments and gears available. | H108: 0 | J108: 0.5 | L108: =IF($H108<$S108,$L$5,"") -> 0 | M108: =IF(AND($H108<$U108,$H108>$R108),$M$5,"") ->  | N108: =IF(AND($H108<$W108,$H108>$T108),$N$5,"") ->  | O108: =IF(AND($H108<$Y108,$H108>$V108),$O$5,"") ->  | P108: =IF(AND($H108<Z108,H108>X108),$P$5,"") ->  | Q108: 0 | R108: 2 | S108: 3 | T108: 3 | U108: 4 | V108: 6 | W108: 7 | X108: 9 | Y108: 10 | Z108: 10000 | AA108: =IF(OR(AND(AE108="YES",AF108="PHYSICALLY VERIFIED"),AND(AE108="YES",AF108="DOCUMENT VERIFIED"),AND(AE108="YES",'Basic Details'!$D$31="Self Assessment"),AND(AE108="YES",'Basic Details'!$D$31="Draft")),1*IF(BB108="ERROR INPUT",0+1,1),0) -> 0 | AH108: Gears and equipments randomly to be verified physically by Peer Team | BD108: 0 | BE108: 3 | BF108: 4-6 | BG108: 7-9 | BH108: 10 & Above | BM108: D-2 | BN108: 101 | BO108: 4 | BP108: 0.5 | BQ108: 2 | BR108: 0
C109: 102 | E109: Total No. of students benefited by issuing of sports equipments and gears. | H109: 0 | J109: 0.5 | L109: =IF($H109<$S109,$L$5,"") -> 0 | M109: =IF(AND($H109<$U109,$H109>$R109),$M$5,"") ->  | N109: =IF(AND($H109<$W109,$H109>$T109),$N$5,"") ->  | O109: =IF(AND($H109<$Y109,$H109>$V109),$O$5,"") ->  | P109: =IF(AND($H109<Z109,H109>X109),$P$5,"") ->  | Q109: 0 | R109: 0 | S109: 1 | T109: 49 | U109: 50 | V109: 99 | W109: 100 | X109: 199 | Y109: 200 | Z109: 10000 | AA109: =IF(OR(AND(AE109="YES",AF109="PHYSICALLY VERIFIED"),AND(AE109="YES",AF109="DOCUMENT VERIFIED"),AND(AE109="YES",'Basic Details'!$D$31="Self Assessment"),AND(AE109="YES",'Basic Details'!$D$31="Draft")),1*IF(BB109="ERROR INPUT",0+1,1),0) -> 0 | AH109: Issue register | BD109: 0 | BE109: More than 0 but less than 50 | BF109: 50-100 | BG109: 100-200 | BH109: 200 & Above | BM109: D-2 | BN109: 102 | BO109: 4 | BP109: 0.5 | BQ109: 2 | BR109: 0
C110: 103 | E110: No. of events at Inter-college / University / National and International level in which college participated. | H110: 0 | J110: 0.5 | L110: =IF($H110<$S110,$L$5,"") -> 0 | M110: =IF(AND($H110<$U110,$H110>$R110),$M$5,"") ->  | N110: =IF(AND($H110<$W110,$H110>$T110),$N$5,"") ->  | O110: =IF(AND($H110<$Y110,$H110>$V110),$O$5,"") ->  | P110: =IF(AND($H110<Z110,H110>X110),$P$5,"") ->  | Q110: 0 | R110: 0 | S110: 1 | T110: 5 | U110: 6 | V110: 10 | W110: 11 | X110: 15 | Y110: 16 | Z110: 10000 | AA110: =IF(OR(AND(AE110="YES",AF110="PHYSICALLY VERIFIED"),AND(AE110="YES",AF110="DOCUMENT VERIFIED"),AND(AE110="YES",'Basic Details'!$D$31="Self Assessment"),AND(AE110="YES",'Basic Details'!$D$31="Draft")),1*IF(BB110="ERROR INPUT",0+1,1),0) -> 0 | AH110: Copies of documentary proof (Make a list of such events) | BD110: 0 | BE110: 1-5 | BF110: 6-10 | BG110: 11-15 | BH110: 16 & Above | BM110: D-2 | BN110: 103 | BO110: 4 | BP110: 0.5 | BQ110: 2 | BR110: 0
C111: 104 | E111: No. of prizes won by college at state / University level sports/ games. | H111: 0 | J111: 0.5 | L111: =IF($H111<$S111,$L$5,"") -> 0 | M111: =IF(AND($H111<$U111,$H111>$R111),$M$5,"") ->  | N111: =IF(AND($H111<$W111,$H111>$T111),$N$5,"") ->  | O111: =IF(AND($H111<$Y111,$H111>$V111),$O$5,"") ->  | P111: =IF(AND($H111<Z111,H111>X111),$P$5,"") ->  | Q111: 0 | R111: 0 | S111: 1 | T111: 2 | U111: 3 | V111: 5 | W111: 6 | X111: 8 | Y111: 9 | Z111: 10000 | AA111: =IF(OR(AND(AE111="YES",AF111="PHYSICALLY VERIFIED"),AND(AE111="YES",AF111="DOCUMENT VERIFIED"),AND(AE111="YES",'Basic Details'!$D$31="Self Assessment"),AND(AE111="YES",'Basic Details'!$D$31="Draft")),1*IF(BB111="ERROR INPUT",0+1,1),0) -> 0 | AH111: Copies of documentary proof / Certificates (Make a list of such events) | BD111: 0 | BE111: 1-2 | BF111: 3-5 | BG111: 6-8 | BH111: 9 & Above | BM111: D-2 | BN111: 104 | BO111: 4 | BP111: 0.5 | BQ111: 2 | BR111: 0
C112: 105 | E112: No. of prizes won by college at National and International level sports/ games. | H112: 0 | J112: 0.5 | L112: =IF($H112<$S112,$L$5,"") -> 0 | M112: =IF(AND($H112<$U112,$H112>$R112),$M$5,"") ->  | N112: =IF(AND($H112<$W112,$H112>$T112),$N$5,"") ->  | O112: =IF(AND($H112<$Y112,$H112>$V112),$O$5,"") ->  | P112: =IF(AND($H112<Z112,H112>X112),$P$5,"") ->  | Q112: 0 | R112: 0 | S112: 1 | T112: 2 | U112: 3 | V112: 5 | W112: 6 | X112: 8 | Y112: 9 | Z112: 10000 | AA112: =IF(OR(AND(AE112="YES",AF112="PHYSICALLY VERIFIED"),AND(AE112="YES",AF112="DOCUMENT VERIFIED"),AND(AE112="YES",'Basic Details'!$D$31="Self Assessment"),AND(AE112="YES",'Basic Details'!$D$31="Draft")),1*IF(BB112="ERROR INPUT",0+1,1),0) -> 0 | BD112: 0 | BE112: 1-2 | BF112: 3-5 | BG112: 6-8 | BH112: 9 & Above | BM112: D-2 | BN112: 105 | BO112: 4 | BP112: 0.5 | BQ112: 2 | BR112: 0
C113: 106 | E113: No. of prizes won by college at Regional Cultural, Litrary events and NSS, NCC, Rover, Ranger programes. | H113: 0 | J113: 0.25 | L113: 0 | Q113: 0 | R113: 0 | S113: 1 | T113: 2 | U113: 3 | V113: 5 | W113: 6 | X113: 8 | Y113: 9 | Z113: 10000 | AA113: =IF(OR(AND(AE113="YES",AF113="PHYSICALLY VERIFIED"),AND(AE113="YES",AF113="DOCUMENT VERIFIED"),AND(AE113="YES",'Basic Details'!$D$31="Self Assessment"),AND(AE113="YES",'Basic Details'!$D$31="Draft")),1*IF(BB113="ERROR INPUT",0+1,1),0) -> 0 | BD113: 0 | BE113: 1-2 | BF113: 3-5 | BG113: 6-8 | BH113: 9 & Above | BM113: D-2 | BN113: 106 | BO113: 4 | BP113: 0.25 | BQ113: 1 | BR113: 0
A114: D. Student Support and participation | B114: D-2 Counseling and Mentoring | C114: 107 | E114: No. of prizes won by college at National/International Cultural, Litrary events and NSS , NCC, Rover, Ranger programes. | H114: 0 | J114: 0.5 | L114: 0 | Q114: 0 | R114: 0 | S114: 1 | T114: 2 | U114: 3 | V114: 5 | W114: 6 | X114: 8 | Y114: 9 | Z114: 10000 | AA114: =IF(OR(AND(AE114="YES",AF114="PHYSICALLY VERIFIED"),AND(AE114="YES",AF114="DOCUMENT VERIFIED"),AND(AE114="YES",'Basic Details'!$D$31="Self Assessment"),AND(AE114="YES",'Basic Details'!$D$31="Draft")),1*IF(BB114="ERROR INPUT",0+1,1),0) -> 0 | BD114: 0 | BE114: 1-2 | BF114: 3-5 | BG114: 6-8 | BH114: 9 & Above | BM114: D-2 | BN114: 107 | BO114: 4 | BP114: 0.5 | BQ114: 2 | BR114: 0
BM115: D-2 | BN115: 0 | BO115: 4 | BP115: 0 | BQ115: 0 | BR115: 0
C116: =1+C114 -> 108 | E116: Prizes won/Awards received by any teaching/non teaching staff (Local / State / National / International). | H116: 0 | J116: 0.25 | L116: =IF($H116<$S116,$L$5,"") -> 0 | M116: =IF(AND($H116<$U116,$H116>$R116),$M$5,"") ->  | N116: =IF(AND($H116<$W116,$H116>$T116),$N$5,"") ->  | O116: =IF(AND($H116<$Y116,$H116>$V116),$O$5,"") ->  | P116: =IF(AND($H116<Z116,H116>X116),$P$5,"") ->  | Q116: 0 | R116: 0 | S116: 1 | T116: 1 | U116: 2 | V116: 2 | W116: 3 | X116: 3 | Y116: 4 | Z116: 10000 | AA116: =IF(OR(AND(AE116="YES",AF116="PHYSICALLY VERIFIED"),AND(AE116="YES",AF116="DOCUMENT VERIFIED"),AND(AE116="YES",'Basic Details'!$D$31="Self Assessment"),AND(AE116="YES",'Basic Details'!$D$31="Draft")),1*IF(BB116="ERROR INPUT",0+1,1),0) -> 0 | BD116: No | BE116: Local Level | BF116: State Level | BG116: Natational Level | BH116: International Level | BM116: D-2 | BN116: 108 | BO116: 4 | BP116: 0.25 | BQ116: 1 | BR116: 0
C117: 109 | E117: Activities organised by Grievence Redressal Cell. | H117: 0 | J117: 0.25 | L117: =IF(OR(H117="",H117="NO"),$L$5,"") ->  | M117: =IF(AND($H117<$U117%,$H117>$R117%),$M$5,"") ->  | N117: =IF(AND($H117<$W117%,$H117>$T117%),$N$5,"") ->  | O117: =IF(AND($H117<$Y117%,$H117>$V117%),$O$5,"") ->  | P117: =IF(H117="YES",$P$5,"") ->  | AA117: =IF(OR(AND(AE117="YES",AF117="PHYSICALLY VERIFIED"),AND(AE117="YES",AF117="DOCUMENT VERIFIED"),AND(AE117="YES",'Basic Details'!$D$31="Self Assessment"),AND(AE117="YES",'Basic Details'!$D$31="Draft")),1*IF(BB117="ERROR INPUT",0+1,1),0) -> 0 | BD117: No | BH117: Yes | BM117: D-2 | BN117: 109 | BO117: 4 | BP117: 0.25 | BQ117: 1 | BR117: 0
C118: 110 | E118: Activities performed by Anti ragging cell. | H118: 0 | J118: 0.25 | AA118: =IF(OR(AND(AE118="YES",AF118="PHYSICALLY VERIFIED"),AND(AE118="YES",AF118="DOCUMENT VERIFIED"),AND(AE118="YES",'Basic Details'!$D$31="Self Assessment"),AND(AE118="YES",'Basic Details'!$D$31="Draft")),1*IF(BB118="ERROR INPUT",0+1,1),0) -> 0 | AH118: College orders to this effect | BD118: No | BH118: Yes | BM118: D-2 | BN118: 110 | BO118: 4 | BP118: 0.25 | BQ118: 1 | BR118: 0
C119: 111 | E119: Activities organised by Women cell. | H119: 0 | J119: 0.25 | AA119: =IF(OR(AND(AE119="YES",AF119="PHYSICALLY VERIFIED"),AND(AE119="YES",AF119="DOCUMENT VERIFIED"),AND(AE119="YES",'Basic Details'!$D$31="Self Assessment"),AND(AE119="YES",'Basic Details'!$D$31="Draft")),1*IF(BB119="ERROR INPUT",0+1,1),0) -> 0 | AH119: College orders to this effect AND Copies of documents / photographs / reports | BD119: No | BH119: Yes | BM119: D-2 | BN119: 111 | BO119: 4 | BP119: 0.25 | BQ119: 1 | BR119: 0
C120: 112 | E120: Activities organised by Student Advisory cell. | H120: 0 | J120: 0.25 | AA120: =IF(OR(AND(AE120="YES",AF120="PHYSICALLY VERIFIED"),AND(AE120="YES",AF120="DOCUMENT VERIFIED"),AND(AE120="YES",'Basic Details'!$D$31="Self Assessment"),AND(AE120="YES",'Basic Details'!$D$31="Draft")),1*IF(BB120="ERROR INPUT",0+1,1),0) -> 0 | BD120: No | BH120: Yes | BM120: D-2 | BN120: 112 | BO120: 4 | BP120: 0.25 | BQ120: 1 | BR120: 0
C121: 113 | E121: Activities organised by Amensty cell. | H121: 0 | J121: 0.25 | AA121: =IF(OR(AND(AE121="YES",AF121="PHYSICALLY VERIFIED"),AND(AE121="YES",AF121="DOCUMENT VERIFIED"),AND(AE121="YES",'Basic Details'!$D$31="Self Assessment"),AND(AE121="YES",'Basic Details'!$D$31="Draft")),1*IF(BB121="ERROR INPUT",0+1,1),0) -> 0 | BD121: No | BH121: Yes | BM121: D-2 | BN121: 113 | BO121: 4 | BP121: 0.25 | BQ121: 1 | BR121: 0
C122: 114 | E122: Sexual harassment and Internal complaint cell. | H122: 0 | J122: 0.25 | AA122: =IF(OR(AND(AE122="YES",AF122="PHYSICALLY VERIFIED"),AND(AE122="YES",AF122="DOCUMENT VERIFIED"),AND(AE122="YES",'Basic Details'!$D$31="Self Assessment"),AND(AE122="YES",'Basic Details'!$D$31="Draft")),1*IF(BB122="ERROR INPUT",0+1,1),0) -> 0 | AH122: College orders to this effect AND Copies of documents / photographs / reports | BD122: No | BH122: Yes | BM122: D-2 | BN122: 114 | BO122: 4 | BP122: 0.25 | BQ122: 1 | BR122: 0
A123: D. Student Support and participation | B123: D-2 Counseling and Mentoring | C123: 115 | E123: Total No. of Extra-curricular activities organised. | H123: =+F123 -> 0 | J123: 1 | L123: =IF($H123<$S123,$L$5,"") -> 0 | M123: =IF(AND($H123<$U123,$H123>$R123),$M$5,"") ->  | N123: =IF(AND($H123<$W123,$H123>$T123),$N$5,"") ->  | O123: =IF(AND($H123<$Y123,$H123>$V123),$O$5,"") ->  | P123: =IF(AND($H123<Z123,H123>X123),$P$5,"") ->  | Q123: 0 | R123: 0 | S123: 1 | T123: 5 | U123: 6 | V123: 10 | W123: 11 | X123: 15 | Y123: 16 | Z123: 10000 | AA123: =IF(OR(AND(AE123="YES",AF123="PHYSICALLY VERIFIED"),AND(AE123="YES",AF123="DOCUMENT VERIFIED"),AND(AE123="YES",'Basic Details'!$D$31="Self Assessment"),AND(AE123="YES",'Basic Details'!$D$31="Draft")),1*IF(BB123="ERROR INPUT",0+1,1),0) -> 0 | AH123: Copies of news / photographs / reports of events (Make a list of such events with name, purpose and documents) | BD123: 0 | BE123: 1-5 | BF123: 5-10 | BG123: 10-15 | BH123: 15 & Above | BM123: D-2 | BN123: 115 | BO123: 4 | BP123: 1 | BQ123: 4 | BR123: 0
C124: 116 | E124: Activities of Entrepreneurship / Skill Development promotional cell in the college. | H124: =+F124 -> 0 | J124: 0.25 | L124: =IF(OR(H124="",H124="NO"),$L$5,"") ->  | M124: =IF(AND($H124<$U124%,$H124>$R124%),$M$5,"") ->  | N124: =IF(AND($H124<$W124%,$H124>$T124%),$N$5,"") ->  | O124: =IF(AND($H124<$Y124%,$H124>$V124%),$O$5,"") ->  | P124: =IF(H124="YES",$P$5,"") ->  | AA124: =IF(OR(AND(AE124="YES",AF124="PHYSICALLY VERIFIED"),AND(AE124="YES",AF124="DOCUMENT VERIFIED"),AND(AE124="YES",'Basic Details'!$D$31="Self Assessment"),AND(AE124="YES",'Basic Details'!$D$31="Draft")),1*IF(BB124="ERROR INPUT",0+1,1),0) -> 0 | AH124: College orders to this effect AND Copies of documents / photographs / reports of activities | BD124: No | BH124: Yes | BM124: D-2 | BN124: 116 | BO124: 4 | BP124: 0.25 | BQ124: 1 | BR124: 0
C125: 117 | E125: Activities of NSS units in the college. | H125: 0 | J125: 0.5 | L125: =IF(OR(H125="",H125="NO"),$L$5,"") ->  | P125: =IF(H125="YES",$P$5,"") ->  | AA125: =IF(OR(AND(AE125="YES",AF125="PHYSICALLY VERIFIED"),AND(AE125="YES",AF125="DOCUMENT VERIFIED"),AND(AE125="YES",'Basic Details'!$D$31="Self Assessment"),AND(AE125="YES",'Basic Details'!$D$31="Draft")),1*IF(BB125="ERROR INPUT",0+1,1),0) -> 0 | AH125: Visit units and see activity documents | BD125: No | BH125: Yes | BM125: D-2 | BN125: 117 | BO125: 4 | BP125: 0.5 | BQ125: 2 | BR125: 0
C126: 118 | E126: Activities of Rover/ Ranger unit. | H126: 0 | J126: 0.5 | L126: =IF(OR(H126="",H126="NO"),$L$5,"") ->  | P126: =IF(H126="YES",$P$5,"") ->  | AA126: =IF(OR(AND(AE126="YES",AF126="PHYSICALLY VERIFIED"),AND(AE126="YES",AF126="DOCUMENT VERIFIED"),AND(AE126="YES",'Basic Details'!$D$31="Self Assessment"),AND(AE126="YES",'Basic Details'!$D$31="Draft")),1*IF(BB126="ERROR INPUT",0+1,1),0) -> 0 | AH126: Visit units and see activity documents | BD126: No | BH126: Yes | BM126: D-2 | BN126: 118 | BO126: 4 | BP126: 0.5 | BQ126: 2 | BR126: 0
C127: 119 | E127: Activities of NCC unit in the college. | H127: 0 | J127: 0.5 | L127: =IF(OR(H127="",H127="NO"),$L$5,"") ->  | P127: =IF(H127="YES",$P$5,"") ->  | AA127: =IF(OR(AND(AE127="YES",AF127="PHYSICALLY VERIFIED"),AND(AE127="YES",AF127="DOCUMENT VERIFIED"),AND(AE127="YES",'Basic Details'!$D$31="Self Assessment"),AND(AE127="YES",'Basic Details'!$D$31="Draft")),1*IF(BB127="ERROR INPUT",0+1,1),0) -> 0 | AH127: Visit units and see activity documents | BD127: No | BH127: Yes | BM127: D-2 | BN127: 119 | BO127: 4 | BP127: 0.5 | BQ127: 2 | BR127: 0
C128: 120 | E128: Employment/ job vacancy display board for students. | H128: 0 | J128: 0.25 | L128: =IF(OR(H128="",H128="NO"),$L$5,"") ->  | P128: =IF(H128="YES",$P$5,"") ->  | AA128: =IF(OR(AND(AE128="YES",AF128="PHYSICALLY VERIFIED"),AND(AE128="YES",AF128="DOCUMENT VERIFIED"),AND(AE128="YES",'Basic Details'!$D$31="Self Assessment"),AND(AE128="YES",'Basic Details'!$D$31="Draft")),1*IF(BB128="ERROR INPUT",0+1,1),0) -> 0 | AH128: Display boards and latest job vacancies to be verified physically by Peer Team | BD128: No | BH128: Yes | BM128: D-2 | BN128: 120 | BO128: 4 | BP128: 0.25 | BQ128: 1 | BR128: 0
C129: 121 | E129: First-Aid kit available/Dispensery facilities available. | H129: =IF(F129="NO",0,IF(F129="Only FIRST AID KIT",2,IF(F129="Dispensery Facility",4,0))) -> 0 | J129: 0.25 | L129: =IF($H129<$S129,$L$5,"") -> 0 | M129: =IF(AND($H129<$U129,$H129>$R129),$M$5,"") ->  | N129: =IF(AND($H129<$W129,$H129>$T129),$N$5,"") ->  | O129: =IF(AND($H129<$Y129,$H129>$V129),$O$5,"") ->  | P129: =IF(AND($H129<Z129,H129>X129),$P$5,"") ->  | Q129: 0 | R129: 0 | S129: 1 | T129: 1 | U129: 1.0001 | V129: 2 | W129: 2.00001 | X129: 3 | Y129: 4 | Z129: 100 | AA129: =IF(OR(AND(AE129="YES",AF129="PHYSICALLY VERIFIED"),AND(AE129="YES",AF129="DOCUMENT VERIFIED"),AND(AE129="YES",'Basic Details'!$D$31="Self Assessment"),AND(AE129="YES",'Basic Details'!$D$31="Draft")),1*IF(BB129="ERROR INPUT",0+1,1),0) -> 0 | AH129: Basic first aid material to be verified physically by Peer Team | BD129: No | BF129: Only FIRST AID KIT | BH129: Dispensery Facility | BM129: D-2 | BN129: 121 | BO129: 4 | BP129: 0.25 | BQ129: 1 | BR129: 0
C130: 122 | E130: Day Care Facility. | H130: =+F130 -> 0 | J130: 0.25 | L130: =IF(OR(H130="",H130="NO"),$L$5,"") ->  | M130: =IF(AND($H130<$U130%,$H130>$R130%),$M$5,"") ->  | N130: =IF(AND($H130<$W130%,$H130>$T130%),$N$5,"") ->  | O130: =IF(AND($H130<$Y130%,$H130>$V130%),$O$5,"") ->  | P130: =IF(H130="YES",$P$5,"") ->  | AA130: =IF(OR(AND(AE130="YES",AF130="PHYSICALLY VERIFIED"),AND(AE130="YES",AF130="DOCUMENT VERIFIED"),AND(AE130="YES",'Basic Details'!$D$31="Self Assessment"),AND(AE130="YES",'Basic Details'!$D$31="Draft")),1*IF(BB130="ERROR INPUT",0+1,1),0) -> 0 | BD130: No | BH130: Yes | BM130: D-2 | BN130: 122 | BO130: 4 | BP130: 0.25 | BQ130: 1 | BR130: 0
C131: =1+C130 -> 123 | E131: Canteen facility available with proper space, hygenic environmen, menu and Food availablity. | H131: =IF(F131="No Canteen",0,IF(F131="Yes Canteen",2,IF(F131="Yes Canteen & proper space & Hygenic environment & Menu",3,IF(F131="Yes Canteen & proper space & Hygenic environment & Menu & Yes Food Availability",4,0)))) -> 0 | J131: 0.25 | L131: =IF($H131<$S131,$L$5,"") -> 0 | M131: =IF(AND($H131<$U131,$H131>$R131),$M$5,"") ->  | N131: =IF(AND($H131<$W131,$H131>$T131),$N$5,"") ->  | O131: =IF(AND($H131<$Y131,$H131>$V131),$O$5,"") ->  | P131: =IF(AND($H131<Z131,H131>X131),$P$5,"") ->  | Q131: 0 | R131: 0 | S131: 0.0001 | T131: 1.99999 | U131: 2 | V131: 2.99995 | W131: 3 | X131: 3.99995 | Y131: 4 | Z131: 100 | AA131: =IF(OR(AND(AE131="YES",AF131="PHYSICALLY VERIFIED"),AND(AE131="YES",AF131="DOCUMENT VERIFIED"),AND(AE131="YES",'Basic Details'!$D$31="Self Assessment"),AND(AE131="YES",'Basic Details'!$D$31="Draft")),1*IF(BB131="ERROR INPUT",0+1,1),0) -> 0 | AH131: Functionality to be verified physically by Peer Team | BD131: No Canteen | BF131: Yes Canteen | BG131: Yes Canteen & proper space & Hygenic environment & Menu | BH131: Yes Canteen & proper space & Hygenic environment & Menu & Yes Food Availability | BM131: D-2 | BN131: 123 | BO131: 4 | BP131: 0.25 | BQ131: 1 | BR131: 0
C132: 124 | E132: Functional Hostel facility. | H132: =+F132 -> 0 | J132: 0.25 | L132: =IF(OR(H132="",H132="NO"),$L$5,"") ->  | M132: =IF(AND($H132<$U132%,$H132>$R132%),$M$5,"") ->  | N132: =IF(AND($H132<$W132%,$H132>$T132%),$N$5,"") ->  | O132: =IF(AND($H132<$Y132%,$H132>$V132%),$O$5,"") ->  | P132: =IF(H132="YES",$P$5,"") ->  | AA132: =IF(OR(AND(AE132="YES",AF132="PHYSICALLY VERIFIED"),AND(AE132="YES",AF132="DOCUMENT VERIFIED"),AND(AE132="YES",'Basic Details'!$D$31="Self Assessment"),AND(AE132="YES",'Basic Details'!$D$31="Draft")),1*IF(BB132="ERROR INPUT",0+1,1),0) -> 0 | AH132: To be verified physically by Peer Team | BD132: No | BH132: Yes | BM132: D-2 | BN132: 124 | BO132: 4 | BP132: 0.25 | BQ132: 1 | BR132: 0 | BS132: =SUM(BP105:BP132) -> 9.75 | BT132: =SUM(BR105:BR132) -> 0 | BU132: =SUM(BQ105:BQ132) -> 39 | BV132: =SUM(BS94:BS132) -> 13.5 | BW132: =SUM(BT94:BT132) -> 0 | BX132: =SUM(BU94:BU132) -> 54
A133: E. Financial Resources and Utilisation | B133: E-1 Financial Management | C133: 125 | D133: 4 | E133: Percentage of total grants utilized in last 3 years. | H133: =IF(F133="","",ROUND(F133/G133,4)) ->  | I133: =IF(OR(F133="",G133="",G133=0),"",SUM(L133:P133)) ->  | J133: 0.5 | L133: =IF($H133<$S133%,$L$5,"") ->  | M133: =IF(AND($H133<$U133%,$H133>$R133%),$M$5,"") ->  | N133: =IF(AND($H133<$W133%,$H133>$T133%),$N$5,"") ->  | O133: =IF(AND($H133<$Y133%,$H133>$V133%),$O$5,"") ->  | P133: =IF(AND($H133<Z133%,H133>X133%),$P$5,"") ->  | Q133: 0 | R133: 20 | S133: 20.0001 | T133: 40 | U133: 40.0001 | V133: 60 | W133: 60.0001 | X133: 80 | Y133: 80.0001 | Z133: 10000 | AA133: =IF(OR(AND(AE133="YES",AF133="PHYSICALLY VERIFIED"),AND(AE133="YES",AF133="DOCUMENT VERIFIED"),AND(AE133="YES",'Basic Details'!$D$31="Self Assessment"),AND(AE133="YES",'Basic Details'!$D$31="Draft")),1*IF(BB133="ERROR INPUT",0+1,1),0) -> 0 | AH133: Copies of sanction order and Utilisation / Expenditure certificates / documents | BB133: =IF(F133>G133,"ERROR INPUT","") ->  | BD133: 0-20 | BE133: 20-40 | BF133: 40-60 | BG133: 60-80 | BH133: 80-100 | BM133: E-1 | BN133: 125 | BO133: 4 | BP133: 0.5 | BQ133: 2 | BR133: 0
C134: 126 | D134: 4 | E134: Average annual per capita capital expenditure. | G134: =IF(F134="","",+$F$7) ->  | H134: =IF(F134=0,"",ROUND(F134/G134,4)) ->  | I134: =IF(F134="","",SUM(L134:P134)) ->  | J134: 0.5 | L134: =IF($H134<$S134,$L$5,"") ->  | M134: =IF(AND($H134<$U134,$H134>$R134),$M$5,"") ->  | N134: =IF(AND($H134<$W134,$H134>$T134),$N$5,"") ->  | O134: =IF(AND($H134<$Y134,$H134>$V134),$O$5,"") ->  | P134: =IF(AND($H134<Z134,H134>X134),$P$5,"") ->  | Q134: 0 | R134: 0 | S134: 1e-05 | T134: 499.9999 | U134: 500 | V134: 999.9999 | W134: 1000 | X134: 1499.9999 | Y134: 1500 | Z134: 100000000 | AA134: =IF(OR(AND(AE134="YES",AF134="PHYSICALLY VERIFIED"),AND(AE134="YES",AF134="DOCUMENT VERIFIED"),AND(AE134="YES",'Basic Details'!$D$31="Self Assessment"),AND(AE134="YES",'Basic Details'!$D$31="Draft")),1*IF(BB134="ERROR INPUT",0+1,1),0) -> 0 | AH134: Copies of sanction order and Utilisation / Expenditure certificates / documents | BD134: 0 | BE134: More than 0 but less than 500 | BF134: 500-1000 | BG134: 1000-1500 | BH134: 1500 & Above | BM134: E-1 | BN134: 126 | BO134: 4 | BP134: 0.5 | BQ134: 2 | BR134: 0
C135: 127 | D135: 4 | E135: Average annual per capita operational expenditure. | G135: =IF(F135="","",+$F$7) ->  | H135: =IF(F135=0,"",ROUND(F135/G135,4)) ->  | J135: 0.5 | L135: =IF($H135<$S135,$L$5,"") ->  | M135: =IF(AND($H135<$U135,$H135>$R135),$M$5,"") ->  | N135: =IF(AND($H135<$W135,$H135>$T135),$N$5,"") ->  | O135: =IF(AND($H135<$Y135,$H135>$V135),$O$5,"") ->  | P135: =IF(AND($H135<Z135,H135>X135),$P$5,"") ->  | Q135: 0 | R135: 199.9999 | S135: 200 | T135: 399.9999 | U135: 400 | V135: 599.9999 | W135: 600 | X135: 799.9999 | Y135: 800 | Z135: 100000000 | AA135: =IF(OR(AND(AE135="YES",AF135="PHYSICALLY VERIFIED"),AND(AE135="YES",AF135="DOCUMENT VERIFIED"),AND(AE135="YES",'Basic Details'!$D$31="Self Assessment"),AND(AE135="YES",'Basic Details'!$D$31="Draft")),1*IF(BB135="ERROR INPUT",0+1,1),0) -> 0 | AH135: Copies of sanction order and Utilisation / Expenditure certificates / documents | BD135: 0-200 | BE135: 200-400 | BF135: 400-600 | BG135: 600-800 | BH135: 800 & Above | BM135: E-1 | BN135: =+C135 -> 127 | BO135: 4 | BP135: 0.5 | BQ135: 2 | BR135: 0
C136: 128 | D136: 4 | E136: No. of Internal/ CA Audits undertaken during last 3 years. | H136: =+F136 -> 0 | J136: 0.5 | L136: =IF($H136<$S136,$L$5,"") -> 0 | M136: =IF(AND($H136<$U136,$H136>$R136),$M$5,"") ->  | N136: =IF(AND($H136<$W136,$H136>$T136),$N$5,"") ->  | O136: =IF(AND($H136<$Y136,$H136>$V136),$O$5,"") ->  | P136: =IF(AND($H136<Z136,H136>X136),$P$5,"") ->  | Q136: 0 | R136: 0 | S136: 1 | T136: 1 | U136: 2 | V136: 2 | W136: 3 | X136: 3 | Y136: 4 | Z136: 10000 | AA136: =IF(OR(AND(AE136="YES",AF136="PHYSICALLY VERIFIED"),AND(AE136="YES",AF136="DOCUMENT VERIFIED"),AND(AE136="YES",'Basic Details'!$D$31="Self Assessment"),AND(AE136="YES",'Basic Details'!$D$31="Draft")),1*IF(BB136="ERROR INPUT",0+1,1),0) -> 0 | AC136: =IF(AB136="","","-") ->  | AH136: Copies of audit reports | BD136: 0 | BE136: 1 | BF136: 2 | BG136: 3 | BH136: 4 & Above | BM136: E-1 | BN136: 128 | BO136: 4 | BP136: 0.5 | BQ136: 2 | BR136: 0 | BS136: =SUM(BP133:BP136) -> 2 | BT136: =SUM(BR133:BR136) -> 0 | BU136: =SUM(BQ133:BQ136) -> 8
B137: E-2 Self Financing Efforts | C137: =1+C136 -> 129 | E137: (a)(i) Source of Income-Donationas/Grants in Aid-From Government | H137: =+F137 -> 0 | I137: =IF(F137="","",SUM(L137:P137)) ->  | J137: 0.5 | L137: =IF(OR(H137="",H137="NO"),$L$5,"") ->  | M137: =IF(AND($H137<$U137%,$H137>$R137%),$M$5,"") ->  | N137: =IF(AND($H137<$W137%,$H137>$T137%),$N$5,"") ->  | O137: =IF(AND($H137<$Y137%,$H137>$V137%),$O$5,"") ->  | P137: =IF(H137="YES",$P$5,"") ->  | AA137: =IF(OR(AND(AE137="YES",AF137="PHYSICALLY VERIFIED"),AND(AE137="YES",AF137="DOCUMENT VERIFIED"),AND(AE137="YES",'Basic Details'!$D$31="Self Assessment"),AND(AE137="YES",'Basic Details'!$D$31="Draft")),1*IF(BB137="ERROR INPUT",0+1,1),0) -> 0 | AH137: To be verified physically by Peer Team | BD137: NO | BH137: Yes | BM137: E-1 | BN137: 129 | BO137: 4 | BP137: 0.5 | BQ137: 2 | BR137: 0
C138: 130 | E138: (a)(ii) Source of Income-Donationas-From Private | H138: 0 | J138: 0.5 | L138: =IF(OR(H138="",H138="NO"),$L$5,"") ->  | P138: =IF(H138="YES",$P$5,"") ->  | AA138: =IF(OR(AND(AE138="YES",AF138="PHYSICALLY VERIFIED"),AND(AE138="YES",AF138="DOCUMENT VERIFIED"),AND(AE138="YES",'Basic Details'!$D$31="Self Assessment"),AND(AE138="YES",'Basic Details'!$D$31="Draft")),1*IF(BB138="ERROR INPUT",0+1,1),0) -> 0 | AH138: To be verified physically by Peer Team | BD138: NO | BH138: Yes | BM138: E-1 | BN138: 130 | BO138: 4 | BP138: 0.5 | BQ138: 2 | BR138: 0
C139: 131 | E139: (a)(iii) Source of Income-Donationas-From Others | H139: 0 | J139: 0.5 | L139: =IF(OR(H139="",H139="NO"),$L$5,"") ->  | P139: =IF(H139="YES",$P$5,"") ->  | AA139: =IF(OR(AND(AE139="YES",AF139="PHYSICALLY VERIFIED"),AND(AE139="YES",AF139="DOCUMENT VERIFIED"),AND(AE139="YES",'Basic Details'!$D$31="Self Assessment"),AND(AE139="YES",'Basic Details'!$D$31="Draft")),1*IF(BB139="ERROR INPUT",0+1,1),0) -> 0 | AH139: To be verified physically by Peer Team | BD139: NO | BH139: Yes | BM139: E-1 | BN139: 131 | BO139: 4 | BP139: 0.5 | BQ139: 2 | BR139: 0
C140: 132 | E140: (b) Source of Income-Fee Receipt | H140: 0 | J140: 0.5 | L140: =IF(OR(H140="",H140="NO"),$L$5,"") ->  | P140: =IF(H140="YES",$P$5,"") ->  | AA140: =IF(OR(AND(AE140="YES",AF140="PHYSICALLY VERIFIED"),AND(AE140="YES",AF140="DOCUMENT VERIFIED"),AND(AE140="YES",'Basic Details'!$D$31="Self Assessment"),AND(AE140="YES",'Basic Details'!$D$31="Draft")),1*IF(BB140="ERROR INPUT",0+1,1),0) -> 0 | AH140: To be verified physically by Peer Team | BD140: NO | BH140: Yes | BM140: E-1 | BN140: 132 | BO140: 4 | BP140: 0.5 | BQ140: 2 | BR140: 0
C141: =1+C140 -> 133 | D141: 4 | E141: Total funds received from all sources (last 3 years). | H141: =+F141 -> 0 | J141: 1.25 | L141: =IF($H141<$S141,$L$5,"") -> 0 | M141: =IF(AND($H141<$U141,$H141>$R141),$M$5,"") ->  | N141: =IF(AND($H141<$W141,$H141>$T141),$N$5,"") ->  | O141: =IF(AND($H141<$Y141,$H141>$V141),$O$5,"") ->  | P141: =IF(AND($H141<Z141,H141>X141),$P$5,"") ->  | Q141: 0 | R141: 0 | S141: 1 | T141: =-0.1+100000 -> 99999.9 | U141: 100000 | V141: =-0.1+600000 -> 599999.9 | W141: 600000 | X141: =-0.1+2000000 -> 1999999.9 | Y141: 2000000 | Z141: 1000000000 | AA141: =IF(OR(AND(AE141="YES",AF141="PHYSICALLY VERIFIED"),AND(AE141="YES",AF141="DOCUMENT VERIFIED"),AND(AE141="YES",'Basic Details'!$D$31="Self Assessment"),AND(AE141="YES",'Basic Details'!$D$31="Draft")),1*IF(BB141="ERROR INPUT",0+1,1),0) -> 0 | AH141: Copies of such grant / gift sanctioned orders / letter | BD141: 0 | BE141: Upto 1 Lakh | BF141: 1-6 Lakh | BG141: 6-20 Lakh | BH141: 20 lakh & Above | BM141: E-2 | BN141: 133 | BO141: 4 | BP141: 1.25 | BQ141: 5 | BR141: 0 | BS141: =+BP141 -> 1.25 | BT141: =+BR141 -> 0 | BU141: =+BQ141 -> 5 | BV141: =+BS136+BS141 -> 3.25 | BW141: =+BT136+BT141 -> 0 | BX141: =+BU136+BU141 -> 13
A142: F. Commitment, Leadership and Management | B142: F-1 Societal Footprint | C142: 134 | E142: Whether college has any regular center for IGNOU / VMOU etc.. | H142: =+F142 -> 0 | I142: =IF(F142="","",SUM(L142:P142)) ->  | J142: 0.25 | L142: =IF(OR(H142="",H142="NO"),$L$5,"") ->  | M142: =IF(AND($H142<$U142%,$H142>$R142%),$M$5,"") ->  | N142: =IF(AND($H142<$W142%,$H142>$T142%),$N$5,"") ->  | O142: =IF(AND($H142<$Y142%,$H142>$V142%),$O$5,"") ->  | P142: =IF(H142="YES",$P$5,"") ->  | AA142: =IF(OR(AND(AE142="YES",AF142="PHYSICALLY VERIFIED"),AND(AE142="YES",AF142="DOCUMENT VERIFIED"),AND(AE142="YES",'Basic Details'!$D$31="Self Assessment"),AND(AE142="YES",'Basic Details'!$D$31="Draft")),1*IF(BB142="ERROR INPUT",0+1,1),0) -> 0 | AH142: Copies of news / photographs / reports of activities (Make a list of such events) | BD142: No | BH142: Yes | BM142: F-1 | BN142: 134 | BO142: 4 | BP142: 0.25 | BQ142: 1 | BR142: 0
C143: 135 | E143: No. of efforts undertaken for creating national integration and Community awareness among students. | H143: =+F143 -> 0 | J143: 0.25 | L143: =IF($H143<$S143,$L$5,"") -> 0 | M143: =IF(AND($H143<$U143,$H143>$R143),$M$5,"") ->  | N143: =IF(AND($H143<$W143,$H143>$T143),$N$5,"") ->  | O143: =IF(AND($H143<$Y143,$H143>$V143),$O$5,"") ->  | P143: =IF(AND($H143<Z143,H143>X143),$P$5,"") ->  | Q143: 0 | R143: 0 | S143: 1 | T143: 3 | U143: 4 | V143: 6 | W143: 7 | X143: 9 | Y143: 10 | Z143: 10000 | AA143: =IF(OR(AND(AE143="YES",AF143="PHYSICALLY VERIFIED"),AND(AE143="YES",AF143="DOCUMENT VERIFIED"),AND(AE143="YES",'Basic Details'!$D$31="Self Assessment"),AND(AE143="YES",'Basic Details'!$D$31="Draft")),1*IF(BB143="ERROR INPUT",0+1,1),0) -> 0 | AH143: Copies of news / photographs / reports of activities (Make a list of such events) | BD143: 0 | BE143: 1-3 | BF143: 4-6 | BG143: 7-9 | BH143: 10 & Above | BM143: F-1 | BN143: 135 | BO143: 4 | BP143: 0.25 | BQ143: 1 | BR143: 0
C144: 136 | E144: No. of Institutional/ Corporate Collaborative activities undertaken by College. | H144: =+F144 -> 0 | J144: 0.25 | L144: =IF($H144<$S144,$L$5,"") -> 0 | M144: =IF(AND($H144<$U144,$H144>$R144),$M$5,"") ->  | N144: =IF(AND($H144<$W144,$H144>$T144),$N$5,"") ->  | O144: =IF(AND($H144<$Y144,$H144>$V144),$O$5,"") ->  | P144: =IF(AND($H144<Z144,H144>X144),$P$5,"") ->  | Q144: 0 | R144: 0 | S144: 1 | T144: 1 | U144: 2 | V144: 2 | W144: 3 | X144: 3 | Y144: 4 | Z144: 10000 | AA144: =IF(OR(AND(AE144="YES",AF144="PHYSICALLY VERIFIED"),AND(AE144="YES",AF144="DOCUMENT VERIFIED"),AND(AE144="YES",'Basic Details'!$D$31="Self Assessment"),AND(AE144="YES",'Basic Details'!$D$31="Draft")),1*IF(BB144="ERROR INPUT",0+1,1),0) -> 0 | AH144: Copies of formal letter / MOU for collaboration (Make a list of such events) | BD144: 0 | BE144: 1 | BF144: 2 | BG144: 3 | BH144: 4 & Above | BM144: F-1 | BN144: 136 | BO144: 4 | BP144: 0.25 | BQ144: 1 | BR144: 0 | BS144: =SUM(BP142:BP144) -> 0.75 | BT144: =SUM(BR142:BR144) -> 0 | BU144: =SUM(BQ142:BQ144) -> 3
C145: 137 | E145: Govt. Schemes run by the college | H145: =+F145 -> 0 | I145: =IF(F145="","",SUM(L145:P145)) ->  | J145: 0.5 | L145: =IF(OR(H145="",H145="NO"),$L$5,"") ->  | M145: =IF(AND($H145<$U145%,$H145>$R145%),$M$5,"") ->  | N145: =IF(AND($H145<$W145%,$H145>$T145%),$N$5,"") ->  | O145: =IF(AND($H145<$Y145%,$H145>$V145%),$O$5,"") ->  | P145: =IF(H145="YES",$P$5,"") ->  | AA145: =IF(OR(AND(AE145="YES",AF145="PHYSICALLY VERIFIED"),AND(AE145="YES",AF145="DOCUMENT VERIFIED"),AND(AE145="YES",'Basic Details'!$D$31="Self Assessment"),AND(AE145="YES",'Basic Details'!$D$31="Draft")),1*IF(BB145="ERROR INPUT",0+1,1),0) -> 0 | BD145: NO | BH145: Yes | BM145: F-1 | BN145: 137 | BO145: 4 | BP145: 0.5 | BQ145: 2 | BR145: 0
B146: F-2 Innovation | C146: =1+C145 -> 138 | E146: No. of initiatives undertaken for Students welfare (Human Value added based). | H146: =+F146 -> 0 | J146: 0.25 | L146: =IF($H146<$S146,$L$5,"") -> 0 | M146: =IF(AND($H146<$U146,$H146>$R146),$M$5,"") ->  | N146: =IF(AND($H146<$W146,$H146>$T146),$N$5,"") ->  | O146: =IF(AND($H146<$Y146,$H146>$V146),$O$5,"") ->  | P146: =IF(AND($H146<Z146,H146>X146),$P$5,"") ->  | Q146: 0 | R146: 0 | S146: 1 | T146: 1 | U146: 2 | V146: 2 | W146: 3 | X146: 3 | Y146: 4 | Z146: 10000 | AA146: =IF(OR(AND(AE146="YES",AF146="PHYSICALLY VERIFIED"),AND(AE146="YES",AF146="DOCUMENT VERIFIED"),AND(AE146="YES",'Basic Details'!$D$31="Self Assessment"),AND(AE146="YES",'Basic Details'!$D$31="Draft")),1*IF(BB146="ERROR INPUT",0+1,1),0) -> 0 | AH146: Copies of news / photographs / reports of activities (Make a list of such events) | BD146: 0 | BE146: 1 | BF146: 2 | BG146: 3 | BH146: 4 & Above | BM146: F-2 | BN146: 138 | BO146: 4 | BP146: 0.25 | BQ146: 1 | BR146: 0
C147: 139 | E147: Quality enhancement training for Faculty/Staff Initiatives/Activities organised by college. | H147: =+F147 -> 0 | I147: =IF(F147="","",SUM(L147:P147)) ->  | J147: 0.25 | L147: =IF(OR(H147="",H147="NO"),$L$5,"") ->  | M147: =IF(AND($H147<$U147%,$H147>$R147%),$M$5,"") ->  | N147: =IF(AND($H147<$W147%,$H147>$T147%),$N$5,"") ->  | O147: =IF(AND($H147<$Y147%,$H147>$V147%),$O$5,"") ->  | P147: =IF(H147="YES",$P$5,"") ->  | AA147: =IF(OR(AND(AE147="YES",AF147="PHYSICALLY VERIFIED"),AND(AE147="YES",AF147="DOCUMENT VERIFIED"),AND(AE147="YES",'Basic Details'!$D$31="Self Assessment"),AND(AE147="YES",'Basic Details'!$D$31="Draft")),1*IF(BB147="ERROR INPUT",0+1,1),0) -> 0 | AH147: Copes of certificates / news / photographs (Make a list of such activities with date and institution name etc.) | BD147: No | BH147: Yes | BM147: F-2 | BN147: 139 | BO147: 4 | BP147: 0.25 | BQ147: 1 | BR147: 0
C148: 140 | E148: Games and Sports Activities for Faculty/Staff organised by college. | H148: 0 | J148: 0.25 | L148: =IF(OR(H148="",H148="NO"),$L$5,"") ->  | P148: =IF(H148="YES",$P$5,"") ->  | AA148: =IF(OR(AND(AE148="YES",AF148="PHYSICALLY VERIFIED"),AND(AE148="YES",AF148="DOCUMENT VERIFIED"),AND(AE148="YES",'Basic Details'!$D$31="Self Assessment"),AND(AE148="YES",'Basic Details'!$D$31="Draft")),1*IF(BB148="ERROR INPUT",0+1,1),0) -> 0 | BD148: No | BH148: Yes | BM148: F-2 | BN148: 140 | BO148: 4 | BP148: 0.25 | BQ148: 1 | BR148: 0
C149: 141 | E149: No. of Books collected under Community Book Bank scheme. | H149: =+F149 -> 0 | J149: 0.5 | L149: =IF($H149<$S149,$L$5,"") -> 0 | M149: =IF(AND($H149<$U149,$H149>$R149),$M$5,"") ->  | N149: =IF(AND($H149<$W149,$H149>$T149),$N$5,"") ->  | O149: =IF(AND($H149<$Y149,$H149>$V149),$O$5,"") ->  | P149: =IF(AND($H149<Z149,H149>X149),$P$5,"") ->  | Q149: 0 | R149: 0 | S149: 1 | T149: 100 | U149: 101 | V149: 200 | W149: 201 | X149: 499 | Y149: 500 | Z149: 10000 | AA149: =IF(OR(AND(AE149="YES",AF149="PHYSICALLY VERIFIED"),AND(AE149="YES",AF149="DOCUMENT VERIFIED"),AND(AE149="YES",'Basic Details'!$D$31="Self Assessment"),AND(AE149="YES",'Basic Details'!$D$31="Draft")),1*IF(BB149="ERROR INPUT",0+1,1),0) -> 0 | AH149: Collection of books register AND issue of books register to be verified physically by Peer Team | BD149: 0 | BE149: 1-100 | BF149: 101-200 | BG149: 201-500 | BH149: 500 & Above | BM149: F-2 | BN149: 141 | BO149: 4 | BP149: 0.5 | BQ149: 2 | BR149: 0
A150: F. Commitment, Leadership and Management | B150: F-2 Innovation | C150: 142 | E150: Participation of college in District level campaigning/ activities organized by district administration (Total Number). | H150: =+F150 -> 0 | J150: 0.5 | L150: =IF($H150<$S150,$L$5,"") -> 0 | M150: =IF(AND($H150<$U150,$H150>$R150),$M$5,"") ->  | N150: =IF(AND($H150<$W150,$H150>$T150),$N$5,"") ->  | O150: =IF(AND($H150<$Y150,$H150>$V150),$O$5,"") ->  | P150: =IF(AND($H150<Z150,H150>X150),$P$5,"") ->  | Q150: 0 | R150: 0 | S150: 1 | T150: 2 | U150: 3 | V150: 4 | W150: 5 | X150: 6 | Y150: 7 | Z150: 10000 | AA150: =IF(OR(AND(AE150="YES",AF150="PHYSICALLY VERIFIED"),AND(AE150="YES",AF150="DOCUMENT VERIFIED"),AND(AE150="YES",'Basic Details'!$D$31="Self Assessment"),AND(AE150="YES",'Basic Details'!$D$31="Draft")),1*IF(BB150="ERROR INPUT",0+1,1),0) -> 0 | AH150: Copies of formal letter / news / photographs / reports of activities (Make a list of such events) | BD150: 0 | BE150: 1-2 | BF150: 3-4 | BG150: 5-6 | BH150: 7 & Above | BM150: F-2 | BN150: 142 | BO150: 4 | BP150: 0.5 | BQ150: 2 | BR150: 0
C151: 143 | E151: Feedback availability for stakeholders (Students/Parents/Teachers/Others). | H151: =+F151 -> 0 | I151: =IF(F151="","",SUM(L151:P151)) ->  | J151: 0.5 | L151: =IF(OR(H151="",H151="NO"),$L$5,"") ->  | M151: =IF(AND($H151<$U151%,$H151>$R151%),$M$5,"") ->  | N151: =IF(AND($H151<$W151%,$H151>$T151%),$N$5,"") ->  | O151: =IF(AND($H151<$Y151%,$H151>$V151%),$O$5,"") ->  | P151: =IF(H151="YES",$P$5,"") ->  | AA151: =IF(OR(AND(AE151="YES",AF151="PHYSICALLY VERIFIED"),AND(AE151="YES",AF151="DOCUMENT VERIFIED"),AND(AE151="YES",'Basic Details'!$D$31="Self Assessment"),AND(AE151="YES",'Basic Details'!$D$31="Draft")),1*IF(BB151="ERROR INPUT",0+1,1),0) -> 0 | AH151: Copes of details of feedback system with followup | BD151: No | BH151: Yes | BM151: F-2 | BN151: 143 | BO151: 4 | BP151: 0.5 | BQ151: 2 | BR151: 0
C152: 144 | E152: Percentage of active e-mail ID of Students. | G152: =IF(F152="","",+$F$7) ->  | H152: =IF(F152="","",ROUND(F152/G152,4)) ->  | I152: =IF(OR(F152="",G152="",G152=0),"",SUM(L152:P152)) ->  | J152: 0.25 | L152: =IF($H152<$S152%,$L$5,"") ->  | M152: =IF(AND($H152<$U152%,$H152>$R152%),$M$5,"") ->  | N152: =IF(AND($H152<$W152%,$H152>$T152%),$N$5,"") ->  | O152: =IF(AND($H152<$Y152%,$H152>$V152%),$O$5,"") ->  | P152: =IF(AND($H152<Z152%,H152>X152%),$P$5,"") ->  | Q152: 0 | R152: 0 | S152: 0.0001 | T152: 25 | U152: 25.00001 | V152: 50 | W152: 50.0001 | X152: 75 | Y152: 75.0001 | Z152: 100000000 | AA152: =IF(OR(AND(AE152="YES",AF152="PHYSICALLY VERIFIED"),AND(AE152="YES",AF152="DOCUMENT VERIFIED"),AND(AE152="YES",'Basic Details'!$D$31="Self Assessment"),AND(AE152="YES",'Basic Details'!$D$31="Draft")),1*IF(BB152="ERROR INPUT",0+1,1),0) -> 0 | BD152: 0 | BE152: More than 0 but upto 25 | BF152: More than 25 but upto 50 | BG152: More than 50 but upto 75 | BH152: More than 75 | BM152: F-2 | BN152: 144 | BO152: 4 | BP152: 0.25 | BQ152: 1 | BR152: 0 | BS152: =SUM(BP146:BP152) -> 2.5 | BT152: =SUM(BR146:BR152) -> 0 | BU152: =SUM(BQ146:BQ152) -> 10
